Workbook

Sheet Resumo
A1: Ministério da Integração e do Desenvolvimento Regional
A2: Companhia de Desenvolvimento dos Vales do São Francisco e do Parnaíba
A4: PLANILHA RESUMO
A5: OBRA: | B5: Contratação de empresa para Serviços de fornecimento, transporte, carga, descarga, montagem e adequado funcionamento de Sistemas de Irrigação para os Estados de Minas Gerais (1ª/SR e 16ª/SR), Bahia (2ª e 6ª/SR), Alagoas (5ª/SR), Maranhão (8ª/SR), Mato Grosso (Sede) e Distrito Federal (Sede). | C5: BDI (serv.): | E5: ='[2]GOTEJAMENTO 1,0 HA'!L5 -> 0.2496
A6: LOCAL: | B6: ALAGOAS_AL | C6: BDI (forn.): | E6: ='[2]GOTEJAMENTO 1,0 HA'!L6 -> 0.125
A7: DATA BASE: | B7: 2026-03-01
A8: PRAZO: | B8: 270 dias
A9: GRUPO 12 | B9: SISTEMAS DE IRRIGAÇÃO PARA IMPLANTAÇÃO NA ÁREA DE ATUAÇÃO DA 5ª SR – ALAGOAS (COTA ME/EPP)
A11: ITENS | B11: DESCRIÇÃO | C11: UNID. | D11: QUANT. | E11: PREÇO UNITÁRIO | F11: PREÇO TOTAL
A12: 58 | B12: GOTEJAMENTO 1,0 HA- 220V | C12: unid. | D12: 10 | E12: =TRUNC('Item 58- GOTEJAMENTO 1,0 HA'!L4,2) -> 32106.39 | F12: =E12*D12 -> 321063.9
A13: 59 | B13: MICROASPERSÃO 1,0 HA- 220V | C13: unid. | D13: 10 | E13: =TRUNC('Item 59- MICROASPERSÃO 1,0 HA'!L3,2) -> 29275.11 | F13: =E13*D13 -> 292751.1
A14: 60 | B14: MICROASPERSÃO 2,0 HA- 220V | C14: unid. | D14: 10 | E14: =TRUNC('Item 60- MICROASPERSÃO 2,0 HA'!L3,2) -> 41299.99 | F14: 412999.9
B16: PREÇO TOTAL: | F16: =SUM(F12:F14) -> 1026814.9

Sheet BDI
A1: DETALHAMENTO DO BDI- SERVIÇOS | H1: DETALHAMENTO DO BDI- FORNECIMENTO DE MATERIAIS
A2: Item | B2: Descrição | C2: Preço de Venda (%) | D2: Custo Direto (%) | H2: Item | I2: Descrição | J2: Preço de Venda (%) | K2: Custo Direto (%)
A3: 1. | B3: Administração Central (AC) | D3: 4 | E3: =D3/100 -> 0.04 | H3: 1. | I3: Administração Central (AC) | K3: 1.59 | L3: =K3/100 -> 0.0159
A4: 2. | B4: Imposto e Taxas (I) | D4: 8.7 | E4: =D4/100 -> 0.087 | H4: 2. | I4: Imposto e Taxas (I) | K4: 4.5 | L4: =K4/100 -> 0.045
A5: 2.1 | B5: ISS | C5: 3.5 | E5: 0 | H5: 2.1 | I5: ISS | J5: 0 | L5: 0
A6: 2.2 | B6: PIS | C6: 0.65 | E6: 0 | H6: 2.2 | I6: PIS | J6: 0.65 | L6: 0
A7: 2.3 | B7: COFINS | C7: 3 | E7: 0 | H7: 2.3 | I7: COFINS | J7: 3 | L7: 0
A8: 2.4 | B8: CPRB (INSS) | C8: 0 | E8: 0 | H8: 2.4 | I8: CPRB (INSS) | J8: 0 | L8: 0
A9: 3. | B9: Riscos, seguro e garantia (R) | D9: 1.62 | E9: 0.0162 | H9: 3. | I9: Riscos, seguro e garantia (R) | K9: 1.7 | L9: 0.017
A10: 3.1 | B10: Riscos | C10: 1.2 | E10: 0 | H10: 3.1 | I10: Riscos | J10: 1.15 | L10: 0
A11: 3.2 | B11: Seguro + garantia | C11: 0.42 | E11: 0 | H11: 3.2 | I11: Seguro + garantia | J11: 0.5 | L11: 0
A12: 4. | B12: Despesas Financeiras (DF) | D12: 0.95 | E12: 0.0095 | H12: 4. | I12: Despesas Financeiras (DF) | K12: 0.99 | L12: 0.0099
A13: 5. | B13: Lucro (L) | D13: 7 | E13: =D13/100 -> 0.07 | H13: 5. | I13: Lucro (L) | K13: 3 | L13: 0.03
A15: BDI* (%) | D15: =(((1+(E3+E9))*(1+E12)*(1+E13))/(1-E4)-1) -> 0.2496 | H15: BDI* (%) | K15: =(((1+(L3+L9))*(1+L12)*(1+L13))/(1-L4)-1) -> 0.125
A16: Considerações: Acórdão nº 2622/2013 - TCU/ Plenário | H16: Considerações: Acórdão nº 2622/2013 - TCU/ Plenário
A17: (*) BDI (%) = (((1+(AC+S+R+G))*(1+DF)*(1+L)/(1-l)-1)*100 | H17: (*) BDI (%) = (((1+(AC+S+R+G))*(1+DF)*(1+L)/(1-l)-1)*100

Sheet Item 58- GOTEJAMENTO 1,0 HA
M2: BANCO | N2: DATA
K3: BASE | L3: 2026-02-01 | M3: ORSE | N3: 2025-12-01
K4: VALOR TOTAL | L4: =K131 -> 32106.39 | M4: SEINFRA | N4: 27/28
K5: BDI SERVIÇO | L5: =BDI!D15 -> 0.2496 | M5: EMBASA | N5: 2025-06-01
K6: BDI MATERIAL | L6: =BDI!K15 -> 0.125 | M6: SCO | N6: 2026-01-01
K7: DESCONTO | L7: 0.08 | M7: SBC | N7: 2026-01-01
B8: PLANILHA ORÇAMENTÁRIA - 5ª SUPERINTENDÊNCIA REGIONAL | M8: AGETOP CIVIL | N8: 2025-10-01
B9: SERVIÇO DE FORNECIMENTO, TRANSPORTE, CARGA, DESCARGA, MONTAGEM E ADEQUADO FUNCIONAMENTO DE SISTEMA DE IRRIGAÇÃO - GOTEJAMENTO - 1 ha - 220 V | M9: AGESUL | N9: 2026-01-01
M10: IOPES | N10: 2025-12-01
B11: ITEM | C11: DESCRIÇÃO | D11: UNID. | E11: QUANT. (A) | F11: PESQUISA DE PREÇOS (SIST. REF. / COT) | G11: CÓDIGO | H11: Custo Unitário (R$) - (B) | I11: Custo Total (Com Desconto) | J11: Preço Unitário (R$) com BDI (%) | K11: Preço Total (R$) C = (AxB) | M11: SETOP | N11: 2025-10-01
B12: 1 | C12: Sistema Hidráulico | K12: =SUM(K13,K20,K23,K39,K44,K57,K62,K65,K68) -> 24111.1 | M12: CPOS | N12: 2026-01-01
B13: 1.1 | C13: Linha Lateral - Emissores | K13: =SUM(K14:K19) -> 9224.5 | M13: SEDOP | N13: 2025-10-01
B14: 1.1.1 | C14: TUBO PEBD DI 16 mm PN30 | D14: m | E14: 100 | F14: COT | G14: COT01 | H14: =TRUNC((1-$L$7)*('COT01'!L37),2) -> 1.3 | I14: =H14*E14 -> 130 | J14: =H14*(1+$L$6) -> 1.46 | K14: =TRUNC(E14*J14,2) -> 146 | M14: SINAPI | N14: 2026-01-01
B15: 1.1.2 | C15: TUBO GOTEJADOR DI 16 mm PAREDE 15MIL 1,85 LPH X 0,20 M | D15: m | E15: 4000 | F15: COT | G15: COT02 | H15: =TRUNC((1-$L$7)*('COT02'!L37),2) -> 1.94 | I15: =H15*E15 -> 7760 | J15: =H15*(1+$L$6) -> 2.18 | K15: =TRUNC(E15*J15,2) -> 8720 | M15: EMOP | N15: 2026-01-04
B16: 1.1.3 | C16: CONECTOR INICIAL 16 mm | D16: und | E16: 90 | F16: ORSE | G16: 9550 | H16: =TRUNC((1-$L$7)*(VLOOKUP(G16,'OUTROS BANCOS'!$E$2:$G$65,3,FALSE)),2) -> 0.88 | I16: 79.2 | J16: 0.99 | K16: 89.1
B17: 1.1.4 | C17: ANEL DE VEDAÇÃO/ CHULA 13/17 | D17: und | E17: 90 | F17: SEINFRA | G17: I9557 | H17: =TRUNC((1-$L$7)*(VLOOKUP(G17,'OUTROS BANCOS'!$E$2:$G$65,3,FALSE)),2) -> 0.8 | I17: 72 | J17: 0.9 | K17: 81
B18: 1.1.5 | C18: CONECTOR UNIÃO C/ ANEL 16 mm | D18: und | E18: 120 | F18: EMBASA | G18: M019000003 | H18: =TRUNC((1-$L$7)*(VLOOKUP(G18,'OUTROS BANCOS'!$E$2:$G$65,3,FALSE)),2) -> 0.7 | I18: 84 | J18: 0.79 | K18: 94.8
B19: 1.1.6 | C19: CONECTOR FINAL DE LINHA 16 mm | D19: und | E19: 90 | F19: SEINFRA | G19: I9775 | H19: =TRUNC((1-$L$7)*(VLOOKUP(G19,'OUTROS BANCOS'!$E$2:$G$65,3,FALSE)),2) -> 0.92 | I19: 82.8 | J19: 1.04 | K19: 93.6
B20: 1.2 | C20: Tubulação - PVC | K20: =SUM(K21:K22) -> 4408.8
B21: 1.2.1 | C21: TUBO IRRIG. PB DN50 PN40 | D21: m | E21: 156 | F21: ORSE | G21: 8369 | H21: =TRUNC((1-$L$7)*(VLOOKUP(G21,'OUTROS BANCOS'!$E$2:$G$65,3,FALSE)),2) -> 12.76 | I21: 1990.56 | J21: =H21*(1+$L$6) -> 14.36 | K21: =TRUNC(E21*J21,2) -> 2240.16
B22: 1.2.2 | C22: TUBO IRRIG. PB DN75 PN40 | D22: m | E22: 144 | F22: COT | G22: COT17 | H22: =TRUNC((1-$L$7)*(('COT17'!L37)/6),2) -> 13.39 | I22: 1928.16 | J22: 15.06 | K22: 2168.64
B23: 1.3 | C23: Controle de Proteção e Comando | K23: =SUM(K24:K38) -> 1691.07
B24: 1.3.1 | C24: REGISTRO ESFERA SOLD. 50 mm | D24: und | E24: 3 | F24: SINAPI | G24: 11677 | H24: =TRUNC((1-$L$7)*(VLOOKUP(G24,'INSUMO SINAPI'!$A$4:$E$4854,5,FALSE)),2) -> 38.87 | I24: 116.61 | J24: =H24*(1+$L$6) -> 43.73 | K24: =TRUNC(E24*J24,2) -> 131.19
B25: 1.3.2 | C25: VÁLVULA ANTIVÁCUO 1/2" | D25: und | E25: 3 | F25: COT | G25: COT03 | H25: =TRUNC((1-$L$7)*('COT03'!L37),2) -> 8.75 | I25: 26.25 | J25: 9.84 | K25: 29.52
B26: 1.3.3 | C26: VÁLVULA VENTOSA TRÍPLICE FUNÇÃO 2" | D26: und | E26: 1 | F26: COT | G26: COT04 | H26: =TRUNC((1-$L$7)*('COT04'!L37),2) -> 616.15 | I26: 616.15 | J26: 693.17 | K26: 693.17
B27: 1.3.4 | C27: TUBO IRRIG. PB DN50 PN80 | D27: m | E27: 12 | F27: ORSE | G27: 14068 | H27: =TRUNC((1-$L$7)*(VLOOKUP(G27,'OUTROS BANCOS'!$E$2:$G$65,3,FALSE)),2) -> 8.96 | I27: 107.52 | J27: 10.08 | K27: 120.96
B28: 1.3.5 | C28: REDUÇÃO PVC PB 75 mm X 50 mm | D28: und | E28: 1 | F28: SCO | G28: MAT118400 | H28: =TRUNC((1-$L$7)*(VLOOKUP(G28,'OUTROS BANCOS'!$E$2:$G$65,3,FALSE)),2) -> 10.21 | I28: 10.21 | J28: 11.49 | K28: 11.49
B29: 1.3.6 | C29: CURVA PVC 90° PB 50 mm | D29: und | E29: 4 | F29: SBC | G29: 5385 | H29: =TRUNC((1-$L$7)*(VLOOKUP(G29,'OUTROS BANCOS'!$E$2:$G$65,3,FALSE)),2) -> 13.12 | I29: 52.48 | J29: 14.76 | K29: 59.04
B30: 1.3.7 | C30: TÊ PVC 50 mm | D30: und | E30: 3 | F30: ORSE | G30: 2113 | H30: =TRUNC((1-$L$7)*(VLOOKUP(G30,'OUTROS BANCOS'!$E$2:$G$65,3,FALSE)),2) -> 8.9 | I30: 26.7 | J30: 10.01 | K30: 30.03
B31: 1.3.8 | C31: ADAPTADOR BS X RM 50 X 2" | D31: und | E31: 1 | F31: ORSE | G31: 14060 | H31: =TRUNC((1-$L$7)*(VLOOKUP(G31,'OUTROS BANCOS'!$E$2:$G$65,3,FALSE)),2) -> 3.89 | I31: 3.89 | J31: 4.38 | K31: 4.38
B32: 1.3.9 | C32: LUVA PVC BR 2" | D32: und | E32: 1 | F32: ORSE | G32: 1434 | H32: =TRUNC((1-$L$7)*(VLOOKUP(G32,'OUTROS BANCOS'!$E$2:$G$66,3,FALSE)),2) -> 26.29 | I32: 26.29 | J32: 29.58 | K32: 29.58
B33: 1.3.10 | C33: COLAR DE TOMADA 50 X 1/2" | D33: und | E33: 3 | F33: COT | G33: COT05 | H33: =TRUNC((1-$L$7)*('COT05'!L37),2) -> 16.59 | I33: 49.77 | J33: 18.66 | K33: 55.98
B34: 1.3.11 | C34: REGISTRO DE GAVETA 2" | D34: und | E34: 1 | F34: COT | G34: COT23 | H34: =TRUNC((1-$L$7)*('COT23'!L37),2) -> 124.95 | I34: 124.95 | J34: 140.57 | K34: 140.57
B35: 1.3.12 | C35: MANÔMETRO DE GLICERINA DE ATÉ 6kgf/cm² ROSCA DE 1/4 " | D35: und | E35: 2 | F35: COT | G35: COT24 | H35: =TRUNC((1-$L$7)*('COT24'!$L$37),2) -> 112.98 | I35: 225.96 | J35: 127.1 | K35: 254.2
B36: 1.3.13 | C36: BUCHA DE REDUÇÃO DE 3/4" PARA 1/4" | D36: und | E36: 2 | F36: COT | G36: COT25 | H36: =TRUNC((1-$L$7)*('COT25'!$L$37),2) -> 30.7 | I36: 61.4 | J36: 34.54 | K36: 69.08
B37: 1.3.14 | C37: ADAPTADOR DE REDUÇÃO Bsa SOLD. 50 mm X 1 1/2" | D37: und | E37: 2 | F37: COT | G37: COT26 | H37: =TRUNC((1-$L$7)*('COT26'!$L$37),2) -> 14.16 | I37: 28.32 | J37: 15.93 | K37: 31.86
B38: 1.3.15 | C38: TE DE REDUÇÃO ROSCA 50 mm X 3/4" | D38: und | E38: 2 | F38: COT | G38: COT27 | H38: =TRUNC((1-$L$7)*('COT27'!$L$37),2) -> 13.34 | I38: 26.68 | J38: 15.01 | K38: 30.02
B39: 1.4 | C39: Conexões de Campo | K39: =SUM(K40:K43) -> 370.19
B40: 1.4.1 | C40: REGISTRO ESFERA PVC 50 mm | D40: und | E40: 4 | F40: SINAPI | G40: 11677 | H40: =TRUNC((1-$L$7)*(VLOOKUP(G40,'INSUMO SINAPI'!$A$4:$E$4854,5,FALSE)),2) -> 38.87 | I40: 155.48 | J40: =H40*(1+$L$6) -> 43.73 | K40: =TRUNC(E40*J40,2) -> 174.92
B41: 1.4.2 | C41: CURVA PVC 45° PB 50 mm | D41: und | E41: 4 | F41: EMOP | G41: 7153 | H41: =TRUNC((1-$L$7)*(VLOOKUP(G41,'OUTROS BANCOS'!$E$2:$G$66,3,FALSE)),2) -> 23.57 | I41: 94.28 | J41: 26.52 | K41: 106.08
B42: 1.4.3 | C42: CURVA PVC 90° PB 50 mm | D42: und | E42: 2 | F42: SBC | G42: 5385 | H42: =TRUNC((1-$L$7)*(VLOOKUP(G42,'OUTROS BANCOS'!$E$2:$G$66,3,FALSE)),2) -> 13.12 | I42: 26.24 | J42: 14.76 | K42: 29.52
B43: 1.4.4 | C43: TÊ PVC 75 mm | D43: und | E43: 1 | F43: ORSE | G43: 2115 | H43: =TRUNC((1-$L$7)*(VLOOKUP(G43,'OUTROS BANCOS'!$E$2:$G$66,3,FALSE)),2) -> 53.04 | I43: 53.04 | J43: 59.67 | K43: 59.67
B44: 1.5 | C44: Filtragem e Ligação de Pressão | K44: =SUM(K45:K56) -> 5200.63
B45: 1.5.1 | C45: MOTOBOMBA SUBMERSA 3HP 12m³/h + 43mca | D45: und | E45: 1 | F45: COT | G45: COT06 | H45: =TRUNC((1-$L$7)*('COT06'!L37),2) -> 1606.92 | I45: 1606.92 | J45: =H45*(1+$L$6) -> 1807.79 | K45: =TRUNC(E45*J45,2) -> 1807.79
B46: 1.5.2 | C46: NIPLE PVC BR 2" | D46: und | E46: 1 | F46: SBC | G46: 5719 | H46: =TRUNC((1-$L$7)*(VLOOKUP(G46,'OUTROS BANCOS'!$E$2:$G$66,3,FALSE)),2) -> 29.65 | I46: 29.65 | J46: 33.36 | K46: 33.36
B47: 1.5.3 | C47: UNIÃO PVC BR 2" | D47: und | E47: 1 | F47: SEINFRA | G47: I2241 | H47: =TRUNC((1-$L$7)*(VLOOKUP(G47,'OUTROS BANCOS'!$E$2:$G$67,3,FALSE)),2) -> 80.97 | I47: 80.97 | J47: 91.09 | K47: 91.09
B48: 1.5.4 | C48: ADAPTADOR COMPRESSÃO X ROSCA MACHO 2" | D48: und | E48: 2 | F48: EMBASA | G48: M080800108 | H48: =TRUNC((1-$L$7)*(VLOOKUP(G48,'OUTROS BANCOS'!$E$2:$G$67,3,FALSE)),2) -> 45.39 | I48: 90.78 | J48: 51.06 | K48: 102.12
B49: 1.5.5 | C49: TUBO PEMD 2" PN6 | D49: m | E49: 15 | F49: COT | G49: COT07 | H49: =TRUNC((1-$L$7)*('COT07'!L37),2) -> 17.36 | I49: 260.4 | J49: 19.53 | K49: 292.95
B50: 1.5.6 | C50: BUCHA DE REDUÇÃO 3X2" | D50: und | E50: 1 | F50: SBC | G50: 8784 | H50: =TRUNC((1-$L$7)*(VLOOKUP(G50,'OUTROS BANCOS'!$E$2:$G$67,3,FALSE)),2) -> 86.48 | I50: 86.48 | J50: 97.29 | K50: 97.29
B51: 1.5.7 | C51: UNIÃO PVC BR 3" | D51: und | E51: 2 | F51: SEINFRA | G51: I2242 | H51: =TRUNC((1-$L$7)*(VLOOKUP(G51,'OUTROS BANCOS'!$E$2:$G$68,3,FALSE)),2) -> 210.87 | I51: 421.74 | J51: 237.23 | K51: 474.46
B52: 1.5.8 | C52: ADAPTADOR BSXRM 75X3" | D52: und | E52: 3 | F52: ORSE | G52: 14059 | H52: =TRUNC((1-$L$7)*(VLOOKUP(G52,'OUTROS BANCOS'!$E$2:$G$68,3,FALSE)),2) -> 7.82 | I52: 23.46 | J52: 8.8 | K52: 26.4
B53: 1.5.9 | C53: TUBO IRRIG. PB DN75 PN80 | D53: m | E53: 12 | F53: ORSE | G53: 9502 | H53: =TRUNC((1-$L$7)*(VLOOKUP(G53,'OUTROS BANCOS'!$E$2:$G$68,3,FALSE)),2) -> 37.27 | I53: 447.24 | J53: 41.93 | K53: 503.16
B54: 1.5.10 | C54: CURVA PVC 90° PB 75 MM | D54: und | E54: 6 | F54: SBC | G54: 5387 | H54: =TRUNC((1-$L$7)*(VLOOKUP(G54,'OUTROS BANCOS'!$E$2:$G$68,3,FALSE)),2) -> 92.49 | I54: 554.94 | J54: 104.05 | K54: 624.3
B55: 1.5.11 | C55: REGISTRO ESFERA 3" | D55: und | E55: 2 | F55: ORSE | G55: 2604 | H55: =TRUNC((1-$L$7)*(VLOOKUP(G55,'OUTROS BANCOS'!$E$2:$G$68,3,FALSE)),2) -> 100.69 | I55: 201.38 | J55: 113.28 | K55: 226.56
B56: 1.5.12 | C56: FILTRO DE DISCO 3" - 25M³/H | D56: und | E56: 1 | F56: COT | G56: COT08 | H56: =TRUNC((1-$L$7)*('COT08'!L37),2) -> 818.8 | I56: 818.8 | J56: 921.15 | K56: 921.15
B57: 1.6 | C57: Materias de Consumo | K57: =SUM(K58:K61) -> 195.28
B58: 1.6.1 | C58: ADESIVO PLÁSTICO 850G | D58: und | E58: 2 | F58: ORSE | G58: 14079 | H58: =TRUNC((1-$L$7)*(VLOOKUP(G58,'OUTROS BANCOS'!$E$2:$G$69,3,FALSE)),2) -> 54.28 | I58: 108.56 | J58: =H58*(1+$L$6) -> 61.07 | K58: =TRUNC(E58*J58,2) -> 122.14
B59: 1.6.2 | C59: FITA VEDA ROSCA 18MM X 50 M | D59: und | E59: 1 | F59: SINAPI | G59: 3148 | H59: =TRUNC((1-$L$7)*(VLOOKUP(G59,'INSUMO SINAPI'!$A$4:$E$4854,5,FALSE)),2) -> 8.98 | I59: 8.98 | J59: 10.1 | K59: 10.1
B60: 1.6.3 | C60: FITA ISOLANTE 18MM X 20M | D60: und | E60: 1 | F60: SBC | G60: 36795 | H60: =TRUNC((1-$L$7)*(VLOOKUP(G60,'OUTROS BANCOS'!$E$2:$G$69,3,FALSE)),2) -> 0.92 | I60: 0.92 | J60: 1.04 | K60: 1.04
B61: 1.6.4 | C61: FOLHA DE LIXA N100 | D61: und | E61: 50 | F61: AGETOP CIVIL | G61: 1674 | H61: =TRUNC((1-$L$7)*(VLOOKUP(G61,'OUTROS BANCOS'!$E$2:$G$69,3,FALSE)),2) -> 1.1 | I61: 55 | J61: =H61*(1+$L$6) -> 1.24 | K61: 62
B62: 1.7 | C62: Elaboração do Layout do Sistema Hidráulico | K62: =SUM(K63:K64) -> 1187.32
B63: 1.7.1 | C63: Mão-de-obra de Projetista Cadista Pleno - Projeto e Consultoria, inclusive Encargos Sociais | D63: h | E63: 4 | F63: EMOP | G63: 10984 | H63: =TRUNC((1-$L$7)*(VLOOKUP(G63,'OUTROS BANCOS'!$E$2:$G$69,3,FALSE)),2) -> 69.27 | I63: 277.08 | J63: =H63*(1+$L$5) -> 86.56 | K63: =TRUNC(E63*J63,2) -> 346.24
B64: 1.7.2 | C64: Mão-de-obra de Engenheiro Pleno, inclusive com encargos sociais | D64: h | E64: 4 | F64: EMOP | G64: 14610 | H64: =TRUNC((1-$L$7)*(VLOOKUP(G64,'OUTROS BANCOS'!$E$2:$G$69,3,FALSE)),2) -> 168.27 | I64: 673.08 | J64: =H64*(1+$L$5) -> 210.27 | K64: =TRUNC(E64*J64,2) -> 841.08
B65: 1.8 | C65: Montagem do Sistema Hidráulico | K65: =SUM(K66:K67) -> 1402.32
B66: 1.8.1 | C66: Encanador ou bombeiro hidráulico com encargos complementares (01 encanador ou bombeiro hidráulico em jornada de trabalho de 8 h por dia) | D66: h | E66: 24 | F66: AGESUL | G66: 4005 | H66: =TRUNC((1-$L$7)*(VLOOKUP(G66,'OUTROS BANCOS'!$E$2:$G$69,3,FALSE)),2) -> 25.61 | I66: 614.64 | J66: =H66*(1+$L$5) -> 32 | K66: =TRUNC(E66*J66,2) -> 768
B67: 1.8.2 | C67: Auxiliar de encanador ou bombeiro hidráulico com encargos complementares (02 auxiliares de encanador ou bombeiro hidráulico em jornada de trabalho de 8 h por dia) | D67: h | E67: 24 | F67: AGESUL | G67: 4052 | H67: =TRUNC((1-$L$7)*(VLOOKUP(G67,'OUTROS BANCOS'!$E$2:$G$69,3,FALSE)),2) -> 21.15 | I67: 507.6 | J67: =H67*(1+$L$5) -> 26.43 | K67: 634.32
B68: 1.9 | C68: Preparo mecanizado do solo | K68: =K69 -> 430.99
B69: 1.9.1 | C69: ARACÃO DO SOLO A 20CM DE PROFUNDIDADE COM TRATOR DE PNEUS E ARADO DE DISCO | D69: ha | E69: 1 | F69: EMOP | G69: 22.016.0025-A | H69: =TRUNC((1-$L$7)*(VLOOKUP(G69,'OUTROS BANCOS'!$E$2:$G$70,3,FALSE)),2) -> 344.9 | I69: 344.9 | J69: =H69*(1+$L$5) -> 430.99 | K69: =TRUNC(E69*J69,2) -> 430.99
B70: 2 | C70: Sistema Elétrico | K70: =SUM(K71,K82,K125,K110,K118,K129) -> 7995.29
B71: 2.1 | C71: Rede de Distribuição - Fonte até o Quadro de Comando | K71: =SUM(K72:K81) -> 3172.99
B72: 2.1.1 | C72: Poste de madeira eucalipto preservado, diâmetro de 20cm, 7 metros | D72: Unidade | E72: 5 | F72: SBC | G72: 46336 | H72: =TRUNC((1-$L$7)*(VLOOKUP(G72,'OUTROS BANCOS'!$E$2:$G$70,3,FALSE)),2) -> 87.46 | I72: =H72*E72 -> 437.3 | J72: =H72*(1+$L$6) -> 98.39 | K72: =TRUNC(E72*J72,2) -> 491.95
B73: 2.1.2 | C73: Isolador Porcelana Tipo Roldana 80x80 mm p/ 2 cabos, marrom | D73: Unidade | E73: 5 | F73: IOPES | G73: 48342 | H73: =TRUNC((1-$L$7)*(VLOOKUP(G73,'OUTROS BANCOS'!$E$2:$G$70,3,FALSE)),2) -> 10.07 | I73: 50.35 | J73: =H73*(1+$L$6) -> 11.33 | K73: 56.65
B74: 2.1.3 | C74: Suporte Isolador c/ Roldana p/ aparafusar c/ chapa | D74: Unidade | E74: 5 | F74: SETOP | G74: MATED-12988 | H74: =TRUNC((1-$L$7)*(VLOOKUP(G74,'OUTROS BANCOS'!$E$2:$G$70,3,FALSE)),2) -> 16.72 | I74: 83.6 | J74: 18.81 | K74: 94.05
B75: 2.1.4 | C75: Cinta aço galvanizado, de 240mm | D75: Unidade | E75: 5 | F75: SCO | G75: MAT033900 | H75: =TRUNC((1-$L$7)*(VLOOKUP(G75,'OUTROS BANCOS'!$E$2:$G$72,3,FALSE)),2) -> 50.13 | I75: 250.65 | J75: 56.4 | K75: 282
B76: 2.1.5 | C76: Alça preformada para islador roldana, seção conforme condutores instalados | D76: Unidade | E76: 5 | F76: COT | G76: COT13 | H76: =TRUNC((1-$L$7)*('COT13'!L37),2) -> 8.9 | I76: 44.5 | J76: 10.01 | K76: 50.05
B77: 2.1.6 | C77: Cabo de cobre isolado HEPR (XLPE), 10mm², 1kv / 90º C (cor conforme a aplicação) apropriado para redes aéreas | D77: Metro | E77: 200 | F77: COT | G77: COT14 | H77: =TRUNC((1-$L$7)*('COT14'!L37),2) -> 9.05 | I77: 1810 | J77: 10.18 | K77: 2036
B78: 2.1.7 | C78: Cabeçote p/ Eletroduto de 1.1/4" | D78: Unidade | E78: 1 | F78: SINAPI | G78: 1099 | H78: =TRUNC((1-$L$7)*(VLOOKUP(G78,'INSUMO SINAPI'!$A$4:$E$4854,5,FALSE)),2) -> 6.39 | I78: 6.39 | J78: 7.19 | K78: 7.19
B79: 2.1.8 | C79: Eletroduto em aço galvanizado 1.1/4" | D79: Unidade | E79: 1 | F79: SCO | G79: MAT050850 | H79: =TRUNC((1-$L$7)*(VLOOKUP(G79,'OUTROS BANCOS'!$E$2:$G$70,3,FALSE)),2) -> 121.28 | I79: 121.28 | J79: 136.44 | K79: 136.44
B80: 2.1.9 | C80: Conector reto com arruela para eletroduto 1.1/4" | D80: Unidade | E80: 1 | F80: SINAPI | G80: 2526 | H80: =TRUNC((1-$L$7)*(VLOOKUP(G80,'INSUMO SINAPI'!$A$4:$E$4854,5,FALSE)),2) -> 5.05 | I80: 5.05 | J80: 5.68 | K80: 5.68
B81: 2.1.10 | C81: Curva 90º aço galvanizado 1.1/4" | D81: Unidade | E81: 1 | F81: SINAPI | G81: 2618 | H81: =TRUNC((1-$L$7)*(VLOOKUP(G81,'INSUMO SINAPI'!$A$4:$E$4854,5,FALSE)),2) -> 11.54 | I81: 11.54 | J81: 12.98 | K81: 12.98
B82: 2.2 | C82: Quadro de Comando | K82: =SUM(K83:K109) -> 2007.65
B83: 2.2.1 | C83: Quadro elétrico metálico com placa de montagem, grau de proteção mínimo IP54, dimensões mínimas 400x300x200 mm | D83: Unidade | E83: 1 | F83: SBC | G83: 53375 | H83: =TRUNC((1-$L$7)*(VLOOKUP(G83,'OUTROS BANCOS'!$E$2:$G$70,3,FALSE)),2) -> 326.83 | I83: 326.83 | J83: 367.68 | K83: =TRUNC(E83*J83,2) -> 367.68
B84: 2.2.2 | C84: Canaleta para quadro 30 x 50 mm, fabricada em PVC, tipo semi-aberta. | D84: Metro | E84: 0.4 | F84: SETOP | G84: MATED-17646 | H84: =TRUNC((1-$L$7)*(VLOOKUP(G84,'OUTROS BANCOS'!$E$2:$G$70,3,FALSE)),2) -> 14.14 | I84: 5.66 | J84: 15.91 | K84: 6.36
B85: 2.2.3 | C85: Canaleta para quadro 50 x 50 mm, fabricada em PVC, tipo semi-aberta. | D85: Metro | E85: 0.3 | F85: SETOP | G85: MATED-17647 | H85: =TRUNC((1-$L$7)*(VLOOKUP(G85,'OUTROS BANCOS'!$E$2:$G$70,3,FALSE)),2) -> 18.93 | I85: 5.68 | J85: 21.3 | K85: 6.39
B86: 2.2.4 | C86: Trilho DIN 35 mm | D86: Metro | E86: 0.4 | F86: SEINFRA | G86: I7410 | H86: =TRUNC((1-$L$7)*(VLOOKUP(G86,'OUTROS BANCOS'!$E$2:$G$70,3,FALSE)),2) -> 10.63 | I86: 4.25 | J86: 11.96 | K86: 4.78
B87: 2.2.5 | C87: Conector (terminal isolado) para barramento isolado, conexão reta ou lateral, até 25 mm² | D87: Unidade | E87: 2 | F87: COT | G87: COT19 | H87: =TRUNC((1-$L$7)*('COT19'!L37),2) -> 7.57 | I87: 15.14 | J87: 8.52 | K87: 17.04
B88: 2.2.6 | C88: Barramento monofásico isolado (barramento pente), horizontal, fabricado em cobre, até 63 A, acompanhado de tampas finais, 8 polos | D88: Unidade | E88: 1 | F88: SBC | G88: 10562 | H88: =TRUNC((1-$L$7)*(VLOOKUP(G88,'OUTROS BANCOS'!$E$2:$G$70,3,FALSE)),2) -> 20.29 | I88: 20.29 | J88: 22.83 | K88: 22.83
B89: 2.2.7 | C89: Interruptor diferencial residual bipolar de 25A, corrente residual de 30 mA, tensão de operação conforme aplicação, corrente de curto circuito de 3 kA | D89: Unidade | E89: 1 | F89: SINAPI | G89: 39445 | H89: =TRUNC((1-$L$7)*(VLOOKUP(G89,'INSUMO SINAPI'!$A$4:$E$4854,5,FALSE)),2) -> 153.12 | I89: 153.12 | J89: 172.26 | K89: 172.26
B90: 2.2.8 | C90: Dispositivo de Proteção Contra Surtos Classe II, 20 kA (Imáx), tensão de operação compatível com a aplicação, nível de proeção (Up) 1,4 kV | D90: Unidade | E90: 2 | F90: SINAPI | G90: 39469 | H90: =TRUNC((1-$L$7)*(VLOOKUP(G90,'INSUMO SINAPI'!$A$4:$E$4854,5,FALSE)),2) -> 77.53 | I90: 155.06 | J90: 87.22 | K90: 174.44
B91: 2.2.9 | C91: Disjuntor monopolar para trilho DIN (mini disjuntor) para correntes de 25A, curva C, 60 Hz, capacidade de interrupção em curto-circuito 3 kA ou superior | D91: Unidade | E91: 1 | F91: SINAPI | G91: 34653 | H91: =TRUNC((1-$L$7)*(VLOOKUP(G91,'INSUMO SINAPI'!$A$4:$E$4854,5,FALSE)),2) -> 9.94 | I91: 9.94 | J91: 11.18 | K91: 11.18
B92: 2.2.10 | C92: Disjuntor monopolar para trilho DIN (mini disjuntor) para correntes de 20A, curva C, 60 Hz, capacidade de interrupção em curto-circuito 3 kA ou superior | D92: Unidade | E92: 1 | F92: SINAPI | G92: 34653 | H92: =TRUNC((1-$L$7)*(VLOOKUP(G92,'INSUMO SINAPI'!$A$4:$E$4854,5,FALSE)),2) -> 9.94 | I92: 9.94 | J92: 11.18 | K92: 11.18
B93: 2.2.11 | C93: Disjuntor monopolar para trilho DIN (mini disjuntor) para correntes de 2A, curva C, 60 Hz, capacidade de interrupção em curto-circuito 3 kA ou superior | D93: Unidade | E93: 1 | F93: IOPES | G93: 44951 | H93: =TRUNC((1-$L$7)*(VLOOKUP(G93,'OUTROS BANCOS'!$E$2:$G$70,3,FALSE)),2) -> 28.81 | I93: 28.81 | J93: 32.41 | K93: 32.41
B94: 2.2.12 | C94: Minicontator, com capacidade de corrente até 25A (em regime AC-3), contato auxiliar integrado e bobina em corrente alternada (tensão conforme a aplicação) | D94: Unidade | E94: 1 | F94: SINAPI | G94: 1619 | H94: =TRUNC((1-$L$7)*(VLOOKUP(G94,'INSUMO SINAPI'!$A$4:$E$4854,5,FALSE)),2) -> 225.63 | I94: 225.63 | J94: 253.83 | K94: 253.83
B95: 2.2.13 | C95: Relé de sobrecarga para minicontator ajustável até 25A, conforme aplicação, com montagem direta nos contatores | D95: Unidade | E95: 1 | F95: EMBASA | G95: M103900330 | H95: =TRUNC((1-$L$7)*(VLOOKUP(G95,'OUTROS BANCOS'!$E$2:$G$70,3,FALSE)),2) -> 199.16 | I95: 199.16 | J95: 224.06 | K95: 224.06
B96: 2.2.14 | C96: Relé eletrônico/digital monitor de tensão monofásico, com funcionalidade de subtensão e sobretensão, ajustes através de trimpot no relé, LED indicativo de funcionamento, tensão conforme aplicação, 60 Hz, com 1 contato reversível | D96: Unidade | E96: 1 | F96: COT | G96: COT15 | H96: =TRUNC((1-$L$7)*('COT15'!L37),2) -> 178.02 | I96: 178.02 | J96: 200.27 | K96: 200.27
B97: 2.2.15 | C97: Relé temporizador, alimentação 220V, 1 saída a relé, com função de pulso na energização, ajustável de 1 segundo a 100 horas, ajuste por trimpots no relé | D97: Unidade | E97: 1 | F97: COT | G97: COT20 | H97: =TRUNC((1-$L$7)*('COT20'!L37),2) -> 176.75 | I97: 176.75 | J97: 198.84 | K97: 198.84
B98: 2.2.16 | C98: Barramento de neutro, na cor azul, para fixação em trilho DIN, fabricado em cobre, com furos e parafusos para fixação, ao menos um furo para o alimentador (até 25 mm²), pré isolado, 10 furos. | D98: Unidade | E98: 1 | F98: COT | G98: COT21 | H98: =TRUNC((1-$L$7)*('COT21'!L37),2) -> 41.21 | I98: 41.21 | J98: 46.36 | K98: 46.36
B99: 2.2.17 | C99: Barramento de terra, na cor verde, para fixação em trilho DIN, fabricado em cobre, com furos e parafusos para fixação, ao menos um furo para o alimentador (até 25 mm²), pré isolado, 10 furos. | D99: Unidade | E99: 1 | F99: COT | G99: COT22 | H99: =TRUNC((1-$L$7)*('COT22'!L37),2) -> 39.93 | I99: 39.93 | J99: 44.92 | K99: 44.92
B100: 2.2.18 | C100: Botão de emergência tipo cogumelo, com trava e retorno com mola, para furos 22mm, 1 NF, tensão conforme aplicação, vermelho | D100: Unidade | E100: 1 | F100: CPOS | G100: P.13.000.042461 | H100: =TRUNC((1-$L$7)*(VLOOKUP(G100,'OUTROS BANCOS'!$E$2:$G$70,3,FALSE)),2) -> 34.7 | I100: 34.7 | J100: 39.04 | K100: 39.04
B101: 2.2.19 | C101: Chave seletora de 3 posições para furos 22mm, 2 NA, completa, tensão conforme aplicação | D101: Unidade | E101: 1 | F101: SETOP | G101: MATED-19494 | H101: =TRUNC((1-$L$7)*(VLOOKUP(G101,'OUTROS BANCOS'!$E$2:$G$70,3,FALSE)),2) -> 16.92 | I101: 16.92 | J101: 19.04 | K101: 19.04
B102: 2.2.20 | C102: Sinalizador luminoso para furos de 22 mm, iluminação LED, vermelho, tensão conforme aplicação | D102: Unidade | E102: 1 | F102: ORSE | G102: 12379 | H102: =TRUNC((1-$L$7)*(VLOOKUP(G102,'OUTROS BANCOS'!$E$2:$G$70,3,FALSE)),2) -> 16.7 | I102: 16.7 | J102: 18.79 | K102: 18.79
B103: 2.2.21 | C103: Policarbonato compacto, incolor (transparente/cristal), livre de rebarbas, espessura mínima de 3 mm | D103: Metro² | E103: 0.24 | F103: SBC | G103: 28100 | H103: =TRUNC((1-$L$7)*(VLOOKUP(G103,'OUTROS BANCOS'!$E$2:$G$70,3,FALSE)),2) -> 146.28 | I103: 35.11 | J103: 164.57 | K103: 39.49
B104: 2.2.22 | C104: Barra roscada 1/4", acabamento zincado | D104: Metro | E104: 1 | F104: ORSE | G104: 7551 | H104: =TRUNC((1-$L$7)*(VLOOKUP(G104,'OUTROS BANCOS'!$E$2:$G$70,3,FALSE)),2) -> 4.37 | I104: 4.37 | J104: 4.92 | K104: 4.92
B105: 2.2.23 | C105: Porca sextavada zincada, 1/4" | D105: Unidade | E105: 8 | F105: SINAPI | G105: 39997 | H105: =TRUNC((1-$L$7)*(VLOOKUP(G105,'INSUMO SINAPI'!$A$4:$E$4854,5,FALSE)),2) -> 0.29 | I105: 2.32 | J105: 0.33 | K105: 2.64
B106: 2.2.24 | C106: Arruela zincada, 1/4" | D106: Unidade | E106: 8 | F106: ORSE | G106: 8347 | H106: =TRUNC((1-$L$7)*(VLOOKUP(G106,'OUTROS BANCOS'!$E$2:$G$70,3,FALSE)),2) -> 0.04 | I106: 0.32 | J106: 0.05 | K106: 0.4
B107: 2.2.25 | C107: Placa de identificação (plaqueta de identificação) fabricada em ABS ou acrílico para painéis elétricos (30 X 15 mm), fixação por adesivo, resistente ao tempo (Escrita Personalizada) | D107: Unidade | E107: 10 | F107: COT | G107: COT16 | H107: =TRUNC((1-$L$7)*('COT16'!$L$37),2) -> 7.47 | I107: 74.7 | J107: 8.4 | K107: 84
B108: 2.2.26 | C108: Terminal a compressão, tipo pino ou garfo, 2,5 mm³ | D108: Unidade | E108: 30 | F108: SEINFRA | G108: I10080 | H108: =TRUNC((1-$L$7)*(VLOOKUP(G108,'OUTROS BANCOS'!$E$2:$G$70,3,FALSE)),2) -> 0.12 | I108: 3.6 | J108: 0.14 | K108: 4.2
B109: 2.2.27 | C109: Abraçadeira de nylon 2,5x100 mm, para organização cabos elétricos | D109: Unidade | E109: 10 | F109: SINAPI | G109: 414 | H109: =TRUNC((1-$L$7)*(VLOOKUP(G109,'INSUMO SINAPI'!$A$4:$E$4854,5,FALSE)),2) -> 0.03 | I109: 0.3 | J109: 0.03 | K109: 0.3
B110: 2.3 | C110: Sistema de Aterramento | K110: =SUM(K111:K117) -> 1293.74
B111: 2.3.1 | C111: Cordoalha em cobre nu, 50 mm² | D111: Metro | E111: 16 | F111: SINAPI | G111: 867 | H111: =TRUNC((1-$L$7)*(VLOOKUP(G111,'INSUMO SINAPI'!$A$4:$E$4854,5,FALSE)),2) -> 60.92 | I111: 974.72 | J111: 68.54 | K111: =TRUNC(E111*J111,2) -> 1096.64
B112: 2.3.2 | C112: Conector à compressão para aterramento (CABO-CABO) | D112: Unidade | E112: 2 | F112: SEDOP | G112: E00189 | H112: =TRUNC((1-$L$7)*(VLOOKUP(G112,'OUTROS BANCOS'!$E$2:$G$70,3,FALSE)),2) -> 57.61 | I112: 115.22 | J112: 64.81 | K112: 129.62
B113: 2.3.3 | C113: Curva longa 90º Galvanizada a fogo, 1" | D113: Unidade | E113: 1 | F113: SINAPI | G113: 2617 | H113: =TRUNC((1-$L$7)*(VLOOKUP(G113,'INSUMO SINAPI'!$A$4:$E$4854,5,FALSE)),2) -> 5.06 | I113: 5.06 | J113: 5.69 | K113: 5.69
B114: 2.3.4 | C114: Eletroduto Galvanizado a Fogo, 1" | D114: Metro | E114: 1.5 | F114: SETOP | G114: MATED-12288 | H114: =TRUNC((1-$L$7)*(VLOOKUP(G114,'OUTROS BANCOS'!$E$2:$G$70,3,FALSE)),2) -> 6.9 | I114: 10.35 | J114: 7.76 | K114: 11.64
B115: 2.3.5 | C115: Abraçadeira tipo D, 1" e cunha de fixação | D115: Unidade | E115: 1 | F115: SINAPI | G115: 393 | H115: =TRUNC((1-$L$7)*(VLOOKUP(G115,'INSUMO SINAPI'!$A$4:$E$4854,5,FALSE)),2) -> 1.95 | I115: 1.95 | J115: 2.19 | K115: 2.19
B116: 2.3.6 | C116: Conector reto com arruela para eletroduto 1" | D116: Unidade | E116: 1 | F116: SINAPI | G116: 2483 | H116: =TRUNC((1-$L$7)*(VLOOKUP(G116,'INSUMO SINAPI'!$A$4:$E$4854,5,FALSE)),2) -> 3.59 | I116: 3.59 | J116: 4.04 | K116: 4.04
B117: 2.3.7 | C117: Caixa de inspeção para ateramento | D117: Unidade | E117: 1 | F117: SINAPI | G117: 41480 | H117: =TRUNC((1-$L$7)*(VLOOKUP(G117,'INSUMO SINAPI'!$A$4:$E$4854,5,FALSE)),2) -> 39.04 | I117: 39.04 | J117: 43.92 | K117: 43.92
B118: 2.4 | C118: Alimentação do Motor | K118: =SUM(K119:K124) -> 273.51
B119: 2.4.1 | C119: Cabo de cobre flexível, classe 4 ou 5, isolação em PVC/A, antichama BWF-B, 1 condutor, 450/750V seção de 4 mm² (cor preta, azul ou verde) | D119: Metro | E119: 30 | F119: SINAPI | G119: 981 | H119: =TRUNC((1-$L$7)*(VLOOKUP(G119,'INSUMO SINAPI'!$A$4:$E$4854,5,FALSE)),2) -> 4.28 | I119: 128.4 | J119: 4.82 | K119: =TRUNC(E119*J119,2) -> 144.6
B120: 2.4.2 | C120: Terminal a compressão, tipo pino, 4 mm² | D120: Unidade | E120: 3 | F120: SINAPI | G120: 1571 | H120: =TRUNC((1-$L$7)*(VLOOKUP(G120,'INSUMO SINAPI'!$A$4:$E$4854,5,FALSE)),2) -> 1.31 | I120: 3.93 | J120: 1.47 | K120: 4.41
B121: 2.4.3 | C121: Eletroduto corrugado tipo PEAD, 3/4 | D121: Metro | E121: 10 | F121: SINAPI | G121: 39244 | H121: =TRUNC((1-$L$7)*(VLOOKUP(G121,'INSUMO SINAPI'!$A$4:$E$4854,5,FALSE)),2) -> 4.59 | I121: 45.9 | J121: 5.16 | K121: 51.6
B122: 2.4.4 | C122: Caixa de passagem em concreto 30X30X40 cm | D122: Unidade | E122: 1 | F122: SINAPI | G122: 43429 | H122: =TRUNC((1-$L$7)*(VLOOKUP(G122,'INSUMO SINAPI'!$A$4:$E$4854,5,FALSE)),2) -> 61.05 | I122: 61.05 | J122: 68.68 | K122: 68.68
B123: 2.4.5 | C123: Conector reto com arruela para eletroduto 3/4" | D123: Unidade | E123: 1 | F123: SINAPI | G123: 2488 | H123: =TRUNC((1-$L$7)*(VLOOKUP(G123,'INSUMO SINAPI'!$A$4:$E$4854,5,FALSE)),2) -> 2.01 | I123: 2.01 | J123: 2.26 | K123: 2.26
B124: 2.4.6 | C124: Abraçadeira tipo D, 3/4" e cunha de fixação | D124: Unidade | E124: 1 | F124: SINAPI | G124: 39128 | H124: =TRUNC((1-$L$7)*(VLOOKUP(G124,'INSUMO SINAPI'!$A$4:$E$4854,5,FALSE)),2) -> 1.74 | I124: 1.74 | J124: 1.96 | K124: 1.96
B125: 2.5 | C125: Montagem do Sistema Elétrico | K125: =SUM(K126:K128) -> 919.08
B126: 2.5.1 | C126: Eletrotécnico (horista), INCLUSIDE ENCARGOS SOCIAIS | D126: h | E126: 8 | F126: EMOP | G126: 1916 | H126: =TRUNC((1-$L$7)*(VLOOKUP(G126,'OUTROS BANCOS'!$E$2:$G$70,3,FALSE)),2) -> 32.07 | I126: 256.56 | J126: =H126*(1+$L$5) -> 40.07 | K126: =TRUNC(E126*J126,2) -> 320.56
B127: 2.5.2 | C127: Auxiliar de Eletricista com encargos complementares | D127: h | E127: 16 | F127: AGESUL | G127: 88247 | H127: =TRUNC((1-$L$7)*(VLOOKUP(G127,'OUTROS BANCOS'!$E$2:$G$70,3,FALSE)),2) -> 21.92 | I127: 350.72 | J127: =H127*(1+$L$5) -> 27.39 | K127: 438.24
B128: 2.5.3 | C128: Comissionamento - Eletrotécnico, INCLUSIVE ENCARGOS SOCIAIS | D128: h | E128: 4 | F128: EMOP | G128: 1916 | H128: =TRUNC((1-$L$7)*(VLOOKUP(G128,'OUTROS BANCOS'!$E$2:$G$70,3,FALSE)),2) -> 32.07 | I128: 128.28 | J128: 40.07 | K128: 160.28
B129: 2.6 | C129: Emissão de ART | K129: =K130 -> 328.32
B130: 2.6.1 | C130: Emissão de ART | D130: um | E130: 1 | F130: PRÓPRIA | G130: CPU1 | H130: =TRUNC((1-$L$7)*('CPU1'!J7),2) -> 262.74 | I130: 262.74 | J130: =H130*(1+$L$5) -> 328.32 | K130: =TRUNC(E130*J130,2) -> 328.32
B131: TOTAL | K131: =SUM(K70,K12) -> 32106.39
K133: 31106.35

Sheet Item 59- MICROASPERSÃO 1,0 HA
K2: BASE | L2: 2026-02-01 | M2: BANCO | N2: DATA
K3: VALOR TOTAL | L3: =K133 -> 29275.11 | M3: ORSE | N3: 2025-12-01
K4: BDI SERVIÇO | L4: =BDI!D15 -> 0.2496 | M4: SEINFRA | N4: 27/28
K5: BDI MATERIAL | L5: =BDI!K15 -> 0.125 | M5: EMBASA | N5: 2025-06-01
M6: SCO | N6: 2026-01-01
B7: PLANILHA ORÇAMENTÁRIA - 5ª SUPERINTENDÊNCIA REGIONAL | K7: DESCONTO | L7: 0.08 | M7: SBC | N7: 2026-01-01
B8: SERVIÇO DE FORNECIMENTO, TRANSPORTE, CARGA, DESCARGA, MONTAGEM E ADEQUADO FUNCIONAMENTO DE SISTEMA DE IRRIGAÇÃO - MICROASPERSÃO - 1 ha - 220 V | M8: AGETOP CIVIL | N8: 2025-10-01
M9: AGESUL | N9: 2026-01-01
M10: IOPES | N10: 2025-12-01
B11: ITEM | C11: DESCRIÇÃO | D11: UNID. | E11: QUANT. - (A) | F11: PESQUISA DE PREÇOS (SIST. REF. / COT) | G11: CÓDIGO | H11: Custo Unitário (R$) - (B) | I11: Custo Total (Com Desconto) | J11: Preço Unitário (R$) com BDI (%) | K11: Preço Total (R$) C = (AxB) | M11: SETOP | N11: 2025-10-01
B12: 1. | C12: Sistema Hidráulico | K12: =SUM(K13,K22,K25,K41,K46,K59,K64,K67,K71) -> 21312.56 | M12: CPOS | N12: 2026-01-01
B13: 1.1. | C13: Linha Lateral - Emissores | K13: =SUM(K14:K21) -> 6985.5 | M13: SEDOP | N13: 2025-10-01
B14: 1.1.1. | C14: TUBO PEBD DI 16 mm PN30 | D14: m | E14: 2500 | F14: COT | G14: COT01 | H14: =TRUNC((1-$L$7)*('COT01'!L37),2) -> 1.3 | I14: =H14*E14 -> 3250 | J14: =H14*(1+$L$5) -> 1.46 | K14: =TRUNC(E14*J14,2) -> 3650 | M14: SINAPI | N14: 2026-01-01
B15: 1.1.2. | C15: MICROASPERSOR 75 LPH | D15: und | E15: 500 | F15: COT | G15: COT09 | H15: =TRUNC((1-$L$7)*('COT09'!L37),2) -> 3.02 | I15: =H15*E15 -> 1510 | J15: =H15*(1+$L$5) -> 3.4 | K15: 1700 | M15: EMOP | N15: 2026-01-04
B16: 1.1.3. | C16: MICROTUBO COM CONECTOR 4/6 X 80 cm | D16: und | E16: 500 | F16: COT | G16: COT10 | H16: =TRUNC((1-$L$7)*('COT10'!L37),2) -> 1.01 | I16: 505 | J16: 1.14 | K16: 570
B17: 1.1.4. | C17: HASTE PLÁSTICA PARA MICROASPERSÃO - 60 cm | D17: und | E17: 500 | F17: COT | G17: COT11 | H17: =TRUNC((1-$L$7)*('COT11'!L37),2) -> 1.49 | I17: 745 | J17: 1.68 | K17: 840
B18: 1.1.5. | C18: CONECTOR INICIAL 16 mm | D18: und | E18: 50 | F18: ORSE | G18: 9550 | H18: =TRUNC((1-$L$7)*(VLOOKUP(G18,'OUTROS BANCOS'!$E$2:$G$70,3,FALSE)),2) -> 0.88 | I18: 44 | J18: 0.99 | K18: 49.5
B19: 1.1.6. | C19: ANEL DE VEDAÇÃO COM CHULA 13/17 | D19: und | E19: 50 | F19: SEINFRA | G19: I9557 | H19: =TRUNC((1-$L$7)*(VLOOKUP(G19,'OUTROS BANCOS'!$E$2:$G$70,3,FALSE)),2) -> 0.8 | I19: 40 | J19: 0.9 | K19: 45
B20: 1.1.5. | C20: CONECTOR UNIÃO COM ANEL 16 mm | D20: und | E20: 100 | F20: EMBASA | G20: M019000003 | H20: =TRUNC((1-$L$7)*(VLOOKUP(G20,'OUTROS BANCOS'!$E$2:$G$70,3,FALSE)),2) -> 0.7 | I20: 70 | J20: 0.79 | K20: 79
B21: 1.1.6. | C21: CONECTOR FINAL DE LINHA TIPO 8 16 mm | D21: und | E21: 50 | F21: SEINFRA | G21: I9775 | H21: =TRUNC((1-$L$7)*(VLOOKUP(G21,'OUTROS BANCOS'!$E$2:$G$70,3,FALSE)),2) -> 0.92 | I21: 46 | J21: 1.04 | K21: 52
B22: 1.2. | C22: Tubulação - PVC | K22: =SUM(K23:K24) -> 4408.8
B23: 1.2.1 | C23: TUBO IRRIG. PB DN50 PN40 | D23: m | E23: 156 | F23: ORSE | G23: 8369 | H23: =TRUNC((1-$L$7)*(VLOOKUP(G23,'OUTROS BANCOS'!$E$2:$G$70,3,FALSE)),2) -> 12.76 | I23: 1990.56 | J23: =H23*(1+$L$5) -> 14.36 | K23: =TRUNC(E23*J23,2) -> 2240.16
B24: 1.2.2 | C24: TUBO IRRIG. PB DN75 PN40 | D24: m | E24: 144 | F24: COT | G24: COT17 | H24: =TRUNC((1-$L$7)*(('COT17'!$L$37/6)),2) -> 13.39 | I24: 1928.16 | J24: =H24*(1+$L$5) -> 15.06 | K24: =TRUNC(E24*J24,2) -> 2168.64
B25: 1.3. | C25: Controle de Proteção e Comando | K25: =SUM(K26:K34) -> 1131.53
B26: 1.3.1. | C26: REGISTRO ESFERA SOLD. 50 mm | D26: und | E26: 3 | F26: SINAPI | G26: 11677 | H26: =TRUNC((1-$L$7)*(VLOOKUP(G26,'INSUMO SINAPI'!$A$4:$E$4854,5,FALSE)),2) -> 38.87 | I26: 116.61 | J26: =H26*(1+$L$5) -> 43.73 | K26: =TRUNC(E26*J26,2) -> 131.19
B27: 1.3.2. | C27: VÁLVULA ANTIVÁCUO 1/2" | D27: und | E27: 3 | F27: COT | G27: COT03 | H27: =TRUNC((1-$L$7)*('COT03'!L37),2) -> 8.75 | I27: 26.25 | J27: =H27*(1+$L$5) -> 9.84 | K27: 29.52
B28: 1.3.3. | C28: VÁLVULA VENTOSA TRÍPLICE FUNÇÃO 2" | D28: und | E28: 1 | F28: COT | G28: COT04 | H28: =TRUNC((1-$L$7)*('COT04'!L37),2) -> 616.15 | I28: 616.15 | J28: 693.17 | K28: 693.17
B29: 1.3.4. | C29: TUBO IRRIG. PB DN50 PN80 | D29: m | E29: 12 | F29: ORSE | G29: 14068 | H29: =TRUNC((1-$L$7)*(VLOOKUP(G29,'OUTROS BANCOS'!$E$2:$G$70,3,FALSE)),2) -> 8.96 | I29: 107.52 | J29: 10.08 | K29: 120.96
B30: 1.3.5. | C30: REDUÇÃO PVC PB 75 mm X 50 mm | D30: und | E30: 1 | F30: SCO | G30: MAT118400 | H30: =TRUNC((1-$L$7)*(VLOOKUP(G30,'OUTROS BANCOS'!$E$2:$G$70,3,FALSE)),2) -> 10.21 | I30: 10.21 | J30: 11.49 | K30: 11.49
B31: 1.3.6. | C31: CURVA PVC 90° PB 50 mm | D31: und | E31: 4 | F31: SBC | G31: 5385 | H31: =TRUNC((1-$L$7)*(VLOOKUP(G31,'OUTROS BANCOS'!$E$2:$G$70,3,FALSE)),2) -> 13.12 | I31: 52.48 | J31: 14.76 | K31: 59.04
B32: 1.3.7. | C32: TÊ PVC 50 mm | D32: und | E32: 3 | F32: ORSE | G32: 9504 | H32: =TRUNC((1-$L$7)*(VLOOKUP(G32,'OUTROS BANCOS'!$E$2:$G$71,3,FALSE)),2) -> 15.47 | I32: 46.41 | J32: 17.4 | K32: 52.2
B33: 1.3.8. | C33: ADAPTADOR BS X RM 50 X 2" | D33: und | E33: 1 | F33: ORSE | G33: 14060 | H33: =TRUNC((1-$L$7)*(VLOOKUP(G33,'OUTROS BANCOS'!$E$2:$G$70,3,FALSE)),2) -> 3.89 | I33: 3.89 | J33: 4.38 | K33: 4.38
B34: 1.3.9. | C34: LUVA PVC BR 2" | D34: und | E34: 1 | F34: ORSE | G34: 1434 | H34: =TRUNC((1-$L$7)*(VLOOKUP(G34,'OUTROS BANCOS'!$E$2:$G$70,3,FALSE)),2) -> 26.29 | I34: 26.29 | J34: 29.58 | K34: 29.58
B35: 1.3.10. | C35: COLAR DE TOMADA 50 X 1/2" | D35: und | E35: 3 | F35: COT | G35: COT05 | H35: =TRUNC((1-$L$7)*('COT05'!L37),2) -> 16.59 | I35: 49.77 | J35: 18.66 | K35: 55.98
B36: 1.3.11 | C36: REGISTRO DE GAVETA 2" | D36: und | E36: 1 | F36: COT | G36: COT23 | H36: =TRUNC((1-$L$7)*('COT23'!L37),2) -> 124.95 | I36: 124.95 | J36: 140.57 | K36: 140.57
B37: 1.3.12 | C37: MANÔMETRO DE GLICERINA DE ATÉ 6kgf/cm² ROSCA DE 1/4 " | D37: und | E37: 2 | F37: COT | G37: COT24 | H37: =TRUNC((1-$L$7)*('COT24'!$L$37),2) -> 112.98 | I37: 225.96 | J37: 127.1 | K37: 254.2
B38: 1.3.13 | C38: BUCHA DE REDUÇÃO DE 3/4" PARA 1/4" | D38: und | E38: 2 | F38: COT | G38: COT25 | H38: =TRUNC((1-$L$7)*('COT25'!$L$37),2) -> 30.7 | I38: 61.4 | J38: 34.54 | K38: 69.08
B39: 1.3.14 | C39: ADAPTADOR DE REDUÇÃO Bsa SOLD. 50 mm X 1 1/2" | D39: und | E39: 2 | F39: COT | G39: COT26 | H39: =TRUNC((1-$L$7)*('COT26'!$L$37),2) -> 14.16 | I39: 28.32 | J39: 15.93 | K39: 31.86
B40: 1.3.15 | C40: TE DE REDUÇÃO ROSCA 50 mm X 3/4" | D40: und | E40: 2 | F40: COT | G40: COT27 | H40: =TRUNC((1-$L$7)*('COT27'!$L$37),2) -> 13.34 | I40: 26.68 | J40: 15.01 | K40: 30.02
B41: 1.4. | C41: Conexões de Campo | K41: =SUM(K42:K45) -> 370.19
B42: 1.4.1. | C42: REGISTRO ESFERA PVC 50 mm | D42: und | E42: 4 | F42: SINAPI | G42: 11677 | H42: =TRUNC((1-$L$7)*(VLOOKUP(G42,'INSUMO SINAPI'!$A$4:$E$4854,5,FALSE)),2) -> 38.87 | I42: 155.48 | J42: =H42*(1+$L$5) -> 43.73 | K42: =TRUNC(E42*J42,2) -> 174.92
B43: 1.4.2. | C43: CURVA PVC 45° PB 50 mm | D43: und | E43: 4 | F43: EMOP | G43: 7153 | H43: =TRUNC((1-$L$7)*(VLOOKUP(G43,'OUTROS BANCOS'!$E$2:$G$70,3,FALSE)),2) -> 23.57 | I43: 94.28 | J43: =H43*(1+$L$5) -> 26.52 | K43: =TRUNC(E43*J43,2) -> 106.08
B44: 1.4.3. | C44: CURVA PVC 90° PB 50 mm | D44: und | E44: 2 | F44: SBC | G44: 5385 | H44: =TRUNC((1-$L$7)*(VLOOKUP(G44,'OUTROS BANCOS'!$E$2:$G$70,3,FALSE)),2) -> 13.12 | I44: 26.24 | J44: 14.76 | K44: =TRUNC(E44*J44,2) -> 29.52
B45: 1.4.4. | C45: TÊ PVC 75 mm | D45: und | E45: 1 | F45: ORSE | G45: 2115 | H45: =TRUNC((1-$L$7)*(VLOOKUP(G45,'OUTROS BANCOS'!$E$2:$G$70,3,FALSE)),2) -> 53.04 | I45: 53.04 | J45: 59.67 | K45: =TRUNC(E45*J45,2) -> 59.67
B46: 1.5. | C46: Filtragem e Ligação de Pressão | K46: =SUM(K47:K58) -> 5200.63
B47: 1.5.1. | C47: MOTOBOMBA SUBMERSA 3HP 12m³/h + 43mca | D47: und | E47: 1 | F47: COT | G47: COT06 | H47: =TRUNC((1-$L$7)*('COT06'!L37),2) -> 1606.92 | I47: 1606.92 | J47: =H47*(1+$L$5) -> 1807.79 | K47: =TRUNC(E47*J47,2) -> 1807.79
B48: 1.5.2. | C48: NIPLE PVC BR 2" | D48: und | E48: 1 | F48: SBC | G48: 5719 | H48: =TRUNC((1-$L$7)*(VLOOKUP(G48,'OUTROS BANCOS'!$E$2:$G$70,3,FALSE)),2) -> 29.65 | I48: 29.65 | J48: =H48*(1+$L$5) -> 33.36 | K48: 33.36
B49: 1.5.3. | C49: UNIÃO PVC BR 2" | D49: und | E49: 1 | F49: SEINFRA | G49: I2241 | H49: =TRUNC((1-$L$7)*(VLOOKUP(G49,'OUTROS BANCOS'!$E$2:$G$70,3,FALSE)),2) -> 80.97 | I49: 80.97 | J49: 91.09 | K49: 91.09
B50: 1.5.4. | C50: ADAPTADOR COMPRESSÃO X ROSCA MACHO 2" | D50: und | E50: 2 | F50: EMBASA | G50: M080800108 | H50: =TRUNC((1-$L$7)*(VLOOKUP(G50,'OUTROS BANCOS'!$E$2:$G$70,3,FALSE)),2) -> 45.39 | I50: 90.78 | J50: 51.06 | K50: 102.12
B51: 1.5.5. | C51: TUBO PEMD 2" PN6 | D51: m | E51: 15 | F51: COT | G51: COT07 | H51: =TRUNC((1-$L$7)*('COT07'!L37),2) -> 17.36 | I51: 260.4 | J51: 19.53 | K51: 292.95
B52: 1.5.6. | C52: BUCHA DE REDUÇÃO 3X2" | D52: und | E52: 1 | F52: SBC | G52: 8784 | H52: =TRUNC((1-$L$7)*(VLOOKUP(G52,'OUTROS BANCOS'!$E$2:$G$70,3,FALSE)),2) -> 86.48 | I52: 86.48 | J52: 97.29 | K52: 97.29
B53: 1.5.7. | C53: UNIÃO PVC BR 3" | D53: und | E53: 2 | F53: SEINFRA | G53: I2242 | H53: =TRUNC((1-$L$7)*(VLOOKUP(G53,'OUTROS BANCOS'!$E$2:$G$70,3,FALSE)),2) -> 210.87 | I53: 421.74 | J53: 237.23 | K53: 474.46
B54: 1.5.8. | C54: ADAPTADOR BSXRM 75X3" | D54: und | E54: 3 | F54: ORSE | G54: 14059 | H54: =TRUNC((1-$L$7)*(VLOOKUP(G54,'OUTROS BANCOS'!$E$2:$G$70,3,FALSE)),2) -> 7.82 | I54: 23.46 | J54: 8.8 | K54: 26.4
B55: 1.5.9. | C55: TUBO IRRIG. PB DN75 PN80 | D55: m | E55: 12 | F55: ORSE | G55: 9502 | H55: =TRUNC((1-$L$7)*(VLOOKUP(G55,'OUTROS BANCOS'!$E$2:$G$70,3,FALSE)),2) -> 37.27 | I55: 447.24 | J55: 41.93 | K55: 503.16
B56: 1.5.10. | C56: CURVA PVC 90° PB 75 MM | D56: und | E56: 6 | F56: SBC | G56: 5387 | H56: =TRUNC((1-$L$7)*(VLOOKUP(G56,'OUTROS BANCOS'!$E$2:$G$70,3,FALSE)),2) -> 92.49 | I56: 554.94 | J56: 104.05 | K56: 624.3
B57: 1.5.11. | C57: REGISTRO ESFERA 3" | D57: und | E57: 2 | F57: ORSE | G57: 2604 | H57: =TRUNC((1-$L$7)*(VLOOKUP(G57,'OUTROS BANCOS'!$E$2:$G$70,3,FALSE)),2) -> 100.69 | I57: 201.38 | J57: 113.28 | K57: 226.56
B58: 1.5.12. | C58: FILTRO DE DISCO 3" - 25M³/H | D58: und | E58: 1 | F58: COT | G58: COT08 | H58: =TRUNC((1-$L$7)*('COT08'!L37),2) -> 818.8 | I58: 818.8 | J58: 921.15 | K58: 921.15
B59: 1.6. | C59: Materias de Consumo | K59: =SUM(K60:K63) -> 195.28
B60: 1.6.1. | C60: ADESIVO PLÁSTICO 850G | D60: und | E60: 2 | F60: ORSE | G60: 14079 | H60: =TRUNC((1-$L$7)*(VLOOKUP(G60,'OUTROS BANCOS'!$E$2:$G$70,3,FALSE)),2) -> 54.28 | I60: 108.56 | J60: 61.07 | K60: =TRUNC(E60*J60,2) -> 122.14
B61: 1.6.2. | C61: FITA VEDA ROSCA 18MM X 50 M | D61: und | E61: 1 | F61: SINAPI | G61: 3148 | H61: =TRUNC((1-$L$7)*(VLOOKUP(G61,'INSUMO SINAPI'!$A$4:$E$4854,5,FALSE)),2) -> 8.98 | I61: 8.98 | J61: 10.1 | K61: =TRUNC(E61*J61,2) -> 10.1
B62: 1.6.3. | C62: FITA ISOLANTE 18MM X 20M | D62: und | E62: 1 | F62: SBC | G62: 36795 | H62: =TRUNC((1-$L$7)*(VLOOKUP(G62,'OUTROS BANCOS'!$E$2:$G$70,3,FALSE)),2) -> 0.92 | I62: 0.92 | J62: 1.04 | K62: =TRUNC(E62*J62,2) -> 1.04
B63: 1.6.4. | C63: FOLHA DE LIXA N100 | D63: und | E63: 50 | F63: AGETOP CIVIL | G63: 1674 | H63: =TRUNC((1-$L$7)*(VLOOKUP(G63,'OUTROS BANCOS'!$E$2:$G$70,3,FALSE)),2) -> 1.1 | I63: 55 | J63: 1.24 | K63: =TRUNC(E63*J63,2) -> 62
B64: 1.7. | C64: Elaboração do Layout do Sistema Hidráulico | K64: =SUM(K65:K66) -> 1187.32
B65: 1.7.1. | C65: Mão-de-obra de Projetista Cadista Pleno - Projeto e Consultoria, inclusive Encargos Sociais | D65: h | E65: 4 | F65: EMOP | G65: 10984 | H65: =TRUNC((1-$L$7)*(VLOOKUP(G65,'OUTROS BANCOS'!$E$2:$G$70,3,FALSE)),2) -> 69.27 | I65: 277.08 | J65: =H65*(1+$L$4) -> 86.56 | K65: =TRUNC(E65*J65,2) -> 346.24
B66: 1.7.2. | C66: Mão-de-obra de Engenheiro Pleno, inclusive com encargos sociais | D66: h | E66: 4 | F66: EMOP | G66: 14610 | H66: =TRUNC((1-$L$7)*(VLOOKUP(G66,'OUTROS BANCOS'!$E$2:$G$70,3,FALSE)),2) -> 168.27 | I66: 673.08 | J66: 210.27 | K66: =TRUNC(E66*J66,2) -> 841.08
B67: 1.8. | C67: Montagem do Sistema Hidráulico | K67: =SUM(K68:K69) -> 1402.32
B68: 1.8.1. | C68: Encanador ou bombeiro hidráulico com encargos complementares (01 encanador ou bombeiro hidráulico em jornada de trabalho de 8 h por dia) | D68: h | E68: 24 | F68: AGESUL | G68: 4005 | H68: =TRUNC((1-$L$7)*(VLOOKUP(G68,'OUTROS BANCOS'!$E$2:$G$70,3,FALSE)),2) -> 25.61 | I68: 614.64 | J68: =H68*(1+$L$4) -> 32 | K68: =TRUNC(E68*J68,2) -> 768
B69: 1.8.2. | C69: Auxiliar de encanador ou bombeiro hidráulico com encargos complementares (02 auxiliares de encanador ou bombeiro hidráulico em jornada de trabalho de 8 h por dia) | D69: h | E69: 24 | F69: AGESUL | G69: 4052 | H69: =TRUNC((1-$L$7)*(VLOOKUP(G69,'OUTROS BANCOS'!$E$2:$G$70,3,FALSE)),2) -> 21.15 | I69: 507.6 | J69: 26.43 | K69: =TRUNC(E69*J69,2) -> 634.32
B70: 1.9 | C70: Preparo mecanizado do solo | K70: =K71 -> 430.99
B71: 1.9.1 | C71: ARACÃO DO SOLO A 20CM DE PROFUNDIDADE COM TRATOR DE PNEUS E ARADO DE DISCO | D71: ha | E71: 1 | F71: EMOP | G71: 22.016.0025-A | H71: =TRUNC((1-$L$7)*(VLOOKUP(G71,'OUTROS BANCOS'!$E$2:$G$70,3,FALSE)),2) -> 344.9 | I71: 344.9 | J71: 430.99 | K71: =TRUNC(E71*J71,2) -> 430.99
B72: 2 | C72: Sistema Elétrico | K72: =SUM(K73,K84,K127,K112,K120,K131) -> 7962.55
B73: 2.1 | C73: Rede de Distribuição - Fonte até o Quadro de Comando | K73: =SUM(K74:K83) -> 3172.99
B74: 2.1.1 | C74: Poste de madeira eucalipto preservado, diâmetro de 20cm, 7 metros | D74: Unidade | E74: 5 | F74: SBC | G74: 46336 | H74: =TRUNC((1-$L$7)*(VLOOKUP(G74,'OUTROS BANCOS'!$E$2:$G$70,3,FALSE)),2) -> 87.46 | I74: =H74*E74 -> 437.3 | J74: =H74*(1+$L$5) -> 98.39 | K74: =TRUNC(E74*J74,2) -> 491.95
B75: 2.1.2 | C75: Isolador Porcelana Tipo Roldana 80x80 mm p/ 2 cabos, marrom | D75: Unidade | E75: 5 | F75: IOPES | G75: 48342 | H75: =TRUNC((1-$L$7)*(VLOOKUP(G75,'OUTROS BANCOS'!$E$2:$G$70,3,FALSE)),2) -> 10.07 | I75: 50.35 | J75: 11.33 | K75: 56.65
B76: 2.1.3 | C76: Suporte Isolador c/ Roldana p/ aparafusar c/ chapa | D76: Unidade | E76: 5 | F76: SETOP | G76: MATED-12988 | H76: =TRUNC((1-$L$7)*(VLOOKUP(G76,'OUTROS BANCOS'!$E$2:$G$70,3,FALSE)),2) -> 16.72 | I76: 83.6 | J76: 18.81 | K76: 94.05
B77: 2.1.4 | C77: Cinta aço galvanizado, de 240mm | D77: Unidade | E77: 5 | F77: SCO | G77: MAT033900 | H77: =TRUNC((1-$L$7)*(VLOOKUP(G77,'OUTROS BANCOS'!$E$2:$G$72,3,FALSE)),2) -> 50.13 | I77: 250.65 | J77: 56.4 | K77: 282
B78: 2.1.5 | C78: Alça preformada para islador roldana, seção conforme condutores instalados | D78: Unidade | E78: 5 | F78: COT | G78: COT13 | H78: =TRUNC((1-$L$7)*('COT13'!L37),2) -> 8.9 | I78: 44.5 | J78: 10.01 | K78: 50.05
B79: 2.1.6 | C79: Cabo de cobre isolado HEPR (XLPE), 10mm², 1kv / 90º C (cor conforme a aplicação) apropriado para redes aéreas | D79: Metro | E79: 200 | F79: COT | G79: COT14 | H79: =TRUNC((1-$L$7)*('COT14'!L37),2) -> 9.05 | I79: 1810 | J79: 10.18 | K79: 2036
B80: 2.1.7 | C80: Cabeçote p/ Eletroduto de 1.1/4" | D80: Unidade | E80: 1 | F80: SINAPI | G80: 1099 | H80: =TRUNC((1-$L$7)*(VLOOKUP(G80,'INSUMO SINAPI'!$A$4:$E$4854,5,FALSE)),2) -> 6.39 | I80: 6.39 | J80: 7.19 | K80: 7.19
B81: 2.1.8 | C81: Eletroduto em aço galvanizado 1.1/4" | D81: Unidade | E81: 1 | F81: SCO | G81: MAT050850 | H81: =TRUNC((1-$L$7)*(VLOOKUP(G81,'OUTROS BANCOS'!$E$2:$G$70,3,FALSE)),2) -> 121.28 | I81: 121.28 | J81: 136.44 | K81: 136.44
B82: 2.1.9 | C82: Conector reto com arruela para eletroduto 1.1/4" | D82: Unidade | E82: 1 | F82: SINAPI | G82: 2526 | H82: =TRUNC((1-$L$7)*(VLOOKUP(G82,'INSUMO SINAPI'!$A$4:$E$4854,5,FALSE)),2) -> 5.05 | I82: 5.05 | J82: 5.68 | K82: 5.68
B83: 2.1.10 | C83: Curva 90º aço galvanizado 1.1/4" | D83: Unidade | E83: 1 | F83: SINAPI | G83: 2618 | H83: =TRUNC((1-$L$7)*(VLOOKUP(G83,'INSUMO SINAPI'!$A$4:$E$4854,5,FALSE)),2) -> 11.54 | I83: 11.54 | J83: 12.98 | K83: 12.98
B84: 2.2 | C84: Quadro de Comando | K84: =SUM(K85:K111) -> 2007.65
B85: 2.2.1 | C85: Quadro elétrico metálico com placa de montagem, grau de proteção mínimo IP54, dimensões mínimas 400x300x200 mm | D85: Unidade | E85: 1 | F85: SBC | G85: 53375 | H85: =TRUNC((1-$L$7)*(VLOOKUP(G85,'OUTROS BANCOS'!$E$2:$G$70,3,FALSE)),2) -> 326.83 | I85: 326.83 | J85: 367.68 | K85: =TRUNC(E85*J85,2) -> 367.68
B86: 2.2.2 | C86: Canaleta para quadro 30 x 50 mm, fabricada em PVC, tipo semi-aberta. | D86: Metro | E86: 0.4 | F86: SETOP | G86: MATED-17646 | H86: =TRUNC((1-$L$7)*(VLOOKUP(G86,'OUTROS BANCOS'!$E$2:$G$70,3,FALSE)),2) -> 14.14 | I86: 5.66 | J86: 15.91 | K86: 6.36
B87: 2.2.3 | C87: Canaleta para quadro 50 x 50 mm, fabricada em PVC, tipo semi-aberta. | D87: Metro | E87: 0.3 | F87: SETOP | G87: MATED-17647 | H87: =TRUNC((1-$L$7)*(VLOOKUP(G87,'OUTROS BANCOS'!$E$2:$G$70,3,FALSE)),2) -> 18.93 | I87: 5.68 | J87: 21.3 | K87: 6.39
B88: 2.2.4 | C88: Trilho DIN 35 mm | D88: Metro | E88: 0.4 | F88: SEINFRA | G88: I7410 | H88: =TRUNC((1-$L$7)*(VLOOKUP(G88,'OUTROS BANCOS'!$E$2:$G$70,3,FALSE)),2) -> 10.63 | I88: 4.25 | J88: 11.96 | K88: 4.78
B89: 2.2.5 | C89: Conector (terminal isolado) para barramento isolado, conexão reta ou lateral, até 25 mm² | D89: Unidade | E89: 2 | F89: COT | G89: COT19 | H89: =TRUNC((1-$L$7)*('COT19'!L37),2) -> 7.57 | I89: 15.14 | J89: 8.52 | K89: 17.04
B90: 2.2.6 | C90: Barramento monofásico isolado (barramento pente), horizontal, fabricado em cobre, até 63 A, acompanhado de tampas finais, 8 polos | D90: Unidade | E90: 1 | F90: SBC | G90: 10562 | H90: =TRUNC((1-$L$7)*(VLOOKUP(G90,'OUTROS BANCOS'!$E$2:$G$70,3,FALSE)),2) -> 20.29 | I90: 20.29 | J90: 22.83 | K90: 22.83
B91: 2.2.7 | C91: Interruptor diferencial residual bipolar de 25A, corrente residual de 30 mA, tensão de operação conforme aplicação, corrente de curto circuito de 3 kA | D91: Unidade | E91: 1 | F91: SINAPI | G91: 39445 | H91: =TRUNC((1-$L$7)*(VLOOKUP(G91,'INSUMO SINAPI'!$A$4:$E$4854,5,FALSE)),2) -> 153.12 | I91: 153.12 | J91: 172.26 | K91: 172.26
B92: 2.2.8 | C92: Dispositivo de Proteção Contra Surtos Classe II, 20 kA (Imáx), tensão de operação compatível com a aplicação, nível de proeção (Up) 1,4 kV | D92: Unidade | E92: 2 | F92: SINAPI | G92: 39469 | H92: =TRUNC((1-$L$7)*(VLOOKUP(G92,'INSUMO SINAPI'!$A$4:$E$4854,5,FALSE)),2) -> 77.53 | I92: 155.06 | J92: 87.22 | K92: 174.44
B93: 2.2.9 | C93: Disjuntor monopolar para trilho DIN (mini disjuntor) para correntes de 25A, curva C, 60 Hz, capacidade de interrupção em curto-circuito 3 kA ou superior | D93: Unidade | E93: 1 | F93: SINAPI | G93: 34653 | H93: =TRUNC((1-$L$7)*(VLOOKUP(G93,'INSUMO SINAPI'!$A$4:$E$4854,5,FALSE)),2) -> 9.94 | I93: 9.94 | J93: 11.18 | K93: 11.18
B94: 2.2.10 | C94: Disjuntor monopolar para trilho DIN (mini disjuntor) para correntes de 20A, curva C, 60 Hz, capacidade de interrupção em curto-circuito 3 kA ou superior | D94: Unidade | E94: 1 | F94: SINAPI | G94: 34653 | H94: =TRUNC((1-$L$7)*(VLOOKUP(G94,'INSUMO SINAPI'!$A$4:$E$4854,5,FALSE)),2) -> 9.94 | I94: 9.94 | J94: 11.18 | K94: 11.18
B95: 2.2.11 | C95: Disjuntor monopolar para trilho DIN (mini disjuntor) para correntes de 2A, curva C, 60 Hz, capacidade de interrupção em curto-circuito 3 kA ou superior | D95: Unidade | E95: 1 | F95: IOPES | G95: 44951 | H95: =TRUNC((1-$L$7)*(VLOOKUP(G95,'OUTROS BANCOS'!$E$2:$G$70,3,FALSE)),2) -> 28.81 | I95: 28.81 | J95: 32.41 | K95: 32.41
B96: 2.2.12 | C96: Minicontator, com capacidade de corrente até 25A (em regime AC-3), contato auxiliar integrado e bobina em corrente alternada (tensão conforme a aplicação) | D96: Unidade | E96: 1 | F96: SINAPI | G96: 1619 | H96: =TRUNC((1-$L$7)*(VLOOKUP(G96,'INSUMO SINAPI'!$A$4:$E$4854,5,FALSE)),2) -> 225.63 | I96: 225.63 | J96: 253.83 | K96: 253.83
B97: 2.2.13 | C97: Relé de sobrecarga para minicontator ajustável até 25A, conforme aplicação, com montagem direta nos contatores | D97: Unidade | E97: 1 | F97: EMBASA | G97: M103900330 | H97: =TRUNC((1-$L$7)*(VLOOKUP(G97,'OUTROS BANCOS'!$E$2:$G$70,3,FALSE)),2) -> 199.16 | I97: 199.16 | J97: 224.06 | K97: 224.06
B98: 2.2.14 | C98: Relé eletrônico/digital monitor de tensão monofásico, com funcionalidade de subtensão e sobretensão, ajustes através de trimpot no relé, LED indicativo de funcionamento, tensão conforme aplicação, 60 Hz, com 1 contato reversível | D98: Unidade | E98: 1 | F98: COT | G98: COT15 | H98: =TRUNC((1-$L$7)*('COT15'!L37),2) -> 178.02 | I98: 178.02 | J98: 200.27 | K98: 200.27
B99: 2.2.15 | C99: Relé temporizador, alimentação 220V, 1 saída a relé, com função de pulso na energização, ajustável de 1 segundo a 100 horas, ajuste por trimpots no relé | D99: Unidade | E99: 1 | F99: COT | G99: COT20 | H99: =TRUNC((1-$L$7)*('COT20'!L37),2) -> 176.75 | I99: 176.75 | J99: 198.84 | K99: 198.84
B100: 2.2.16 | C100: Barramento de neutro, na cor azul, para fixação em trilho DIN, fabricado em cobre, com furos e parafusos para fixação, ao menos um furo para o alimentador (até 25 mm²), pré isolado, 10 furos. | D100: Unidade | E100: 1 | F100: COT | G100: COT21 | H100: =TRUNC((1-$L$7)*('COT21'!L37),2) -> 41.21 | I100: 41.21 | J100: 46.36 | K100: 46.36
B101: 2.2.17 | C101: Barramento de terra, na cor verde, para fixação em trilho DIN, fabricado em cobre, com furos e parafusos para fixação, ao menos um furo para o alimentador (até 25 mm²), pré isolado, 10 furos. | D101: Unidade | E101: 1 | F101: COT | G101: COT22 | H101: =TRUNC((1-$L$7)*('COT22'!L37),2) -> 39.93 | I101: 39.93 | J101: 44.92 | K101: 44.92
B102: 2.2.18 | C102: Botão de emergência tipo cogumelo, com trava e retorno com mola, para furos 22mm, 1 NF, tensão conforme aplicação, vermelho | D102: Unidade | E102: 1 | F102: CPOS | G102: P.13.000.042461 | H102: =TRUNC((1-$L$7)*(VLOOKUP(G102,'OUTROS BANCOS'!$E$2:$G$70,3,FALSE)),2) -> 34.7 | I102: 34.7 | J102: 39.04 | K102: 39.04
B103: 2.2.19 | C103: Chave seletora de 3 posições para furos 22mm, 2 NA, completa, tensão conforme aplicação | D103: Unidade | E103: 1 | F103: SETOP | G103: MATED-19494 | H103: =TRUNC((1-$L$7)*(VLOOKUP(G103,'OUTROS BANCOS'!$E$2:$G$70,3,FALSE)),2) -> 16.92 | I103: 16.92 | J103: 19.04 | K103: 19.04
B104: 2.2.20 | C104: Sinalizador luminoso para furos de 22 mm, iluminação LED, vermelho, tensão conforme aplicação | D104: Unidade | E104: 1 | F104: ORSE | G104: 12379 | H104: =TRUNC((1-$L$7)*(VLOOKUP(G104,'OUTROS BANCOS'!$E$2:$G$70,3,FALSE)),2) -> 16.7 | I104: 16.7 | J104: 18.79 | K104: 18.79
B105: 2.2.21 | C105: Policarbonato compacto, incolor (transparente/cristal), livre de rebarbas, espessura mínima de 3 mm | D105: Metro² | E105: 0.24 | F105: SBC | G105: 28100 | H105: =TRUNC((1-$L$7)*(VLOOKUP(G105,'OUTROS BANCOS'!$E$2:$G$70,3,FALSE)),2) -> 146.28 | I105: 35.11 | J105: 164.57 | K105: 39.49
B106: 2.2.22 | C106: Barra roscada 1/4", acabamento zincado | D106: Metro | E106: 1 | F106: ORSE | G106: 7551 | H106: =TRUNC((1-$L$7)*(VLOOKUP(G106,'OUTROS BANCOS'!$E$2:$G$70,3,FALSE)),2) -> 4.37 | I106: 4.37 | J106: 4.92 | K106: 4.92
B107: 2.2.23 | C107: Porca sextavada zincada, 1/4" | D107: Unidade | E107: 8 | F107: SINAPI | G107: 39997 | H107: =TRUNC((1-$L$7)*(VLOOKUP(G107,'INSUMO SINAPI'!$A$4:$E$4854,5,FALSE)),2) -> 0.29 | I107: 2.32 | J107: 0.33 | K107: 2.64
B108: 2.2.24 | C108: Arruela zincada, 1/4" | D108: Unidade | E108: 8 | F108: ORSE | G108: 8347 | H108: =TRUNC((1-$L$7)*(VLOOKUP(G108,'OUTROS BANCOS'!$E$2:$G$70,3,FALSE)),2) -> 0.04 | I108: 0.32 | J108: 0.05 | K108: 0.4
B109: 2.2.25 | C109: Placa de identificação (plaqueta de identificação) fabricada em ABS ou acrílico para painéis elétricos (30 X 15 mm), fixação por adesivo, resistente ao tempo (Escrita Personalizada) | D109: Unidade | E109: 10 | F109: COT | G109: COT16 | H109: =TRUNC((1-$L$7)*('COT16'!$L$37),2) -> 7.47 | I109: 74.7 | J109: 8.4 | K109: 84
B110: 2.2.26 | C110: Terminal a compressão, tipo pino ou garfo, 2,5 mm³ | D110: Unidade | E110: 30 | F110: SEINFRA | G110: I10080 | H110: =TRUNC((1-$L$7)*(VLOOKUP(G110,'OUTROS BANCOS'!$E$2:$G$70,3,FALSE)),2) -> 0.12 | I110: 3.6 | J110: 0.14 | K110: 4.2
B111: 2.2.27 | C111: Abraçadeira de nylon 2,5x100 mm, para organização cabos elétricos | D111: Unidade | E111: 10 | F111: SINAPI | G111: 414 | H111: =TRUNC((1-$L$7)*(VLOOKUP(G111,'INSUMO SINAPI'!$A$4:$E$4854,5,FALSE)),2) -> 0.03 | I111: 0.3 | J111: 0.03 | K111: 0.3
B112: 2.3 | C112: Sistema de Aterramento | K112: =SUM(K113:K119) -> 1293.74
B113: 2.3.1 | C113: Cordoalha em cobre nu, 50 mm² | D113: Metro | E113: 16 | F113: SINAPI | G113: 867 | H113: =TRUNC((1-$L$7)*(VLOOKUP(G113,'INSUMO SINAPI'!$A$4:$E$4854,5,FALSE)),2) -> 60.92 | I113: 974.72 | J113: 68.54 | K113: =TRUNC(E113*J113,2) -> 1096.64
B114: 2.3.2 | C114: Conector à compressão para aterramento (CABO-CABO) | D114: Unidade | E114: 2 | F114: SEDOP | G114: E00189 | H114: =TRUNC((1-$L$7)*(VLOOKUP(G114,'OUTROS BANCOS'!$E$2:$G$70,3,FALSE)),2) -> 57.61 | I114: 115.22 | J114: 64.81 | K114: 129.62
B115: 2.3.3 | C115: Curva longa 90º Galvanizada a fogo, 1" | D115: Unidade | E115: 1 | F115: SINAPI | G115: 2617 | H115: =TRUNC((1-$L$7)*(VLOOKUP(G115,'INSUMO SINAPI'!$A$4:$E$4854,5,FALSE)),2) -> 5.06 | I115: 5.06 | J115: 5.69 | K115: 5.69
B116: 2.3.4 | C116: Eletroduto Galvanizado a Fogo, 1" | D116: Metro | E116: 1.5 | F116: SETOP | G116: MATED-12288 | H116: =TRUNC((1-$L$7)*(VLOOKUP(G116,'OUTROS BANCOS'!$E$2:$G$70,3,FALSE)),2) -> 6.9 | I116: 10.35 | J116: 7.76 | K116: 11.64
B117: 2.3.5 | C117: Abraçadeira tipo D, 1" e cunha de fixação | D117: Unidade | E117: 1 | F117: SINAPI | G117: 393 | H117: =TRUNC((1-$L$7)*(VLOOKUP(G117,'INSUMO SINAPI'!$A$4:$E$4854,5,FALSE)),2) -> 1.95 | I117: 1.95 | J117: 2.19 | K117: 2.19
B118: 2.3.6 | C118: Conector reto com arruela para eletroduto 1" | D118: Unidade | E118: 1 | F118: SINAPI | G118: 2483 | H118: =TRUNC((1-$L$7)*(VLOOKUP(G118,'INSUMO SINAPI'!$A$4:$E$4854,5,FALSE)),2) -> 3.59 | I118: 3.59 | J118: 4.04 | K118: 4.04
B119: 2.3.7 | C119: Caixa de inspeção para ateramento | D119: Unidade | E119: 1 | F119: SINAPI | G119: 41480 | H119: =TRUNC((1-$L$7)*(VLOOKUP(G119,'INSUMO SINAPI'!$A$4:$E$4854,5,FALSE)),2) -> 39.04 | I119: 39.04 | J119: 43.92 | K119: 43.92
B120: 2.4 | C120: Alimentação do Motor | K120: =SUM(K121:K126) -> 273.51
B121: 2.4.1 | C121: Cabo de cobre flexível, classe 4 ou 5, isolação em PVC/A, antichama BWF-B, 1 condutor, 450/750V seção de 4 mm² (cor preta, azul ou verde) | D121: Metro | E121: 30 | F121: SINAPI | G121: 981 | H121: =TRUNC((1-$L$7)*(VLOOKUP(G121,'INSUMO SINAPI'!$A$4:$E$4854,5,FALSE)),2) -> 4.28 | I121: 128.4 | J121: 4.82 | K121: =TRUNC(E121*J121,2) -> 144.6
B122: 2.4.2 | C122: Terminal a compressão, tipo pino, 4 mm² | D122: Unidade | E122: 3 | F122: SINAPI | G122: 1571 | H122: =TRUNC((1-$L$7)*(VLOOKUP(G122,'INSUMO SINAPI'!$A$4:$E$4854,5,FALSE)),2) -> 1.31 | I122: 3.93 | J122: 1.47 | K122: 4.41
B123: 2.4.3 | C123: Eletroduto corrugado tipo PEAD, 3/4 | D123: Metro | E123: 10 | F123: SINAPI | G123: 39244 | H123: =TRUNC((1-$L$7)*(VLOOKUP(G123,'INSUMO SINAPI'!$A$4:$E$4854,5,FALSE)),2) -> 4.59 | I123: 45.9 | J123: 5.16 | K123: 51.6
B124: 2.4.4 | C124: Caixa de passagem em concreto 30X30X40 cm | D124: Unidade | E124: 1 | F124: SINAPI | G124: 43429 | H124: =TRUNC((1-$L$7)*(VLOOKUP(G124,'INSUMO SINAPI'!$A$4:$E$4854,5,FALSE)),2) -> 61.05 | I124: 61.05 | J124: 68.68 | K124: 68.68
B125: 2.4.5 | C125: Conector reto com arruela para eletroduto 3/4" | D125: Unidade | E125: 1 | F125: SINAPI | G125: 2488 | H125: =TRUNC((1-$L$7)*(VLOOKUP(G125,'INSUMO SINAPI'!$A$4:$E$4854,5,FALSE)),2) -> 2.01 | I125: 2.01 | J125: 2.26 | K125: 2.26
B126: 2.4.6 | C126: Abraçadeira tipo D, 3/4" e cunha de fixação | D126: Unidade | E126: 1 | F126: SINAPI | G126: 39128 | H126: =TRUNC((1-$L$7)*(VLOOKUP(G126,'INSUMO SINAPI'!$A$4:$E$4854,5,FALSE)),2) -> 1.74 | I126: 1.74 | J126: 1.96 | K126: 1.96
B127: 2.5 | C127: Montagem do Sistema Elétrico | K127: =SUM(K128:K130) -> 919.08
B128: 2.5.1 | C128: Eletrotécnico (horista), INCLUSIDE ENCARGOS SOCIAIS | D128: h | E128: 8 | F128: EMOP | G128: 1916 | H128: =TRUNC((1-$L$7)*(VLOOKUP(G128,'OUTROS BANCOS'!$E$2:$G$70,3,FALSE)),2) -> 32.07 | I128: 256.56 | J128: =H128*(1+$L$4) -> 40.07 | K128: =TRUNC(E128*J128,2) -> 320.56
B129: 2.5.2 | C129: Auxiliar de Eletricista com encargos complementares | D129: h | E129: 16 | F129: AGESUL | G129: 88247 | H129: =TRUNC((1-$L$7)*(VLOOKUP(G129,'OUTROS BANCOS'!$E$2:$G$70,3,FALSE)),2) -> 21.92 | I129: 350.72 | J129: 27.39 | K129: =TRUNC(E129*J129,2) -> 438.24
B130: 2.5.3 | C130: Comissionamento - Eletrotécnico, INCLUSIVE ENCARGOS SOCIAIS | D130: h | E130: 4 | F130: EMOP | G130: 1916 | H130: =TRUNC((1-$L$7)*(VLOOKUP(G130,'OUTROS BANCOS'!$E$2:$G$70,3,FALSE)),2) -> 32.07 | I130: 128.28 | J130: 40.07 | K130: =TRUNC(E130*J130,2) -> 160.28
B131: 2.6 | C131: Emissão de ART | K131: =K132 -> 295.58
B132: 2.6.1 | C132: Emissão de ART | D132: um | E132: 1 | F132: PRÓPRIA | G132: CPU1 | H132: =TRUNC((1-$L$7)*('CPU1'!J7),2) -> 262.74 | I132: 262.74 | J132: =H132*(1+$L$5) -> 295.58 | K132: =TRUNC(E132*J132,2) -> 295.58
B133: TOTAL | K133: =SUM(K72,K12) -> 29275.11
K134: 28679.69

Sheet Item 60- MICROASPERSÃO 2,0 HA
K2: BASE | L2: 2026-02-01 | M2: BANCO | N2: DATA
K3: VALOR TOTAL | L3: =K141 -> 41299.99 | M3: ORSE | N3: 2025-12-01
K4: BDI SERVIÇO | L4: =BDI!D15 -> 0.2496 | M4: SEINFRA | N4: 27/28
K5: BDI MATERIAL | L5: =BDI!K15 -> 0.125 | M5: EMBASA | N5: 2025-06-01
M6: SCO | N6: 2026-01-01
B7: PLANILHA ORÇAMENTÁRIA - 5ª SUPERINTENDÊNCIA REGIONAL | K7: DESCONTO | L7: 0.08 | M7: SBC | N7: 2026-01-01
B8: SERVIÇO DE FORNECIMENTO, TRANSPORTE, CARGA, DESCARGA, MONTAGEM E ADEQUADO FUNCIONAMENTO DE SISTEMA DE IRRIGAÇÃO - MICROASPERSÃO - 2 ha - 220 V | M8: AGETOP CIVIL | N8: 2025-10-01
M9: AGESUL | N9: 2026-01-01
M10: IOPES | N10: 2025-12-01
B11: ITEM | C11: DESCRIÇÃO | D11: UNID. | E11: QUANT. - (A) | F11: PESQUISA DE PREÇOS (SIST. REF. / COT) | G11: CÓDIGO | H11: Custo Unitário (R$) - (B) | I11: Custo Total (Com Desconto) | J11: Preço Unitário (R$) com BDI (%) | K11: Preço Total (R$) C = (AxB) | M11: SETOP | N11: 2025-10-01
B12: 1. | C12: Sistema Hidráulico | K12: =SUM(K13,K22,K25,K41,K46,K67,K72,K75,K79) -> 33337.44 | M12: CPOS | N12: 2026-01-01
B13: 1.1. | C13: Linha Lateral - Emissores | K13: =SUM(K14:K21) -> 11159 | M13: SEDOP | N13: 2025-10-01
B14: 1.1.1. | C14: TUBO PEBD DI 16 mm PN30 | D14: m | E14: 3500 | F14: COT | G14: COT01 | H14: =TRUNC((1-$L$7)*('COT01'!L37),2) -> 1.3 | I14: =H14*E14 -> 4550 | J14: =H14*(1+$L$5) -> 1.46 | K14: =TRUNC(E14*J14,2) -> 5110 | M14: SINAPI | N14: 2026-01-01
B15: 1.1.2. | C15: MICROASPERSOR 75 LPH | D15: und | E15: 900 | F15: COT | G15: COT09 | H15: =TRUNC((1-$L$7)*('COT09'!L37),2) -> 3.02 | I15: =H15*E15 -> 2718 | J15: =H15*(1+$L$5) -> 3.4 | K15: 3060 | M15: EMOP | N15: 2026-01-04
B16: 1.1.3. | C16: MICROTUBO COM CONECTOR 4/6 X 80 cm | D16: und | E16: 900 | F16: COT | G16: COT10 | H16: =TRUNC((1-$L$7)*('COT10'!L37),2) -> 1.01 | I16: 909 | J16: 1.14 | K16: 1026
B17: 1.1.4. | C17: HASTE PLÁSTICA PARA MICROASPERSÃO - 60 cm | D17: und | E17: 900 | F17: COT | G17: COT11 | H17: =TRUNC((1-$L$7)*('COT11'!L37),2) -> 1.49 | I17: 1341 | J17: 1.68 | K17: 1512
B18: 1.1.5. | C18: CONECTOR INICIAL 16 mm | D18: und | E18: 100 | F18: ORSE | G18: 9550 | H18: =TRUNC((1-$L$7)*(VLOOKUP(G18,'OUTROS BANCOS'!$E$2:$G$71,3,FALSE)),2) -> 0.88 | I18: 88 | J18: 0.99 | K18: 99
B19: 1.1.6. | C19: ANEL DE VEDAÇÃO COM CHULA 13/17 | D19: und | E19: 100 | F19: SEINFRA | G19: I9557 | H19: =TRUNC((1-$L$7)*(VLOOKUP(G19,'OUTROS BANCOS'!$E$2:$G$71,3,FALSE)),2) -> 0.8 | I19: 80 | J19: 0.9 | K19: 90
B20: 1.1.5. | C20: CONECTOR UNIÃO COM ANEL 16 mm | D20: und | E20: 200 | F20: EMBASA | G20: M019000003 | H20: =TRUNC((1-$L$7)*(VLOOKUP(G20,'OUTROS BANCOS'!$E$2:$G$71,3,FALSE)),2) -> 0.7 | I20: 140 | J20: 0.79 | K20: 158
B21: 1.1.6. | C21: CONECTOR FINAL DE LINHA TIPO 8 16 mm | D21: und | E21: 100 | F21: SEINFRA | G21: I9775 | H21: =TRUNC((1-$L$7)*(VLOOKUP(G21,'OUTROS BANCOS'!$E$2:$G$71,3,FALSE)),2) -> 0.92 | I21: 92 | J21: 1.04 | K21: 104
B22: 1.2. | C22: Tubulação - PVC | K22: =SUM(K23:K24) -> 7766.88
B23: 1.2.1 | C23: TUBO IRRIG. PB DN50 PN40 | D23: m | E23: 264 | F23: ORSE | G23: 8369 | H23: =TRUNC((1-$L$7)*(VLOOKUP(G23,'OUTROS BANCOS'!$E$2:$G$71,3,FALSE)),2) -> 12.76 | I23: 3368.64 | J23: =H23*(1+$L$5) -> 14.36 | K23: =TRUNC(E23*J23,2) -> 3791.04
B24: 1.2.2 | C24: TUBO IRRIG. PB DN75 PN40 | D24: m | E24: =44*6 -> 264 | F24: COT | G24: COT17 | H24: =TRUNC((1-$L$7)*(('COT17'!$L$37/6)),2) -> 13.39 | I24: 3534.96 | J24: =H24*(1+$L$5) -> 15.06 | K24: =TRUNC(E24*J24,2) -> 3975.84
B25: 1.3. | C25: Controle de Proteção e Comando | K25: =SUM(K26:K35) -> 2330.68
B26: 1.3.1. | C26: REGISTRO ESFERA SOLD. 50 mm | D26: und | E26: 6 | F26: SINAPI | G26: 11677 | H26: =TRUNC((1-$L$7)*(VLOOKUP(G26,'INSUMO SINAPI'!$A$4:$E$4854,5,FALSE)),2) -> 38.87 | I26: 233.22 | J26: =H26*(1+$L$5) -> 43.73 | K26: =TRUNC(E26*J26,2) -> 262.38
B27: 1.3.2. | C27: VÁLVULA ANTIVÁCUO 1/2" | D27: und | E27: 6 | F27: COT | G27: COT03 | H27: =TRUNC((1-$L$7)*('COT03'!L37),2) -> 8.75 | I27: 52.5 | J27: =H27*(1+$L$5) -> 9.84 | K27: 59.04
B28: 1.3.3. | C28: VÁLVULA VENTOSA TRÍPLICE FUNÇÃO 2" | D28: und | E28: 2 | F28: COT | G28: COT04 | H28: =TRUNC((1-$L$7)*('COT04'!L37),2) -> 616.15 | I28: 1232.3 | J28: 693.17 | K28: 1386.34
B29: 1.3.4. | C29: TUBO IRRIG. PB DN50 PN80 | D29: m | E29: 24 | F29: ORSE | G29: 14068 | H29: =TRUNC((1-$L$7)*(VLOOKUP(G29,'OUTROS BANCOS'!$E$2:$G$71,3,FALSE)),2) -> 8.96 | I29: 215.04 | J29: 10.08 | K29: 241.92
B30: 1.3.5. | C30: REDUÇÃO PVC PB 75 mm X 50 mm | D30: und | E30: 2 | F30: SCO | G30: MAT118400 | H30: =TRUNC((1-$L$7)*(VLOOKUP(G30,'OUTROS BANCOS'!$E$2:$G$71,3,FALSE)),2) -> 10.21 | I30: 20.42 | J30: 11.49 | K30: 22.98
B31: 1.3.6. | C31: CURVA PVC 90° PB 50 mm | D31: und | E31: 8 | F31: SBC | G31: 5385 | H31: =TRUNC((1-$L$7)*(VLOOKUP(G31,'OUTROS BANCOS'!$E$2:$G$71,3,FALSE)),2) -> 13.12 | I31: 104.96 | J31: 14.76 | K31: 118.08
B32: 1.3.7. | C32: TÊ PVC 50 mm | D32: und | E32: 6 | F32: ORSE | G32: 2113 | H32: =TRUNC((1-$L$7)*(VLOOKUP(G32,'OUTROS BANCOS'!$E$2:$G$71,3,FALSE)),2) -> 8.9 | I32: 53.4 | J32: 10.01 | K32: 60.06
B33: 1.3.8. | C33: ADAPTADOR BS X RM 50 X 2" | D33: und | E33: 2 | F33: ORSE | G33: 14060 | H33: =TRUNC((1-$L$7)*(VLOOKUP(G33,'OUTROS BANCOS'!$E$2:$G$71,3,FALSE)),2) -> 3.89 | I33: 7.78 | J33: 4.38 | K33: 8.76
B34: 1.3.9. | C34: LUVA PVC BR 2" | D34: und | E34: 2 | F34: ORSE | G34: 1434 | H34: =TRUNC((1-$L$7)*(VLOOKUP(G34,'OUTROS BANCOS'!$E$2:$G$71,3,FALSE)),2) -> 26.29 | I34: 52.58 | J34: 29.58 | K34: 59.16
B35: 1.3.10. | C35: COLAR DE TOMADA 50 X 1/2" | D35: und | E35: 6 | F35: COT | G35: COT05 | H35: =TRUNC((1-$L$7)*('COT05'!L37),2) -> 16.59 | I35: 99.54 | J35: 18.66 | K35: 111.96
B36: 1.3.11 | C36: REGISTRO DE GAVETA 2" | D36: und | E36: 1 | F36: COT | G36: COT23 | H36: =TRUNC((1-$L$7)*('COT23'!L37),2) -> 124.95 | I36: 124.95 | J36: 140.57 | K36: 140.57
B37: 1.3.12 | C37: MANÔMETRO DE GLICERINA DE ATÉ 6kgf/cm² ROSCA DE 1/4 " | D37: und | E37: 2 | F37: COT | G37: COT24 | H37: =TRUNC((1-$L$7)*('COT24'!$L$37),2) -> 112.98 | I37: 225.96 | J37: 127.1 | K37: 254.2
B38: 1.3.13 | C38: BUCHA DE REDUÇÃO DE 3/4" PARA 1/4" | D38: und | E38: 2 | F38: COT | G38: COT25 | H38: =TRUNC((1-$L$7)*('COT25'!$L$37),2) -> 30.7 | I38: 61.4 | J38: 34.54 | K38: 69.08
B39: 1.3.14 | C39: ADAPTADOR DE REDUÇÃO Bsa SOLD. 50 mm X 1 1/2" | D39: und | E39: 2 | F39: COT | G39: COT26 | H39: =TRUNC((1-$L$7)*('COT26'!$L$37),2) -> 14.16 | I39: 28.32 | J39: 15.93 | K39: 31.86
B40: 1.3.15 | C40: TE DE REDUÇÃO ROSCA 50 mm X 3/4" | D40: und | E40: 2 | F40: COT | G40: COT27 | H40: =TRUNC((1-$L$7)*('COT27'!$L$37),2) -> 13.34 | I40: 26.68 | J40: 15.01 | K40: 30.02
B41: 1.4. | C41: Conexões de Campo | K41: =SUM(K42:K45) -> 680.71
B42: 1.4.1. | C42: REGISTRO ESFERA PVC 50 mm | D42: und | E42: 8 | F42: SINAPI | G42: 11677 | H42: =TRUNC((1-$L$7)*(VLOOKUP(G42,'INSUMO SINAPI'!$A$4:$E$4854,5,FALSE)),2) -> 38.87 | I42: 310.96 | J42: =H42*(1+$L$5) -> 43.73 | K42: =TRUNC(E42*J42,2) -> 349.84
B43: 1.4.2. | C43: CURVA PVC 45° PB 50 mm | D43: und | E43: 8 | F43: SBC | G43: 7153 | H43: =TRUNC((1-$L$7)*(VLOOKUP(G43,'OUTROS BANCOS'!$E$2:$G$71,3,FALSE)),2) -> 23.57 | I43: 188.56 | J43: =H43*(1+$L$5) -> 26.52 | K43: =TRUNC(E43*J43,2) -> 212.16
B44: 1.4.3. | C44: CURVA PVC 90° PB 50 mm | D44: und | E44: 4 | F44: SBC | G44: 5385 | H44: =TRUNC((1-$L$7)*(VLOOKUP(G44,'OUTROS BANCOS'!$E$2:$G$71,3,FALSE)),2) -> 13.12 | I44: 52.48 | J44: 14.76 | K44: =TRUNC(E44*J44,2) -> 59.04
B45: 1.4.4. | C45: TÊ PVC 7 mm (7 ou 75 mm?) | D45: und | E45: 1 | F45: ORSE | G45: 2115 | H45: =TRUNC((1-$L$7)*(VLOOKUP(G45,'OUTROS BANCOS'!$E$2:$G$71,3,FALSE)),2) -> 53.04 | I45: 53.04 | J45: 59.67 | K45: =TRUNC(E45*J45,2) -> 59.67
B46: 1.5. | C46: Filtragem e Ligação de Pressão | K46: =SUM(K47:K66) -> 6856.83
B47: 1.5.1. | C47: MOTOBOMBA SUBMERSA 3HP 12m³/h + 43mca | D47: und | E47: 1 | F47: COT | G47: COT06 | H47: =TRUNC((1-$L$7)*('COT06'!L37),2) -> 1606.92 | I47: 1606.92 | J47: =H47*(1+$L$5) -> 1807.79 | K47: =TRUNC(E47*J47,2) -> 1807.79
B48: 1.5.2. | C48: NIPLE PVC BR 2" | D48: und | E48: 1 | F48: SBC | G48: 5719 | H48: =TRUNC((1-$L$7)*(VLOOKUP(G48,'OUTROS BANCOS'!$E$2:$G$71,3,FALSE)),2) -> 29.65 | I48: 29.65 | J48: =H48*(1+$L$5) -> 33.36 | K48: 33.36
B49: 1.5.3. | C49: UNIÃO PVC BR 2" | D49: und | E49: 5 | F49: SEINFRA | G49: I2241 | H49: =TRUNC((1-$L$7)*(VLOOKUP(G49,'OUTROS BANCOS'!$E$2:$G$71,3,FALSE)),2) -> 80.97 | I49: 404.85 | J49: 91.09 | K49: 455.45
B50: 1.5.4. | C50: ADAPTADOR COMPRESSÃO X ROSCA MACHO 2" | D50: und | E50: 2 | F50: EMBASA | G50: M080800108 | H50: =TRUNC((1-$L$7)*(VLOOKUP(G50,'OUTROS BANCOS'!$E$2:$G$71,3,FALSE)),2) -> 45.39 | I50: 90.78 | J50: 51.06 | K50: 102.12
B51: 1.5.5. | C51: TUBO PEMD 2" PN6 | D51: m | E51: 15 | F51: COT | G51: COT07 | H51: =TRUNC((1-$L$7)*('COT07'!L37),2) -> 17.36 | I51: 260.4 | J51: 19.53 | K51: 292.95
B52: 1.5.6. | C52: BUCHA DE REDUÇÃO 3X2" | D52: und | E52: 1 | F52: SBC | G52: 8784 | H52: =TRUNC((1-$L$7)*(VLOOKUP(G52,'OUTROS BANCOS'!$E$2:$G$71,3,FALSE)),2) -> 86.48 | I52: 86.48 | J52: 97.29 | K52: 97.29
B53: 1.5.7. | C53: UNIÃO PVC BR 3" | D53: und | E53: 1 | F53: SEINFRA | G53: I2242 | H53: =TRUNC((1-$L$7)*(VLOOKUP(G53,'OUTROS BANCOS'!$E$2:$G$71,3,FALSE)),2) -> 210.87 | I53: 210.87 | J53: 237.23 | K53: 237.23
B54: 1.5.8. | C54: ADAPTADOR BSXRM 75 mm x 3" | D54: und | E54: 5 | F54: ORSE | G54: 14059 | H54: =TRUNC((1-$L$7)*(VLOOKUP(G54,'OUTROS BANCOS'!$E$2:$G$71,3,FALSE)),2) -> 7.82 | I54: 39.1 | J54: 8.8 | K54: 44
B55: 1.5.9. | C55: TUBO IRRIG. PB DN75 PN80 | D55: m | E55: 12 | F55: ORSE | G55: 9502 | H55: =TRUNC((1-$L$7)*(VLOOKUP(G55,'OUTROS BANCOS'!$E$2:$G$71,3,FALSE)),2) -> 37.27 | I55: 447.24 | J55: 41.93 | K55: 503.16
B56: 1.5.10. | C56: TÊ 75 mm | D56: und | E56: 2 | F56: ORSE | G56: 2115 | H56: =TRUNC((1-$L$7)*(VLOOKUP(G56,'OUTROS BANCOS'!$E$2:$G$71,3,FALSE)),2) -> 53.04 | I56: 106.08 | J56: 59.67 | K56: 119.34
B57: 1.5.11. | C57: REDUÇÃO 75 mm x 50 mm | D57: und | E57: 4 | F57: SEINFRA | G57: I3138 | H57: =TRUNC((1-$L$7)*(VLOOKUP(G57,'OUTROS BANCOS'!$E$2:$G$73,3,FALSE)),2) -> 41.67 | I57: 166.68 | J57: 46.88 | K57: 187.52
B58: 1.5.12. | C58: CURVA PVC 90º PB 50 mm | D58: und | E58: 4 | F58: SBC | G58: 5385 | H58: =TRUNC((1-$L$7)*(VLOOKUP(G58,'OUTROS BANCOS'!$E$2:$G$71,3,FALSE)),2) -> 13.12 | I58: 52.48 | J58: 14.76 | K58: 59.04
B59: 1.5.13. | C59: CURVA PVC 90° PB 75 MM | D59: und | E59: 6 | F59: SBC | G59: 5387 | H59: =TRUNC((1-$L$7)*(VLOOKUP(G59,'OUTROS BANCOS'!$E$2:$G$71,3,FALSE)),2) -> 92.49 | I59: 554.94 | J59: 104.05 | K59: 624.3
B60: 1.5.14. | C60: ADAPTADOR BSXRM 50 mm x 2" | D60: und | E60: 4 | F60: ORSE | G60: 14060 | H60: =TRUNC((1-$L$7)*(VLOOKUP(G60,'OUTROS BANCOS'!$E$2:$G$71,3,FALSE)),2) -> 3.89 | I60: 15.56 | J60: 4.38 | K60: 17.52
B61: 1.5.15. | C61: FILTRO DE DISCO 3" - 25M³/H | D61: und | E61: 1 | F61: COT | G61: COT08 | H61: =TRUNC((1-$L$7)*('COT08'!L37),2) -> 818.8 | I61: 818.8 | J61: 921.15 | K61: 921.15
B62: 1.5.16. | C62: VÁLVULA DE RETENÇÃO 3" | D62: und | E62: 1 | F62: COT | G62: COT18 | H62: =TRUNC((1-$L$7)*('COT18'!$L$37),2) -> 484.84 | I62: 484.84 | J62: 545.45 | K62: 545.45
B63: 1.5.17. | C63: TÊ 75 x 50 mm | D63: und | E63: 4 | F63: SEINFRA | G63: I3145 | H63: =TRUNC((1-$L$7)*(VLOOKUP(G63,'OUTROS BANCOS'!$E$2:$G$71,3,FALSE)),2) -> 71.11 | I63: 284.44 | J63: 80 | K63: 320
B64: 1.5.18. | C64: REGISTRO DE ESFERA 50 mm | D64: und | E64: 4 | F64: SINAPI | G64: 11677 | H64: =TRUNC((1-$L$7)*(VLOOKUP(G64,'INSUMO SINAPI'!$A$4:$E$4854,5,FALSE)),2) -> 38.87 | I64: 155.48 | J64: 43.73 | K64: 174.92
B65: 1.5.19. | C65: LUVA PVC BR 2" | D65: und | E65: 1 | F65: EMOP | G65: 2352 | H65: =TRUNC((1-$L$7)*(VLOOKUP(G65,'OUTROS BANCOS'!$E$2:$G$74,3,FALSE)),2) -> 23.35 | I65: 23.35 | J65: 26.27 | K65: 26.27
B66: 1.5.20. | C66: VÁLVULA VENTOSA BR 2" | D66: und | E66: 1 | F66: COT | G66: COT12 | H66: =TRUNC((1-$L$7)*('COT12'!L37),2) -> 255.97 | I66: 255.97 | J66: 287.97 | K66: 287.97
B67: 1.6. | C67: Materias de Consumo | K67: =SUM(K68:K71) -> 390.56
B68: 1.6.1. | C68: ADESIVO PLÁSTICO 850G | D68: und | E68: 4 | F68: ORSE | G68: 14079 | H68: =TRUNC((1-$L$7)*(VLOOKUP(G68,'OUTROS BANCOS'!$E$2:$G$71,3,FALSE)),2) -> 54.28 | I68: 217.12 | J68: =H68*(1+$L$5) -> 61.07 | K68: =TRUNC(E68*J68,2) -> 244.28
B69: 1.6.2. | C69: FITA VEDA ROSCA 18MM X 50 M | D69: und | E69: 2 | F69: SINAPI | G69: 3148 | H69: =TRUNC((1-$L$7)*(VLOOKUP(G69,'INSUMO SINAPI'!$A$4:$E$4854,5,FALSE)),2) -> 8.98 | I69: 17.96 | J69: =H69*(1+$L$5) -> 10.1 | K69: =TRUNC(E69*J69,2) -> 20.2
B70: 1.6.3. | C70: FITA ISOLANTE 18MM X 20M | D70: und | E70: 2 | F70: SBC | G70: 36795 | H70: =TRUNC((1-$L$7)*(VLOOKUP(G70,'OUTROS BANCOS'!$E$2:$G$71,3,FALSE)),2) -> 0.92 | I70: 1.84 | J70: 1.04 | K70: =TRUNC(E70*J70,2) -> 2.08
B71: 1.6.4. | C71: FOLHA DE LIXA N100 | D71: und | E71: 100 | F71: AGETOP CIVIL | G71: 1674 | H71: =TRUNC((1-$L$7)*(VLOOKUP(G71,'OUTROS BANCOS'!$E$2:$G$71,3,FALSE)),2) -> 1.1 | I71: 110 | J71: 1.24 | K71: =TRUNC(E71*J71,2) -> 124
B72: 1.7. | C72: Elaboração do Layout do Sistema Hidráulico | K72: =SUM(K73:K74) -> 1187.32
B73: 1.7.1. | C73: Mão-de-obra de Projetista Cadista Pleno - Projeto e Consultoria, inclusive Encargos Sociais | D73: h | E73: 4 | F73: EMOP | G73: 10984 | H73: =TRUNC((1-$L$7)*(VLOOKUP(G73,'OUTROS BANCOS'!$E$2:$G$71,3,FALSE)),2) -> 69.27 | I73: 277.08 | J73: =H73*(1+$L$4) -> 86.56 | K73: =TRUNC(E73*J73,2) -> 346.24
B74: 1.7.2. | C74: Mão-de-obra de Engenheiro Pleno, inclusive com encargos sociais | D74: h | E74: 4 | F74: EMOP | G74: 14610 | H74: =TRUNC((1-$L$7)*(VLOOKUP(G74,'OUTROS BANCOS'!$E$2:$G$71,3,FALSE)),2) -> 168.27 | I74: 673.08 | J74: =H74*(1+$L$4) -> 210.27 | K74: =TRUNC(E74*J74,2) -> 841.08
B75: 1.8. | C75: Montagem do Sistema Hidráulico | K75: =SUM(K76:K77) -> 2103.48
B76: 1.8.1. | C76: Encanador ou bombeiro hidráulico com encargos complementares (01 encanador ou bombeiro hidráulico em jornada de trabalho de 8 h por dia) | D76: h | E76: 36 | F76: AGESUL | G76: 4005 | H76: =TRUNC((1-$L$7)*(VLOOKUP(G76,'OUTROS BANCOS'!$E$2:$G$71,3,FALSE)),2) -> 25.61 | I76: 921.96 | J76: =H76*(1+$L$4) -> 32 | K76: =TRUNC(E76*J76,2) -> 1152
B77: 1.8.2. | C77: Auxiliar de encanador ou bombeiro hidráulico com encargos complementares (02 auxiliares de encanador ou bombeiro hidráulico em jornada de trabalho de 8 h por dia) | D77: h | E77: 36 | F77: AGESUL | G77: 4052 | H77: =TRUNC((1-$L$7)*(VLOOKUP(G77,'OUTROS BANCOS'!$E$2:$G$71,3,FALSE)),2) -> 21.15 | I77: 761.4 | J77: =H77*(1+$L$4) -> 26.43 | K77: =TRUNC(E77*J77,2) -> 951.48
B78: 1.9 | C78: Preparo mecanizado do solo | K78: =K79 -> 861.98
B79: 1.9.1 | C79: ARACÃO DO SOLO A 20CM DE PROFUNDIDADE COM TRATOR DE PNEUS E ARADO DE DISCO | D79: ha | E79: 2 | F79: EMOP | G79: 22.016.0025-A | H79: =TRUNC((1-$L$7)*(VLOOKUP(G79,'OUTROS BANCOS'!$E$2:$G$71,3,FALSE)),2) -> 344.9 | I79: 689.8 | J79: =H79*(1+$L$4) -> 430.99 | K79: =TRUNC(E79*J79,2) -> 861.98
B80: 2 | C80: Sistema Elétrico | K80: =SUM(K81,K92,K135,K120,K128,K139) -> 7962.55
B81: 2.1 | C81: Rede de Distribuição - Fonte até o Quadro de Comando | K81: =SUM(K82:K91) -> 3172.99
B82: 2.1.1 | C82: Poste de madeira eucalipto preservado, diâmetro de 20cm, 7 metros | D82: Unidade | E82: 5 | F82: SBC | G82: 46336 | H82: =TRUNC((1-$L$7)*(VLOOKUP(G82,'OUTROS BANCOS'!$E$2:$G$71,3,FALSE)),2) -> 87.46 | I82: =H82*E82 -> 437.3 | J82: =H82*(1+$L$5) -> 98.39 | K82: =TRUNC(E82*J82,2) -> 491.95
B83: 2.1.2 | C83: Isolador Porcelana Tipo Roldana 80x80 mm p/ 2 cabos, marrom | D83: Unidade | E83: 5 | F83: IOPES | G83: 48342 | H83: =TRUNC((1-$L$7)*(VLOOKUP(G83,'OUTROS BANCOS'!$E$2:$G$71,3,FALSE)),2) -> 10.07 | I83: 50.35 | J83: =H83*(1+$L$5) -> 11.33 | K83: 56.65
B84: 2.1.3 | C84: Suporte Isolador c/ Roldana p/ aparafusar c/ chapa | D84: Unidade | E84: 5 | F84: SETOP | G84: MATED-12988 | H84: =TRUNC((1-$L$7)*(VLOOKUP(G84,'OUTROS BANCOS'!$E$2:$G$71,3,FALSE)),2) -> 16.72 | I84: 83.6 | J84: 18.81 | K84: 94.05
B85: 2.1.4 | C85: Cinta aço galvanizado, de 240mm | D85: Unidade | E85: 5 | F85: SCO | G85: MAT033900 | H85: =TRUNC((1-$L$7)*(VLOOKUP(G85,'OUTROS BANCOS'!$E$2:$G$72,3,FALSE)),2) -> 50.13 | I85: 250.65 | J85: 56.4 | K85: 282
B86: 2.1.5 | C86: Alça preformada para islador roldana, seção conforme condutores instalados | D86: Unidade | E86: 5 | F86: COT | G86: COT13 | H86: =TRUNC((1-$L$7)*('COT13'!L37),2) -> 8.9 | I86: 44.5 | J86: 10.01 | K86: 50.05
B87: 2.1.6 | C87: Cabo de cobre isolado HEPR (XLPE), 10mm², 1kv / 90º C (cor conforme a aplicação) apropriado para redes aéreas | D87: Metro | E87: 200 | F87: COT | G87: COT14 | H87: =TRUNC((1-$L$7)*('COT14'!L37),2) -> 9.05 | I87: 1810 | J87: 10.18 | K87: 2036
B88: 2.1.7 | C88: Cabeçote p/ Eletroduto de 1.1/4" | D88: Unidade | E88: 1 | F88: SINAPI | G88: 1099 | H88: =TRUNC((1-$L$7)*(VLOOKUP(G88,'INSUMO SINAPI'!$A$4:$E$4854,5,FALSE)),2) -> 6.39 | I88: 6.39 | J88: 7.19 | K88: 7.19
B89: 2.1.8 | C89: Eletroduto em aço galvanizado 1.1/4" | D89: Unidade | E89: 1 | F89: SCO | G89: MAT050850 | H89: =TRUNC((1-$L$7)*(VLOOKUP(G89,'OUTROS BANCOS'!$E$2:$G$71,3,FALSE)),2) -> 121.28 | I89: 121.28 | J89: 136.44 | K89: 136.44
B90: 2.1.9 | C90: Conector reto com arruela para eletroduto 1.1/4" | D90: Unidade | E90: 1 | F90: SINAPI | G90: 2526 | H90: =TRUNC((1-$L$7)*(VLOOKUP(G90,'INSUMO SINAPI'!$A$4:$E$4854,5,FALSE)),2) -> 5.05 | I90: 5.05 | J90: 5.68 | K90: 5.68
B91: 2.1.10 | C91: Curva 90º aço galvanizado 1.1/4" | D91: Unidade | E91: 1 | F91: SINAPI | G91: 2618 | H91: =TRUNC((1-$L$7)*(VLOOKUP(G91,'INSUMO SINAPI'!$A$4:$E$4854,5,FALSE)),2) -> 11.54 | I91: 11.54 | J91: 12.98 | K91: 12.98
B92: 2.2 | C92: Quadro de Comando | K92: =SUM(K93:K119) -> 2007.65
B93: 2.2.1 | C93: Quadro elétrico metálico com placa de montagem, grau de proteção mínimo IP54, dimensões mínimas 400x300x200 mm | D93: Unidade | E93: 1 | F93: SBC | G93: 53375 | H93: =TRUNC((1-$L$7)*(VLOOKUP(G93,'OUTROS BANCOS'!$E$2:$G$71,3,FALSE)),2) -> 326.83 | I93: 326.83 | J93: 367.68 | K93: =TRUNC(E93*J93,2) -> 367.68
B94: 2.2.2 | C94: Canaleta para quadro 30 x 50 mm, fabricada em PVC, tipo semi-aberta. | D94: Metro | E94: 0.4 | F94: SETOP | G94: MATED-17646 | H94: =TRUNC((1-$L$7)*(VLOOKUP(G94,'OUTROS BANCOS'!$E$2:$G$71,3,FALSE)),2) -> 14.14 | I94: 5.66 | J94: 15.91 | K94: 6.36
B95: 2.2.3 | C95: Canaleta para quadro 50 x 50 mm, fabricada em PVC, tipo semi-aberta. | D95: Metro | E95: 0.3 | F95: SETOP | G95: MATED-17647 | H95: =TRUNC((1-$L$7)*(VLOOKUP(G95,'OUTROS BANCOS'!$E$2:$G$71,3,FALSE)),2) -> 18.93 | I95: 5.68 | J95: 21.3 | K95: 6.39
B96: 2.2.4 | C96: Trilho DIN 35 mm | D96: Metro | E96: 0.4 | F96: SEINFRA | G96: I7410 | H96: =TRUNC((1-$L$7)*(VLOOKUP(G96,'OUTROS BANCOS'!$E$2:$G$71,3,FALSE)),2) -> 10.63 | I96: 4.25 | J96: 11.96 | K96: 4.78
B97: 2.2.5 | C97: Conector (terminal isolado) para barramento isolado, conexão reta ou lateral, até 25 mm² | D97: Unidade | E97: 2 | F97: COT | G97: COT19 | H97: =TRUNC((1-$L$7)*('COT19'!L37),2) -> 7.57 | I97: 15.14 | J97: 8.52 | K97: 17.04
B98: 2.2.6 | C98: Barramento monofásico isolado (barramento pente), horizontal, fabricado em cobre, até 63 A, acompanhado de tampas finais, 8 polos | D98: Unidade | E98: 1 | F98: SBC | G98: 10562 | H98: =TRUNC((1-$L$7)*(VLOOKUP(G98,'OUTROS BANCOS'!$E$2:$G$71,3,FALSE)),2) -> 20.29 | I98: 20.29 | J98: 22.83 | K98: 22.83
B99: 2.2.7 | C99: Interruptor diferencial residual bipolar de 25A, corrente residual de 30 mA, tensão de operação conforme aplicação, corrente de curto circuito de 3 kA | D99: Unidade | E99: 1 | F99: SINAPI | G99: 39445 | H99: =TRUNC((1-$L$7)*(VLOOKUP(G99,'INSUMO SINAPI'!$A$4:$E$4854,5,FALSE)),2) -> 153.12 | I99: 153.12 | J99: 172.26 | K99: 172.26
B100: 2.2.8 | C100: Dispositivo de Proteção Contra Surtos Classe II, 20 kA (Imáx), tensão de operação compatível com a aplicação, nível de proeção (Up) 1,4 kV | D100: Unidade | E100: 2 | F100: SINAPI | G100: 39469 | H100: =TRUNC((1-$L$7)*(VLOOKUP(G100,'INSUMO SINAPI'!$A$4:$E$4854,5,FALSE)),2) -> 77.53 | I100: 155.06 | J100: 87.22 | K100: 174.44
B101: 2.2.9 | C101: Disjuntor monopolar para trilho DIN (mini disjuntor) para correntes de 25A, curva C, 60 Hz, capacidade de interrupção em curto-circuito 3 kA ou superior | D101: Unidade | E101: 1 | F101: SINAPI | G101: 34653 | H101: =TRUNC((1-$L$7)*(VLOOKUP(G101,'INSUMO SINAPI'!$A$4:$E$4854,5,FALSE)),2) -> 9.94 | I101: 9.94 | J101: 11.18 | K101: 11.18
B102: 2.2.10 | C102: Disjuntor monopolar para trilho DIN (mini disjuntor) para correntes de 20A, curva C, 60 Hz, capacidade de interrupção em curto-circuito 3 kA ou superior | D102: Unidade | E102: 1 | F102: SINAPI | G102: 34653 | H102: =TRUNC((1-$L$7)*(VLOOKUP(G102,'INSUMO SINAPI'!$A$4:$E$4854,5,FALSE)),2) -> 9.94 | I102: 9.94 | J102: 11.18 | K102: 11.18
B103: 2.2.11 | C103: Disjuntor monopolar para trilho DIN (mini disjuntor) para correntes de 2A, curva C, 60 Hz, capacidade de interrupção em curto-circuito 3 kA ou superior | D103: Unidade | E103: 1 | F103: IOPES | G103: 44951 | H103: =TRUNC((1-$L$7)*(VLOOKUP(G103,'OUTROS BANCOS'!$E$2:$G$71,3,FALSE)),2) -> 28.81 | I103: 28.81 | J103: 32.41 | K103: 32.41
B104: 2.2.12 | C104: Minicontator, com capacidade de corrente até 25A (em regime AC-3), contato auxiliar integrado e bobina em corrente alternada (tensão conforme a aplicação) | D104: Unidade | E104: 1 | F104: SINAPI | G104: 1619 | H104: =TRUNC((1-$L$7)*(VLOOKUP(G104,'INSUMO SINAPI'!$A$4:$E$4854,5,FALSE)),2) -> 225.63 | I104: 225.63 | J104: 253.83 | K104: 253.83
B105: 2.2.13 | C105: Relé de sobrecarga para minicontator ajustável até 25A, conforme aplicação, com montagem direta nos contatores | D105: Unidade | E105: 1 | F105: EMBASA | G105: M103900330 | H105: =TRUNC((1-$L$7)*(VLOOKUP(G105,'OUTROS BANCOS'!$E$2:$G$71,3,FALSE)),2) -> 199.16 | I105: 199.16 | J105: 224.06 | K105: 224.06
B106: 2.2.14 | C106: Relé eletrônico/digital monitor de tensão monofásico, com funcionalidade de subtensão e sobretensão, ajustes através de trimpot no relé, LED indicativo de funcionamento, tensão conforme aplicação, 60 Hz, com 1 contato reversível | D106: Unidade | E106: 1 | F106: COT | G106: COT15 | H106: =TRUNC((1-$L$7)*('COT15'!L37),2) -> 178.02 | I106: 178.02 | J106: 200.27 | K106: 200.27
B107: 2.2.15 | C107: Relé temporizador, alimentação 220V, 1 saída a relé, com função de pulso na energização, ajustável de 1 segundo a 100 horas, ajuste por trimpots no relé | D107: Unidade | E107: 1 | F107: COT | G107: COT20 | H107: =TRUNC((1-$L$7)*('COT20'!L37),2) -> 176.75 | I107: 176.75 | J107: 198.84 | K107: 198.84
B108: 2.2.16 | C108: Barramento de neutro, na cor azul, para fixação em trilho DIN, fabricado em cobre, com furos e parafusos para fixação, ao menos um furo para o alimentador (até 25 mm²), pré isolado, 10 furos. | D108: Unidade | E108: 1 | F108: COT | G108: COT21 | H108: =TRUNC((1-$L$7)*('COT21'!L37),2) -> 41.21 | I108: 41.21 | J108: 46.36 | K108: 46.36
B109: 2.2.17 | C109: Barramento de terra, na cor verde, para fixação em trilho DIN, fabricado em cobre, com furos e parafusos para fixação, ao menos um furo para o alimentador (até 25 mm²), pré isolado, 10 furos. | D109: Unidade | E109: 1 | F109: COT | G109: COT22 | H109: =TRUNC((1-$L$7)*('COT22'!L37),2) -> 39.93 | I109: 39.93 | J109: 44.92 | K109: 44.92
B110: 2.2.18 | C110: Botão de emergência tipo cogumelo, com trava e retorno com mola, para furos 22mm, 1 NF, tensão conforme aplicação, vermelho | D110: Unidade | E110: 1 | F110: CPOS | G110: P.13.000.042461 | H110: =TRUNC((1-$L$7)*(VLOOKUP(G110,'OUTROS BANCOS'!$E$2:$G$71,3,FALSE)),2) -> 34.7 | I110: 34.7 | J110: 39.04 | K110: 39.04
B111: 2.2.19 | C111: Chave seletora de 3 posições para furos 22mm, 2 NA, completa, tensão conforme aplicação | D111: Unidade | E111: 1 | F111: SETOP | G111: MATED-19494 | H111: =TRUNC((1-$L$7)*(VLOOKUP(G111,'OUTROS BANCOS'!$E$2:$G$71,3,FALSE)),2) -> 16.92 | I111: 16.92 | J111: 19.04 | K111: 19.04
B112: 2.2.20 | C112: Sinalizador luminoso para furos de 22 mm, iluminação LED, vermelho, tensão conforme aplicação | D112: Unidade | E112: 1 | F112: ORSE | G112: 12379 | H112: =TRUNC((1-$L$7)*(VLOOKUP(G112,'OUTROS BANCOS'!$E$2:$G$71,3,FALSE)),2) -> 16.7 | I112: 16.7 | J112: 18.79 | K112: 18.79
B113: 2.2.21 | C113: Policarbonato compacto, incolor (transparente/cristal), livre de rebarbas, espessura mínima de 3 mm | D113: Metro² | E113: 0.24 | F113: SBC | G113: 28100 | H113: =TRUNC((1-$L$7)*(VLOOKUP(G113,'OUTROS BANCOS'!$E$2:$G$71,3,FALSE)),2) -> 146.28 | I113: 35.11 | J113: 164.57 | K113: 39.49
B114: 2.2.22 | C114: Barra roscada 1/4", acabamento zincado | D114: Metro | E114: 1 | F114: ORSE | G114: 7551 | H114: =TRUNC((1-$L$7)*(VLOOKUP(G114,'OUTROS BANCOS'!$E$2:$G$71,3,FALSE)),2) -> 4.37 | I114: 4.37 | J114: 4.92 | K114: 4.92
B115: 2.2.23 | C115: Porca sextavada zincada, 1/4" | D115: Unidade | E115: 8 | F115: SINAPI | G115: 39997 | H115: =TRUNC((1-$L$7)*(VLOOKUP(G115,'INSUMO SINAPI'!$A$4:$E$4854,5,FALSE)),2) -> 0.29 | I115: 2.32 | J115: 0.33 | K115: 2.64
B116: 2.2.24 | C116: Arruela zincada, 1/4" | D116: Unidade | E116: 8 | F116: ORSE | G116: 8347 | H116: =TRUNC((1-$L$7)*(VLOOKUP(G116,'OUTROS BANCOS'!$E$2:$G$71,3,FALSE)),2) -> 0.04 | I116: 0.32 | J116: 0.05 | K116: 0.4
B117: 2.2.25 | C117: Placa de identificação (plaqueta de identificação) fabricada em ABS ou acrílico para painéis elétricos (30 X 15 mm), fixação por adesivo, resistente ao tempo (Escrita Personalizada) | D117: Unidade | E117: 10 | F117: COT | G117: COT16 | H117: =TRUNC((1-$L$7)*('COT16'!$L$37),2) -> 7.47 | I117: 74.7 | J117: 8.4 | K117: 84
B118: 2.2.26 | C118: Terminal a compressão, tipo pino ou garfo, 2,5 mm³ | D118: Unidade | E118: 30 | F118: SEINFRA | G118: I10080 | H118: =TRUNC((1-$L$7)*(VLOOKUP(G118,'OUTROS BANCOS'!$E$2:$G$71,3,FALSE)),2) -> 0.12 | I118: 3.6 | J118: 0.14 | K118: 4.2
B119: 2.2.27 | C119: Abraçadeira de nylon 2,5x100 mm, para organização cabos elétricos | D119: Unidade | E119: 10 | F119: SINAPI | G119: 414 | H119: =TRUNC((1-$L$7)*(VLOOKUP(G119,'INSUMO SINAPI'!$A$4:$E$4854,5,FALSE)),2) -> 0.03 | I119: 0.3 | J119: 0.03 | K119: 0.3
B120: 2.3 | C120: Sistema de Aterramento | K120: =SUM(K121:K127) -> 1293.74
B121: 2.3.1 | C121: Cordoalha em cobre nu, 50 mm² | D121: Metro | E121: 16 | F121: SINAPI | G121: 867 | H121: =TRUNC((1-$L$7)*(VLOOKUP(G121,'INSUMO SINAPI'!$A$4:$E$4854,5,FALSE)),2) -> 60.92 | I121: 974.72 | J121: 68.54 | K121: =TRUNC(E121*J121,2) -> 1096.64
B122: 2.3.2 | C122: Conector à compressão para aterramento (CABO-CABO) | D122: Unidade | E122: 2 | F122: SEDOP | G122: E00189 | H122: =TRUNC((1-$L$7)*(VLOOKUP(G122,'OUTROS BANCOS'!$E$2:$G$71,3,FALSE)),2) -> 57.61 | I122: 115.22 | J122: 64.81 | K122: 129.62
B123: 2.3.3 | C123: Curva longa 90º Galvanizada a fogo, 1" | D123: Unidade | E123: 1 | F123: SINAPI | G123: 2617 | H123: =TRUNC((1-$L$7)*(VLOOKUP(G123,'INSUMO SINAPI'!$A$4:$E$4854,5,FALSE)),2) -> 5.06 | I123: 5.06 | J123: 5.69 | K123: 5.69
B124: 2.3.4 | C124: Eletroduto Galvanizado a Fogo, 1" | D124: Metro | E124: 1.5 | F124: SETOP | G124: MATED-12288 | H124: =TRUNC((1-$L$7)*(VLOOKUP(G124,'OUTROS BANCOS'!$E$2:$G$71,3,FALSE)),2) -> 6.9 | I124: 10.35 | J124: 7.76 | K124: 11.64
B125: 2.3.5 | C125: Abraçadeira tipo D, 1" e cunha de fixação | D125: Unidade | E125: 1 | F125: SINAPI | G125: 393 | H125: =TRUNC((1-$L$7)*(VLOOKUP(G125,'INSUMO SINAPI'!$A$4:$E$4854,5,FALSE)),2) -> 1.95 | I125: 1.95 | J125: 2.19 | K125: 2.19
B126: 2.3.6 | C126: Conector reto com arruela para eletroduto 1" | D126: Unidade | E126: 1 | F126: SINAPI | G126: 2483 | H126: =TRUNC((1-$L$7)*(VLOOKUP(G126,'INSUMO SINAPI'!$A$4:$E$4854,5,FALSE)),2) -> 3.59 | I126: 3.59 | J126: 4.04 | K126: 4.04
B127: 2.3.7 | C127: Caixa de inspeção para ateramento | D127: Unidade | E127: 1 | F127: SINAPI | G127: 41480 | H127: =TRUNC((1-$L$7)*(VLOOKUP(G127,'INSUMO SINAPI'!$A$4:$E$4854,5,FALSE)),2) -> 39.04 | I127: 39.04 | J127: 43.92 | K127: 43.92
B128: 2.4 | C128: Alimentação do Motor | K128: =SUM(K129:K134) -> 273.51
B129: 2.4.1 | C129: Cabo de cobre flexível, classe 4 ou 5, isolação em PVC/A, antichama BWF-B, 1 condutor, 450/750V seção de 4 mm² (cor preta, azul ou verde) | D129: Metro | E129: 30 | F129: SINAPI | G129: 981 | H129: =TRUNC((1-$L$7)*(VLOOKUP(G129,'INSUMO SINAPI'!$A$4:$E$4854,5,FALSE)),2) -> 4.28 | I129: 128.4 | J129: =H129*(1+$L$5) -> 4.82 | K129: =TRUNC(E129*J129,2) -> 144.6
B130: 2.4.2 | C130: Terminal a compressão, tipo pino, 4 mm² | D130: Unidade | E130: 3 | F130: SINAPI | G130: 1571 | H130: =TRUNC((1-$L$7)*(VLOOKUP(G130,'INSUMO SINAPI'!$A$4:$E$4854,5,FALSE)),2) -> 1.31 | I130: 3.93 | J130: 1.47 | K130: 4.41
B131: 2.4.3 | C131: Eletroduto corrugado tipo PEAD, 3/4 | D131: Metro | E131: 10 | F131: SINAPI | G131: 39244 | H131: =TRUNC((1-$L$7)*(VLOOKUP(G131,'INSUMO SINAPI'!$A$4:$E$4854,5,FALSE)),2) -> 4.59 | I131: 45.9 | J131: 5.16 | K131: 51.6
B132: 2.4.4 | C132: Caixa de passagem em concreto 30X30X40 cm | D132: Unidade | E132: 1 | F132: SINAPI | G132: 43429 | H132: =TRUNC((1-$L$7)*(VLOOKUP(G132,'INSUMO SINAPI'!$A$4:$E$4854,5,FALSE)),2) -> 61.05 | I132: 61.05 | J132: 68.68 | K132: 68.68
B133: 2.4.5 | C133: Conector reto com arruela para eletroduto 3/4" | D133: Unidade | E133: 1 | F133: SINAPI | G133: 2488 | H133: =TRUNC((1-$L$7)*(VLOOKUP(G133,'INSUMO SINAPI'!$A$4:$E$4854,5,FALSE)),2) -> 2.01 | I133: 2.01 | J133: 2.26 | K133: 2.26
B134: 2.4.6 | C134: Abraçadeira tipo D, 3/4" e cunha de fixação | D134: Unidade | E134: 1 | F134: SINAPI | G134: 39128 | H134: =TRUNC((1-$L$7)*(VLOOKUP(G134,'INSUMO SINAPI'!$A$4:$E$4854,5,FALSE)),2) -> 1.74 | I134: 1.74 | J134: 1.96 | K134: 1.96
B135: 2.5 | C135: Montagem do Sistema Elétrico | K135: =SUM(K136:K138) -> 919.08
B136: 2.5.1 | C136: Eletrotécnico (horista), INCLUSIDE ENCARGOS SOCIAIS | D136: h | E136: 8 | F136: EMOP | G136: 1916 | H136: =TRUNC((1-$L$7)*(VLOOKUP(G136,'OUTROS BANCOS'!$E$2:$G$71,3,FALSE)),2) -> 32.07 | I136: 256.56 | J136: =H136*(1+$L$4) -> 40.07 | K136: =TRUNC(E136*J136,2) -> 320.56
B137: 2.5.2 | C137: Auxiliar de Eletricista com encargos complementares | D137: h | E137: 16 | F137: AGESUL | G137: 88247 | H137: =TRUNC((1-$L$7)*(VLOOKUP(G137,'OUTROS BANCOS'!$E$2:$G$71,3,FALSE)),2) -> 21.92 | I137: 350.72 | J137: =H137*(1+$L$4) -> 27.39 | K137: =TRUNC(E137*J137,2) -> 438.24
B138: 2.5.3 | C138: Comissionamento - Eletrotécnico, INCLUSIVE ENCARGOS SOCIAIS | D138: h | E138: 4 | F138: EMOP | G138: 1916 | H138: =TRUNC((1-$L$7)*(VLOOKUP(G138,'OUTROS BANCOS'!$E$2:$G$71,3,FALSE)),2) -> 32.07 | I138: 128.28 | J138: 40.07 | K138: =TRUNC(E138*J138,2) -> 160.28
B139: 2.6 | C139: Emissão de ART | K139: =K140 -> 295.58
B140: 2.6.1 | C140: Emissão de ART | D140: um | E140: 1 | F140: PRÓPRIA | G140: CPU1 | H140: =TRUNC((1-$L$7)*('CPU1'!J7),2) -> 262.74 | I140: 262.74 | J140: =H140*(1+$L$5) -> 295.58 | K140: =TRUNC(E140*J140,2) -> 295.58
B141: TOTAL | K141: =SUM(K80,K12) -> 41299.99
K142: 41597.12

Sheet CPU1
A2: Processo | B2: 59500.003753/2025-45
A4: ITEM: | B4: EMISSÃO ART | H4: UNIDADE DE MEDIDA: | I4: UM | J4: QUANTIDADE: | K4: 1
A5: LICITAÇÕES ANTERIORES
A6: Empresa | I6: Data | J6: Preço Unitário | K6: Utilizar? (Sim/Não)
A7: EMISSÃO DE ART | I7: 2025-03-02 | J7: 285.59 | K7: SIM
A8: =IF(ISBLANK(D8),"",IF(ISNUMBER(G8),(H8-G8)/G8,0)) -> 

Sheet ORIENTAÇÕES E ADVERTÊNCIAS (hidden)
A1: A Norma N-440 estabelece critérios objetivos para pesquisa e análise crítica de preços de referência para aquisição de bens e contratação de serviços em geral.
A3: Esta planilha possui caráter unicamente sugestivo e foi elaborada visando melhorar a transparência dos processos de pesquisa de preços efetivados no âmbito da Codevasf, em suporte à aplicação da Norma N-440.
A5: O uso desta planilha é responsabilidade exclusiva do(a) analista que efetuar a pesquisa de preços, que deve conferir os dados inseridos e cálculos realizados para a obtenção do preço estimado.
A7: A N-440 apresenta os parâmetros para a aplicação de metodologia(s) de exclusão de preços inexequíveis, inconsistentes ou excessivamente elevados.
A9: Etapas de preenchimento da planilha e orientações:
A10: Etapa | B10: Células Referenciadas | C10: Descrição | D10: Coluna1
A11: 1 | B11: C2 a C5 | C11: Insira as informações de processo, responsável e data referentes à pesquisa de preços.
A12: 2 | B12: C7 | C12: Insira a descrição do item submetido à pesquisa de preços.
A13: 3 | B13: J7 | C13: Insira a unidade de medida do item (unidade, comprimento, volume, etc).
A14: 4 | B14: L7 | C14: Insira a quantidade pesquisada para contratação.
A15: 5 | B15: B10 a F16 | C15: Insira as informações pertinentes às licitações e contratações realizadas pela Administração Pública, se houver.
A16: 6 | B16: G10 a I16 | C16: Informe o índice de atualização de preços, se for o caso, e a variação acumulada.
A17: 7 | B17: B19 a K29 | C17: Insira as informações obtidas em pesquisa direta de mercado (cotações), se houver.
A18: 8 | B18: O35 | C18: O(a) analista deve avaliar se aplicará a metodologia e o preço estimado sugeridos automaticamente (Outliers) ou se modificará a metodologia manualmente na lista suspensa existente na célula O35.
A19: 9 | B19: P10 a P29 | C19: Caso o(a) analista selecione a opção de metodologia de exclusão de preços "Por critério do(a) analista", deverá selecionar no botão lateral ou preencher manualmente com "Sim" ou "Não", nas células P10 a P29, quais preços serão utilizados no cálculo do preço estimado.
A20: 10 | B20: L32 | C20: Automaticamente, a célula L32 informa qual foi a metodologia de exclusão de preços adotada pelo(a) analista.
A21: 11 | B21: L37 | C21: Automaticamente, a célula L37 informa o preço estimado calculado com base nas informações e seleções efetivadas pelo(a) analista.
A22: 12 | B22: N7 a P35 | C22: Contém a Tabela Auxiliar pertinente às metodologias de exclusão de preços inexequíveis, inconsistentes ou excessivamente elevados. Apenas as células P10 a P29 são passíveis de preenchimento e se aplicam caso seja selecionada a metodologia de exclusão de preços "Por critério do(a) analista".
A23: 13 | B23: L35 | C23: Cabe ao analista selecionar no botão escolhendo a média ou mediana conforme melhor cenário para sua composição de preços de referência.
A24: 14 | C24: Caso haja a necessidade de inserção de mais linhas nos campos de informações de licitações/contratações realizadas pela Administração Pública e pesquisa direta de mercado (cotações), deve-se observar que as células: J10:J16 (Variação acumulada do índice (%)); K10:K16 (Preço unitário atualizado); L10:L16, L19:L29 (Utilizar? (Sim/Não)); O10:O16, O19:O29 (Outliers), estão automatizas com fórmulas e portanto o (a) analista deve copiar as mesmas fórmulas para as novas linhas inseridas.
A25: 15 | C25: Replique as etapas acima em planilhas/abas individuais para cada item pesquisado. Para isso, crie cópia(s) das planilhas/abas pré-existentes.
A27: Existem células bloqueadas na planilha, caso apresentem divergências contate a AG/GCT.

Sheet OUTROS BANCOS (hidden)
C1: ITEM | D1: PESQUISA DE PREÇOS (SIST. REF. / COT) | E1: CÓDIGO | F1: DATA | G1: PREÇO | J1: BANCO | K1: DATA
C2: 1 | D2: ORSE | E2: 9550 | F2: 2025-11-01 | G2: 0.96 | J2: ORSE | K2: 2025-11-01
C3: 2 | D3: SEINFRA | E3: I9557 | F3: 2025-09-01 | G3: 0.87 | J3: SEINFRA | K3: 27/28
C4: 3 | D4: EMBASA | E4: M019000003 | F4: 2025-06-01 | G4: 0.77 | J4: EMBASA | K4: 2025-06-01
C5: 4 | D5: SEINFRA | E5: I9775 | F5: 2025-09-01 | G5: 1.01 | J5: SCO | K5: 2025-12-01
C6: 5 | D6: ORSE | E6: 8369 | F6: 2025-11-01 | G6: 13.88 | J6: SBC | K6: 2026-01-01
C7: 7 | D7: ORSE | E7: 14068 | F7: 2025-11-01 | G7: 9.74 | J7: EMOP | K7: 2025-12-01
C8: 8 | D8: SCO | E8: MAT118400 | F8: 2025-12-01 | G8: 11.1 | J8: AGETOP CIVIL | K8: 2025-10-01
C9: 9 | D9: SBC | E9: 5385 | F9: 2026-01-01 | G9: 14.27 | J9: AGESUL | K9: 2025-06-01
C10: 10 | D10: ORSE | E10: 2113 | F10: 2025-11-01 | G10: 9.68 | J10: IOPES | K10: 2025-08-01
C11: 11 | D11: ORSE | E11: 14060 | F11: 2025-11-01 | G11: 4.23 | J11: SETOP | K11: 2025-10-01
C12: 12 | D12: SBC | E12: 5708 | F12: 2026-01-01 | G12: 32.9 | J12: CAEMA
C13: 13 | D13: EMOP | E13: 7153 | F13: 2025-12-01 | G13: 25.63 | J13: CPOS | K13: 2026-01-01
C14: 14 | D14: ORSE | E14: 2115 | F14: 2025-11-01 | G14: 57.66 | J14: SEDOP | K14: 2025-10-01
C15: 15 | D15: SBC | E15: 5719 | F15: 2026-01-01 | G15: 32.23
C16: 16 | D16: EMBASA | E16: M080800108 | F16: 2025-06-01 | G16: 49.34
C17: 17 | D17: SBC | E17: 8784 | F17: 2026-01-01 | G17: 94
C18: 18 | D18: EMBASA | E18: M021519005 | F18: 2025-06-01 | G18: 6.75
C19: 19 | D19: ORSE | E19: 14059 | F19: 2025-11-01 | G19: 8.5
C20: 20 | D20: ORSE | E20: 9502 | F20: 2025-11-01 | G20: 40.52
C21: 21 | D21: SBC | E21: 5387 | F21: 2026-01-01 | G21: 100.54
C22: 22 | D22: ORSE | E22: 2604 | F22: 2025-11-01 | G22: 109.45
C23: 23 | D23: EMOP | E23: 5102 | F23: 2025-12-01 | G23: 54.85
C24: 25 | D24: SBC | E24: 36795 | F24: 2026-01-01 | G24: 1
C25: 26 | D25: AGETOP CIVIL | E25: 1674 | F25: 2025-10-01 | G25: 1.2
C26: 27 | D26: EMOP | E26: 10984 | F26: 2025-12-01 | G26: 75.3
C27: 28 | D27: EMOP | E27: 14610 | F27: 2025-12-01 | G27: 182.91
C28: 29 | D28: AGESUL | E28: 4005 | F28: 2026-01-01 | G28: 27.84
C29: 30 | D29: AGESUL | E29: 4052 | F29: 2026-01-01 | G29: 22.99
C30: 31 | D30: SBC | E30: 46336 | F30: 2026-01-01 | G30: 95.07
C31: 32 | D31: IOPES | E31: 48342 | F31: 2025-12-01 | G31: 10.95
C32: 33 | D32: SETOP | E32: MATED-12988 | F32: 2025-10-01 | G32: 18.18
C33: 34 | D33: ORSE | E33: 4628 | F33: 2025-11-01 | G33: 55
C34: 35 | D34: ORSE | E34: 3814 | F34: 2025-11-01 | G34: 26.73
C35: 37 | D35: SCO | E35: MAT050850 | F35: 2025-12-01 | G35: 131.83
C36: 40 | D36: SBC | E36: 53375 | F36: 2026-01-01 | G36: 355.25
C37: 41 | D37: SETOP | E37: MATED-17646 | F37: 2025-01-01 | G37: 15.38
C38: 42 | D38: SETOP | E38: MATED-17647 | F38: 2025-01-01 | G38: 20.58
C39: 43 | D39: SEINFRA | E39: I7410 | F39: 2025-09-01 | G39: 11.56
C40: 44 | D40: SBC | E40: 10562 | F40: 2026-01-01 | G40: 22.06
C41: 48 | D41: IOPES | E41: 44951 | F41: 2025-12-01 | G41: 31.32
C42: 49 | D42: AGETOP CIVIL | E42: 3756 | F42: 2025-10-01 | G42: 262.72
C43: 50 | D43: CAEMA | E43: M101705141 | G43: 308.46 | H43: ANO 2019 (ITEM REPETIDO 73)
C44: 51 | D44: CPOS | E44: P.13.000.042461 | F44: 2026-01-01 | G44: 37.72
C45: 52 | D45: SETOP | E45: MATED-19494 | F45: 2025-10-01 | G45: 18.4
C46: 53 | D46: ORSE | E46: 12379 | F46: 2025-12-01 | G46: 18.16
C47: 54 | D47: SBC | E47: 28100 | F47: 2026-01-01 | G47: 159
C48: 55 | D48: ORSE | E48: 7551 | F48: 2025-12-01 | G48: 4.76
C49: 57 | D49: ORSE | E49: 8347 | F49: 2025-12-01 | G49: 0.05
C50: 58 | D50: SEINFRA | E50: I1008 | F50: 2025-09-01 | G50: 60.13
C51: 61 | D51: SEDOP | E51: E00189 | F51: 2025-10-01 | G51: 62.63
C52: 62 | D52: SINAPI | E52: 2617 | F52: 2025-09-01 | G52: =VLOOKUP(E52,[3]INSUMO!A60:E5043,5,FALSE) -> 4.94
C53: 63 | D53: SETOP | E53: MATED-12288 | F53: 2025-10-01 | G53: 7.5
C54: 71 | D54: EMOP | E54: 1916 | F54: 2025-12-01 | G54: 34.86
C55: 72 | D55: AGESUL | E55: 88247 | F55: 2026-01-01 | G55: 23.83
C56: 73 | D56: CAEMA | E56: M101705141 | G56: 308.46 | H56: ANO 2019 (ITEM REPETIDO 50)
C57: 74 | D57: SEINFRA | E57: I3145 | F57: 2025-09-01 | G57: 77.3
C58: 75 | D58: SBC | E58: 046336 | F58: 2026-01-01 | G58: 95.07
C59: 76 | D59: IOPES | E59: 48342 | F59: 2025-12-01 | G59: 10.95
C60: 77 | D60: ORSE | E60: 4628 | F60: 2025-08-01 | G60: 55
C61: 78 | D61: SBC | E61: 53375 | F61: 2026-01-01 | G61: 355.25
C62: 79 | D62: EMBASA | E62: M103900330 | F62: 2025-06-01 | G62: 216.48
C63: 80 | D63: ORSE | E63: 7551 | F63: 2025-12-01 | G63: 4.73
C64: 81 | D64: ORSE | E64: 8347 | F64: 2025-12-01 | G64: 0.05
C65: 82 | D65: SEINFRA | E65: I10080 | F65: 2025-09-01 | G65: 0.14
C66: 83 | D66: ORSE | E66: 1434 | F66: 2025-12-01 | G66: 28.58
C67: 84 | D67: SEINFRA | E67: I2241 | F67: 2025-09-01 | G67: 88.02
C68: 85 | D68: SEINFRA | E68: I2242 | F68: 2025-09-01 | G68: 229.21
C69: 86 | D69: ORSE | E69: 14079 | F69: 2025-12-01 | G69: 59
C70: 87 | D70: EMOP | E70: 22.016.0025-A | F70: 2025-12-01 | G70: 374.9
C71: 88 | D71: ORSE | E71: 9504 | F71: 2025-12-01 | G71: 16.82
C72: 89 | D72: SCO | E72: MAT033900 | F72: 2026-01-01 | G72: 54.49
C73: 90 | D73: SEINFRA | E73: I3138 | F73: 2025-09-01 | G73: 45.3
C74: 91 | D74: EMOP | E74: 2352 | F74: 2025-12-01 | G74: 25.39

Sheet INSUMO SINAPI (hidden)
I2: AL
A3: Código do Insumo | B3: Descrição do Insumo | C3: Unidade | D3: Origem de Preço | E3: AL | H3: Localidade | I3: MACEIO
A4: 45333 | B4: ABERTURA PARA ENCAIXE DE CUBA OU LAVATORIO EM BANCADA DE MARMORE/ GRANITO OU OUTRO TIPO DE PEDRA NATURAL | C4: UN | D4: CR | E4: 182.31 | H4: Horista | I4: 1.1612
A5: 11270 | B5: ABRACADEIRA DE LATAO PARA FIXACAO DE CABO PARA-RAIO, DIMENSOES 32 X 24 X 24 MM | C5: UN | D5: CR | E5: 2.73 | H5: Mensalista | I5: 0.7125
A6: 412 | B6: ABRACADEIRA DE NYLON PARA AMARRACAO DE CABOS, COMPRIMENTO DE *230* X *7,6* MM | C6: UN | D6: CR | E6: 0.77
A7: 414 | B7: ABRACADEIRA DE NYLON PARA AMARRACAO DE CABOS, COMPRIMENTO DE 100 X 2,5 MM | C7: UN | D7: CR | E7: 0.04
A8: 410 | B8: ABRACADEIRA DE NYLON PARA AMARRACAO DE CABOS, COMPRIMENTO DE 150 X *3,6* MM | C8: UN | D8: CR | E8: 0.11
A9: 411 | B9: ABRACADEIRA DE NYLON PARA AMARRACAO DE CABOS, COMPRIMENTO DE 200 X *4,6* MM | C9: UN | D9: C | E9: 0.15
A10: 408 | B10: ABRACADEIRA DE NYLON PARA AMARRACAO DE CABOS, COMPRIMENTO DE 390 X *4,6* MM | C10: UN | D10: CR | E10: 0.74
A11: 39131 | B11: ABRACADEIRA EM ACO PARA AMARRACAO DE ELETRODUTOS, TIPO D, COM 1 1/2" E CUNHA DE FIXACAO | C11: UN | D11: CR | E11: 3.62
A12: 394 | B12: ABRACADEIRA EM ACO PARA AMARRACAO DE ELETRODUTOS, TIPO D, COM 1 1/2" E PARAFUSO DE FIXACAO | C12: UN | D12: CR | E12: 3.67
A13: 39130 | B13: ABRACADEIRA EM ACO PARA AMARRACAO DE ELETRODUTOS, TIPO D, COM 1 1/4" E CUNHA DE FIXACAO | C13: UN | D13: CR | E13: 3.3
A14: 395 | B14: ABRACADEIRA EM ACO PARA AMARRACAO DE ELETRODUTOS, TIPO D, COM 1 1/4" E PARAFUSO DE FIXACAO | C14: UN | D14: CR | E14: 3.53
A15: 39129 | B15: ABRACADEIRA EM ACO PARA AMARRACAO DE ELETRODUTOS, TIPO D, COM 1" E CUNHA DE FIXACAO | C15: UN | D15: CR | E15: 2.03
A16: 393 | B16: ABRACADEIRA EM ACO PARA AMARRACAO DE ELETRODUTOS, TIPO D, COM 1" E PARAFUSO DE FIXACAO | C16: UN | D16: C | E16: 2.13
A17: 39127 | B17: ABRACADEIRA EM ACO PARA AMARRACAO DE ELETRODUTOS, TIPO D, COM 1/2" E CUNHA DE FIXACAO | C17: UN | D17: CR | E17: 1.74
A18: 392 | B18: ABRACADEIRA EM ACO PARA AMARRACAO DE ELETRODUTOS, TIPO D, COM 1/2" E PARAFUSO DE FIXACAO | C18: UN | D18: CR | E18: 1.79
A19: 39133 | B19: ABRACADEIRA EM ACO PARA AMARRACAO DE ELETRODUTOS, TIPO D, COM 2 1/2" E CUNHA DE FIXACAO | C19: UN | D19: CR | E19: 4.75
A20: 397 | B20: ABRACADEIRA EM ACO PARA AMARRACAO DE ELETRODUTOS, TIPO D, COM 2 1/2" E PARAFUSO DE FIXACAO | C20: UN | D20: CR | E20: 5.25
A21: 39132 | B21: ABRACADEIRA EM ACO PARA AMARRACAO DE ELETRODUTOS, TIPO D, COM 2" E CUNHA DE FIXACAO | C21: UN | D21: CR | E21: 3.8
A22: 396 | B22: ABRACADEIRA EM ACO PARA AMARRACAO DE ELETRODUTOS, TIPO D, COM 2" E PARAFUSO DE FIXACAO | C22: UN | D22: CR | E22: 4.07
A23: 39135 | B23: ABRACADEIRA EM ACO PARA AMARRACAO DE ELETRODUTOS, TIPO D, COM 3 1/2" E CUNHA DE FIXACAO | C23: UN | D23: CR | E23: 7.61
A24: 39134 | B24: ABRACADEIRA EM ACO PARA AMARRACAO DE ELETRODUTOS, TIPO D, COM 3" E CUNHA DE FIXACAO | C24: UN | D24: CR | E24: 6.34
A25: 398 | B25: ABRACADEIRA EM ACO PARA AMARRACAO DE ELETRODUTOS, TIPO D, COM 3" E PARAFUSO DE FIXACAO | C25: UN | D25: CR | E25: 5.84
A26: 39128 | B26: ABRACADEIRA EM ACO PARA AMARRACAO DE ELETRODUTOS, TIPO D, COM 3/4" E CUNHA DE FIXACAO | C26: UN | D26: CR | E26: 1.9
A27: 400 | B27: ABRACADEIRA EM ACO PARA AMARRACAO DE ELETRODUTOS, TIPO D, COM 3/4" E PARAFUSO DE FIXACAO | C27: UN | D27: CR | E27: 1.85
A28: 39125 | B28: ABRACADEIRA EM ACO PARA AMARRACAO DE ELETRODUTOS, TIPO D, COM 3/8" E PARAFUSO DE FIXACAO | C28: UN | D28: CR | E28: 1.9
A29: 39126 | B29: ABRACADEIRA EM ACO PARA AMARRACAO DE ELETRODUTOS, TIPO D, COM 4" E CUNHA DE FIXACAO | C29: UN | D29: CR | E29: 8.56
A30: 399 | B30: ABRACADEIRA EM ACO PARA AMARRACAO DE ELETRODUTOS, TIPO D, COM 4" E PARAFUSO DE FIXACAO | C30: UN | D30: CR | E30: 7.54
A31: 39158 | B31: ABRACADEIRA EM ACO PARA AMARRACAO DE ELETRODUTOS, TIPO ECONOMICA (GOTA), COM 8" | C31: UN | D31: CR | E31: 20.25
A32: 39141 | B32: ABRACADEIRA EM ACO PARA AMARRACAO DE ELETRODUTOS, TIPO U SIMPLES, COM 1 1/2" | C32: UN | D32: CR | E32: 1.47
A33: 39140 | B33: ABRACADEIRA EM ACO PARA AMARRACAO DE ELETRODUTOS, TIPO U SIMPLES, COM 1 1/4" | C33: UN | D33: CR | E33: 1.33
A34: 39139 | B34: ABRACADEIRA EM ACO PARA AMARRACAO DE ELETRODUTOS, TIPO U SIMPLES, COM 1" | C34: UN | D34: CR | E34: 1.11
A35: 39137 | B35: ABRACADEIRA EM ACO PARA AMARRACAO DE ELETRODUTOS, TIPO U SIMPLES, COM 1/2" | C35: UN | D35: CR | E35: 0.77
A36: 39143 | B36: ABRACADEIRA EM ACO PARA AMARRACAO DE ELETRODUTOS, TIPO U SIMPLES, COM 2 1/2" | C36: UN | D36: CR | E36: 3.03
A37: 39142 | B37: ABRACADEIRA EM ACO PARA AMARRACAO DE ELETRODUTOS, TIPO U SIMPLES, COM 2" | C37: UN | D37: CR | E37: 2.17
A38: 39144 | B38: ABRACADEIRA EM ACO PARA AMARRACAO DE ELETRODUTOS, TIPO U SIMPLES, COM 3" | C38: UN | D38: CR | E38: 3.53
A39: 39138 | B39: ABRACADEIRA EM ACO PARA AMARRACAO DE ELETRODUTOS, TIPO U SIMPLES, COM 3/4" | C39: UN | D39: CR | E39: 0.81
A40: 39136 | B40: ABRACADEIRA EM ACO PARA AMARRACAO DE ELETRODUTOS, TIPO U SIMPLES, COM 3/8" | C40: UN | D40: CR | E40: 0.54
A41: 39145 | B41: ABRACADEIRA EM ACO PARA AMARRACAO DE ELETRODUTOS, TIPO U SIMPLES, COM 4" | C41: UN | D41: CR | E41: 5.82
A42: 12615 | B42: ABRACADEIRA PVC, PARA CALHA PLUVIAL, DIAMETRO ENTRE *80 E 100* MM, PARA DRENAGEM PLUVIAL PREDIAL | C42: UN | D42: CR | E42: 12.27
A43: 11927 | B43: ABRACADEIRA, GALVANIZADA/ZINCADA, ROSCA SEM FIM, PARAFUSO INOX, LARGURA FITA *12,6 A *14 MM, D = 2" A 2 1/2" | C43: UN | D43: CR | E43: 8.16
A44: 11928 | B44: ABRACADEIRA, GALVANIZADA/ZINCADA, ROSCA SEM FIM, PARAFUSO INOX, LARGURA FITA *12,6 A *14 MM, D = 3" A 3 3/4" | C44: UN | D44: CR | E44: 9.35
A45: 11929 | B45: ABRACADEIRA, GALVANIZADA/ZINCADA, ROSCA SEM FIM, PARAFUSO INOX, LARGURA FITA *12,6 A *14 MM, D = 4" A 4 3/4" | C45: UN | D45: CR | E45: 14.47
A46: 36801 | B46: ACABAMENTO DE METAL CROMADO PARA REGISTRO PEQUENO, DE PAREDE, 1/2" OU 3/4" | C46: UN | D46: CR | E46: 35.25
A47: 36246 | B47: ACABAMENTO SIMPLES/CONVENCIONAL PARA FORRO PVC, TIPO "U" OU "C", COR BRANCA, COMPRIMENTO 6 M | C47: M | D47: CR | E47: 5.24
A48: 37600 | B48: ACESSORIO DE LIGACAO NAO ELETRICO PARA CARGAS EXPLOSIVAS, TUBO DE 6 M | C48: UN | D48: CR
A49: 37599 | B49: ACESSORIO INICIADOR NAO ELETRICO, TUBO DE 6 M, TEMPO DE RETARDO DE *160* MS | C49: UN | D49: CR
A50: 1 | B50: ACETILENO - RECARGA DE GAS PARA CILINDRO (NAO INCLUI TROCA/MANUTENCAO DO CILINDRO) | C50: KG | D50: C | E50: 133.33
A51: 3 | B51: ACIDO CLORIDRICO / ACIDO MURIATICO, DILUICAO 10% A 12% PARA USO EM LIMPEZA | C51: L | D51: CR | E51: 18.15
A52: 43054 | B52: ACO CA-25, 10,0 MM, OU 12,5 MM, OU 16,0 MM, OU 20,0 MM, OU 25,0 MM, VERGALHAO | C52: KG | D52: CR | E52: 9.81
A53: 42402 | B53: ACO CA-25, 16,0 MM, BARRA DE TRANSFERENCIA | C53: KG | D53: CR | E53: 9.38
A54: 42403 | B54: ACO CA-25, 20,0 MM, BARRA DE TRANSFERENCIA | C54: KG | D54: CR | E54: 12.03
A55: 42404 | B55: ACO CA-25, 25,0 MM, BARRA DE TRANSFERENCIA | C55: KG | D55: CR | E55: 11.96
A56: 42405 | B56: ACO CA-25, 32,0 MM, BARRA DE TRANSFERENCIA | C56: KG | D56: CR | E56: 12.74
A57: 34341 | B57: ACO CA-25, 32,0 MM, VERGALHAO | C57: KG | D57: CR | E57: 11.06
A58: 43053 | B58: ACO CA-25, 6,3 MM OU 8,0 MM, VERGALHAO | C58: KG | D58: CR | E58: 8.76
A59: 43058 | B59: ACO CA-50, 10,0 MM, OU 12,5 MM, OU 16,0 MM, OU 20,0 MM, DOBRADO E CORTADO | C59: KG | D59: CR | E59: 9.09
A60: 34 | B60: ACO CA-50, 10,0 MM, VERGALHAO | C60: KG | D60: CR | E60: 9.13
A61: 43055 | B61: ACO CA-50, 12,5 MM OU 16,0 MM, VERGALHAO | C61: KG | D61: C | E61: 7.91
A62: 43056 | B62: ACO CA-50, 20,0 MM OU 25,0 MM, VERGALHAO | C62: KG | D62: CR | E62: 9.12
A63: 43057 | B63: ACO CA-50, 32,0 MM, VERGALHAO | C63: KG | D63: CR | E63: 10.02
A64: 34449 | B64: ACO CA-50, 6,3 MM, DOBRADO E CORTADO | C64: KG | D64: CR | E64: 10.71
A65: 32 | B65: ACO CA-50, 6,3 MM, VERGALHAO | C65: KG | D65: CR | E65: 9.63
A66: 33 | B66: ACO CA-50, 8,0 MM, VERGALHAO | C66: KG | D66: CR | E66: 9.69
A67: 43061 | B67: ACO CA-60, 4,2 MM OU 5,0 MM, DOBRADO E CORTADO | C67: KG | D67: CR | E67: 9.05
A68: 43059 | B68: ACO CA-60, 4,2 MM, OU 5,0 MM, OU 6,0 MM, OU 7,0 MM, VERGALHAO | C68: KG | D68: CR | E68: 8.64
A69: 43062 | B69: ACO CA-60, 6,0 MM OU 7,0 MM, DOBRADO E CORTADO | C69: KG | D69: CR | E69: 9.58
A70: 43060 | B70: ACO CA-60, 8,0 MM OU 9,5 MM, VERGALHAO | C70: KG | D70: CR | E70: 7.53
A71: 40410 | B71: ACOPLAMENTO RIGIDO EM FERRO FUNDIDO PARA SISTEMA DE TUBULACAO RANHURADA, DN 50 MM (2") | C71: UN | D71: C
A72: 40411 | B72: ACOPLAMENTO RIGIDO EM FERRO FUNDIDO PARA SISTEMA DE TUBULACAO RANHURADA, DN 65 MM (2 1/2") | C72: UN | D72: CR
A73: 40412 | B73: ACOPLAMENTO RIGIDO EM FERRO FUNDIDO PARA SISTEMA DE TUBULACAO RANHURADA, DN 80 MM (3") | C73: UN | D73: CR
A74: 44254 | B74: ADAPTADOR CPVC, ROSCAVEL, COM FLANGES E ANEL DE VEDACAO, 15 MM, CAIXA D'AGUA PARA AGUA QUENTE | C74: UN | D74: CR
A75: 44255 | B75: ADAPTADOR CPVC, ROSCAVEL, COM FLANGES E ANEL DE VEDACAO, 22 MM, CAIXA D'AGUA PARA AGUA QUENTE | C75: UN | D75: CR
A76: 44256 | B76: ADAPTADOR CPVC, ROSCAVEL, COM FLANGES E ANEL DE VEDACAO, 28 MM, CAIXA D'AGUA PARA AGUA QUENTE | C76: UN | D76: CR
A77: 44257 | B77: ADAPTADOR CPVC, ROSCAVEL, COM FLANGES E ANEL DE VEDACAO, 35 MM, CAIXA D'AGUA PARA AGUA QUENTE | C77: UN | D77: CR
A78: 44258 | B78: ADAPTADOR CPVC, ROSCAVEL, COM FLANGES E ANEL DE VEDACAO, 42 MM, CAIXA D'AGUA PARA AGUA QUENTE | C78: UN | D78: CR
A79: 44259 | B79: ADAPTADOR CPVC, ROSCAVEL, COM FLANGES E ANEL DE VEDACAO, 54 MM, CAIXA D'AGUA PARA AGUA QUENTE | C79: UN | D79: CR
A80: 37997 | B80: ADAPTADOR CPVC, SOLDAVEL, 15 MM, PARA AGUA QUENTE | C80: UN | D80: CR
A81: 37998 | B81: ADAPTADOR CPVC, SOLDAVEL, 22 MM, PARA AGUA QUENTE | C81: UN | D81: CR
A82: 55 | B82: ADAPTADOR DE COMPRESSAO EM POLIPROPILENO (PP), PARA TUBO EM PEAD, 20 MM X 1/2", PARA LIGACAO PREDIAL DE AGUA (NTS 179) | C82: UN | D82: C
A83: 61 | B83: ADAPTADOR DE COMPRESSAO EM POLIPROPILENO (PP), PARA TUBO EM PEAD, 20 MM X 3/4", PARA LIGACAO PREDIAL DE AGUA (NTS 179) | C83: UN | D83: CR
A84: 62 | B84: ADAPTADOR DE COMPRESSAO EM POLIPROPILENO (PP), PARA TUBO EM PEAD, 32 MM X 1", PARA LIGACAO PREDIAL DE AGUA (NTS 179) | C84: UN | D84: CR
A85: 10899 | B85: ADAPTADOR EM LATAO, ENGATE RAPIDO 2 1/2" X ROSCA INTERNA 5 FIOS 2 1/2", PARA INSTALACAO PREDIAL DE COMBATE A INCENDIO | C85: UN | D85: CR | E85: 105.14
A86: 10900 | B86: ADAPTADOR EM LATAO, ENGATE RAPIDO1 1/2" X ROSCA INTERNA 5 FIOS 2 1/2", PARA INSTALACAO PREDIAL DE COMBATE A INCENDIO | C86: UN | D86: CR | E86: 82.28
A87: 47 | B87: ADAPTADOR PVC PBA, BOLSA/ROSCA, JE, DN 100 / DE 110 MM | C87: UN | D87: CR | E87: 77.53
A88: 48 | B88: ADAPTADOR PVC PBA, BOLSA/ROSCA, JE, DN 50 / DE 60 MM | C88: UN | D88: CR | E88: 20.22
A89: 46 | B89: ADAPTADOR PVC PBA, BOLSA/ROSCA, JE, DN 75 / DE 85 MM | C89: UN | D89: CR | E89: 45.34
A90: 52 | B90: ADAPTADOR PVC PBA, PONTA/ROSCA, JE, DN 50 / DE 60 MM | C90: UN | D90: CR | E90: 15.36
A91: 43 | B91: ADAPTADOR PVC PBA, PONTA/ROSCA, JE, DN 75 / DE 85 MM | C91: UN | D91: CR | E91: 51.85
A92: 103 | B92: ADAPTADOR PVC SOLDAVEL CURTO COM BOLSA E ROSCA, 110 MM X 4", PARA AGUA FRIA | C92: UN | D92: CR | E92: 43.43
A93: 107 | B93: ADAPTADOR PVC SOLDAVEL CURTO COM BOLSA E ROSCA, 20 MM X 1/2", PARA AGUA FRIA | C93: UN | D93: CR | E93: 0.81
A94: 65 | B94: ADAPTADOR PVC SOLDAVEL CURTO COM BOLSA E ROSCA, 25 MM X 3/4", PARA AGUA FRIA | C94: UN | D94: CR | E94: 0.89
A95: 108 | B95: ADAPTADOR PVC SOLDAVEL CURTO COM BOLSA E ROSCA, 32 MM X 1", PARA AGUA FRIA | C95: UN | D95: CR | E95: 1.8
A96: 110 | B96: ADAPTADOR PVC SOLDAVEL CURTO COM BOLSA E ROSCA, 40 MM X 1 1/2", PARA AGUA FRIA | C96: UN | D96: CR | E96: 6.25
A97: 109 | B97: ADAPTADOR PVC SOLDAVEL CURTO COM BOLSA E ROSCA, 40 MM X 1 1/4", PARA AGUA FRIA | C97: UN | D97: CR | E97: 3.72
A98: 111 | B98: ADAPTADOR PVC SOLDAVEL CURTO COM BOLSA E ROSCA, 50 MM X 1 1/4", PARA AGUA FRIA | C98: UN | D98: CR | E98: 8.45
A99: 112 | B99: ADAPTADOR PVC SOLDAVEL CURTO COM BOLSA E ROSCA, 50 MM X1 1/2", PARA AGUA FRIA | C99: UN | D99: CR | E99: 4.48
A100: 113 | B100: ADAPTADOR PVC SOLDAVEL CURTO COM BOLSA E ROSCA, 60 MM X 2", PARA AGUA FRIA | C100: UN | D100: CR | E100: 11.21
A101: 104 | B101: ADAPTADOR PVC SOLDAVEL CURTO COM BOLSA E ROSCA, 75 MM X 2 1/2", PARA AGUA FRIA | C101: UN | D101: CR | E101: 19.52
A102: 102 | B102: ADAPTADOR PVC SOLDAVEL CURTO COM BOLSA E ROSCA, 85 MM X 3", PARA AGUA FRIA | C102: UN | D102: CR | E102: 26.91
A103: 95 | B103: ADAPTADOR PVC SOLDAVEL, COM FLANGE E ANEL DE VEDACAO, 20 MM X 1/2", PARA CAIXA D'AGUA | C103: UN | D103: CR | E103: 11.37
A104: 96 | B104: ADAPTADOR PVC SOLDAVEL, COM FLANGE E ANEL DE VEDACAO, 25 MM X 3/4", PARA CAIXA D'AGUA | C104: UN | D104: CR | E104: 12.37
A105: 97 | B105: ADAPTADOR PVC SOLDAVEL, COM FLANGE E ANEL DE VEDACAO, 32 MM X 1", PARA CAIXA D'AGUA | C105: UN | D105: CR | E105: 18.61
A106: 98 | B106: ADAPTADOR PVC SOLDAVEL, COM FLANGE E ANEL DE VEDACAO, 40 MM X 1 1/4", PARA CAIXA D'AGUA | C106: UN | D106: CR | E106: 27.86
A107: 99 | B107: ADAPTADOR PVC SOLDAVEL, COM FLANGE E ANEL DE VEDACAO, 50 MM X 1 1/2", PARA CAIXA D'AGUA | C107: UN | D107: CR | E107: 26.33
A108: 60 | B108: ADAPTADOR PVC, COM REGISTRO, PARA PEAD, 20 MM X 3/4", PARA LIGACAO PREDIAL DE AGUA | C108: UN | D108: CR
A109: 72 | B109: ADAPTADOR PVC, ROSCAVEL, COM FLANGES E ANEL DE VEDACAO, 1 1/2", PARA CAIXA D'AGUA | C109: UN | D109: CR | E109: 50.5
A110: 71 | B110: ADAPTADOR PVC, ROSCAVEL, COM FLANGES E ANEL DE VEDACAO, 1", PARA CAIXA D'AGUA | C110: UN | D110: CR | E110: 31.19
A111: 67 | B111: ADAPTADOR PVC, ROSCAVEL, COM FLANGES E ANEL DE VEDACAO, 1/2", PARA CAIXA D'AGUA | C111: UN | D111: CR | E111: 16.33
A112: 73 | B112: ADAPTADOR PVC, ROSCAVEL, COM FLANGES E ANEL DE VEDACAO, 3/4", PARA CAIXA D'AGUA | C112: UN | D112: CR | E112: 15.62
A113: 100 | B113: ADAPTADOR PVC, SOLDAVEL, COM FLANGES E ANEL DE VEDACAO, 60 MM X 2", PARA CAIXA D'AGUA | C113: UN | D113: CR | E113: 46
A114: 75 | B114: ADAPTADOR PVC, SOLDAVEL, COM FLANGES LIVRES, 110 MM X 4", PARA CAIXA D'AGUA | C114: UN | D114: CR | E114: 268.22
A115: 83 | B115: ADAPTADOR PVC, SOLDAVEL, COM FLANGES LIVRES, 75 MM X 2 1/2", PARA CAIXA D'AGUA | C115: UN | D115: CR | E115: 214.43
A116: 74 | B116: ADAPTADOR PVC, SOLDAVEL, COM FLANGES LIVRES, 85 MM X 3", PARA CAIXA D'AGUA | C116: UN | D116: CR | E116: 306.58
A117: 106 | B117: ADAPTADOR PVC, SOLDAVEL, LONGO, COM FLANGE LIVRE, 110 MM X 4", PARA CAIXA D'AGUA | C117: UN | D117: CR | E117: 387.68
A118: 88 | B118: ADAPTADOR PVC, SOLDAVEL, LONGO, COM FLANGE LIVRE, 32 MM X 1", PARA CAIXA D'AGUA | C118: UN | D118: CR | E118: 10.89
A119: 82 | B119: ADAPTADOR PVC, SOLDAVEL, LONGO, COM FLANGE LIVRE, 75 MM X 2 1/2", PARA CAIXA D'AGUA | C119: UN | D119: CR | E119: 204.01
A120: 105 | B120: ADAPTADOR PVC, SOLDAVEL, LONGO, COM FLANGE LIVRE, 85 MM X 3", PARA CAIXA D'AGUA | C120: UN | D120: CR | E120: 289.08
A121: 39719 | B121: ADESIVO / COLA DE CONTATO LIQUIDO, A BASE DE RESINAS, PARA COLAGEM DE ESPUMA PARA ISOLAMENTO TERMICO FLEXIVEL | C121: L | D121: CR | E121: 140.11
A122: 3410 | B122: ADESIVO / COLA PARA EPS (ISOPOR) E OUTROS MATERIAIS | C122: KG | D122: CR | E122: 31.51
A123: 4791 | B123: ADESIVO ACRILICO DE BASE AQUOSA / COLA DE CONTATO | C123: KG | D123: CR | E123: 43.38
A124: 157 | B124: ADESIVO ESTRUTURAL A BASE DE RESINA EPOXI PARA INJECAO EM TRINCAS, BICOMPONENTE, BAIXA VISCOSIDADE | C124: KG | D124: CR | E124: 200.25
A125: 156 | B125: ADESIVO ESTRUTURAL A BASE DE RESINA EPOXI, BICOMPONENTE, FLUIDO | C125: KG | D125: CR | E125: 71.3
A126: 131 | B126: ADESIVO ESTRUTURAL A BASE DE RESINA EPOXI, BICOMPONENTE, PASTOSO (TIXOTROPICO) | C126: KG | D126: CR | E126: 60.97
A127: 21114 | B127: ADESIVO PARA TUBOS CPVC, *75* G | C127: UN | D127: CR | E127: 27.62
A128: 119 | B128: ADESIVO PLASTICO PARA PVC, BISNAGA COM 75 GR | C128: UN | D128: C | E128: 7
A129: 122 | B129: ADESIVO PLASTICO PARA PVC, FRASCO COM *850* GR | C129: UN | D129: CR | E129: 53.86
A130: 20080 | B130: ADESIVO PLASTICO PARA PVC, FRASCO COM 175 GR | C130: UN | D130: CR | E130: 17.58
A131: 124 | B131: ADITIVO ACELERADOR DE PEGA E ENDURECIMENTO PARA ARGAMASSAS E CONCRETOS, LIQUIDO E ISENTO DE CLORETOS | C131: L | D131: CR | E131: 23.51
A132: 7334 | B132: ADITIVO ADESIVO LIQUIDO PARA ARGAMASSAS DE REVESTIMENTOS CIMENTICIOS | C132: L | D132: CR | E132: 18.9
A133: 45146 | B133: ADITIVO IMPERMEABILIZANTE CRISTALIZANTE PARA CONCRETO | C133: KG | D133: CR | E133: 45.09
A134: 123 | B134: ADITIVO IMPERMEABILIZANTE DE PEGA NORMAL PARA ARGAMASSAS E CONCRETOS SEM ARMACAO, LIQUIDO E ISENTO DE CLORETOS | C134: L | D134: C | E134: 9.62
A135: 127 | B135: ADITIVO IMPERMEABILIZANTE DE PEGA ULTRARRAPIDA, LIQUIDO E ISENTO DE CLORETOS | C135: L | D135: CR | E135: 22.97
A136: 133 | B136: ADITIVO LIQUIDO INCORPORADOR DE AR PARA CONCRETO E ARGAMASSA, LIQUIDO E ISENTO DE CLORETOS | C136: L | D136: CR | E136: 9.54
A137: 43617 | B137: ADITIVO PLASTIFICANTE E ESTABILIZADOR PARA ARGAMASSAS DE ASSENTAMENTO E REBOCO, LIQUIDO E ISENTO DE CLORETOS | C137: L | D137: CR | E137: 10.66
A138: 132 | B138: ADITIVO PLASTIFICANTE RETARDADOR DE PEGA E REDUTOR DE AGUA PARA CONCRETO, LIQUIDO E ISENTO DE CLORETOS | C138: L | D138: CR | E138: 9.89
A139: 43618 | B139: ADITIVO SUPERPLASTIFICANTE DE PEGA NORMAL PARA CONCRETO, LIQUIDO E ISENTO DE CLORETOS | C139: KG | D139: CR | E139: 24.89
A140: 37476 | B140: ADUELA/ GALERIA PRE-MOLDADA DE CONCRETO ARMADO, SECAO QUADRADA INTERNA DE 1,50 X 1,50 M (L X A), MISULA DE 20 X 20 CM, C = 1,00 M, ESPESSURA MIN = 15 CM, TB-45 E FCK DO CONCRETO = 30 MPA | C140: UN | D140: CR | E140: 2745.37
A141: 37478 | B141: ADUELA/ GALERIA PRE-MOLDADA DE CONCRETO ARMADO, SECAO RETANGULAR INTERNA DE 2,00 X 2,00 M (L X A), MISULA DE 20 X 20 CM, C = 1,00 M, ESPESSURA MIN = 15 CM, TB-45 E FCK DO CONCRETO = 30 MPA | C141: UN | D141: CR | E141: 3438.65
A142: 37477 | B142: ADUELA/ GALERIA PRE-MOLDADA DE CONCRETO ARMADO, SECAO RETANGULAR INTERNA DE 2,50 X 2,50 M (L X A), MISULA DE 20 X 20 CM, C = 1,00 M, ESPESSURA MIN = 15 CM, TB-45 E FCK DO CONCRETO = 30 MPA | C142: UN | D142: CR | E142: 4658.82
A143: 37479 | B143: ADUELA/ GALERIA PRE-MOLDADA DE CONCRETO ARMADO, SECAO RETANGULAR INTERNA DE 3,00 X 3,00 M (L X A), MISULA DE 20 X 20 CM, C = 1.00 M, ESPESSURA MIN = 20 CM, TB-45 E FCK DO CONCRETO = 30 MPA | C143: UN | D143: CR | E143: 5525.42
A144: 4319 | B144: AFASTADOR PARA TELHA DE FIBROCIMENTO CANALETE 90 OU KALHETAO | C144: UN | D144: CR | E144: 1.77
A145: 42409 | B145: AGENTE DE CURA, PROTETOR DA EVAPORACAO DA AGUA DE HIDRATACAO DO CONCRETO | C145: KG | D145: CR | E145: 15.68
A146: 40553 | B146: AGREGADO RECICLADO, TIPO RACHAO RECICLADO CINZA, CLASSE A | C146: M3 | D146: C
A147: 6114 | B147: AJUDANTE DE ARMADOR (HORISTA) | C147: H | D147: CR | E147: 17.05
A148: 40912 | B148: AJUDANTE DE ARMADOR (MENSALISTA) | C148: MES | D148: CR | E148: 2975.99
A149: 247 | B149: AJUDANTE DE ELETRICISTA (HORISTA) | C149: H | D149: CR | E149: 17.05
A150: 40919 | B150: AJUDANTE DE ELETRICISTA (MENSALISTA) | C150: MES | D150: CR | E150: 2975.99
A151: 44499 | B151: AJUDANTE DE ESTRUTURAS METALICAS (HORISTA) | C151: H | D151: CR | E151: 17.05
A152: 40984 | B152: AJUDANTE DE ESTRUTURAS METALICAS (MENSALISTA) | C152: MES | D152: CR | E152: 2975.99
A153: 248 | B153: AJUDANTE DE OPERACAO EM GERAL (HORISTA) | C153: H | D153: CR | E153: 17.05
A154: 41086 | B154: AJUDANTE DE OPERACAO EM GERAL (MENSALISTA) | C154: MES | D154: CR | E154: 2972.95
A155: 34466 | B155: AJUDANTE DE PINTOR (HORISTA) | C155: H | D155: CR | E155: 22.32
A156: 41083 | B156: AJUDANTE DE PINTOR (MENSALISTA) | C156: MES | D156: CR | E156: 3892.78
A157: 252 | B157: AJUDANTE DE SERRALHEIRO (HORISTA) | C157: H | D157: CR | E157: 17.05
A158: 40909 | B158: AJUDANTE DE SERRALHEIRO (MENSALISTA) | C158: MES | D158: CR | E158: 2975.99
A159: 242 | B159: AJUDANTE ESPECIALIZADO (HORISTA) | C159: H | D159: CR | E159: 17.05
A160: 41085 | B160: AJUDANTE ESPECIALIZADO (MENSALISTA) | C160: MES | D160: CR | E160: 2972.95
A161: 427 | B161: ALCA PREFORMADA DE CONTRA POSTE, EM ACO GALVANIZADO, PARA CABO 3/16", COMPRIMENTO *860* MM | C161: UN | D161: CR | E161: 12.1
A162: 417 | B162: ALCA PREFORMADA DE DISTRIBUICAO, EM ACO GALVANIZADO, PARA CABO DE ALUMINIO DIAMETRO 16 A 25 MM | C162: UN | D162: CR | E162: 5.7
A163: 11273 | B163: ALCA PREFORMADA DE DISTRIBUICAO, EM ACO GALVANIZADO, PARA CONDUTORES DE ALUMINIO AWG 1/0 (CAA 6/1 OU CA 7 FIOS) | C163: UN | D163: CR | E163: 17.7
A164: 11272 | B164: ALCA PREFORMADA DE DISTRIBUICAO, EM ACO GALVANIZADO, PARA CONDUTORES DE ALUMINIO AWG 2 (CAA 6/1 OU CA 7 FIOS) | C164: UN | D164: CR | E164: 10.68
A165: 11275 | B165: ALCA PREFORMADA DE SERVICO, EM ACO GALVANIZADO, PARA CONDUTORES DE ALUMINIO AWG 4 (CAA 6/1) | C165: UN | D165: CR | E165: 4.28
A166: 11274 | B166: ALCA PREFORMADA DE SERVICO, EM ACO GALVANIZADO, PARA CONDUTORES DE ALUMINIO AWG 6 (CAA 6/1) | C166: UN | D166: CR | E166: 3.27
A167: 45208 | B167: ALICATE AMPERIMETRO, TENSAO AC/DC, CAPACIDADE MAXIMA 1000 A | C167: UN | D167: CR
A168: 45250 | B168: ALICATE BICO LONGO (MEIA CANA) 6", COM ISOLAMENTO ATE 1000 V | C168: UN | D168: CR | E168: 31.19
A169: 38470 | B169: ALICATE DE CORTE DIAGONAL 6" COM ISOLAMENTO | C169: UN | D169: CR | E169: 31.93
A170: 38547 | B170: ALICATE DE CRIMPAR RJ11, RJ12 E RJ45, COM CATRACA | C170: UN | D170: CR | E170: 211.99
A171: 38467 | B171: ALICATE DE PRESSAO 11" PARA SOLDA, TIPO C | C171: UN | D171: CR | E171: 158.29
A172: 38468 | B172: ALICATE DE PRESSAO 11" PARA SOLDA, TIPO U | C172: UN | D172: CR | E172: 197.59
A173: 38469 | B173: ALICATE DE PRESSAO PARA SOLDA DE CHAPA 18" | C173: UN | D173: CR | E173: 202.42
A174: 45197 | B174: ALICATE DESENCAPADOR AUTOMATICO 8" | C174: UN | D174: CR | E174: 161.43
A175: 38471 | B175: ALICATE PARA ANEIS DE PISTAO, CAPACIDADE *50* A 100 MM | C175: UN | D175: CR | E175: 216.49
A176: 45206 | B176: ALICATE PROFISSIONAL 8", UNIVERSAL, COM ISOLAMENTO ATE 1000 V | C176: UN | D176: CR | E176: 42.77
A177: 37370 | B177: ALIMENTACAO - HORISTA (COLETADO CAIXA - ENCARGOS COMPLEMENTARES) | C177: H | D177: C | E177: 2.68
A178: 40862 | B178: ALIMENTACAO - MENSALISTA (COLETADO CAIXA - ENCARGOS COMPLEMENTARES) | C178: MES | D178: C | E178: 443.32
A179: 10658 | B179: ALISADORA DE CONCRETO COM MOTOR A GASOLINA DE 5,5 HP, PESO COM MOTOR DE 78 KG, 4 PAS | C179: UN | D179: C
A180: 253 | B180: ALMOXARIFE (HORISTA) | C180: H | D180: C | E180: 24.01
A181: 40809 | B181: ALMOXARIFE (MENSALISTA) | C181: MES | D181: CR | E181: 4185.69
A182: 42428 | B182: ALONGADOR COM TRES ALTURAS, EM TUBO DE ACO CARBONO, PINTURA NO PROCESSO ELETROSTATICO - EQUIPAMENTO DE GINASTICA PARA ACADEMIA AO AR LIVRE / ACADEMIA DA TERCEIRA IDADE - ATI | C182: UN | D182: C
A183: 301 | B183: ANEL BORRACHA PARA TUBO ESGOTO PREDIAL, DN 100 MM (NBR 5688) | C183: UN | D183: C | E183: 3.55
A184: 296 | B184: ANEL BORRACHA PARA TUBO ESGOTO PREDIAL, DN 50 MM (NBR 5688) | C184: UN | D184: CR | E184: 2
A185: 297 | B185: ANEL BORRACHA PARA TUBO ESGOTO PREDIAL, DN 75 MM (NBR 5688) | C185: UN | D185: CR | E185: 2.95
A186: 299 | B186: ANEL BORRACHA, DN 100 MM, PARA TUBO SERIE REFORCADA ESGOTO PREDIAL | C186: UN | D186: CR | E186: 4.16
A187: 300 | B187: ANEL BORRACHA, DN 150 MM, PARA TUBO SERIE REFORCADA ESGOTO PREDIAL | C187: UN | D187: CR | E187: 14.41
A188: 20085 | B188: ANEL BORRACHA, DN 50 MM, PARA TUBO SERIE REFORCADA ESGOTO PREDIAL | C188: UN | D188: CR | E188: 2.63
A189: 298 | B189: ANEL BORRACHA, DN 75 MM, PARA TUBO SERIE REFORCADA ESGOTO PREDIAL | C189: UN | D189: CR | E189: 3.2
A190: 311 | B190: ANEL BORRACHA, PARA TUBO PVC DEFOFO, DN 100 MM (NBR 7665) | C190: UN | D190: CR | E190: 11.88
A191: 318 | B191: ANEL BORRACHA, PARA TUBO PVC DEFOFO, DN 150 MM (NBR 7665) | C191: UN | D191: CR | E191: 23.93
A192: 319 | B192: ANEL BORRACHA, PARA TUBO PVC DEFOFO, DN 200 MM (NBR 7665) | C192: UN | D192: CR | E192: 37.52
A193: 303 | B193: ANEL BORRACHA, PARA TUBO PVC, REDE COLETOR ESGOTO, DN 100 MM (NBR 7362) | C193: UN | D193: CR | E193: 3.93
A194: 305 | B194: ANEL BORRACHA, PARA TUBO PVC, REDE COLETOR ESGOTO, DN 150 MM (NBR 7362) | C194: UN | D194: CR | E194: 12.37
A195: 306 | B195: ANEL BORRACHA, PARA TUBO PVC, REDE COLETOR ESGOTO, DN 200 MM (NBR 7362) | C195: UN | D195: CR | E195: 18.76
A196: 307 | B196: ANEL BORRACHA, PARA TUBO PVC, REDE COLETOR ESGOTO, DN 250 MM (NBR 7362) | C196: UN | D196: CR | E196: 47.4
A197: 309 | B197: ANEL BORRACHA, PARA TUBO PVC, REDE COLETOR ESGOTO, DN 350 MM (NBR 7362) | C197: UN | D197: CR | E197: 77.65
A198: 310 | B198: ANEL BORRACHA, PARA TUBO PVC, REDE COLETOR ESGOTO, DN 400 MM (NBR 7362) | C198: UN | D198: CR | E198: 107.62
A199: 308 | B199: ANEL BORRACHA, PARA TUBO, PVC REDE COLETOR ESGOTO, DN 300 MM (NBR 7362) | C199: UN | D199: CR | E199: 105.8
A200: 328 | B200: ANEL BORRACHA, PARA TUBO/CONEXAO PVC PBA, DN 100 MM, PARA REDE AGUA | C200: UN | D200: CR | E200: 9.41
A201: 325 | B201: ANEL BORRACHA, PARA TUBO/CONEXAO PVC PBA, DN 50 MM, PARA REDE AGUA | C201: UN | D201: CR | E201: 2.77
... 4653 more rows

Sheet COT01 (hidden)
B2: Processo | C2: 59500.003753/2025-45
B3: Responsável | C3: Kaio Gabriel, Alessandra Brant, Alberto Nascimento
B4: Área de Origem | C4: AI/GAP/UGI
B5: Data da pesquisa
B7: ITEM: | C7: TUBO PEBD DI 16MM PN30 | I7: UNIDADE DE MEDIDA: | J7: m | K7: QUANTIDADE: | L7: 6100 | O7: Tabela auxiliar de metodologias para exclusão de preços
B8: LICITAÇÕES ANTERIORES | O8: Licitações Anteriores
B9: Órgão | C9: Edital/Ano - Nº do Lote / Item | D9: Quantidade | E9: Valor Unitário | F9: Data | G9: índice de atualização (nome) | H9: I0 | I9: If | J9: Variação acumulada do índice (%) | K9: Preço unitário atualizado | L9: Utilizar? (Sim/Não) | O9: Outliers | P9: Por critério do(a) analista
J10: =IF(ISBLANK(E10),"",IF(ISNUMBER(H10),(I10-H10)/H10,0)) ->  | K10: =IF(ISBLANK(E10),"",E10*(1+J10)) ->  | L10: =IF(ISNUMBER(K10),IF($L$32<>$P$9,O10,P10),"") ->  | O10: =IF(ISNUMBER(K10),IF(OR(K10<_xlfn.QUARTILE.INC($K$10:$K$29,1)-1.5*(_xlfn.QUARTILE.INC($K$10:K29,3)-_xlfn.QUARTILE.INC($K$10:$K$29,1)),K10>_xlfn.QUARTILE.INC($K$10:$K$29,3)+1.5*(_xlfn.QUARTILE.INC($K$10:$K$29,3)-_xlfn.QUARTILE.INC($K$10:$K$29,1))),"Não","Sim"),"") -> 
J11: =IF(ISBLANK(E11),"",IF(ISNUMBER(H11),(I11-H11)/H11,0)) ->  | K11: =IF(ISBLANK(E11),"",E11*(1+J11)) ->  | O11: =IF(ISNUMBER(K11),IF(OR(K11<_xlfn.QUARTILE.INC($K$10:$K$29,1)-1.5*(_xlfn.QUARTILE.INC($K$10:K29,3)-_xlfn.QUARTILE.INC($K$10:$K$29,1)),K11>_xlfn.QUARTILE.INC($K$10:$K$29,3)+1.5*(_xlfn.QUARTILE.INC($K$10:$K$29,3)-_xlfn.QUARTILE.INC($K$10:$K$29,1))),"Não","Sim"),"") -> 
O12: =IF(ISNUMBER(K12),IF(OR(K12<_xlfn.QUARTILE.INC($K$10:$K$29,1)-1.5*(_xlfn.QUARTILE.INC($K$10:K30,3)-_xlfn.QUARTILE.INC($K$10:$K$29,1)),K12>_xlfn.QUARTILE.INC($K$10:$K$29,3)+1.5*(_xlfn.QUARTILE.INC($K$10:$K$29,3)-_xlfn.QUARTILE.INC($K$10:$K$29,1))),"Não","Sim"),"") -> 
O13: =IF(ISNUMBER(K13),IF(OR(K13<_xlfn.QUARTILE.INC($K$10:$K$29,1)-1.5*(_xlfn.QUARTILE.INC($K$10:K31,3)-_xlfn.QUARTILE.INC($K$10:$K$29,1)),K13>_xlfn.QUARTILE.INC($K$10:$K$29,3)+1.5*(_xlfn.QUARTILE.INC($K$10:$K$29,3)-_xlfn.QUARTILE.INC($K$10:$K$29,1))),"Não","Sim"),"") -> 
O14: =IF(ISNUMBER(K14),IF(OR(K14<_xlfn.QUARTILE.INC($K$10:$K$29,1)-1.5*(_xlfn.QUARTILE.INC($K$10:K32,3)-_xlfn.QUARTILE.INC($K$10:$K$29,1)),K14>_xlfn.QUARTILE.INC($K$10:$K$29,3)+1.5*(_xlfn.QUARTILE.INC($K$10:$K$29,3)-_xlfn.QUARTILE.INC($K$10:$K$29,1))),"Não","Sim"),"") -> 
O15: =IF(ISNUMBER(K15),IF(OR(K15<_xlfn.QUARTILE.INC($K$10:$K$29,1)-1.5*(_xlfn.QUARTILE.INC($K$10:K35,3)-_xlfn.QUARTILE.INC($K$10:$K$29,1)),K15>_xlfn.QUARTILE.INC($K$10:$K$29,3)+1.5*(_xlfn.QUARTILE.INC($K$10:$K$29,3)-_xlfn.QUARTILE.INC($K$10:$K$29,1))),"Não","Sim"),"") -> 
O16: =IF(ISNUMBER(K16),IF(OR(K16<_xlfn.QUARTILE.INC($K$10:$K$29,1)-1.5*(_xlfn.QUARTILE.INC($I$10:I37,3)-_xlfn.QUARTILE.INC($K$10:$K$29,1)),K16>_xlfn.QUARTILE.INC($K$10:$K$29,3)+1.5*(_xlfn.QUARTILE.INC($K$10:$K$29,3)-_xlfn.QUARTILE.INC($K$10:$K$29,1))),"Não","Sim"),"") -> 
B17: COTAÇÕES DE MERCADO | O17: Cotações
B18: Empresa | J18: Data | K18: Preço Unitário | L18: Utilizar? (Sim/Não) | O18: Outliers | P18: Por critério do(a) analista
B19: BRASMAQUINAS COMERCIO DE MAQUINAS E IRRIGACAO LTDA (CNPJ : 00145531000334) E-mail: MARCOS.GOMES@BRASMAQUINAS.COM.BR | J19: 2025-08-22 | K19: 1.18 | L19: Não | O19: =IF(ISNUMBER(K19),IF(OR(K19<_xlfn.QUARTILE.INC($K$10:$K$29,1)-1.5*(_xlfn.QUARTILE.INC($K$10:$K$29,3)-_xlfn.QUARTILE.INC($K$10:$K$29,1)),K19>_xlfn.QUARTILE.INC($K$10:$K$29,3)+1.5*(_xlfn.QUARTILE.INC($K$10:$K$29,3)-_xlfn.QUARTILE.INC($K$10:$K$29,1))),"Não","Sim"),"") -> Sim
B20: IRRIGASOL Irrigação e energia Solar LTDA (CNPJ: 46.152.561/0001-07) E-mail:irrigasol.mgmontalvania@gmail.com | J20: 2025-09-11 | K20: 1.35 | L20: =IF(ISNUMBER(K20),IF($L$32=$O$18,O20,IF($L$32=$P$18,P20,"")),"") -> Sim | O20: Sim
B21: VCA IRRIGAÇÃO LTDA (CNPJ: 26.466.226/0001-76) financeiro@minasbombas.com.br | J21: 2025-08-27 | K21: 1.45 | L21: Não | O21: Sim
B22: Tradição Agrícola - https://www.tradicaoagricola.com.br/tubo-cego-microtubo/tubo-cego-para-irrigacao-16mm-di-13-8mm-500m-rivulis?parceiro=2545&srsltid=AfmBOooqvlteK_-6oJihK2XyKj3djvlOFcib3uIZevryOnkdlx6cAz2qneo | J22: 2025-11-10 | K22: =(680.75+196.05)/500 -> 1.75 | L22: Sim | O22: Sim
B23: Safra Irrigação - https://www.safrairrigacao.com.br/mangueira-pelbd-16mm-pn30--irritec-18984-1?region_id=000001&srsltid=AfmBOoqTWXlDWS1kAwqO66ycgpsCNDxaNhh9L-iSazeE1THK-89ZtCM5pKg | J23: 2025-11-10 | K23: =(515+231.24)/500 -> 1.49 | L23: Sim | O23: Sim
B24: FERPAM - https://www.ferpam.com.br/500mt-tubo-irrig-pelbd-16009-dn16-pn30-netafim.html?srsltid=AfmBOorg1g2iUNloqM2zUuDaNC9zQ7kBwUSLYhmNGz2MheBlHoQDosRyjGU | J24: 2025-11-10 | K24: =(556.61+24.47)/500 -> 1.16 | L24: Sim | O24: Sim
B30: Observações: | K30: Média: | L30: =IF($L$32="","Selecione metodologia para exclusão de preços",AVERAGE(IF($L$10:$L$29="Sim",$K$10:$K$29))) -> 1.44 | N30: Média (Cotações) | O30: =IF(COUNTIF(O19:O29,"Sim")<3,"N/D (são necessários pelo menos 3 preços)",AVERAGE(IF(O19:O29="Sim",$K19:$K29))) -> 1.4 | P30: =IF(COUNTIF(P19:P29,"Sim")<3,"N/D (são necessários pelo menos 3 preços)",AVERAGE(IF(P19:P29="Sim",$K19:$K29))) -> N/D (são necessários pelo menos 3 preços)
K31: Mediana: | L31: =IF($L$32="","Selecione metodologia para exclusão de preços",MEDIAN(IF($L$10:$L$29="Sim",$K$10:$K$29))) -> 1.42 | N31: Mediana (Cotações) | O31: =IF(COUNTIF(O19:O29,"Sim")<3,"N/D (são necessários pelo menos 3 preços)",MEDIAN(IF(O19:O29="Sim",$K19:$K29))) -> 1.4 | P31: =IF(COUNTIF(P19:P29,"Sim")<3,"N/D (são necessários pelo menos 3 preços)",MEDIAN(IF(P19:P29="Sim",$K19:$K29))) -> N/D (são necessários pelo menos 3 preços)
B32: Metodologia de exclusão de preços adotada: | L32: =IF(O35="",INDEX(O18:P18,MATCH(MIN(#REF!),#REF!,0)),O35) -> Outliers | N32: CV (Cotações) | O32: =IF(COUNTIF(O19:O29,"Sim")<3,"N/D (são necessários pelo menos 3 preços)",_xlfn.STDEV.S(IF(O19:O29="Sim",$K19:$K29))/AVERAGE(IF(O19:O29="Sim",$K19:$K29))) -> 0.1574 | P32: =IF(COUNTIF(P19:P29,"Sim")<3,"N/D (são necessários pelo menos 3 preços)",_xlfn.STDEV.S(IF(P19:P29="Sim",$K19:$K29))/AVERAGE(IF(P19:P29="Sim",$K19:$K29))) -> N/D (são necessários pelo menos 3 preços)
N33: Média | O33: =IF(SUM(COUNTIF($O$10:$O$16,"Sim")) + SUM(COUNTIF(O19:O29,"Sim")) < 3, "N/D (são necessários pelo menos 3 preços)", IFERROR(AVERAGE(_xlfn._xlws.FILTER($K$10:$K$16,$O$10:$O$16="Sim"), _xlfn._xlws.FILTER($K$19:$K$29,O19:O29="Sim")),O30)) -> 1.4 | P33: =IF(SUM(COUNTIF($P$10:$P$16,"Sim")) + SUM(COUNTIF(P19:P29,"Sim")) < 3, "N/D (são necessários pelo menos 3 preços)", IFERROR(AVERAGE(_xlfn._xlws.FILTER($K$10:$K$16,$P$10:$P$16="Sim"), _xlfn._xlws.FILTER($K$19:$K$29,P19:P29="Sim")),P30)) -> N/D (são necessários pelo menos 3 preços)
N34: Mediana | O34: =IF(SUM(COUNTIF($O$10:$O$16,"Sim")) + SUM(COUNTIF(O19:O29,"Sim")) < 3, "N/D (são necessários pelo menos 3 preços)", IFERROR(MEDIAN(_xlfn._xlws.FILTER($K$10:$K$16,$O$10:$O$16="Sim"), _xlfn._xlws.FILTER($K$19:$K$29,O19:O29="Sim")),O31)) -> 1.4 | P34: =IF(SUM(COUNTIF($P10:$P$16,"Sim")) + SUM(COUNTIF(P19:P29,"Sim")) < 3, "N/D (são necessários pelo menos 3 preços)", IFERROR(MEDIAN(_xlfn._xlws.FILTER($K$10:$K$16,$P$10:$P$16="Sim"), _xlfn._xlws.FILTER($K$19:$K$29,P19:P29="Sim")),P31)) -> N/D (são necessários pelo menos 3 preços)
B35: COSOLIDAÇÃO DOS PREÇOS | N35: Metodologia a adotar: | O35: =IF(INDEX(O18:P18,P35)=0,"",INDEX(O18:P18,P35)) -> Outliers | P35: 1
B37: PREÇO UNITÁRIO ESTIMADO ADOTADO: | L37: =IF($B$39="Mediana:",L31,L30) -> 1.42
A39: =O18 -> Outliers | B39: Mediana:
A40: =P18 -> Por critério do(a) analista

Sheet COT02 (hidden)
B2: Processo | C2: 59500.003753/2025-45
B3: Responsável | C3: Kaio Gabriel, Alessandra Brant, Alberto Nascimento
B4: Área de Origem | C4: AI/GAP/UGI
B5: Data da pesquisa
B7: ITEM: | C7: TUBO GOTEJADOR DI16MM PAREDE 15MIL 1,85LPH X 0,20M | I7: UNIDADE DE MEDIDA: | J7: m | K7: QUANTIDADE: | L7: 4000 | O7: Tabela auxiliar de metodologias para exclusão de preços
B8: LICITAÇÕES ANTERIORES | O8: Licitações Anteriores
B9: Órgão | C9: Edital/Ano - Nº do Lote / Item | D9: Quantidade | E9: Valor Unitário | F9: Data | G9: índice de atualização (nome) | H9: I0 | I9: If | J9: Variação acumulada do índice (%) | K9: Preço unitário atualizado | L9: Utilizar? (Sim/Não) | O9: Outliers | P9: Por critério do(a) analista
J10: =IF(ISBLANK(E10),"",IF(ISNUMBER(H10),(I10-H10)/H10,0)) ->  | K10: =IF(ISBLANK(E10),"",E10*(1+J10)) ->  | L10: =IF(ISNUMBER(K10),IF($L$32<>$P$9,O10,P10),"") ->  | O10: =IF(ISNUMBER(K10),IF(OR(K10<_xlfn.QUARTILE.INC($K$10:$K$29,1)-1.5*(_xlfn.QUARTILE.INC($K$10:K29,3)-_xlfn.QUARTILE.INC($K$10:$K$29,1)),K10>_xlfn.QUARTILE.INC($K$10:$K$29,3)+1.5*(_xlfn.QUARTILE.INC($K$10:$K$29,3)-_xlfn.QUARTILE.INC($K$10:$K$29,1))),"Não","Sim"),"") -> 
J11: =IF(ISBLANK(E11),"",IF(ISNUMBER(H11),(I11-H11)/H11,0)) ->  | K11: =IF(ISBLANK(E11),"",E11*(1+J11)) ->  | O11: =IF(ISNUMBER(K11),IF(OR(K11<_xlfn.QUARTILE.INC($K$10:$K$29,1)-1.5*(_xlfn.QUARTILE.INC($K$10:K29,3)-_xlfn.QUARTILE.INC($K$10:$K$29,1)),K11>_xlfn.QUARTILE.INC($K$10:$K$29,3)+1.5*(_xlfn.QUARTILE.INC($K$10:$K$29,3)-_xlfn.QUARTILE.INC($K$10:$K$29,1))),"Não","Sim"),"") -> 
O12: =IF(ISNUMBER(K12),IF(OR(K12<_xlfn.QUARTILE.INC($K$10:$K$29,1)-1.5*(_xlfn.QUARTILE.INC($K$10:K30,3)-_xlfn.QUARTILE.INC($K$10:$K$29,1)),K12>_xlfn.QUARTILE.INC($K$10:$K$29,3)+1.5*(_xlfn.QUARTILE.INC($K$10:$K$29,3)-_xlfn.QUARTILE.INC($K$10:$K$29,1))),"Não","Sim"),"") -> 
O13: =IF(ISNUMBER(K13),IF(OR(K13<_xlfn.QUARTILE.INC($K$10:$K$29,1)-1.5*(_xlfn.QUARTILE.INC($K$10:K31,3)-_xlfn.QUARTILE.INC($K$10:$K$29,1)),K13>_xlfn.QUARTILE.INC($K$10:$K$29,3)+1.5*(_xlfn.QUARTILE.INC($K$10:$K$29,3)-_xlfn.QUARTILE.INC($K$10:$K$29,1))),"Não","Sim"),"") -> 
O14: =IF(ISNUMBER(K14),IF(OR(K14<_xlfn.QUARTILE.INC($K$10:$K$29,1)-1.5*(_xlfn.QUARTILE.INC($K$10:K32,3)-_xlfn.QUARTILE.INC($K$10:$K$29,1)),K14>_xlfn.QUARTILE.INC($K$10:$K$29,3)+1.5*(_xlfn.QUARTILE.INC($K$10:$K$29,3)-_xlfn.QUARTILE.INC($K$10:$K$29,1))),"Não","Sim"),"") -> 
O15: =IF(ISNUMBER(K15),IF(OR(K15<_xlfn.QUARTILE.INC($K$10:$K$29,1)-1.5*(_xlfn.QUARTILE.INC($K$10:K35,3)-_xlfn.QUARTILE.INC($K$10:$K$29,1)),K15>_xlfn.QUARTILE.INC($K$10:$K$29,3)+1.5*(_xlfn.QUARTILE.INC($K$10:$K$29,3)-_xlfn.QUARTILE.INC($K$10:$K$29,1))),"Não","Sim"),"") -> 
O16: =IF(ISNUMBER(K16),IF(OR(K16<_xlfn.QUARTILE.INC($K$10:$K$29,1)-1.5*(_xlfn.QUARTILE.INC($I$10:I37,3)-_xlfn.QUARTILE.INC($K$10:$K$29,1)),K16>_xlfn.QUARTILE.INC($K$10:$K$29,3)+1.5*(_xlfn.QUARTILE.INC($K$10:$K$29,3)-_xlfn.QUARTILE.INC($K$10:$K$29,1))),"Não","Sim"),"") -> 
B17: COTAÇÕES DE MERCADO | O17: Cotações
B18: Empresa | J18: Data | K18: Preço Unitário | L18: Utilizar? (Sim/Não) | O18: Outliers | P18: Por critério do(a) analista
B19: BRASMAQUINAS COMERCIO DE MAQUINAS E IRRIGACAO LTDA (CNPJ : 00145531000334) E-mail: MARCOS.GOMES@BRASMAQUINAS.COM.BR | J19: 2025-08-22 | K19: 0.95 | L19: Não | O19: =IF(ISNUMBER(K19),IF(OR(K19<_xlfn.QUARTILE.INC($K$10:$K$29,1)-1.5*(_xlfn.QUARTILE.INC($K$10:$K$29,3)-_xlfn.QUARTILE.INC($K$10:$K$29,1)),K19>_xlfn.QUARTILE.INC($K$10:$K$29,3)+1.5*(_xlfn.QUARTILE.INC($K$10:$K$29,3)-_xlfn.QUARTILE.INC($K$10:$K$29,1))),"Não","Sim"),"") -> Sim
B20: IRRIGASOL Irrigação e energia Solar LTDA (CNPJ: 46.152.561/0001-07) E-mail:irrigasol.mgmontalvania@gmail.com | J20: 2025-09-11 | K20: 1.3 | L20: Não | O20: Sim
B21: Casa Irriga (Sua cada da Irrigação) - Belo Horizonte - Minas Gerais - CNPJ: 23.794.485/0001-38 .https://casairriga.com.br/produto/mangueira-gotejamento-pelbd-16mm-20-metros/ | J21: 2025-11-10 | K21: =(45+34.62)/20 -> 3.98 | L21: Não | O21: Não
B22: InstaAgro - https://www.instaagro.com/tubo-gotejador-amnondrip-nd-17mm-25-mil-2-2-l-h-40cm-500m-naandan?gad_source=4&gad_campaignid=22678466632&gbraid=0AAAAAC0h8RIvQhPzXdNKld4Pt7BPg80K-&gclid=CjwKCAiAt8bIBhBpEiwAzH1w6c8jacwwb_yG9rK5jpdfp74l-n9nP60aynkf0OdfvZLTP806Lf2rjRoC6LAQAvD_BwE | J22: 2025-11-10 | K22: 2.11 | L22: =IF(ISNUMBER(K22),IF($L$32=$O$18,O22,IF($L$32=$P$18,P22,"")),"") -> Sim | O22: Sim
B23: Dr.IRRIGAÇÃO - https://doutorirrigacao.com.br/rain-bird/tubo-gotejador-ag-flex-pc-15mm-rain-bird-p?produto=4097&srsltid=AfmBOopCNvVV7Bt5L6awDPnCwgi4tVueei2RzEmSlp81WlG8rxavpxWKaoY | J23: 2025-11-10 | K23: =(1218.61+365.01)/600 -> 2.64 | L23: Sim | O23: Sim
B24: https://agroclique.com.br/produto/tubo-gotejador-irritec-p5-16mm-15l-h-15mil-20cm-bobina-c-1300m/?srsltid=AfmBOoo1HSWGC9FQpGYG9aaTlEWebaYeGds78RWugrU4WDCkyLTr4Ez- | J24: 2026-02-27 | K24: 1.94 | L24: Sim | O24: Sim
B30: Observações: | K30: Média: | L30: =IF($L$32="","Selecione metodologia para exclusão de preços",AVERAGE(IF($L$10:$L$29="Sim",$K$10:$K$29))) -> 2.23 | N30: Média (Cotações) | O30: =IF(COUNTIF(O19:O29,"Sim")<3,"N/D (são necessários pelo menos 3 preços)",AVERAGE(IF(O19:O29="Sim",$K19:$K29))) -> 1.79 | P30: =IF(COUNTIF(P19:P29,"Sim")<3,"N/D (são necessários pelo menos 3 preços)",AVERAGE(IF(P19:P29="Sim",$K19:$K29))) -> N/D (são necessários pelo menos 3 preços)
K31: Mediana: | L31: =IF($L$32="","Selecione metodologia para exclusão de preços",MEDIAN(IF($L$10:$L$29="Sim",$K$10:$K$29))) -> 2.11 | N31: Mediana (Cotações) | O31: =IF(COUNTIF(O19:O29,"Sim")<3,"N/D (são necessários pelo menos 3 preços)",MEDIAN(IF(O19:O29="Sim",$K19:$K29))) -> 1.94 | P31: =IF(COUNTIF(P19:P29,"Sim")<3,"N/D (são necessários pelo menos 3 preços)",MEDIAN(IF(P19:P29="Sim",$K19:$K29))) -> N/D (são necessários pelo menos 3 preços)
B32: Metodologia de exclusão de preços adotada: | L32: =IF(O35="",INDEX(O18:P18,MATCH(MIN(#REF!),#REF!,0)),O35) -> Outliers | N32: CV (Cotações) | O32: =IF(COUNTIF(O19:O29,"Sim")<3,"N/D (são necessários pelo menos 3 preços)",_xlfn.STDEV.S(IF(O19:O29="Sim",$K19:$K29))/AVERAGE(IF(O19:O29="Sim",$K19:$K29))) -> 0.3745 | P32: =IF(COUNTIF(P19:P29,"Sim")<3,"N/D (são necessários pelo menos 3 preços)",_xlfn.STDEV.S(IF(P19:P29="Sim",$K19:$K29))/AVERAGE(IF(P19:P29="Sim",$K19:$K29))) -> N/D (são necessários pelo menos 3 preços)
N33: Média | O33: =IF(SUM(COUNTIF($O$10:$O$16,"Sim")) + SUM(COUNTIF(O19:O29,"Sim")) < 3, "N/D (são necessários pelo menos 3 preços)", IFERROR(AVERAGE(_xlfn._xlws.FILTER($K$10:$K$16,$O$10:$O$16="Sim"), _xlfn._xlws.FILTER($K$19:$K$29,O19:O29="Sim")),O30)) -> 1.79 | P33: =IF(SUM(COUNTIF($P$10:$P$16,"Sim")) + SUM(COUNTIF(P19:P29,"Sim")) < 3, "N/D (são necessários pelo menos 3 preços)", IFERROR(AVERAGE(_xlfn._xlws.FILTER($K$10:$K$16,$P$10:$P$16="Sim"), _xlfn._xlws.FILTER($K$19:$K$29,P19:P29="Sim")),P30)) -> N/D (são necessários pelo menos 3 preços)
N34: Mediana | O34: =IF(SUM(COUNTIF($O$10:$O$16,"Sim")) + SUM(COUNTIF(O19:O29,"Sim")) < 3, "N/D (são necessários pelo menos 3 preços)", IFERROR(MEDIAN(_xlfn._xlws.FILTER($K$10:$K$16,$O$10:$O$16="Sim"), _xlfn._xlws.FILTER($K$19:$K$29,O19:O29="Sim")),O31)) -> 1.94 | P34: =IF(SUM(COUNTIF($P10:$P$16,"Sim")) + SUM(COUNTIF(P19:P29,"Sim")) < 3, "N/D (são necessários pelo menos 3 preços)", IFERROR(MEDIAN(_xlfn._xlws.FILTER($K$10:$K$16,$P$10:$P$16="Sim"), _xlfn._xlws.FILTER($K$19:$K$29,P19:P29="Sim")),P31)) -> N/D (são necessários pelo menos 3 preços)
B35: COSOLIDAÇÃO DOS PREÇOS | N35: Metodologia a adotar: | O35: =IF(INDEX(O18:P18,P35)=0,"",INDEX(O18:P18,P35)) -> Outliers | P35: 1
B37: PREÇO UNITÁRIO ESTIMADO ADOTADO: | L37: =IF($B$39="Mediana:",L31,L30) -> 2.11
A39: =O18 -> Outliers | B39: Mediana:
A40: =P18 -> Por critério do(a) analista

Sheet COT03 (hidden)
B2: Processo | C2: 59500.003753/2025-45
B3: Responsável | C3: Kaio Gabriel, Alessandra Brant, Alberto Nascimento
B4: Área de Origem | C4: AI/GAP/UGI
B5: Data da pesquisa
B7: ITEM: | C7: VÁLVULA ANTIVÁCUO 1/2" | I7: UNIDADE DE MEDIDA: | J7: unidade | K7: QUANTIDADE: | L7: 12 | O7: Tabela auxiliar de metodologias para exclusão de preços
B8: LICITAÇÕES ANTERIORES | O8: Licitações Anteriores
B9: Órgão | C9: Edital/Ano - Nº do Lote / Item | D9: Quantidade | E9: Valor Unitário | F9: Data | G9: índice de atualização (nome) | H9: I0 | I9: If | J9: Variação acumulada do índice (%) | K9: Preço unitário atualizado | L9: Utilizar? (Sim/Não) | O9: Outliers | P9: Por critério do(a) analista
J10: =IF(ISBLANK(E10),"",IF(ISNUMBER(H10),(I10-H10)/H10,0)) ->  | K10: =IF(ISBLANK(E10),"",E10*(1+J10)) ->  | L10: =IF(ISNUMBER(K10),IF($L$32<>$P$9,O10,P10),"") ->  | O10: =IF(ISNUMBER(K10),IF(OR(K10<_xlfn.QUARTILE.INC($K$10:$K$29,1)-1.5*(_xlfn.QUARTILE.INC($K$10:K29,3)-_xlfn.QUARTILE.INC($K$10:$K$29,1)),K10>_xlfn.QUARTILE.INC($K$10:$K$29,3)+1.5*(_xlfn.QUARTILE.INC($K$10:$K$29,3)-_xlfn.QUARTILE.INC($K$10:$K$29,1))),"Não","Sim"),"") -> 
J11: =IF(ISBLANK(E11),"",IF(ISNUMBER(H11),(I11-H11)/H11,0)) ->  | K11: =IF(ISBLANK(E11),"",E11*(1+J11)) ->  | O11: =IF(ISNUMBER(K11),IF(OR(K11<_xlfn.QUARTILE.INC($K$10:$K$29,1)-1.5*(_xlfn.QUARTILE.INC($K$10:K29,3)-_xlfn.QUARTILE.INC($K$10:$K$29,1)),K11>_xlfn.QUARTILE.INC($K$10:$K$29,3)+1.5*(_xlfn.QUARTILE.INC($K$10:$K$29,3)-_xlfn.QUARTILE.INC($K$10:$K$29,1))),"Não","Sim"),"") -> 
O12: =IF(ISNUMBER(K12),IF(OR(K12<_xlfn.QUARTILE.INC($K$10:$K$29,1)-1.5*(_xlfn.QUARTILE.INC($K$10:K30,3)-_xlfn.QUARTILE.INC($K$10:$K$29,1)),K12>_xlfn.QUARTILE.INC($K$10:$K$29,3)+1.5*(_xlfn.QUARTILE.INC($K$10:$K$29,3)-_xlfn.QUARTILE.INC($K$10:$K$29,1))),"Não","Sim"),"") -> 
O13: =IF(ISNUMBER(K13),IF(OR(K13<_xlfn.QUARTILE.INC($K$10:$K$29,1)-1.5*(_xlfn.QUARTILE.INC($K$10:K31,3)-_xlfn.QUARTILE.INC($K$10:$K$29,1)),K13>_xlfn.QUARTILE.INC($K$10:$K$29,3)+1.5*(_xlfn.QUARTILE.INC($K$10:$K$29,3)-_xlfn.QUARTILE.INC($K$10:$K$29,1))),"Não","Sim"),"") -> 
O14: =IF(ISNUMBER(K14),IF(OR(K14<_xlfn.QUARTILE.INC($K$10:$K$29,1)-1.5*(_xlfn.QUARTILE.INC($K$10:K32,3)-_xlfn.QUARTILE.INC($K$10:$K$29,1)),K14>_xlfn.QUARTILE.INC($K$10:$K$29,3)+1.5*(_xlfn.QUARTILE.INC($K$10:$K$29,3)-_xlfn.QUARTILE.INC($K$10:$K$29,1))),"Não","Sim"),"") -> 
O15: =IF(ISNUMBER(K15),IF(OR(K15<_xlfn.QUARTILE.INC($K$10:$K$29,1)-1.5*(_xlfn.QUARTILE.INC($K$10:K35,3)-_xlfn.QUARTILE.INC($K$10:$K$29,1)),K15>_xlfn.QUARTILE.INC($K$10:$K$29,3)+1.5*(_xlfn.QUARTILE.INC($K$10:$K$29,3)-_xlfn.QUARTILE.INC($K$10:$K$29,1))),"Não","Sim"),"") -> 
O16: =IF(ISNUMBER(K16),IF(OR(K16<_xlfn.QUARTILE.INC($K$10:$K$29,1)-1.5*(_xlfn.QUARTILE.INC($I$10:I37,3)-_xlfn.QUARTILE.INC($K$10:$K$29,1)),K16>_xlfn.QUARTILE.INC($K$10:$K$29,3)+1.5*(_xlfn.QUARTILE.INC($K$10:$K$29,3)-_xlfn.QUARTILE.INC($K$10:$K$29,1))),"Não","Sim"),"") -> 
B17: COTAÇÕES DE MERCADO | O17: Cotações
B18: Empresa | J18: Data | K18: Preço Unitário | L18: Utilizar? (Sim/Não) | O18: Outliers | P18: Por critério do(a) analista
B19: BRASMAQUINAS COMERCIO DE MAQUINAS E IRRIGACAO LTDA (CNPJ : 00145531000334) E-mail: MARCOS.GOMES@BRASMAQUINAS.COM.BR | J19: 2025-08-22 | K19: 7.8 | L19: =IF(ISNUMBER(K19),IF($L$32=$O$18,O19,IF($L$32=$P$18,P19,"")),"") -> Não | O19: =IF(ISNUMBER(K19),IF(OR(K19<_xlfn.QUARTILE.INC($K$10:$K$29,1)-1.5*(_xlfn.QUARTILE.INC($K$10:$K$29,3)-_xlfn.QUARTILE.INC($K$10:$K$29,1)),K19>_xlfn.QUARTILE.INC($K$10:$K$29,3)+1.5*(_xlfn.QUARTILE.INC($K$10:$K$29,3)-_xlfn.QUARTILE.INC($K$10:$K$29,1))),"Não","Sim"),"") -> Não
B20: IRRIGASOL Irrigação e energia Solar LTDA (CNPJ: 46.152.561/0001-07) E-mail:irrigasol.mgmontalvania@gmail.com | J20: 2025-09-11 | K20: 10 | L20: Sim | O20: Sim
B21: VCA IRRIGAÇÃO LTDA (CNPJ: 26.466.226/0001-76) financeiro@minasbombas.com.br | J21: 2025-08-27 | K21: 25 | L21: Não | O21: Não
B22: BioSementes Plantando Soluções - https://www.biosementes.com.br/loja/item/Valvula-de-ar-anti%252dvacuo-ventosa-com-rosca-de-1%7B47%7D2.html | J22: 2025-11-10 | K22: =8.33+(14.27/12) -> 9.52 | L22: Sim | O22: Sim
B23: Casa Irriga (Sua casa da Irrigação) - Belo Horizonte - Minas Gerais - CNPJ: 23.794.485/0001-38 . https://casairriga.com.br/produto/valvula-anti-vacuo-ventosa-1-2/?srsltid=AfmBOoqwfSpMrKqEk6JKVuhCDgazF2Y-fS3jc2u6SZ-ApuKdSJu-Gzpp | J23: 2025-11-10 | K23: =7+(29.41/12) -> 9.45 | L23: Sim | O23: Sim
B30: Observações: | K30: Média: | L30: =IF($L$32="","Selecione metodologia para exclusão de preços",AVERAGE(IF($L$10:$L$29="Sim",$K$10:$K$29))) -> 9.66 | N30: Média (Cotações) | O30: =IF(COUNTIF(O19:O29,"Sim")<3,"N/D (são necessários pelo menos 3 preços)",AVERAGE(IF(O19:O29="Sim",$K19:$K29))) -> 9.66 | P30: =IF(COUNTIF(P19:P29,"Sim")<3,"N/D (são necessários pelo menos 3 preços)",AVERAGE(IF(P19:P29="Sim",$K19:$K29))) -> N/D (são necessários pelo menos 3 preços)
K31: Mediana: | L31: =IF($L$32="","Selecione metodologia para exclusão de preços",MEDIAN(IF($L$10:$L$29="Sim",$K$10:$K$29))) -> 9.52 | N31: Mediana (Cotações) | O31: =IF(COUNTIF(O19:O29,"Sim")<3,"N/D (são necessários pelo menos 3 preços)",MEDIAN(IF(O19:O29="Sim",$K19:$K29))) -> 9.52 | P31: =IF(COUNTIF(P19:P29,"Sim")<3,"N/D (são necessários pelo menos 3 preços)",MEDIAN(IF(P19:P29="Sim",$K19:$K29))) -> N/D (são necessários pelo menos 3 preços)
B32: Metodologia de exclusão de preços adotada: | L32: =IF(O35="",INDEX(O18:P18,MATCH(MIN(#REF!),#REF!,0)),O35) -> Outliers | N32: CV (Cotações) | O32: =IF(COUNTIF(O19:O29,"Sim")<3,"N/D (são necessários pelo menos 3 preços)",_xlfn.STDEV.S(IF(O19:O29="Sim",$K19:$K29))/AVERAGE(IF(O19:O29="Sim",$K19:$K29))) -> 0.031 | P32: =IF(COUNTIF(P19:P29,"Sim")<3,"N/D (são necessários pelo menos 3 preços)",_xlfn.STDEV.S(IF(P19:P29="Sim",$K19:$K29))/AVERAGE(IF(P19:P29="Sim",$K19:$K29))) -> N/D (são necessários pelo menos 3 preços)
N33: Média | O33: =IF(SUM(COUNTIF($O$10:$O$16,"Sim")) + SUM(COUNTIF(O19:O29,"Sim")) < 3, "N/D (são necessários pelo menos 3 preços)", IFERROR(AVERAGE(_xlfn._xlws.FILTER($K$10:$K$16,$O$10:$O$16="Sim"), _xlfn._xlws.FILTER($K$19:$K$29,O19:O29="Sim")),O30)) -> 9.66 | P33: =IF(SUM(COUNTIF($P$10:$P$16,"Sim")) + SUM(COUNTIF(P19:P29,"Sim")) < 3, "N/D (são necessários pelo menos 3 preços)", IFERROR(AVERAGE(_xlfn._xlws.FILTER($K$10:$K$16,$P$10:$P$16="Sim"), _xlfn._xlws.FILTER($K$19:$K$29,P19:P29="Sim")),P30)) -> N/D (são necessários pelo menos 3 preços)
N34: Mediana | O34: =IF(SUM(COUNTIF($O$10:$O$16,"Sim")) + SUM(COUNTIF(O19:O29,"Sim")) < 3, "N/D (são necessários pelo menos 3 preços)", IFERROR(MEDIAN(_xlfn._xlws.FILTER($K$10:$K$16,$O$10:$O$16="Sim"), _xlfn._xlws.FILTER($K$19:$K$29,O19:O29="Sim")),O31)) -> 9.52 | P34: =IF(SUM(COUNTIF($P10:$P$16,"Sim")) + SUM(COUNTIF(P19:P29,"Sim")) < 3, "N/D (são necessários pelo menos 3 preços)", IFERROR(MEDIAN(_xlfn._xlws.FILTER($K$10:$K$16,$P$10:$P$16="Sim"), _xlfn._xlws.FILTER($K$19:$K$29,P19:P29="Sim")),P31)) -> N/D (são necessários pelo menos 3 preços)
B35: COSOLIDAÇÃO DOS PREÇOS | N35: Metodologia a adotar: | O35: =IF(INDEX(O18:P18,P35)=0,"",INDEX(O18:P18,P35)) -> Outliers | P35: 1
B37: PREÇO UNITÁRIO ESTIMADO ADOTADO: | L37: =IF($B$39="Mediana:",L31,L30) -> 9.52
A39: =O18 -> Outliers | B39: Mediana:
A40: =P18 -> Por critério do(a) analista

Sheet COT04 (hidden)
B2: Processo | C2: 59500.003753/2025-45
B3: Responsável | C3: Kaio Gabriel, Alessandra Brant, Alberto Nascimento
B4: Área de Origem | C4: AI/GAP/UGI
B5: Data da pesquisa
B7: ITEM: | C7: VÁLVULA VENTOSA TRÍPLICE FUNÇÃO 2" | I7: UNIDADE DE MEDIDA: | J7: unidade | K7: QUANTIDADE: | L7: 4 | O7: Tabela auxiliar de metodologias para exclusão de preços
B8: LICITAÇÕES ANTERIORES | O8: Licitações Anteriores
B9: Órgão | C9: Edital/Ano - Nº do Lote / Item | D9: Quantidade | E9: Valor Unitário | F9: Data | G9: índice de atualização (nome) | H9: I0 | I9: If | J9: Variação acumulada do índice (%) | K9: Preço unitário atualizado | L9: Utilizar? (Sim/Não) | O9: Outliers | P9: Por critério do(a) analista
J10: =IF(ISBLANK(E10),"",IF(ISNUMBER(H10),(I10-H10)/H10,0)) ->  | K10: =IF(ISBLANK(E10),"",E10*(1+J10)) ->  | L10: =IF(ISNUMBER(K10),IF($L$32<>$P$9,O10,P10),"") ->  | O10: =IF(ISNUMBER(K10),IF(OR(K10<_xlfn.QUARTILE.INC($K$10:$K$29,1)-1.5*(_xlfn.QUARTILE.INC($K$10:K29,3)-_xlfn.QUARTILE.INC($K$10:$K$29,1)),K10>_xlfn.QUARTILE.INC($K$10:$K$29,3)+1.5*(_xlfn.QUARTILE.INC($K$10:$K$29,3)-_xlfn.QUARTILE.INC($K$10:$K$29,1))),"Não","Sim"),"") -> 
J11: =IF(ISBLANK(E11),"",IF(ISNUMBER(H11),(I11-H11)/H11,0)) ->  | K11: =IF(ISBLANK(E11),"",E11*(1+J11)) ->  | O11: =IF(ISNUMBER(K11),IF(OR(K11<_xlfn.QUARTILE.INC($K$10:$K$29,1)-1.5*(_xlfn.QUARTILE.INC($K$10:K29,3)-_xlfn.QUARTILE.INC($K$10:$K$29,1)),K11>_xlfn.QUARTILE.INC($K$10:$K$29,3)+1.5*(_xlfn.QUARTILE.INC($K$10:$K$29,3)-_xlfn.QUARTILE.INC($K$10:$K$29,1))),"Não","Sim"),"") -> 
O12: =IF(ISNUMBER(K12),IF(OR(K12<_xlfn.QUARTILE.INC($K$10:$K$29,1)-1.5*(_xlfn.QUARTILE.INC($K$10:K30,3)-_xlfn.QUARTILE.INC($K$10:$K$29,1)),K12>_xlfn.QUARTILE.INC($K$10:$K$29,3)+1.5*(_xlfn.QUARTILE.INC($K$10:$K$29,3)-_xlfn.QUARTILE.INC($K$10:$K$29,1))),"Não","Sim"),"") -> 
O13: =IF(ISNUMBER(K13),IF(OR(K13<_xlfn.QUARTILE.INC($K$10:$K$29,1)-1.5*(_xlfn.QUARTILE.INC($K$10:K31,3)-_xlfn.QUARTILE.INC($K$10:$K$29,1)),K13>_xlfn.QUARTILE.INC($K$10:$K$29,3)+1.5*(_xlfn.QUARTILE.INC($K$10:$K$29,3)-_xlfn.QUARTILE.INC($K$10:$K$29,1))),"Não","Sim"),"") -> 
O14: =IF(ISNUMBER(K14),IF(OR(K14<_xlfn.QUARTILE.INC($K$10:$K$29,1)-1.5*(_xlfn.QUARTILE.INC($K$10:K32,3)-_xlfn.QUARTILE.INC($K$10:$K$29,1)),K14>_xlfn.QUARTILE.INC($K$10:$K$29,3)+1.5*(_xlfn.QUARTILE.INC($K$10:$K$29,3)-_xlfn.QUARTILE.INC($K$10:$K$29,1))),"Não","Sim"),"") -> 
O15: =IF(ISNUMBER(K15),IF(OR(K15<_xlfn.QUARTILE.INC($K$10:$K$29,1)-1.5*(_xlfn.QUARTILE.INC($K$10:K35,3)-_xlfn.QUARTILE.INC($K$10:$K$29,1)),K15>_xlfn.QUARTILE.INC($K$10:$K$29,3)+1.5*(_xlfn.QUARTILE.INC($K$10:$K$29,3)-_xlfn.QUARTILE.INC($K$10:$K$29,1))),"Não","Sim"),"") -> 
O16: =IF(ISNUMBER(K16),IF(OR(K16<_xlfn.QUARTILE.INC($K$10:$K$29,1)-1.5*(_xlfn.QUARTILE.INC($I$10:I37,3)-_xlfn.QUARTILE.INC($K$10:$K$29,1)),K16>_xlfn.QUARTILE.INC($K$10:$K$29,3)+1.5*(_xlfn.QUARTILE.INC($K$10:$K$29,3)-_xlfn.QUARTILE.INC($K$10:$K$29,1))),"Não","Sim"),"") -> 
B17: COTAÇÕES DE MERCADO | O17: Cotações
B18: Empresa | J18: Data | K18: Preço Unitário | L18: Utilizar? (Sim/Não) | O18: Outliers | P18: Por critério do(a) analista
B19: BRASMAQUINAS COMERCIO DE MAQUINAS E IRRIGACAO LTDA (CNPJ : 00145531000334) E-mail: MARCOS.GOMES@BRASMAQUINAS.COM.BR | J19: 2025-08-22 | K19: 600 | L19: Não | O19: =IF(ISNUMBER(K19),IF(OR(K19<_xlfn.QUARTILE.INC($K$10:$K$29,1)-1.5*(_xlfn.QUARTILE.INC($K$10:$K$29,3)-_xlfn.QUARTILE.INC($K$10:$K$29,1)),K19>_xlfn.QUARTILE.INC($K$10:$K$29,3)+1.5*(_xlfn.QUARTILE.INC($K$10:$K$29,3)-_xlfn.QUARTILE.INC($K$10:$K$29,1))),"Não","Sim"),"") -> Sim
B20: IRRIGASOL Irrigação e energia Solar LTDA (CNPJ: 46.152.561/0001-07) E-mail:irrigasol.mgmontalvania@gmail.com | J20: 2025-09-11 | K20: 680 | L20: =IF(ISNUMBER(K20),IF($L$32=$O$18,O20,IF($L$32=$P$18,P20,"")),"") -> Sim | O20: Sim
B21: VCA IRRIGAÇÃO LTDA (CNPJ: 26.466.226/0001-76) financeiro@minasbombas.com.br | J21: 2025-08-27 | K21: 789.3 | L21: Não | O21: Sim
B22: Mercado Livre (SOL IRRIGAÇÕES) - https://www.mercadolivre.com.br/valvula-ventosa-triplice-funcao-2-bermad--irrigacao/up/MLBU1967719871?pdp_filters=item_id:MLB2794565501&matt_tool=47245019&matt_internal_campaign_id=&matt_word=&matt_source=google&matt_campaign_id=22090193657&matt_ad_group_id=174661937964&matt_match_type=&matt_network=g&matt_device=c&matt_creative=727914177979&matt_keyword=&matt_ad_position=&matt_ad_type=pla&matt_merchant_id=585583136&matt_product_id=MLB2794565501&matt_product_partition_id=2388289299721&matt_target_id=pla-2388289299721&cq_src=google_ads&cq_cmp=22090193657&cq_net=g&cq_plt=gp&cq_med=pla&gad_source=1&gad_campaignid=22090193657&gbraid=0AAAAAD93qcAzu2W_9atGdVGQQOCkUU-v_&gclid=CjwKCAiAt8bIBhBpEiwAzH1w6RJN1VyNVcy0qbQELfbiwVeBA6n8hpbmK7LYDG-Zlwb6yv3rm9_-2hoC9ocQAvD_BwE | J22: 2025-11-10 | K22: 675.9 | L22: Sim | O22: Sim
B23: SEOAGRO - https://www.seoagro.com.br/valvula-ventosa-triplo-efeito-2?srsltid=AfmBOopTD11BN6VrS0qizA8juFwSqBeqixExdkeOVwaTUCoXRHehHcvm | J23: 2025-11-10 | K23: =(696.9+31.51) -> 728.41 | L23: Sim | O23: Sim
B24: Casa Irriga - https://casairriga.com.br/produto/valvula-ventosa-triplice-funcao-triplo-efeito-2-polegadas-compact/?srsltid=AfmBOoq9ghGdypsZkUSPRwmO3VhaGQ8BrSZBM0jkTEPZDmbWZoGJvmAM | J24: 2025-11-10 | K24: =560+34.62 -> 594.62 | L24: Sim | O24: Sim
B30: Observações: | K30: Média: | L30: =IF($L$32="","Selecione metodologia para exclusão de preços",AVERAGE(IF($L$10:$L$29="Sim",$K$10:$K$29))) -> 669.73 | N30: Média (Cotações) | O30: =IF(COUNTIF(O19:O29,"Sim")<3,"N/D (são necessários pelo menos 3 preços)",AVERAGE(IF(O19:O29="Sim",$K19:$K29))) -> 678.04 | P30: =IF(COUNTIF(P19:P29,"Sim")<3,"N/D (são necessários pelo menos 3 preços)",AVERAGE(IF(P19:P29="Sim",$K19:$K29))) -> N/D (são necessários pelo menos 3 preços)
K31: Mediana: | L31: =IF($L$32="","Selecione metodologia para exclusão de preços",MEDIAN(IF($L$10:$L$29="Sim",$K$10:$K$29))) -> 677.95 | N31: Mediana (Cotações) | O31: =IF(COUNTIF(O19:O29,"Sim")<3,"N/D (são necessários pelo menos 3 preços)",MEDIAN(IF(O19:O29="Sim",$K19:$K29))) -> 677.95 | P31: =IF(COUNTIF(P19:P29,"Sim")<3,"N/D (são necessários pelo menos 3 preços)",MEDIAN(IF(P19:P29="Sim",$K19:$K29))) -> N/D (são necessários pelo menos 3 preços)
B32: Metodologia de exclusão de preços adotada: | L32: =IF(O35="",INDEX(O18:P18,MATCH(MIN(#REF!),#REF!,0)),O35) -> Outliers | N32: CV (Cotações) | O32: =IF(COUNTIF(O19:O29,"Sim")<3,"N/D (são necessários pelo menos 3 preços)",_xlfn.STDEV.S(IF(O19:O29="Sim",$K19:$K29))/AVERAGE(IF(O19:O29="Sim",$K19:$K29))) -> 0.1103 | P32: =IF(COUNTIF(P19:P29,"Sim")<3,"N/D (são necessários pelo menos 3 preços)",_xlfn.STDEV.S(IF(P19:P29="Sim",$K19:$K29))/AVERAGE(IF(P19:P29="Sim",$K19:$K29))) -> N/D (são necessários pelo menos 3 preços)
N33: Média | O33: =IF(SUM(COUNTIF($O$10:$O$16,"Sim")) + SUM(COUNTIF(O19:O29,"Sim")) < 3, "N/D (são necessários pelo menos 3 preços)", IFERROR(AVERAGE(_xlfn._xlws.FILTER($K$10:$K$16,$O$10:$O$16="Sim"), _xlfn._xlws.FILTER($K$19:$K$29,O19:O29="Sim")),O30)) -> 678.04 | P33: =IF(SUM(COUNTIF($P$10:$P$16,"Sim")) + SUM(COUNTIF(P19:P29,"Sim")) < 3, "N/D (são necessários pelo menos 3 preços)", IFERROR(AVERAGE(_xlfn._xlws.FILTER($K$10:$K$16,$P$10:$P$16="Sim"), _xlfn._xlws.FILTER($K$19:$K$29,P19:P29="Sim")),P30)) -> N/D (são necessários pelo menos 3 preços)
N34: Mediana | O34: =IF(SUM(COUNTIF($O$10:$O$16,"Sim")) + SUM(COUNTIF(O19:O29,"Sim")) < 3, "N/D (são necessários pelo menos 3 preços)", IFERROR(MEDIAN(_xlfn._xlws.FILTER($K$10:$K$16,$O$10:$O$16="Sim"), _xlfn._xlws.FILTER($K$19:$K$29,O19:O29="Sim")),O31)) -> 677.95 | P34: =IF(SUM(COUNTIF($P10:$P$16,"Sim")) + SUM(COUNTIF(P19:P29,"Sim")) < 3, "N/D (são necessários pelo menos 3 preços)", IFERROR(MEDIAN(_xlfn._xlws.FILTER($K$10:$K$16,$P$10:$P$16="Sim"), _xlfn._xlws.FILTER($K$19:$K$29,P19:P29="Sim")),P31)) -> N/D (são necessários pelo menos 3 preços)
B35: COSOLIDAÇÃO DOS PREÇOS | N35: Metodologia a adotar: | O35: =IF(INDEX(O18:P18,P35)=0,"",INDEX(O18:P18,P35)) -> Outliers | P35: 1
B37: PREÇO UNITÁRIO ESTIMADO ADOTADO: | L37: =IF($B$39="Mediana:",L31,L30) -> 669.73
A39: =O18 -> Outliers | B39: Média:
A40: =P18 -> Por critério do(a) analista

Sheet COT05 (hidden)
B2: Processo | C2: 59500.003753/2025-45
B3: Responsável | C3: Kaio Gabriel, Alessandra Brant, Alberto Nascimento
B4: Área de Origem | C4: AI/GAP/UGI
B5: Data da pesquisa
B7: ITEM: | C7: COLAR DE TOMADA 50X1/2" | I7: UNIDADE DE MEDIDA: | J7: unidade | K7: QUANTIDADE: | L7: 12 | O7: Tabela auxiliar de metodologias para exclusão de preços
B8: LICITAÇÕES ANTERIORES | O8: Licitações Anteriores
B9: Órgão | C9: Edital/Ano - Nº do Lote / Item | D9: Quantidade | E9: Valor Unitário | F9: Data | G9: índice de atualização (nome) | H9: I0 | I9: If | J9: Variação acumulada do índice (%) | K9: Preço unitário atualizado | L9: Utilizar? (Sim/Não) | O9: Outliers | P9: Por critério do(a) analista
J10: =IF(ISBLANK(E10),"",IF(ISNUMBER(H10),(I10-H10)/H10,0)) ->  | K10: =IF(ISBLANK(E10),"",E10*(1+J10)) ->  | L10: =IF(ISNUMBER(K10),IF($L$32<>$P$9,O10,P10),"") ->  | O10: =IF(ISNUMBER(K10),IF(OR(K10<_xlfn.QUARTILE.INC($K$10:$K$29,1)-1.5*(_xlfn.QUARTILE.INC($K$10:K29,3)-_xlfn.QUARTILE.INC($K$10:$K$29,1)),K10>_xlfn.QUARTILE.INC($K$10:$K$29,3)+1.5*(_xlfn.QUARTILE.INC($K$10:$K$29,3)-_xlfn.QUARTILE.INC($K$10:$K$29,1))),"Não","Sim"),"") -> 
J11: =IF(ISBLANK(E11),"",IF(ISNUMBER(H11),(I11-H11)/H11,0)) ->  | K11: =IF(ISBLANK(E11),"",E11*(1+J11)) ->  | O11: =IF(ISNUMBER(K11),IF(OR(K11<_xlfn.QUARTILE.INC($K$10:$K$29,1)-1.5*(_xlfn.QUARTILE.INC($K$10:K29,3)-_xlfn.QUARTILE.INC($K$10:$K$29,1)),K11>_xlfn.QUARTILE.INC($K$10:$K$29,3)+1.5*(_xlfn.QUARTILE.INC($K$10:$K$29,3)-_xlfn.QUARTILE.INC($K$10:$K$29,1))),"Não","Sim"),"") -> 
O12: =IF(ISNUMBER(K12),IF(OR(K12<_xlfn.QUARTILE.INC($K$10:$K$29,1)-1.5*(_xlfn.QUARTILE.INC($K$10:K30,3)-_xlfn.QUARTILE.INC($K$10:$K$29,1)),K12>_xlfn.QUARTILE.INC($K$10:$K$29,3)+1.5*(_xlfn.QUARTILE.INC($K$10:$K$29,3)-_xlfn.QUARTILE.INC($K$10:$K$29,1))),"Não","Sim"),"") -> 
O13: =IF(ISNUMBER(K13),IF(OR(K13<_xlfn.QUARTILE.INC($K$10:$K$29,1)-1.5*(_xlfn.QUARTILE.INC($K$10:K31,3)-_xlfn.QUARTILE.INC($K$10:$K$29,1)),K13>_xlfn.QUARTILE.INC($K$10:$K$29,3)+1.5*(_xlfn.QUARTILE.INC($K$10:$K$29,3)-_xlfn.QUARTILE.INC($K$10:$K$29,1))),"Não","Sim"),"") -> 
O14: =IF(ISNUMBER(K14),IF(OR(K14<_xlfn.QUARTILE.INC($K$10:$K$29,1)-1.5*(_xlfn.QUARTILE.INC($K$10:K32,3)-_xlfn.QUARTILE.INC($K$10:$K$29,1)),K14>_xlfn.QUARTILE.INC($K$10:$K$29,3)+1.5*(_xlfn.QUARTILE.INC($K$10:$K$29,3)-_xlfn.QUARTILE.INC($K$10:$K$29,1))),"Não","Sim"),"") -> 
O15: =IF(ISNUMBER(K15),IF(OR(K15<_xlfn.QUARTILE.INC($K$10:$K$29,1)-1.5*(_xlfn.QUARTILE.INC($K$10:K35,3)-_xlfn.QUARTILE.INC($K$10:$K$29,1)),K15>_xlfn.QUARTILE.INC($K$10:$K$29,3)+1.5*(_xlfn.QUARTILE.INC($K$10:$K$29,3)-_xlfn.QUARTILE.INC($K$10:$K$29,1))),"Não","Sim"),"") -> 
O16: =IF(ISNUMBER(K16),IF(OR(K16<_xlfn.QUARTILE.INC($K$10:$K$29,1)-1.5*(_xlfn.QUARTILE.INC($I$10:I37,3)-_xlfn.QUARTILE.INC($K$10:$K$29,1)),K16>_xlfn.QUARTILE.INC($K$10:$K$29,3)+1.5*(_xlfn.QUARTILE.INC($K$10:$K$29,3)-_xlfn.QUARTILE.INC($K$10:$K$29,1))),"Não","Sim"),"") -> 
B17: COTAÇÕES DE MERCADO | O17: Cotações
B18: Empresa | J18: Data | K18: Preço Unitário | L18: Utilizar? (Sim/Não) | O18: Outliers | P18: Por critério do(a) analista
B19: BRASMAQUINAS COMERCIO DE MAQUINAS E IRRIGACAO LTDA (CNPJ : 00145531000334) E-mail: MARCOS.GOMES@BRASMAQUINAS.COM.BR | J19: 2025-08-22 | K19: 10 | L19: Não | O19: =IF(ISNUMBER(K19),IF(OR(K19<_xlfn.QUARTILE.INC($K$10:$K$29,1)-1.5*(_xlfn.QUARTILE.INC($K$10:$K$29,3)-_xlfn.QUARTILE.INC($K$10:$K$29,1)),K19>_xlfn.QUARTILE.INC($K$10:$K$29,3)+1.5*(_xlfn.QUARTILE.INC($K$10:$K$29,3)-_xlfn.QUARTILE.INC($K$10:$K$29,1))),"Não","Sim"),"") -> Sim
B20: IRRIGASOL Irrigação e energia Solar LTDA (CNPJ: 46.152.561/0001-07) E-mail:irrigasol.mgmontalvania@gmail.com | J20: 2025-09-11 | K20: 20 | L20: =IF(ISNUMBER(K20),IF($L$32=$O$18,O20,IF($L$32=$P$18,P20,"")),"") -> Sim | O20: Sim
B21: VCA IRRIGAÇÃO LTDA (CNPJ: 26.466.226/0001-76) financeiro@minasbombas.com.br | J21: 2025-08-27 | K21: 25.8 | L21: Não | O21: Sim
B22: Mercado Livre - HICRAUCONEX HIDRAULICOS: https://www.mercadolivre.com.br/colar-tomada-abracadeira-com-travas-50mm-x-12-polegada/up/MLBU2666634158?pdp_filters=item_id:MLB3895335107&matt_tool=48995110&matt_internal_campaign_id=&matt_word=&matt_source=google&matt_campaign_id=22603531562&matt_ad_group_id=181244933895&matt_match_type=&matt_network=g&matt_device=c&matt_creative=758138322200&matt_keyword=&matt_ad_position=&matt_ad_type=pla&matt_merchant_id=135360746&matt_product_id=MLB3895335107&matt_product_partition_id=2424443211326&matt_target_id=pla-2424443211326&cq_src=google_ads&cq_cmp=22603531562&cq_net=g&cq_plt=gp&cq_med=pla&gad_source=4&gad_campaignid=22603531562&gbraid=0AAAAAD93qcBzv0KGLLmjnLl7ejg3whoyo&gclid=CjwKCAiAt8bIBhBpEiwAzH1w6Uka2vWpdk6s9HbZBLN-pKMeszTSq84I-NHD3JSrZVHnyNPHB7dv3xoCJ2wQAvD_BwE | J22: 2025-11-10 | K22: 33.81 | L22: Sim | O22: Sim
B23: Plastolândia (Hidráulica e Plásticos Industriais) - https://www.plastolandia.com.br/colar-tomada-pvc-trava-50-mm-x-12-tigre | J23: 2025-11-10 | K23: =13.05+(36.19/12) -> 16.07 | L23: Sim | O23: Sim
B24: Ferreira Gonçalves - https://www.cfg.com.br/colar-tomada-pvc-com-travas-50mm-x-1-2--tigre--23045125-1702/p?srsltid=AfmBOooSOzfgCu_FlpNgoMgFLNPjo3zdccFQyYddjB1_mbn_WULnqpOf | J24: 2025-11-10 | K24: =6.38+(34.53/10) -> 9.83 | L24: Sim | O24: Sim
B30: Observações: | K30: Média: | L30: =IF($L$32="","Selecione metodologia para exclusão de preços",AVERAGE(IF($L$10:$L$29="Sim",$K$10:$K$29))) -> 19.93 | N30: Média (Cotações) | O30: =IF(COUNTIF(O19:O29,"Sim")<3,"N/D (são necessários pelo menos 3 preços)",AVERAGE(IF(O19:O29="Sim",$K19:$K29))) -> 19.25 | P30: =IF(COUNTIF(P19:P29,"Sim")<3,"N/D (são necessários pelo menos 3 preços)",AVERAGE(IF(P19:P29="Sim",$K19:$K29))) -> N/D (são necessários pelo menos 3 preços)
K31: Mediana: | L31: =IF($L$32="","Selecione metodologia para exclusão de preços",MEDIAN(IF($L$10:$L$29="Sim",$K$10:$K$29))) -> 18.04 | N31: Mediana (Cotações) | O31: =IF(COUNTIF(O19:O29,"Sim")<3,"N/D (são necessários pelo menos 3 preços)",MEDIAN(IF(O19:O29="Sim",$K19:$K29))) -> 18.04 | P31: =IF(COUNTIF(P19:P29,"Sim")<3,"N/D (são necessários pelo menos 3 preços)",MEDIAN(IF(P19:P29="Sim",$K19:$K29))) -> N/D (são necessários pelo menos 3 preços)
B32: Metodologia de exclusão de preços adotada: | L32: =IF(O35="",INDEX(O18:P18,MATCH(MIN(#REF!),#REF!,0)),O35) -> Outliers | N32: CV (Cotações) | O32: =IF(COUNTIF(O19:O29,"Sim")<3,"N/D (são necessários pelo menos 3 preços)",_xlfn.STDEV.S(IF(O19:O29="Sim",$K19:$K29))/AVERAGE(IF(O19:O29="Sim",$K19:$K29))) -> 0.4872 | P32: =IF(COUNTIF(P19:P29,"Sim")<3,"N/D (são necessários pelo menos 3 preços)",_xlfn.STDEV.S(IF(P19:P29="Sim",$K19:$K29))/AVERAGE(IF(P19:P29="Sim",$K19:$K29))) -> N/D (são necessários pelo menos 3 preços)
N33: Média | O33: =IF(SUM(COUNTIF($O$10:$O$16,"Sim")) + SUM(COUNTIF(O19:O29,"Sim")) < 3, "N/D (são necessários pelo menos 3 preços)", IFERROR(AVERAGE(_xlfn._xlws.FILTER($K$10:$K$16,$O$10:$O$16="Sim"), _xlfn._xlws.FILTER($K$19:$K$29,O19:O29="Sim")),O30)) -> 19.25 | P33: =IF(SUM(COUNTIF($P$10:$P$16,"Sim")) + SUM(COUNTIF(P19:P29,"Sim")) < 3, "N/D (são necessários pelo menos 3 preços)", IFERROR(AVERAGE(_xlfn._xlws.FILTER($K$10:$K$16,$P$10:$P$16="Sim"), _xlfn._xlws.FILTER($K$19:$K$29,P19:P29="Sim")),P30)) -> N/D (são necessários pelo menos 3 preços)
N34: Mediana | O34: =IF(SUM(COUNTIF($O$10:$O$16,"Sim")) + SUM(COUNTIF(O19:O29,"Sim")) < 3, "N/D (são necessários pelo menos 3 preços)", IFERROR(MEDIAN(_xlfn._xlws.FILTER($K$10:$K$16,$O$10:$O$16="Sim"), _xlfn._xlws.FILTER($K$19:$K$29,O19:O29="Sim")),O31)) -> 18.04 | P34: =IF(SUM(COUNTIF($P10:$P$16,"Sim")) + SUM(COUNTIF(P19:P29,"Sim")) < 3, "N/D (são necessários pelo menos 3 preços)", IFERROR(MEDIAN(_xlfn._xlws.FILTER($K$10:$K$16,$P$10:$P$16="Sim"), _xlfn._xlws.FILTER($K$19:$K$29,P19:P29="Sim")),P31)) -> N/D (são necessários pelo menos 3 preços)
B35: COSOLIDAÇÃO DOS PREÇOS | N35: Metodologia a adotar: | O35: =IF(INDEX(O18:P18,P35)=0,"",INDEX(O18:P18,P35)) -> Outliers | P35: 1
B37: PREÇO UNITÁRIO ESTIMADO ADOTADO: | L37: =IF($B$39="Mediana:",L31,L30) -> 18.04
A39: =O18 -> Outliers | B39: Mediana:
A40: =P18 -> Por critério do(a) analista

Sheet COT06 (hidden)
B2: Processo | C2: 59500.003753/2025-45
B3: Responsável | C3: Kaio Gabriel, Alessandra Brant, Alberto Nascimento
B4: Área de Origem | C4: AI/GAP/UGI
B5: Data da pesquisa
B7: ITEM: | C7: MOTOBOMBA SUBMERSA 3HP 12m³/h + 43mca | I7: UNIDADE DE MEDIDA: | J7: Unidade | K7: QUANTIDADE: | L7: 1 | O7: Tabela auxiliar de metodologias para exclusão de preços
B8: LICITAÇÕES ANTERIORES | O8: Licitações Anteriores
B9: Órgão | C9: Edital/Ano - Nº do Lote / Item | D9: Quantidade | E9: Valor Unitário | F9: Data | G9: índice de atualização (nome) | H9: I0 | I9: If | J9: Variação acumulada do índice (%) | K9: Preço unitário atualizado | L9: Utilizar? (Sim/Não) | O9: Outliers | P9: Por critério do(a) analista
B10: Prefeitura Municipal de Ibiassucê | C10: ATA 030/2025 / Item 13 | D10: 4 | E10: 1390 | F10: 2025-10-02 | J10: =IF(ISBLANK(E10),"",IF(ISNUMBER(H10),(I10-H10)/H10,0)) -> 0 | K10: =IF(ISBLANK(E10),"",E10*(1+J10)) -> 1390 | L10: =IF(ISNUMBER(K10),IF($L$32<>$P$9,O10,P10),"") -> Sim | O10: =IF(ISNUMBER(K10),IF(OR(K10<_xlfn.QUARTILE.INC($K$10:$K$29,1)-1.5*(_xlfn.QUARTILE.INC($K$10:K29,3)-_xlfn.QUARTILE.INC($K$10:$K$29,1)),K10>_xlfn.QUARTILE.INC($K$10:$K$29,3)+1.5*(_xlfn.QUARTILE.INC($K$10:$K$29,3)-_xlfn.QUARTILE.INC($K$10:$K$29,1))),"Não","Sim"),"") -> Sim
J11: =IF(ISBLANK(E11),"",IF(ISNUMBER(H11),(I11-H11)/H11,0)) ->  | K11: =IF(ISBLANK(E11),"",E11*(1+J11)) ->  | O11: =IF(ISNUMBER(K11),IF(OR(K11<_xlfn.QUARTILE.INC($K$10:$K$29,1)-1.5*(_xlfn.QUARTILE.INC($K$10:K29,3)-_xlfn.QUARTILE.INC($K$10:$K$29,1)),K11>_xlfn.QUARTILE.INC($K$10:$K$29,3)+1.5*(_xlfn.QUARTILE.INC($K$10:$K$29,3)-_xlfn.QUARTILE.INC($K$10:$K$29,1))),"Não","Sim"),"") -> 
O12: =IF(ISNUMBER(K12),IF(OR(K12<_xlfn.QUARTILE.INC($K$10:$K$29,1)-1.5*(_xlfn.QUARTILE.INC($K$10:K30,3)-_xlfn.QUARTILE.INC($K$10:$K$29,1)),K12>_xlfn.QUARTILE.INC($K$10:$K$29,3)+1.5*(_xlfn.QUARTILE.INC($K$10:$K$29,3)-_xlfn.QUARTILE.INC($K$10:$K$29,1))),"Não","Sim"),"") -> 
O13: =IF(ISNUMBER(K13),IF(OR(K13<_xlfn.QUARTILE.INC($K$10:$K$29,1)-1.5*(_xlfn.QUARTILE.INC($K$10:K31,3)-_xlfn.QUARTILE.INC($K$10:$K$29,1)),K13>_xlfn.QUARTILE.INC($K$10:$K$29,3)+1.5*(_xlfn.QUARTILE.INC($K$10:$K$29,3)-_xlfn.QUARTILE.INC($K$10:$K$29,1))),"Não","Sim"),"") -> 
O14: =IF(ISNUMBER(K14),IF(OR(K14<_xlfn.QUARTILE.INC($K$10:$K$29,1)-1.5*(_xlfn.QUARTILE.INC($K$10:K32,3)-_xlfn.QUARTILE.INC($K$10:$K$29,1)),K14>_xlfn.QUARTILE.INC($K$10:$K$29,3)+1.5*(_xlfn.QUARTILE.INC($K$10:$K$29,3)-_xlfn.QUARTILE.INC($K$10:$K$29,1))),"Não","Sim"),"") -> 
O15: =IF(ISNUMBER(K15),IF(OR(K15<_xlfn.QUARTILE.INC($K$10:$K$29,1)-1.5*(_xlfn.QUARTILE.INC($K$10:K35,3)-_xlfn.QUARTILE.INC($K$10:$K$29,1)),K15>_xlfn.QUARTILE.INC($K$10:$K$29,3)+1.5*(_xlfn.QUARTILE.INC($K$10:$K$29,3)-_xlfn.QUARTILE.INC($K$10:$K$29,1))),"Não","Sim"),"") -> 
O16: =IF(ISNUMBER(K16),IF(OR(K16<_xlfn.QUARTILE.INC($K$10:$K$29,1)-1.5*(_xlfn.QUARTILE.INC($I$10:I37,3)-_xlfn.QUARTILE.INC($K$10:$K$29,1)),K16>_xlfn.QUARTILE.INC($K$10:$K$29,3)+1.5*(_xlfn.QUARTILE.INC($K$10:$K$29,3)-_xlfn.QUARTILE.INC($K$10:$K$29,1))),"Não","Sim"),"") -> 
B17: COTAÇÕES DE MERCADO | O17: Cotações
B18: Empresa | J18: Data | K18: Preço Unitário | L18: Utilizar? (Sim/Não) | O18: Outliers | P18: Por critério do(a) analista
B19: BRASMAQUINAS COMERCIO DE MAQUINAS E IRRIGACAO LTDA (CNPJ : 00145531000334) E-mail: MARCOS.GOMES@BRASMAQUINAS.COM.BR | J19: 2025-08-22 | K19: 2500 | L19: Não | O19: =IF(ISNUMBER(K19),IF(OR(K19<_xlfn.QUARTILE.INC($K$10:$K$29,1)-1.5*(_xlfn.QUARTILE.INC($K$10:$K$29,3)-_xlfn.QUARTILE.INC($K$10:$K$29,1)),K19>_xlfn.QUARTILE.INC($K$10:$K$29,3)+1.5*(_xlfn.QUARTILE.INC($K$10:$K$29,3)-_xlfn.QUARTILE.INC($K$10:$K$29,1))),"Não","Sim"),"") -> Sim
B20: IRRIGASOL Irrigação e energia Solar LTDA (CNPJ: 46.152.561/0001-07) E-mail:irrigasol.mgmontalvania@gmail.com | J20: 2025-09-11 | K20: 1850 | L20: =IF(ISNUMBER(K20),IF($L$32=$O$18,O20,IF($L$32=$P$18,P20,"")),"") -> Sim | O20: Sim
B21: Loja das Bombas - Porto Velho - Roraima - CNPJ: 06.196.608/0001-10. https://www.alojadasbombas.com.br/bombas-submersas/4-polegadas/bomba-submersa-3cv-4-polegada-monofasica-claw-w4sdim108 | J21: 2025-11-10 | K21: =1583.64+452.04 -> 2035.68 | L21: Sim | O21: Sim
B22: Mérito Comercial - São José - São Paulo - CNPJ: 01.582.892/0001-49. https://www.meritocomercial.com.br/bomba-submersa-ebara-4bpl8-12-om4a-3cv-monofasica-220v-4001001009761-p1033379?srsltid=AfmBOornBh3ncqqJLTWGxYoV96XpyaLJ-rqwZRiUUMkdy70f8XA0oehE | J22: 2025-11-10 | K22: =1710.94 -> 1710.94 | L22: Sim | O22: Sim
B30: Observações: | K30: Média: | L30: =IF($L$32="","Selecione metodologia para exclusão de preços",AVERAGE(IF($L$10:$L$29="Sim",$K$10:$K$29))) -> 1746.66 | N30: Média (Cotações) | O30: =IF(COUNTIF(O19:O29,"Sim")<3,"N/D (são necessários pelo menos 3 preços)",AVERAGE(IF(O19:O29="Sim",$K19:$K29))) -> 2024.16 | P30: =IF(COUNTIF(P19:P29,"Sim")<3,"N/D (são necessários pelo menos 3 preços)",AVERAGE(IF(P19:P29="Sim",$K19:$K29))) -> N/D (são necessários pelo menos 3 preços)
K31: Mediana: | L31: =IF($L$32="","Selecione metodologia para exclusão de preços",MEDIAN(IF($L$10:$L$29="Sim",$K$10:$K$29))) -> 1780.47 | N31: Mediana (Cotações) | O31: =IF(COUNTIF(O19:O29,"Sim")<3,"N/D (são necessários pelo menos 3 preços)",MEDIAN(IF(O19:O29="Sim",$K19:$K29))) -> 1942.84 | P31: =IF(COUNTIF(P19:P29,"Sim")<3,"N/D (são necessários pelo menos 3 preços)",MEDIAN(IF(P19:P29="Sim",$K19:$K29))) -> N/D (são necessários pelo menos 3 preços)
B32: Metodologia de exclusão de preços adotada: | L32: =IF(O35="",INDEX(O18:P18,MATCH(MIN(#REF!),#REF!,0)),O35) -> Outliers | N32: CV (Cotações) | O32: =IF(COUNTIF(O19:O29,"Sim")<3,"N/D (são necessários pelo menos 3 preços)",_xlfn.STDEV.S(IF(O19:O29="Sim",$K19:$K29))/AVERAGE(IF(O19:O29="Sim",$K19:$K29))) -> 0.1699 | P32: =IF(COUNTIF(P19:P29,"Sim")<3,"N/D (são necessários pelo menos 3 preços)",_xlfn.STDEV.S(IF(P19:P29="Sim",$K19:$K29))/AVERAGE(IF(P19:P29="Sim",$K19:$K29))) -> N/D (são necessários pelo menos 3 preços)
N33: Média | O33: =IF(SUM(COUNTIF($O$10:$O$16,"Sim")) + SUM(COUNTIF(O19:O29,"Sim")) < 3, "N/D (são necessários pelo menos 3 preços)", IFERROR(AVERAGE(_xlfn._xlws.FILTER($K$10:$K$16,$O$10:$O$16="Sim"), _xlfn._xlws.FILTER($K$19:$K$29,O19:O29="Sim")),O30)) -> 1897.32 | P33: =IF(SUM(COUNTIF($P$10:$P$16,"Sim")) + SUM(COUNTIF(P19:P29,"Sim")) < 3, "N/D (são necessários pelo menos 3 preços)", IFERROR(AVERAGE(_xlfn._xlws.FILTER($K$10:$K$16,$P$10:$P$16="Sim"), _xlfn._xlws.FILTER($K$19:$K$29,P19:P29="Sim")),P30)) -> N/D (são necessários pelo menos 3 preços)
N34: Mediana | O34: =IF(SUM(COUNTIF($O$10:$O$16,"Sim")) + SUM(COUNTIF(O19:O29,"Sim")) < 3, "N/D (são necessários pelo menos 3 preços)", IFERROR(MEDIAN(_xlfn._xlws.FILTER($K$10:$K$16,$O$10:$O$16="Sim"), _xlfn._xlws.FILTER($K$19:$K$29,O19:O29="Sim")),O31)) -> 1850 | P34: =IF(SUM(COUNTIF($P10:$P$16,"Sim")) + SUM(COUNTIF(P19:P29,"Sim")) < 3, "N/D (são necessários pelo menos 3 preços)", IFERROR(MEDIAN(_xlfn._xlws.FILTER($K$10:$K$16,$P$10:$P$16="Sim"), _xlfn._xlws.FILTER($K$19:$K$29,P19:P29="Sim")),P31)) -> N/D (são necessários pelo menos 3 preços)
B35: COSOLIDAÇÃO DOS PREÇOS | N35: Metodologia a adotar: | O35: =IF(INDEX(O18:P18,P35)=0,"",INDEX(O18:P18,P35)) -> Outliers | P35: 1
B37: PREÇO UNITÁRIO ESTIMADO ADOTADO: | L37: =IF($B$39="Mediana:",L31,L30) -> 1746.66
A39: =O18 -> Outliers | B39: Média:
A40: =P18 -> Por critério do(a) analista

Sheet COT07 (hidden)
B2: Processo | C2: 59500.003753/2025-45
B3: Responsável | C3: Kaio Gabriel, Alessandra Brant, Alberto Nascimento
B4: Área de Origem | C4: AI/GAP/UGI
B5: Data da pesquisa | C5: 2025-10-22
B7: ITEM: | C7: TUBO PEMD 2" PN 60 | I7: UNIDADE DE MEDIDA: | J7: m | K7: QUANTIDADE: | L7: 45 | O7: Tabela auxiliar de metodologias para exclusão de preços
B8: LICITAÇÕES ANTERIORES | O8: Licitações Anteriores
B9: Órgão | C9: Edital/Ano - Nº do Lote / Item | D9: Quantidade | E9: Valor Unitário | F9: Data | G9: índice de atualização (nome) | H9: I0 | I9: If | J9: Variação acumulada do índice (%) | K9: Preço unitário atualizado | L9: Utilizar? (Sim/Não) | O9: Outliers | P9: Por critério do(a) analista
J10: =IF(ISBLANK(E10),"",IF(ISNUMBER(H10),(I10-H10)/H10,0)) ->  | K10: =IF(ISBLANK(E10),"",E10*(1+J10)) ->  | L10: =IF(ISNUMBER(K10),IF($L$32<>$P$9,O10,P10),"") ->  | O10: =IF(ISNUMBER(K10),IF(OR(K10<_xlfn.QUARTILE.INC($K$10:$K$29,1)-1.5*(_xlfn.QUARTILE.INC($K$10:K29,3)-_xlfn.QUARTILE.INC($K$10:$K$29,1)),K10>_xlfn.QUARTILE.INC($K$10:$K$29,3)+1.5*(_xlfn.QUARTILE.INC($K$10:$K$29,3)-_xlfn.QUARTILE.INC($K$10:$K$29,1))),"Não","Sim"),"") -> 
J11: =IF(ISBLANK(E11),"",IF(ISNUMBER(H11),(I11-H11)/H11,0)) ->  | K11: =IF(ISBLANK(E11),"",E11*(1+J11)) ->  | O11: =IF(ISNUMBER(K11),IF(OR(K11<_xlfn.QUARTILE.INC($K$10:$K$29,1)-1.5*(_xlfn.QUARTILE.INC($K$10:K29,3)-_xlfn.QUARTILE.INC($K$10:$K$29,1)),K11>_xlfn.QUARTILE.INC($K$10:$K$29,3)+1.5*(_xlfn.QUARTILE.INC($K$10:$K$29,3)-_xlfn.QUARTILE.INC($K$10:$K$29,1))),"Não","Sim"),"") -> 
O12: =IF(ISNUMBER(K12),IF(OR(K12<_xlfn.QUARTILE.INC($K$10:$K$29,1)-1.5*(_xlfn.QUARTILE.INC($K$10:K30,3)-_xlfn.QUARTILE.INC($K$10:$K$29,1)),K12>_xlfn.QUARTILE.INC($K$10:$K$29,3)+1.5*(_xlfn.QUARTILE.INC($K$10:$K$29,3)-_xlfn.QUARTILE.INC($K$10:$K$29,1))),"Não","Sim"),"") -> 
O13: =IF(ISNUMBER(K13),IF(OR(K13<_xlfn.QUARTILE.INC($K$10:$K$29,1)-1.5*(_xlfn.QUARTILE.INC($K$10:K31,3)-_xlfn.QUARTILE.INC($K$10:$K$29,1)),K13>_xlfn.QUARTILE.INC($K$10:$K$29,3)+1.5*(_xlfn.QUARTILE.INC($K$10:$K$29,3)-_xlfn.QUARTILE.INC($K$10:$K$29,1))),"Não","Sim"),"") -> 
O14: =IF(ISNUMBER(K14),IF(OR(K14<_xlfn.QUARTILE.INC($K$10:$K$29,1)-1.5*(_xlfn.QUARTILE.INC($K$10:K32,3)-_xlfn.QUARTILE.INC($K$10:$K$29,1)),K14>_xlfn.QUARTILE.INC($K$10:$K$29,3)+1.5*(_xlfn.QUARTILE.INC($K$10:$K$29,3)-_xlfn.QUARTILE.INC($K$10:$K$29,1))),"Não","Sim"),"") -> 
O15: =IF(ISNUMBER(K15),IF(OR(K15<_xlfn.QUARTILE.INC($K$10:$K$29,1)-1.5*(_xlfn.QUARTILE.INC($K$10:K35,3)-_xlfn.QUARTILE.INC($K$10:$K$29,1)),K15>_xlfn.QUARTILE.INC($K$10:$K$29,3)+1.5*(_xlfn.QUARTILE.INC($K$10:$K$29,3)-_xlfn.QUARTILE.INC($K$10:$K$29,1))),"Não","Sim"),"") -> 
O16: =IF(ISNUMBER(K16),IF(OR(K16<_xlfn.QUARTILE.INC($K$10:$K$29,1)-1.5*(_xlfn.QUARTILE.INC($I$10:I37,3)-_xlfn.QUARTILE.INC($K$10:$K$29,1)),K16>_xlfn.QUARTILE.INC($K$10:$K$29,3)+1.5*(_xlfn.QUARTILE.INC($K$10:$K$29,3)-_xlfn.QUARTILE.INC($K$10:$K$29,1))),"Não","Sim"),"") -> 
B17: COTAÇÕES DE MERCADO | O17: Cotações
B18: Empresa | J18: Data | K18: Preço Unitário | L18: Utilizar? (Sim/Não) | O18: Outliers | P18: Por critério do(a) analista
B19: BRASMAQUINAS COMERCIO DE MAQUINAS E IRRIGACAO LTDA (CNPJ : 00145531000334) E-mail: MARCOS.GOMES@BRASMAQUINAS.COM.BR | J19: 2025-08-22 | K19: 21.9 | L19: Não | O19: =IF(ISNUMBER(K19),IF(OR(K19<_xlfn.QUARTILE.INC($K$10:$K$29,1)-1.5*(_xlfn.QUARTILE.INC($K$10:$K$29,3)-_xlfn.QUARTILE.INC($K$10:$K$29,1)),K19>_xlfn.QUARTILE.INC($K$10:$K$29,3)+1.5*(_xlfn.QUARTILE.INC($K$10:$K$29,3)-_xlfn.QUARTILE.INC($K$10:$K$29,1))),"Não","Sim"),"") -> Sim
B20: VCA IRRIGAÇÃO LTDA (CNPJ: 26.466.226/0001-76) financeiro@minasbombas.com.br | J20: 2025-08-27 | K20: 22.45 | L20: Não | O20: Sim
B21: https://www.ferpam.com.br/mangueira-irrig-pemd-50mm-pn60-50mt-naandanjain.html | J21: 2026-02-20 | K21: 22.69 | L21: =IF(ISNUMBER(K21),IF($L$32=$O$18,O21,IF($L$32=$P$18,P21,"")),"") -> Sim | O21: Sim
B22: SISTEMINAS LTDA (CNPJ: 23.481.297/0001-50 ) e-mail sisteminas@outlook.com | J22: 2026-02-24 | K22: 15.9 | L22: Sim | O22: Sim
B23: FACILITA AGROINDÚSTRIA & SERVIÇOS LTDA | J23: 2026-02-25 | K23: 13 | L23: Sim | O23: Sim
B24: NSA SOLUÇÕES LTDA (CNPJ: 19.987.085/0001-71) | J24: 2026-02-24 | K24: 23.9 | L24: Sim | O24: Sim
B30: Observações: | K30: Média: | L30: =IF($L$32="","Selecione metodologia para exclusão de preços",AVERAGE(IF($L$10:$L$29="Sim",$K$10:$K$29))) -> 18.87 | N30: Média (Cotações) | O30: =IF(COUNTIF(O19:O29,"Sim")<3,"N/D (são necessários pelo menos 3 preços)",AVERAGE(IF(O19:O29="Sim",$K19:$K29))) -> 19.97 | P30: =IF(COUNTIF(P19:P29,"Sim")<3,"N/D (são necessários pelo menos 3 preços)",AVERAGE(IF(P19:P29="Sim",$K19:$K29))) -> N/D (são necessários pelo menos 3 preços)
K31: Mediana: | L31: =IF($L$32="","Selecione metodologia para exclusão de preços",MEDIAN(IF($L$10:$L$29="Sim",$K$10:$K$29))) -> 19.3 | N31: Mediana (Cotações) | O31: =IF(COUNTIF(O19:O29,"Sim")<3,"N/D (são necessários pelo menos 3 preços)",MEDIAN(IF(O19:O29="Sim",$K19:$K29))) -> 22.18 | P31: =IF(COUNTIF(P19:P29,"Sim")<3,"N/D (são necessários pelo menos 3 preços)",MEDIAN(IF(P19:P29="Sim",$K19:$K29))) -> N/D (são necessários pelo menos 3 preços)
B32: Metodologia de exclusão de preços adotada: | L32: =IF(O35="",INDEX(O18:P18,MATCH(MIN(#REF!),#REF!,0)),O35) -> Outliers | N32: CV (Cotações) | O32: =IF(COUNTIF(O19:O29,"Sim")<3,"N/D (são necessários pelo menos 3 preços)",_xlfn.STDEV.S(IF(O19:O29="Sim",$K19:$K29))/AVERAGE(IF(O19:O29="Sim",$K19:$K29))) -> 0.2215 | P32: =IF(COUNTIF(P19:P29,"Sim")<3,"N/D (são necessários pelo menos 3 preços)",_xlfn.STDEV.S(IF(P19:P29="Sim",$K19:$K29))/AVERAGE(IF(P19:P29="Sim",$K19:$K29))) -> N/D (são necessários pelo menos 3 preços)
N33: Média | O33: =IF(SUM(COUNTIF($O$10:$O$16,"Sim")) + SUM(COUNTIF(O19:O29,"Sim")) < 3, "N/D (são necessários pelo menos 3 preços)", IFERROR(AVERAGE(_xlfn._xlws.FILTER($K$10:$K$16,$O$10:$O$16="Sim"), _xlfn._xlws.FILTER($K$19:$K$29,O19:O29="Sim")),O30)) -> 19.97 | P33: =IF(SUM(COUNTIF($P$10:$P$16,"Sim")) + SUM(COUNTIF(P19:P29,"Sim")) < 3, "N/D (são necessários pelo menos 3 preços)", IFERROR(AVERAGE(_xlfn._xlws.FILTER($K$10:$K$16,$P$10:$P$16="Sim"), _xlfn._xlws.FILTER($K$19:$K$29,P19:P29="Sim")),P30)) -> N/D (são necessários pelo menos 3 preços)
N34: Mediana | O34: =IF(SUM(COUNTIF($O$10:$O$16,"Sim")) + SUM(COUNTIF(O19:O29,"Sim")) < 3, "N/D (são necessários pelo menos 3 preços)", IFERROR(MEDIAN(_xlfn._xlws.FILTER($K$10:$K$16,$O$10:$O$16="Sim"), _xlfn._xlws.FILTER($K$19:$K$29,O19:O29="Sim")),O31)) -> 22.18 | P34: =IF(SUM(COUNTIF($P10:$P$16,"Sim")) + SUM(COUNTIF(P19:P29,"Sim")) < 3, "N/D (são necessários pelo menos 3 preços)", IFERROR(MEDIAN(_xlfn._xlws.FILTER($K$10:$K$16,$P$10:$P$16="Sim"), _xlfn._xlws.FILTER($K$19:$K$29,P19:P29="Sim")),P31)) -> N/D (são necessários pelo menos 3 preços)
B35: COSOLIDAÇÃO DOS PREÇOS | N35: Metodologia a adotar: | O35: =IF(INDEX(O18:P18,P35)=0,"",INDEX(O18:P18,P35)) -> Outliers | P35: 1
B37: PREÇO UNITÁRIO ESTIMADO ADOTADO: | L37: =IF($B$39="Mediana:",L31,L30) -> 18.87
A39: =O18 -> Outliers | B39: Média:
A40: =P18 -> Por critério do(a) analista

Sheet COT08 (hidden)
B2: Processo | C2: 59500.003753/2025-45
B3: Responsável | C3: Kaio Gabriel, Alessandra Brant, Alberto Nascimento
B4: Área de Origem | C4: AI/GAP/UGI
B5: Data da pesquisa
B7: ITEM: | C7: FILTRO DE DISCO 3" - 25M³/H | I7: UNIDADE DE MEDIDA: | J7: unidade | K7: QUANTIDADE: | L7: 3 | O7: Tabela auxiliar de metodologias para exclusão de preços
B8: LICITAÇÕES ANTERIORES | O8: Licitações Anteriores
B9: Órgão | C9: Edital/Ano - Nº do Lote / Item | D9: Quantidade | E9: Valor Unitário | F9: Data | G9: índice de atualização (nome) | H9: I0 | I9: If | J9: Variação acumulada do índice (%) | K9: Preço unitário atualizado | L9: Utilizar? (Sim/Não) | O9: Outliers | P9: Por critério do(a) analista
J10: =IF(ISBLANK(E10),"",IF(ISNUMBER(H10),(I10-H10)/H10,0)) ->  | K10: =IF(ISBLANK(E10),"",E10*(1+J10)) ->  | L10: =IF(ISNUMBER(K10),IF($L$32<>$P$9,O10,P10),"") ->  | O10: =IF(ISNUMBER(K10),IF(OR(K10<_xlfn.QUARTILE.INC($K$10:$K$29,1)-1.5*(_xlfn.QUARTILE.INC($K$10:K29,3)-_xlfn.QUARTILE.INC($K$10:$K$29,1)),K10>_xlfn.QUARTILE.INC($K$10:$K$29,3)+1.5*(_xlfn.QUARTILE.INC($K$10:$K$29,3)-_xlfn.QUARTILE.INC($K$10:$K$29,1))),"Não","Sim"),"") -> 
J11: =IF(ISBLANK(E11),"",IF(ISNUMBER(H11),(I11-H11)/H11,0)) ->  | K11: =IF(ISBLANK(E11),"",E11*(1+J11)) ->  | O11: =IF(ISNUMBER(K11),IF(OR(K11<_xlfn.QUARTILE.INC($K$10:$K$29,1)-1.5*(_xlfn.QUARTILE.INC($K$10:K29,3)-_xlfn.QUARTILE.INC($K$10:$K$29,1)),K11>_xlfn.QUARTILE.INC($K$10:$K$29,3)+1.5*(_xlfn.QUARTILE.INC($K$10:$K$29,3)-_xlfn.QUARTILE.INC($K$10:$K$29,1))),"Não","Sim"),"") -> 
O12: =IF(ISNUMBER(K12),IF(OR(K12<_xlfn.QUARTILE.INC($K$10:$K$29,1)-1.5*(_xlfn.QUARTILE.INC($K$10:K30,3)-_xlfn.QUARTILE.INC($K$10:$K$29,1)),K12>_xlfn.QUARTILE.INC($K$10:$K$29,3)+1.5*(_xlfn.QUARTILE.INC($K$10:$K$29,3)-_xlfn.QUARTILE.INC($K$10:$K$29,1))),"Não","Sim"),"") -> 
O13: =IF(ISNUMBER(K13),IF(OR(K13<_xlfn.QUARTILE.INC($K$10:$K$29,1)-1.5*(_xlfn.QUARTILE.INC($K$10:K31,3)-_xlfn.QUARTILE.INC($K$10:$K$29,1)),K13>_xlfn.QUARTILE.INC($K$10:$K$29,3)+1.5*(_xlfn.QUARTILE.INC($K$10:$K$29,3)-_xlfn.QUARTILE.INC($K$10:$K$29,1))),"Não","Sim"),"") -> 
O14: =IF(ISNUMBER(K14),IF(OR(K14<_xlfn.QUARTILE.INC($K$10:$K$29,1)-1.5*(_xlfn.QUARTILE.INC($K$10:K32,3)-_xlfn.QUARTILE.INC($K$10:$K$29,1)),K14>_xlfn.QUARTILE.INC($K$10:$K$29,3)+1.5*(_xlfn.QUARTILE.INC($K$10:$K$29,3)-_xlfn.QUARTILE.INC($K$10:$K$29,1))),"Não","Sim"),"") -> 
O15: =IF(ISNUMBER(K15),IF(OR(K15<_xlfn.QUARTILE.INC($K$10:$K$29,1)-1.5*(_xlfn.QUARTILE.INC($K$10:K35,3)-_xlfn.QUARTILE.INC($K$10:$K$29,1)),K15>_xlfn.QUARTILE.INC($K$10:$K$29,3)+1.5*(_xlfn.QUARTILE.INC($K$10:$K$29,3)-_xlfn.QUARTILE.INC($K$10:$K$29,1))),"Não","Sim"),"") -> 
O16: =IF(ISNUMBER(K16),IF(OR(K16<_xlfn.QUARTILE.INC($K$10:$K$29,1)-1.5*(_xlfn.QUARTILE.INC($I$10:I37,3)-_xlfn.QUARTILE.INC($K$10:$K$29,1)),K16>_xlfn.QUARTILE.INC($K$10:$K$29,3)+1.5*(_xlfn.QUARTILE.INC($K$10:$K$29,3)-_xlfn.QUARTILE.INC($K$10:$K$29,1))),"Não","Sim"),"") -> 
B17: COTAÇÕES DE MERCADO | O17: Cotações
B18: Empresa | J18: Data | K18: Preço Unitário | L18: Utilizar? (Sim/Não) | O18: Outliers | P18: Por critério do(a) analista
B19: BRASMAQUINAS COMERCIO DE MAQUINAS E IRRIGACAO LTDA (CNPJ : 00145531000334) E-mail: MARCOS.GOMES@BRASMAQUINAS.COM.BR | J19: 2025-08-22 | K19: 950.26 | L19: Não | O19: =IF(ISNUMBER(K19),IF(OR(K19<_xlfn.QUARTILE.INC($K$10:$K$29,1)-1.5*(_xlfn.QUARTILE.INC($K$10:$K$29,3)-_xlfn.QUARTILE.INC($K$10:$K$29,1)),K19>_xlfn.QUARTILE.INC($K$10:$K$29,3)+1.5*(_xlfn.QUARTILE.INC($K$10:$K$29,3)-_xlfn.QUARTILE.INC($K$10:$K$29,1))),"Não","Sim"),"") -> Sim
B20: IRRIGASOL Irrigação e energia Solar LTDA (CNPJ: 46.152.561/0001-07) E-mail:irrigasol.mgmontalvania@gmail.com | J20: 2025-09-11 | K20: 890 | L20: =IF(ISNUMBER(K20),IF($L$32=$O$18,O20,IF($L$32=$P$18,P20,"")),"") -> Sim | O20: Sim
B21: VCA IRRIGAÇÃO LTDA (CNPJ: 26.466.226/0001-76) financeiro@minasbombas.com.br | J21: 2025-08-27 | K21: 1544 | L21: Não | O21: Não
B22: BioSementes - https://www.biosementes.com.br/loja/item/Filtro-disco-3-POL-120-mesh-vazao-de-50.000-L%7B47%7Dh.html?gad_source=1&gad_campaignid=19629565098&gbraid=0AAAAADwUPB4I3mQwVqVWndJKiptTFjzMj&gclid=CjwKCAiAt8bIBhBpEiwAzH1w6WFrWugpmmNdLw4ojJtMcROU34DOMPHXf7sKrUPd-1HGe_3vyAMPQBoC_PsQAvD_BwE | J22: 2025-11-10 | K22: =852.49+22.37 -> 874.86 | L22: Sim | O22: Sim
B23: Mercado Livre (IRRIGAÇÃO E CIA) - https://www.mercadolivre.com.br/filtro-de-disco-irrigacao-3-pol-rosca--gotejamento-40m3h/up/MLBU1745226948?pdp_filters=item_id:MLB5073246624&matt_tool=22815917&matt_internal_campaign_id=&matt_word=&matt_source=google&matt_campaign_id=22090354010&matt_ad_group_id=173090509596&matt_match_type=&matt_network=g&matt_device=c&matt_creative=727882725981&matt_keyword=&matt_ad_position=&matt_ad_type=pla&matt_merchant_id=129113724&matt_product_id=MLB5073246624&matt_product_partition_id=2388011230506&matt_target_id=pla-2388011230506&cq_src=google_ads&cq_cmp=22090354010&cq_net=g&cq_plt=gp&cq_med=pla&gad_source=1&gad_campaignid=22090354010&gbraid=0AAAAAD93qcAB449YOezVYzQJSsxn2Eyl4&gclid=CjwKCAiAt8bIBhBpEiwAzH1w6bDvw-ZbmjQWiuzBK61eyWJy-QGqElwGxnbhcZ491thI03lqz1SNhRoCwe8QAvD_BwE | J23: 2025-11-10 | K23: 997 | L23: Sim | O23: Sim
B30: Observações: | K30: Média: | L30: =IF($L$32="","Selecione metodologia para exclusão de preços",AVERAGE(IF($L$10:$L$29="Sim",$K$10:$K$29))) -> 920.62 | N30: Média (Cotações) | O30: =IF(COUNTIF(O19:O29,"Sim")<3,"N/D (são necessários pelo menos 3 preços)",AVERAGE(IF(O19:O29="Sim",$K19:$K29))) -> 928.03 | P30: =IF(COUNTIF(P19:P29,"Sim")<3,"N/D (são necessários pelo menos 3 preços)",AVERAGE(IF(P19:P29="Sim",$K19:$K29))) -> N/D (são necessários pelo menos 3 preços)
K31: Mediana: | L31: =IF($L$32="","Selecione metodologia para exclusão de preços",MEDIAN(IF($L$10:$L$29="Sim",$K$10:$K$29))) -> 890 | N31: Mediana (Cotações) | O31: =IF(COUNTIF(O19:O29,"Sim")<3,"N/D (são necessários pelo menos 3 preços)",MEDIAN(IF(O19:O29="Sim",$K19:$K29))) -> 920.13 | P31: =IF(COUNTIF(P19:P29,"Sim")<3,"N/D (são necessários pelo menos 3 preços)",MEDIAN(IF(P19:P29="Sim",$K19:$K29))) -> N/D (são necessários pelo menos 3 preços)
B32: Metodologia de exclusão de preços adotada: | L32: =IF(O35="",INDEX(O18:P18,MATCH(MIN(#REF!),#REF!,0)),O35) -> Outliers | N32: CV (Cotações) | O32: =IF(COUNTIF(O19:O29,"Sim")<3,"N/D (são necessários pelo menos 3 preços)",_xlfn.STDEV.S(IF(O19:O29="Sim",$K19:$K29))/AVERAGE(IF(O19:O29="Sim",$K19:$K29))) -> 0.0607 | P32: =IF(COUNTIF(P19:P29,"Sim")<3,"N/D (são necessários pelo menos 3 preços)",_xlfn.STDEV.S(IF(P19:P29="Sim",$K19:$K29))/AVERAGE(IF(P19:P29="Sim",$K19:$K29))) -> N/D (são necessários pelo menos 3 preços)
N33: Média | O33: =IF(SUM(COUNTIF($O$10:$O$16,"Sim")) + SUM(COUNTIF(O19:O29,"Sim")) < 3, "N/D (são necessários pelo menos 3 preços)", IFERROR(AVERAGE(_xlfn._xlws.FILTER($K$10:$K$16,$O$10:$O$16="Sim"), _xlfn._xlws.FILTER($K$19:$K$29,O19:O29="Sim")),O30)) -> 928.03 | P33: =IF(SUM(COUNTIF($P$10:$P$16,"Sim")) + SUM(COUNTIF(P19:P29,"Sim")) < 3, "N/D (são necessários pelo menos 3 preços)", IFERROR(AVERAGE(_xlfn._xlws.FILTER($K$10:$K$16,$P$10:$P$16="Sim"), _xlfn._xlws.FILTER($K$19:$K$29,P19:P29="Sim")),P30)) -> N/D (são necessários pelo menos 3 preços)
N34: Mediana | O34: =IF(SUM(COUNTIF($O$10:$O$16,"Sim")) + SUM(COUNTIF(O19:O29,"Sim")) < 3, "N/D (são necessários pelo menos 3 preços)", IFERROR(MEDIAN(_xlfn._xlws.FILTER($K$10:$K$16,$O$10:$O$16="Sim"), _xlfn._xlws.FILTER($K$19:$K$29,O19:O29="Sim")),O31)) -> 920.13 | P34: =IF(SUM(COUNTIF($P10:$P$16,"Sim")) + SUM(COUNTIF(P19:P29,"Sim")) < 3, "N/D (são necessários pelo menos 3 preços)", IFERROR(MEDIAN(_xlfn._xlws.FILTER($K$10:$K$16,$P$10:$P$16="Sim"), _xlfn._xlws.FILTER($K$19:$K$29,P19:P29="Sim")),P31)) -> N/D (são necessários pelo menos 3 preços)
B35: COSOLIDAÇÃO DOS PREÇOS | N35: Metodologia a adotar: | O35: =IF(INDEX(O18:P18,P35)=0,"",INDEX(O18:P18,P35)) -> Outliers | P35: 1
B37: PREÇO UNITÁRIO ESTIMADO ADOTADO: | L37: =IF($B$39="Mediana:",L31,L30) -> 890
A39: =O18 -> Outliers | B39: Mediana:
A40: =P18 -> Por critério do(a) analista

Sheet COT09 (hidden)
B2: Processo | C2: 59500.003753/2025-45
B3: Responsável | C3: Kaio Gabriel, Alessandra Brant, Alberto Nascimento
B4: Área de Origem | C4: AI/GAP/UGI
B5: Data da pesquisa
B7: ITEM: | C7: MICROASPERSOR 75 L/H | I7: UNIDADE DE MEDIDA: | J7: unidade | K7: QUANTIDADE: | L7: 1400 | O7: Tabela auxiliar de metodologias para exclusão de preços
B8: LICITAÇÕES ANTERIORES | O8: Licitações Anteriores
B9: Órgão | C9: Edital/Ano - Nº do Lote / Item | D9: Quantidade | E9: Valor Unitário | F9: Data | G9: índice de atualização (nome) | H9: I0 | I9: If | J9: Variação acumulada do índice (%) | K9: Preço unitário atualizado | L9: Utilizar? (Sim/Não) | O9: Outliers | P9: Por critério do(a) analista
J10: =IF(ISBLANK(E10),"",IF(ISNUMBER(H10),(I10-H10)/H10,0)) ->  | K10: =IF(ISBLANK(E10),"",E10*(1+J10)) ->  | L10: =IF(ISNUMBER(K10),IF($L$32<>$P$9,O10,P10),"") ->  | O10: =IF(ISNUMBER(K10),IF(OR(K10<_xlfn.QUARTILE.INC($K$10:$K$29,1)-1.5*(_xlfn.QUARTILE.INC($K$10:K29,3)-_xlfn.QUARTILE.INC($K$10:$K$29,1)),K10>_xlfn.QUARTILE.INC($K$10:$K$29,3)+1.5*(_xlfn.QUARTILE.INC($K$10:$K$29,3)-_xlfn.QUARTILE.INC($K$10:$K$29,1))),"Não","Sim"),"") -> 
J11: =IF(ISBLANK(E11),"",IF(ISNUMBER(H11),(I11-H11)/H11,0)) ->  | K11: =IF(ISBLANK(E11),"",E11*(1+J11)) ->  | O11: =IF(ISNUMBER(K11),IF(OR(K11<_xlfn.QUARTILE.INC($K$10:$K$29,1)-1.5*(_xlfn.QUARTILE.INC($K$10:K29,3)-_xlfn.QUARTILE.INC($K$10:$K$29,1)),K11>_xlfn.QUARTILE.INC($K$10:$K$29,3)+1.5*(_xlfn.QUARTILE.INC($K$10:$K$29,3)-_xlfn.QUARTILE.INC($K$10:$K$29,1))),"Não","Sim"),"") -> 
O12: =IF(ISNUMBER(K12),IF(OR(K12<_xlfn.QUARTILE.INC($K$10:$K$29,1)-1.5*(_xlfn.QUARTILE.INC($K$10:K30,3)-_xlfn.QUARTILE.INC($K$10:$K$29,1)),K12>_xlfn.QUARTILE.INC($K$10:$K$29,3)+1.5*(_xlfn.QUARTILE.INC($K$10:$K$29,3)-_xlfn.QUARTILE.INC($K$10:$K$29,1))),"Não","Sim"),"") -> 
O13: =IF(ISNUMBER(K13),IF(OR(K13<_xlfn.QUARTILE.INC($K$10:$K$29,1)-1.5*(_xlfn.QUARTILE.INC($K$10:K31,3)-_xlfn.QUARTILE.INC($K$10:$K$29,1)),K13>_xlfn.QUARTILE.INC($K$10:$K$29,3)+1.5*(_xlfn.QUARTILE.INC($K$10:$K$29,3)-_xlfn.QUARTILE.INC($K$10:$K$29,1))),"Não","Sim"),"") -> 
O14: =IF(ISNUMBER(K14),IF(OR(K14<_xlfn.QUARTILE.INC($K$10:$K$29,1)-1.5*(_xlfn.QUARTILE.INC($K$10:K32,3)-_xlfn.QUARTILE.INC($K$10:$K$29,1)),K14>_xlfn.QUARTILE.INC($K$10:$K$29,3)+1.5*(_xlfn.QUARTILE.INC($K$10:$K$29,3)-_xlfn.QUARTILE.INC($K$10:$K$29,1))),"Não","Sim"),"") -> 
O15: =IF(ISNUMBER(K15),IF(OR(K15<_xlfn.QUARTILE.INC($K$10:$K$29,1)-1.5*(_xlfn.QUARTILE.INC($K$10:K35,3)-_xlfn.QUARTILE.INC($K$10:$K$29,1)),K15>_xlfn.QUARTILE.INC($K$10:$K$29,3)+1.5*(_xlfn.QUARTILE.INC($K$10:$K$29,3)-_xlfn.QUARTILE.INC($K$10:$K$29,1))),"Não","Sim"),"") -> 
O16: =IF(ISNUMBER(K16),IF(OR(K16<_xlfn.QUARTILE.INC($K$10:$K$29,1)-1.5*(_xlfn.QUARTILE.INC($I$10:I37,3)-_xlfn.QUARTILE.INC($K$10:$K$29,1)),K16>_xlfn.QUARTILE.INC($K$10:$K$29,3)+1.5*(_xlfn.QUARTILE.INC($K$10:$K$29,3)-_xlfn.QUARTILE.INC($K$10:$K$29,1))),"Não","Sim"),"") -> 
B17: COTAÇÕES DE MERCADO | O17: Cotações
B18: Empresa | J18: Data | K18: Preço Unitário | L18: Utilizar? (Sim/Não) | O18: Outliers | P18: Por critério do(a) analista
B19: BRASMAQUINAS COMERCIO DE MAQUINAS E IRRIGACAO LTDA (CNPJ : 00145531000334) E-mail: MARCOS.GOMES@BRASMAQUINAS.COM.BR | J19: 2025-08-22 | K19: 1.95 | L19: Não | O19: =IF(ISNUMBER(K19),IF(OR(K19<_xlfn.QUARTILE.INC($K$10:$K$29,1)-1.5*(_xlfn.QUARTILE.INC($K$10:$K$29,3)-_xlfn.QUARTILE.INC($K$10:$K$29,1)),K19>_xlfn.QUARTILE.INC($K$10:$K$29,3)+1.5*(_xlfn.QUARTILE.INC($K$10:$K$29,3)-_xlfn.QUARTILE.INC($K$10:$K$29,1))),"Não","Sim"),"") -> Sim
B20: IRRIGASOL Irrigação e energia Solar LTDA (CNPJ: 46.152.561/0001-07) E-mail:irrigasol.mgmontalvania@gmail.com | J20: 2025-09-11 | K20: 3.5 | L20: =IF(ISNUMBER(K20),IF($L$32=$O$18,O20,IF($L$32=$P$18,P20,"")),"") -> Sim | O20: Sim
B21: VCA IRRIGAÇÃO LTDA (CNPJ: 26.466.226/0001-76) financeiro@minasbombas.com.br | J21: 2025-08-27 | K21: 2.27 | L21: Não | O21: Sim
B22: iNSTAaGRO - https://www.instaagro.com/microaspersor-hadar-bocal-lr-1-2-mm-75-l-h-med-alc-naandanjain?gad_source=4&gad_campaignid=22678466632&gbraid=0AAAAAC0h8RIvQhPzXdNKld4Pt7BPg80K-&gclid=CjwKCAiAt8bIBhBpEiwAzH1w6TZcPoUvjp6n9wVcVtIwVAQPITW2h1yNL199yZNn-BlctaJQ6eTG8xoCPJ0QAvD_BwE | J22: 2025-11-10 | K22: =3.44+(17.2/1400) -> 3.45 | L22: Sim | O22: Sim
B23: Mercado Livre (BOLSAIRRIGA) - https://www.mercadolivre.com.br/kit-50-microaspersor-bailarina-75lh-irrigacao-horta-pomar/up/MLBU3406380532?pdp_filters=item_id:MLB5665975856&matt_tool=59586449&matt_internal_campaign_id=&matt_word=&matt_source=google&matt_campaign_id=22120855419&matt_ad_group_id=179138687731&matt_match_type=&matt_network=g&matt_device=c&matt_creative=729092955247&matt_keyword=&matt_ad_position=&matt_ad_type=pla&matt_merchant_id=5642161614&matt_product_id=MLB5665975856&matt_product_partition_id=2393015049578&matt_target_id=pla-2393015049578&cq_src=google_ads&cq_cmp=22120855419&cq_net=g&cq_plt=gp&cq_med=pla&gad_source=4&gad_campaignid=22120855419&gbraid=0AAAAAD93qcDTHjWGS30k3F900Qttb_ws2&gclid=CjwKCAiAt8bIBhBpEiwAzH1w6d4PtvGvTMMSe8UFkLX8H0ujyK7jWVHRkAQSFRxMm_Oo5nE5oKEb2RoCcM8QAvD_BwE | J23: 2025-11-10 | K23: =145.47/50 -> 2.91 | L23: Sim | O23: Sim
B24: FERPAM - https://www.ferpam.com.br/micro-aspersor-hadar-bocal-laranja-1-2mm-de-75-l-h-com-medio-alcance-naandanjain.html?srsltid=AfmBOoqHw0PMUBAtDn1UUf5s3GgnrZamVBVpOYMYnLnUdKXSdTVO34QHhyk | J24: 2025-11-10 | K24: =6.64+(709.46/1400) -> 7.15 | L24: Não | O24: Não
B30: Observações: | K30: Média: | L30: =IF($L$32="","Selecione metodologia para exclusão de preços",AVERAGE(IF($L$10:$L$29="Sim",$K$10:$K$29))) -> 3.29 | N30: Média (Cotações) | O30: =IF(COUNTIF(O19:O29,"Sim")<3,"N/D (são necessários pelo menos 3 preços)",AVERAGE(IF(O19:O29="Sim",$K19:$K29))) -> 2.82 | P30: =IF(COUNTIF(P19:P29,"Sim")<3,"N/D (são necessários pelo menos 3 preços)",AVERAGE(IF(P19:P29="Sim",$K19:$K29))) -> N/D (são necessários pelo menos 3 preços)
K31: Mediana: | L31: =IF($L$32="","Selecione metodologia para exclusão de preços",MEDIAN(IF($L$10:$L$29="Sim",$K$10:$K$29))) -> 3.45 | N31: Mediana (Cotações) | O31: =IF(COUNTIF(O19:O29,"Sim")<3,"N/D (são necessários pelo menos 3 preços)",MEDIAN(IF(O19:O29="Sim",$K19:$K29))) -> 2.91 | P31: =IF(COUNTIF(P19:P29,"Sim")<3,"N/D (são necessários pelo menos 3 preços)",MEDIAN(IF(P19:P29="Sim",$K19:$K29))) -> N/D (são necessários pelo menos 3 preços)
B32: Metodologia de exclusão de preços adotada: | L32: =IF(O35="",INDEX(O18:P18,MATCH(MIN(#REF!),#REF!,0)),O35) -> Outliers | N32: CV (Cotações) | O32: =IF(COUNTIF(O19:O29,"Sim")<3,"N/D (são necessários pelo menos 3 preços)",_xlfn.STDEV.S(IF(O19:O29="Sim",$K19:$K29))/AVERAGE(IF(O19:O29="Sim",$K19:$K29))) -> 0.2465 | P32: =IF(COUNTIF(P19:P29,"Sim")<3,"N/D (são necessários pelo menos 3 preços)",_xlfn.STDEV.S(IF(P19:P29="Sim",$K19:$K29))/AVERAGE(IF(P19:P29="Sim",$K19:$K29))) -> N/D (são necessários pelo menos 3 preços)
N33: Média | O33: =IF(SUM(COUNTIF($O$10:$O$16,"Sim")) + SUM(COUNTIF(O19:O29,"Sim")) < 3, "N/D (são necessários pelo menos 3 preços)", IFERROR(AVERAGE(_xlfn._xlws.FILTER($K$10:$K$16,$O$10:$O$16="Sim"), _xlfn._xlws.FILTER($K$19:$K$29,O19:O29="Sim")),O30)) -> 2.82 | P33: =IF(SUM(COUNTIF($P$10:$P$16,"Sim")) + SUM(COUNTIF(P19:P29,"Sim")) < 3, "N/D (são necessários pelo menos 3 preços)", IFERROR(AVERAGE(_xlfn._xlws.FILTER($K$10:$K$16,$P$10:$P$16="Sim"), _xlfn._xlws.FILTER($K$19:$K$29,P19:P29="Sim")),P30)) -> N/D (são necessários pelo menos 3 preços)
N34: Mediana | O34: =IF(SUM(COUNTIF($O$10:$O$16,"Sim")) + SUM(COUNTIF(O19:O29,"Sim")) < 3, "N/D (são necessários pelo menos 3 preços)", IFERROR(MEDIAN(_xlfn._xlws.FILTER($K$10:$K$16,$O$10:$O$16="Sim"), _xlfn._xlws.FILTER($K$19:$K$29,O19:O29="Sim")),O31)) -> 2.91 | P34: =IF(SUM(COUNTIF($P10:$P$16,"Sim")) + SUM(COUNTIF(P19:P29,"Sim")) < 3, "N/D (são necessários pelo menos 3 preços)", IFERROR(MEDIAN(_xlfn._xlws.FILTER($K$10:$K$16,$P$10:$P$16="Sim"), _xlfn._xlws.FILTER($K$19:$K$29,P19:P29="Sim")),P31)) -> N/D (são necessários pelo menos 3 preços)
B35: COSOLIDAÇÃO DOS PREÇOS | N35: Metodologia a adotar: | O35: =IF(INDEX(O18:P18,P35)=0,"",INDEX(O18:P18,P35)) -> Outliers | P35: 1
B37: PREÇO UNITÁRIO ESTIMADO ADOTADO: | L37: =IF($B$39="Mediana:",L31,L30) -> 3.29
A39: =O18 -> Outliers | B39: Média:
A40: =P18 -> Por critério do(a) analista

Sheet COT10 (hidden)
B2: Processo | C2: 59500.003753/2025-45
B3: Responsável | C3: Kaio Gabriel, Alessandra Brant, Alberto Nascimento
B4: Área de Origem | C4: AI/GAP/UGI
B5: Data da pesquisa
B7: ITEM: | C7: MICROTUBO C/ CONECTOR 4/6 x 80cm | I7: UNIDADE DE MEDIDA: | J7: unidade | K7: QUANTIDADE: | L7: 1400 | O7: Tabela auxiliar de metodologias para exclusão de preços
B8: LICITAÇÕES ANTERIORES | O8: Licitações Anteriores
B9: Órgão | C9: Edital/Ano - Nº do Lote / Item | D9: Quantidade | E9: Valor Unitário | F9: Data | G9: índice de atualização (nome) | H9: I0 | I9: If | J9: Variação acumulada do índice (%) | K9: Preço unitário atualizado | L9: Utilizar? (Sim/Não) | O9: Outliers | P9: Por critério do(a) analista
J10: =IF(ISBLANK(E10),"",IF(ISNUMBER(H10),(I10-H10)/H10,0)) ->  | K10: =IF(ISBLANK(E10),"",E10*(1+J10)) ->  | L10: =IF(ISNUMBER(K10),IF($L$32<>$P$9,O10,P10),"") ->  | O10: =IF(ISNUMBER(K10),IF(OR(K10<_xlfn.QUARTILE.INC($K$10:$K$29,1)-1.5*(_xlfn.QUARTILE.INC($K$10:K29,3)-_xlfn.QUARTILE.INC($K$10:$K$29,1)),K10>_xlfn.QUARTILE.INC($K$10:$K$29,3)+1.5*(_xlfn.QUARTILE.INC($K$10:$K$29,3)-_xlfn.QUARTILE.INC($K$10:$K$29,1))),"Não","Sim"),"") -> 
J11: =IF(ISBLANK(E11),"",IF(ISNUMBER(H11),(I11-H11)/H11,0)) ->  | K11: =IF(ISBLANK(E11),"",E11*(1+J11)) ->  | O11: =IF(ISNUMBER(K11),IF(OR(K11<_xlfn.QUARTILE.INC($K$10:$K$29,1)-1.5*(_xlfn.QUARTILE.INC($K$10:K29,3)-_xlfn.QUARTILE.INC($K$10:$K$29,1)),K11>_xlfn.QUARTILE.INC($K$10:$K$29,3)+1.5*(_xlfn.QUARTILE.INC($K$10:$K$29,3)-_xlfn.QUARTILE.INC($K$10:$K$29,1))),"Não","Sim"),"") -> 
O12: =IF(ISNUMBER(K12),IF(OR(K12<_xlfn.QUARTILE.INC($K$10:$K$29,1)-1.5*(_xlfn.QUARTILE.INC($K$10:K30,3)-_xlfn.QUARTILE.INC($K$10:$K$29,1)),K12>_xlfn.QUARTILE.INC($K$10:$K$29,3)+1.5*(_xlfn.QUARTILE.INC($K$10:$K$29,3)-_xlfn.QUARTILE.INC($K$10:$K$29,1))),"Não","Sim"),"") -> 
O13: =IF(ISNUMBER(K13),IF(OR(K13<_xlfn.QUARTILE.INC($K$10:$K$29,1)-1.5*(_xlfn.QUARTILE.INC($K$10:K31,3)-_xlfn.QUARTILE.INC($K$10:$K$29,1)),K13>_xlfn.QUARTILE.INC($K$10:$K$29,3)+1.5*(_xlfn.QUARTILE.INC($K$10:$K$29,3)-_xlfn.QUARTILE.INC($K$10:$K$29,1))),"Não","Sim"),"") -> 
O14: =IF(ISNUMBER(K14),IF(OR(K14<_xlfn.QUARTILE.INC($K$10:$K$29,1)-1.5*(_xlfn.QUARTILE.INC($K$10:K32,3)-_xlfn.QUARTILE.INC($K$10:$K$29,1)),K14>_xlfn.QUARTILE.INC($K$10:$K$29,3)+1.5*(_xlfn.QUARTILE.INC($K$10:$K$29,3)-_xlfn.QUARTILE.INC($K$10:$K$29,1))),"Não","Sim"),"") -> 
O15: =IF(ISNUMBER(K15),IF(OR(K15<_xlfn.QUARTILE.INC($K$10:$K$29,1)-1.5*(_xlfn.QUARTILE.INC($K$10:K35,3)-_xlfn.QUARTILE.INC($K$10:$K$29,1)),K15>_xlfn.QUARTILE.INC($K$10:$K$29,3)+1.5*(_xlfn.QUARTILE.INC($K$10:$K$29,3)-_xlfn.QUARTILE.INC($K$10:$K$29,1))),"Não","Sim"),"") -> 
O16: =IF(ISNUMBER(K16),IF(OR(K16<_xlfn.QUARTILE.INC($K$10:$K$29,1)-1.5*(_xlfn.QUARTILE.INC($I$10:I37,3)-_xlfn.QUARTILE.INC($K$10:$K$29,1)),K16>_xlfn.QUARTILE.INC($K$10:$K$29,3)+1.5*(_xlfn.QUARTILE.INC($K$10:$K$29,3)-_xlfn.QUARTILE.INC($K$10:$K$29,1))),"Não","Sim"),"") -> 
B17: COTAÇÕES DE MERCADO | O17: Cotações
B18: Empresa | J18: Data | K18: Preço Unitário | L18: Utilizar? (Sim/Não) | O18: Outliers | P18: Por critério do(a) analista
B19: BRASMAQUINAS COMERCIO DE MAQUINAS E IRRIGACAO LTDA (CNPJ : 00145531000334) E-mail: MARCOS.GOMES@BRASMAQUINAS.COM.BR | J19: 2025-08-22 | K19: 1.2 | L19: Não | O19: =IF(ISNUMBER(K19),IF(OR(K19<_xlfn.QUARTILE.INC($K$10:$K$29,1)-1.5*(_xlfn.QUARTILE.INC($K$10:$K$29,3)-_xlfn.QUARTILE.INC($K$10:$K$29,1)),K19>_xlfn.QUARTILE.INC($K$10:$K$29,3)+1.5*(_xlfn.QUARTILE.INC($K$10:$K$29,3)-_xlfn.QUARTILE.INC($K$10:$K$29,1))),"Não","Sim"),"") -> Sim
B20: IRRIGASOL Irrigação e energia Solar LTDA (CNPJ: 46.152.561/0001-07) E-mail:irrigasol.mgmontalvania@gmail.com | J20: 2025-09-11 | K20: 2.6 | L20: Não | O20: Sim
B21: VCA IRRIGAÇÃO LTDA (CNPJ: 26.466.226/0001-76) financeiro@minasbombas.com.br | J21: 2025-08-27 | K21: 1.15 | L21: Não | O21: Sim
B22: Irriassol - Itabuna - Bahia - 45.868.527/0001-70. https://www.irrigassol.com.br/tubo-pebdl-46mm-p-micro-x-80cm-c-conec-pirrig-implebras | J22: 2025-11-10 | K22: =4631.27/1400 -> 3.31 | L22: =IF(ISNUMBER(K22),IF($L$32=$O$18,O22,IF($L$32=$P$18,P22,"")),"") -> Não | O22: Não
B23: Casa Irriga - https://casairriga.com.br/produto/microtubo-com-conector-4mm/ | J23: 2026-02-25 | K23: 1.25 | L23: Sim | O23: Sim
B24: AGROJÃO - https://www.agrojao.com.br/micro-tubo-para-aspersor-com-conector-80cm-45mm-rsb? | J24: 2026-02-25 | K24: 1.37 | L24: Sim | O24: Sim
B25: DOUTORIRRIGAÇÃO - https://doutorirrigacao.com.br/tubos-e-conexoes-pvc/microtubo-pebdl-4-6-mm-x-60-cm-e-80-cm-com-conector-implebras-p? | J25: 2026-02-25 | K25: 0.69 | L25: Sim | O25: Sim
B30: Observações: | K30: Média: | L30: =IF($L$32="","Selecione metodologia para exclusão de preços",AVERAGE(IF($L$10:$L$29="Sim",$K$10:$K$29))) -> 1.1 | N30: Média (Cotações) | O30: =IF(COUNTIF(O19:O29,"Sim")<3,"N/D (são necessários pelo menos 3 preços)",AVERAGE(IF(O19:O29="Sim",$K19:$K29))) -> 1.38 | P30: =IF(COUNTIF(P19:P29,"Sim")<3,"N/D (são necessários pelo menos 3 preços)",AVERAGE(IF(P19:P29="Sim",$K19:$K29))) -> N/D (são necessários pelo menos 3 preços)
K31: Mediana: | L31: =IF($L$32="","Selecione metodologia para exclusão de preços",MEDIAN(IF($L$10:$L$29="Sim",$K$10:$K$29))) -> 1.25 | N31: Mediana (Cotações) | O31: =IF(COUNTIF(O19:O29,"Sim")<3,"N/D (são necessários pelo menos 3 preços)",MEDIAN(IF(O19:O29="Sim",$K19:$K29))) -> 1.23 | P31: =IF(COUNTIF(P19:P29,"Sim")<3,"N/D (são necessários pelo menos 3 preços)",MEDIAN(IF(P19:P29="Sim",$K19:$K29))) -> N/D (são necessários pelo menos 3 preços)
B32: Metodologia de exclusão de preços adotada: | L32: =IF(O35="",INDEX(O18:P18,MATCH(MIN(#REF!),#REF!,0)),O35) -> Outliers | N32: CV (Cotações) | O32: =IF(COUNTIF(O19:O29,"Sim")<3,"N/D (são necessários pelo menos 3 preços)",_xlfn.STDEV.S(IF(O19:O29="Sim",$K19:$K29))/AVERAGE(IF(O19:O29="Sim",$K19:$K29))) -> 0.467 | P32: =IF(COUNTIF(P19:P29,"Sim")<3,"N/D (são necessários pelo menos 3 preços)",_xlfn.STDEV.S(IF(P19:P29="Sim",$K19:$K29))/AVERAGE(IF(P19:P29="Sim",$K19:$K29))) -> N/D (são necessários pelo menos 3 preços)
N33: Média | O33: =IF(SUM(COUNTIF($O$10:$O$16,"Sim")) + SUM(COUNTIF(O19:O29,"Sim")) < 3, "N/D (são necessários pelo menos 3 preços)", IFERROR(AVERAGE(_xlfn._xlws.FILTER($K$10:$K$16,$O$10:$O$16="Sim"), _xlfn._xlws.FILTER($K$19:$K$29,O19:O29="Sim")),O30)) -> 1.38 | P33: =IF(SUM(COUNTIF($P$10:$P$16,"Sim")) + SUM(COUNTIF(P19:P29,"Sim")) < 3, "N/D (são necessários pelo menos 3 preços)", IFERROR(AVERAGE(_xlfn._xlws.FILTER($K$10:$K$16,$P$10:$P$16="Sim"), _xlfn._xlws.FILTER($K$19:$K$29,P19:P29="Sim")),P30)) -> N/D (são necessários pelo menos 3 preços)
N34: Mediana | O34: =IF(SUM(COUNTIF($O$10:$O$16,"Sim")) + SUM(COUNTIF(O19:O29,"Sim")) < 3, "N/D (são necessários pelo menos 3 preços)", IFERROR(MEDIAN(_xlfn._xlws.FILTER($K$10:$K$16,$O$10:$O$16="Sim"), _xlfn._xlws.FILTER($K$19:$K$29,O19:O29="Sim")),O31)) -> 1.23 | P34: =IF(SUM(COUNTIF($P10:$P$16,"Sim")) + SUM(COUNTIF(P19:P29,"Sim")) < 3, "N/D (são necessários pelo menos 3 preços)", IFERROR(MEDIAN(_xlfn._xlws.FILTER($K$10:$K$16,$P$10:$P$16="Sim"), _xlfn._xlws.FILTER($K$19:$K$29,P19:P29="Sim")),P31)) -> N/D (são necessários pelo menos 3 preços)
B35: COSOLIDAÇÃO DOS PREÇOS | N35: Metodologia a adotar: | O35: =IF(INDEX(O18:P18,P35)=0,"",INDEX(O18:P18,P35)) -> Outliers | P35: 1
B37: PREÇO UNITÁRIO ESTIMADO ADOTADO: | L37: =IF($B$39="Mediana:",L31,L30) -> 1.1
A39: =O18 -> Outliers | B39: Média:
A40: =P18 -> Por critério do(a) analista

Sheet COT11 (hidden)
B2: Processo | C2: 59500.003753/2025-45
B3: Responsável | C3: Kaio Gabriel, Alessandra Brant, Alberto Nascimento
B4: Área de Origem | C4: AI/GAP/UGI
B5: Data da pesquisa
B7: ITEM: | C7: HASTE PLÁSTICA PARA MICROASPERSOR - 60CM | I7: UNIDADE DE MEDIDA: | J7: unidade | K7: QUANTIDADE: | L7: 1400 | O7: Tabela auxiliar de metodologias para exclusão de preços
B8: LICITAÇÕES ANTERIORES | O8: Licitações Anteriores
B9: Órgão | C9: Edital/Ano - Nº do Lote / Item | D9: Quantidade | E9: Valor Unitário | F9: Data | G9: índice de atualização (nome) | H9: I0 | I9: If | J9: Variação acumulada do índice (%) | K9: Preço unitário atualizado | L9: Utilizar? (Sim/Não) | O9: Outliers | P9: Por critério do(a) analista
J10: =IF(ISBLANK(E10),"",IF(ISNUMBER(H10),(I10-H10)/H10,0)) ->  | K10: =IF(ISBLANK(E10),"",E10*(1+J10)) ->  | L10: =IF(ISNUMBER(K10),IF($L$32<>$P$9,O10,P10),"") ->  | O10: =IF(ISNUMBER(K10),IF(OR(K10<_xlfn.QUARTILE.INC($K$10:$K$29,1)-1.5*(_xlfn.QUARTILE.INC($K$10:K29,3)-_xlfn.QUARTILE.INC($K$10:$K$29,1)),K10>_xlfn.QUARTILE.INC($K$10:$K$29,3)+1.5*(_xlfn.QUARTILE.INC($K$10:$K$29,3)-_xlfn.QUARTILE.INC($K$10:$K$29,1))),"Não","Sim"),"") -> 
J11: =IF(ISBLANK(E11),"",IF(ISNUMBER(H11),(I11-H11)/H11,0)) ->  | K11: =IF(ISBLANK(E11),"",E11*(1+J11)) ->  | O11: =IF(ISNUMBER(K11),IF(OR(K11<_xlfn.QUARTILE.INC($K$10:$K$29,1)-1.5*(_xlfn.QUARTILE.INC($K$10:K29,3)-_xlfn.QUARTILE.INC($K$10:$K$29,1)),K11>_xlfn.QUARTILE.INC($K$10:$K$29,3)+1.5*(_xlfn.QUARTILE.INC($K$10:$K$29,3)-_xlfn.QUARTILE.INC($K$10:$K$29,1))),"Não","Sim"),"") -> 
O12: =IF(ISNUMBER(K12),IF(OR(K12<_xlfn.QUARTILE.INC($K$10:$K$29,1)-1.5*(_xlfn.QUARTILE.INC($K$10:K30,3)-_xlfn.QUARTILE.INC($K$10:$K$29,1)),K12>_xlfn.QUARTILE.INC($K$10:$K$29,3)+1.5*(_xlfn.QUARTILE.INC($K$10:$K$29,3)-_xlfn.QUARTILE.INC($K$10:$K$29,1))),"Não","Sim"),"") -> 
O13: =IF(ISNUMBER(K13),IF(OR(K13<_xlfn.QUARTILE.INC($K$10:$K$29,1)-1.5*(_xlfn.QUARTILE.INC($K$10:K31,3)-_xlfn.QUARTILE.INC($K$10:$K$29,1)),K13>_xlfn.QUARTILE.INC($K$10:$K$29,3)+1.5*(_xlfn.QUARTILE.INC($K$10:$K$29,3)-_xlfn.QUARTILE.INC($K$10:$K$29,1))),"Não","Sim"),"") -> 
O14: =IF(ISNUMBER(K14),IF(OR(K14<_xlfn.QUARTILE.INC($K$10:$K$29,1)-1.5*(_xlfn.QUARTILE.INC($K$10:K32,3)-_xlfn.QUARTILE.INC($K$10:$K$29,1)),K14>_xlfn.QUARTILE.INC($K$10:$K$29,3)+1.5*(_xlfn.QUARTILE.INC($K$10:$K$29,3)-_xlfn.QUARTILE.INC($K$10:$K$29,1))),"Não","Sim"),"") -> 
O15: =IF(ISNUMBER(K15),IF(OR(K15<_xlfn.QUARTILE.INC($K$10:$K$29,1)-1.5*(_xlfn.QUARTILE.INC($K$10:K35,3)-_xlfn.QUARTILE.INC($K$10:$K$29,1)),K15>_xlfn.QUARTILE.INC($K$10:$K$29,3)+1.5*(_xlfn.QUARTILE.INC($K$10:$K$29,3)-_xlfn.QUARTILE.INC($K$10:$K$29,1))),"Não","Sim"),"") -> 
O16: =IF(ISNUMBER(K16),IF(OR(K16<_xlfn.QUARTILE.INC($K$10:$K$29,1)-1.5*(_xlfn.QUARTILE.INC($I$10:I37,3)-_xlfn.QUARTILE.INC($K$10:$K$29,1)),K16>_xlfn.QUARTILE.INC($K$10:$K$29,3)+1.5*(_xlfn.QUARTILE.INC($K$10:$K$29,3)-_xlfn.QUARTILE.INC($K$10:$K$29,1))),"Não","Sim"),"") -> 
B17: COTAÇÕES DE MERCADO | O17: Cotações
B18: Empresa | J18: Data | K18: Preço Unitário | L18: Utilizar? (Sim/Não) | O18: Outliers | P18: Por critério do(a) analista
B19: BRASMAQUINAS COMERCIO DE MAQUINAS E IRRIGACAO LTDA (CNPJ : 00145531000334) E-mail: MARCOS.GOMES@BRASMAQUINAS.COM.BR | J19: 2025-08-22 | K19: 1.3 | L19: Não | O19: =IF(ISNUMBER(K19),IF(OR(K19<_xlfn.QUARTILE.INC($K$10:$K$29,1)-1.5*(_xlfn.QUARTILE.INC($K$10:$K$29,3)-_xlfn.QUARTILE.INC($K$10:$K$29,1)),K19>_xlfn.QUARTILE.INC($K$10:$K$29,3)+1.5*(_xlfn.QUARTILE.INC($K$10:$K$29,3)-_xlfn.QUARTILE.INC($K$10:$K$29,1))),"Não","Sim"),"") -> Sim
B20: IRRIGASOL Irrigação e energia Solar LTDA (CNPJ: 46.152.561/0001-07) E-mail:irrigasol.mgmontalvania@gmail.com | J20: 2025-09-11 | K20: 0.95 | L20: Não | O20: Sim
B21: VCA IRRIGAÇÃO LTDA (CNPJ: 26.466.226/0001-76) financeiro@minasbombas.com.br | J21: 2025-08-27 | K21: 1.93 | L21: Não | O21: Sim
B22: Irriassol - Itabuna - Bahia - 45.868.527/0001-70. https://www.irrigassol.com.br/estaca-p-micro-universal-600mm-preta-pirrig-implebras | J22: 2025-11-10 | K22: =3562.88/1400 -> 2.54 | L22: Sim | O22: Não
B23: Biosementes - https://www.biosementes.com.br/loja/item/Haste-Estaca-60-cm-P%7B47%7D-MICRO-TUBO-(universal)-100-und.html? | J23: 2026-02-25 | K23: 1.22 | L23: Sim
B24: AgroBombas - https://www.agrobombas.com.br/irrigacao/aspersor/acessorios-para-aspersor/haste-600-para-microtubo-60-centimetros-rsb? | J24: 2026-02-25 | K24: 1.63 | L24: =IF(ISNUMBER(K24),IF($L$32=$O$18,O24,IF($L$32=$P$18,P24,"")),"") -> Sim | O24: Sim
B30: Observações: | K30: Média: | L30: =IF($L$32="","Selecione metodologia para exclusão de preços",AVERAGE(IF($L$10:$L$29="Sim",$K$10:$K$29))) -> 1.8 | N30: Média (Cotações) | O30: =IF(COUNTIF(O19:O29,"Sim")<3,"N/D (são necessários pelo menos 3 preços)",AVERAGE(IF(O19:O29="Sim",$K19:$K29))) -> 1.45 | P30: =IF(COUNTIF(P19:P29,"Sim")<3,"N/D (são necessários pelo menos 3 preços)",AVERAGE(IF(P19:P29="Sim",$K19:$K29))) -> N/D (são necessários pelo menos 3 preços)
K31: Mediana: | L31: =IF($L$32="","Selecione metodologia para exclusão de preços",MEDIAN(IF($L$10:$L$29="Sim",$K$10:$K$29))) -> 1.63 | N31: Mediana (Cotações) | O31: =IF(COUNTIF(O19:O29,"Sim")<3,"N/D (são necessários pelo menos 3 preços)",MEDIAN(IF(O19:O29="Sim",$K19:$K29))) -> 1.47 | P31: =IF(COUNTIF(P19:P29,"Sim")<3,"N/D (são necessários pelo menos 3 preços)",MEDIAN(IF(P19:P29="Sim",$K19:$K29))) -> N/D (são necessários pelo menos 3 preços)
B32: Metodologia de exclusão de preços adotada: | L32: =IF(O35="",INDEX(O18:P18,MATCH(MIN(#REF!),#REF!,0)),O35) -> Outliers | N32: CV (Cotações) | O32: =IF(COUNTIF(O19:O29,"Sim")<3,"N/D (são necessários pelo menos 3 preços)",_xlfn.STDEV.S(IF(O19:O29="Sim",$K19:$K29))/AVERAGE(IF(O19:O29="Sim",$K19:$K29))) -> 0.2908 | P32: =IF(COUNTIF(P19:P29,"Sim")<3,"N/D (são necessários pelo menos 3 preços)",_xlfn.STDEV.S(IF(P19:P29="Sim",$K19:$K29))/AVERAGE(IF(P19:P29="Sim",$K19:$K29))) -> N/D (são necessários pelo menos 3 preços)
N33: Média | O33: =IF(SUM(COUNTIF($O$10:$O$16,"Sim")) + SUM(COUNTIF(O19:O29,"Sim")) < 3, "N/D (são necessários pelo menos 3 preços)", IFERROR(AVERAGE(_xlfn._xlws.FILTER($K$10:$K$16,$O$10:$O$16="Sim"), _xlfn._xlws.FILTER($K$19:$K$29,O19:O29="Sim")),O30)) -> 1.45 | P33: =IF(SUM(COUNTIF($P$10:$P$16,"Sim")) + SUM(COUNTIF(P19:P29,"Sim")) < 3, "N/D (são necessários pelo menos 3 preços)", IFERROR(AVERAGE(_xlfn._xlws.FILTER($K$10:$K$16,$P$10:$P$16="Sim"), _xlfn._xlws.FILTER($K$19:$K$29,P19:P29="Sim")),P30)) -> N/D (são necessários pelo menos 3 preços)
N34: Mediana | O34: =IF(SUM(COUNTIF($O$10:$O$16,"Sim")) + SUM(COUNTIF(O19:O29,"Sim")) < 3, "N/D (são necessários pelo menos 3 preços)", IFERROR(MEDIAN(_xlfn._xlws.FILTER($K$10:$K$16,$O$10:$O$16="Sim"), _xlfn._xlws.FILTER($K$19:$K$29,O19:O29="Sim")),O31)) -> 1.47 | P34: =IF(SUM(COUNTIF($P10:$P$16,"Sim")) + SUM(COUNTIF(P19:P29,"Sim")) < 3, "N/D (são necessários pelo menos 3 preços)", IFERROR(MEDIAN(_xlfn._xlws.FILTER($K$10:$K$16,$P$10:$P$16="Sim"), _xlfn._xlws.FILTER($K$19:$K$29,P19:P29="Sim")),P31)) -> N/D (são necessários pelo menos 3 preços)
B35: COSOLIDAÇÃO DOS PREÇOS | N35: Metodologia a adotar: | O35: =IF(INDEX(O18:P18,P35)=0,"",INDEX(O18:P18,P35)) -> Outliers | P35: 1
B37: PREÇO UNITÁRIO ESTIMADO ADOTADO: | L37: =IF($B$39="Mediana:",L31,L30) -> 1.63
A39: =O18 -> Outliers | B39: Mediana:
A40: =P18 -> Por critério do(a) analista

Sheet COT12 (hidden)
B2: Processo | C2: 59500.003753/2025-45
B3: Responsável | C3: Kaio Gabriel, Alessandra Brant, Alberto Nascimento
B4: Área de Origem | C4: AI/GAP/UGI
B5: Data da pesquisa
B7: ITEM: | C7: VÁLVULA VENTOSA 2" | I7: UNIDADE DE MEDIDA: | J7: unidade | K7: QUANTIDADE: | L7: 1 | O7: Tabela auxiliar de metodologias para exclusão de preços
B8: LICITAÇÕES ANTERIORES | O8: Licitações Anteriores
B9: Órgão | C9: Edital/Ano - Nº do Lote / Item | D9: Quantidade | E9: Valor Unitário | F9: Data | G9: índice de atualização (nome) | H9: I0 | I9: If | J9: Variação acumulada do índice (%) | K9: Preço unitário atualizado | L9: Utilizar? (Sim/Não) | O9: Outliers | P9: Por critério do(a) analista
J10: =IF(ISBLANK(E10),"",IF(ISNUMBER(H10),(I10-H10)/H10,0)) ->  | K10: =IF(ISBLANK(E10),"",E10*(1+J10)) ->  | L10: =IF(ISNUMBER(K10),IF($L$32<>$P$9,O10,P10),"") ->  | O10: =IF(ISNUMBER(K10),IF(OR(K10<_xlfn.QUARTILE.INC($K$10:$K$29,1)-1.5*(_xlfn.QUARTILE.INC($K$10:K29,3)-_xlfn.QUARTILE.INC($K$10:$K$29,1)),K10>_xlfn.QUARTILE.INC($K$10:$K$29,3)+1.5*(_xlfn.QUARTILE.INC($K$10:$K$29,3)-_xlfn.QUARTILE.INC($K$10:$K$29,1))),"Não","Sim"),"") -> 
J11: =IF(ISBLANK(E11),"",IF(ISNUMBER(H11),(I11-H11)/H11,0)) ->  | K11: =IF(ISBLANK(E11),"",E11*(1+J11)) ->  | O11: =IF(ISNUMBER(K11),IF(OR(K11<_xlfn.QUARTILE.INC($K$10:$K$29,1)-1.5*(_xlfn.QUARTILE.INC($K$10:K29,3)-_xlfn.QUARTILE.INC($K$10:$K$29,1)),K11>_xlfn.QUARTILE.INC($K$10:$K$29,3)+1.5*(_xlfn.QUARTILE.INC($K$10:$K$29,3)-_xlfn.QUARTILE.INC($K$10:$K$29,1))),"Não","Sim"),"") -> 
O12: =IF(ISNUMBER(K12),IF(OR(K12<_xlfn.QUARTILE.INC($K$10:$K$29,1)-1.5*(_xlfn.QUARTILE.INC($K$10:K30,3)-_xlfn.QUARTILE.INC($K$10:$K$29,1)),K12>_xlfn.QUARTILE.INC($K$10:$K$29,3)+1.5*(_xlfn.QUARTILE.INC($K$10:$K$29,3)-_xlfn.QUARTILE.INC($K$10:$K$29,1))),"Não","Sim"),"") -> 
O13: =IF(ISNUMBER(K13),IF(OR(K13<_xlfn.QUARTILE.INC($K$10:$K$29,1)-1.5*(_xlfn.QUARTILE.INC($K$10:K31,3)-_xlfn.QUARTILE.INC($K$10:$K$29,1)),K13>_xlfn.QUARTILE.INC($K$10:$K$29,3)+1.5*(_xlfn.QUARTILE.INC($K$10:$K$29,3)-_xlfn.QUARTILE.INC($K$10:$K$29,1))),"Não","Sim"),"") -> 
O14: =IF(ISNUMBER(K14),IF(OR(K14<_xlfn.QUARTILE.INC($K$10:$K$29,1)-1.5*(_xlfn.QUARTILE.INC($K$10:K32,3)-_xlfn.QUARTILE.INC($K$10:$K$29,1)),K14>_xlfn.QUARTILE.INC($K$10:$K$29,3)+1.5*(_xlfn.QUARTILE.INC($K$10:$K$29,3)-_xlfn.QUARTILE.INC($K$10:$K$29,1))),"Não","Sim"),"") -> 
O15: =IF(ISNUMBER(K15),IF(OR(K15<_xlfn.QUARTILE.INC($K$10:$K$29,1)-1.5*(_xlfn.QUARTILE.INC($K$10:K35,3)-_xlfn.QUARTILE.INC($K$10:$K$29,1)),K15>_xlfn.QUARTILE.INC($K$10:$K$29,3)+1.5*(_xlfn.QUARTILE.INC($K$10:$K$29,3)-_xlfn.QUARTILE.INC($K$10:$K$29,1))),"Não","Sim"),"") -> 
O16: =IF(ISNUMBER(K16),IF(OR(K16<_xlfn.QUARTILE.INC($K$10:$K$29,1)-1.5*(_xlfn.QUARTILE.INC($I$10:I37,3)-_xlfn.QUARTILE.INC($K$10:$K$29,1)),K16>_xlfn.QUARTILE.INC($K$10:$K$29,3)+1.5*(_xlfn.QUARTILE.INC($K$10:$K$29,3)-_xlfn.QUARTILE.INC($K$10:$K$29,1))),"Não","Sim"),"") -> 
B17: COTAÇÕES DE MERCADO | O17: Cotações
B18: Empresa | J18: Data | K18: Preço Unitário | L18: Utilizar? (Sim/Não) | O18: Outliers | P18: Por critério do(a) analista
B19: BRASMAQUINAS COMERCIO DE MAQUINAS E IRRIGACAO LTDA (CNPJ : 00145531000334) E-mail: MARCOS.GOMES@BRASMAQUINAS.COM.BR | J19: 2025-08-22 | K19: 500 | L19: Não | O19: =IF(ISNUMBER(K19),IF(OR(K19<_xlfn.QUARTILE.INC($K$10:$K$29,1)-1.5*(_xlfn.QUARTILE.INC($K$10:$K$29,3)-_xlfn.QUARTILE.INC($K$10:$K$29,1)),K19>_xlfn.QUARTILE.INC($K$10:$K$29,3)+1.5*(_xlfn.QUARTILE.INC($K$10:$K$29,3)-_xlfn.QUARTILE.INC($K$10:$K$29,1))),"Não","Sim"),"") -> Sim
B20: VCA IRRIGAÇÃO LTDA (CNPJ: 26.466.226/0001-76) financeiro@minasbombas.com.br | J20: 2025-08-27 | K20: 289.4 | L20: Não | O20: Sim
B21: Tradição Agrícola - Bebedouro - São Paulo - CNPJ: 37.453,431/0001-13. https://www.tradicaoagricola.com.br/ventosas-valvulas-de-ar/valvula-de-ar-bermad-combinada-pn16-c30-2-tripla-funo?parceiro=2545&srsltid=AfmBOoomGRCvx7lOzOZiePIzPM1TVu8Ju_mIqS2Lbl-DkghRzbB8JMQZ8Og | J21: 2025-11-10 | K21: =709.9+33.99 -> 743.89 | L21: =IF(ISNUMBER(K21),IF($L$32=$O$18,O21,IF($L$32=$P$18,P21,"")),"") -> Não | O21: Não
B22: AGROJÃO - https://www.agrojao.com.br/valvula-ventosa-duplo-efeito-2p-azud?utm_source=Site&utm_medium=GoogleMerchant&utm_campaign=GoogleMerchant&gad_source=1&gad_campaignid=21508136584&gbraid=0AAAAAo3vkv6pmzrhnqzFeYNE5ZA0_X50o&gclid=CjwKCAiA2svIBhB-EiwARWDPjlmmqd8Dexz3e6jeF66-UZu5D8jdYhnRaZY10m2lJKaeQl2rV0BvwRoCzh4QAvD_BwE | J22: 2025-11-10 | K22: =262.4+29.23 -> 291.63 | L22: Sim | O22: Sim
B23: Crotalariabrasil - https://www.crotalariabrasil.com.br/valvula-ventosa-duplo-efeito-2p-azud? | J23: 2025-02-26 | K23: 276.01 | L23: Sim | O23: Sim
B24: HidraAclon - https://www.acloncenter.com.br/valvulas-e-registros/valvulas/valvulas-ventosa/valvula-ventosa-cineticadupla-funcao-mod-k10-plastica-2-dn50? | J24: 2025-02-26 | K24: 278.23 | L24: Sim | O24: Sim
B30: Observações: | K30: Média: | L30: =IF($L$32="","Selecione metodologia para exclusão de preços",AVERAGE(IF($L$10:$L$29="Sim",$K$10:$K$29))) -> 281.96 | N30: Média (Cotações) | O30: =IF(COUNTIF(O19:O29,"Sim")<3,"N/D (são necessários pelo menos 3 preços)",AVERAGE(IF(O19:O29="Sim",$K19:$K29))) -> 327.05 | P30: =IF(COUNTIF(P19:P29,"Sim")<3,"N/D (são necessários pelo menos 3 preços)",AVERAGE(IF(P19:P29="Sim",$K19:$K29))) -> N/D (são necessários pelo menos 3 preços)
K31: Mediana: | L31: =IF($L$32="","Selecione metodologia para exclusão de preços",MEDIAN(IF($L$10:$L$29="Sim",$K$10:$K$29))) -> 278.23 | N31: Mediana (Cotações) | O31: =IF(COUNTIF(O19:O29,"Sim")<3,"N/D (são necessários pelo menos 3 preços)",MEDIAN(IF(O19:O29="Sim",$K19:$K29))) -> 289.4 | P31: =IF(COUNTIF(P19:P29,"Sim")<3,"N/D (são necessários pelo menos 3 preços)",MEDIAN(IF(P19:P29="Sim",$K19:$K29))) -> N/D (são necessários pelo menos 3 preços)
B32: Metodologia de exclusão de preços adotada: | L32: =IF(O35="",INDEX(O18:P18,MATCH(MIN(#REF!),#REF!,0)),O35) -> Outliers | N32: CV (Cotações) | O32: =IF(COUNTIF(O19:O29,"Sim")<3,"N/D (são necessários pelo menos 3 preços)",_xlfn.STDEV.S(IF(O19:O29="Sim",$K19:$K29))/AVERAGE(IF(O19:O29="Sim",$K19:$K29))) -> 0.2963 | P32: =IF(COUNTIF(P19:P29,"Sim")<3,"N/D (são necessários pelo menos 3 preços)",_xlfn.STDEV.S(IF(P19:P29="Sim",$K19:$K29))/AVERAGE(IF(P19:P29="Sim",$K19:$K29))) -> N/D (são necessários pelo menos 3 preços)
N33: Média | O33: =IF(SUM(COUNTIF($O$10:$O$16,"Sim")) + SUM(COUNTIF(O19:O29,"Sim")) < 3, "N/D (são necessários pelo menos 3 preços)", IFERROR(AVERAGE(_xlfn._xlws.FILTER($K$10:$K$16,$O$10:$O$16="Sim"), _xlfn._xlws.FILTER($K$19:$K$29,O19:O29="Sim")),O30)) -> 327.05 | P33: =IF(SUM(COUNTIF($P$10:$P$16,"Sim")) + SUM(COUNTIF(P19:P29,"Sim")) < 3, "N/D (são necessários pelo menos 3 preços)", IFERROR(AVERAGE(_xlfn._xlws.FILTER($K$10:$K$16,$P$10:$P$16="Sim"), _xlfn._xlws.FILTER($K$19:$K$29,P19:P29="Sim")),P30)) -> N/D (são necessários pelo menos 3 preços)
N34: Mediana | O34: =IF(SUM(COUNTIF($O$10:$O$16,"Sim")) + SUM(COUNTIF(O19:O29,"Sim")) < 3, "N/D (são necessários pelo menos 3 preços)", IFERROR(MEDIAN(_xlfn._xlws.FILTER($K$10:$K$16,$O$10:$O$16="Sim"), _xlfn._xlws.FILTER($K$19:$K$29,O19:O29="Sim")),O31)) -> 289.4 | P34: =IF(SUM(COUNTIF($P10:$P$16,"Sim")) + SUM(COUNTIF(P19:P29,"Sim")) < 3, "N/D (são necessários pelo menos 3 preços)", IFERROR(MEDIAN(_xlfn._xlws.FILTER($K$10:$K$16,$P$10:$P$16="Sim"), _xlfn._xlws.FILTER($K$19:$K$29,P19:P29="Sim")),P31)) -> N/D (são necessários pelo menos 3 preços)
B35: COSOLIDAÇÃO DOS PREÇOS | N35: Metodologia a adotar: | O35: =IF(INDEX(O18:P18,P35)=0,"",INDEX(O18:P18,P35)) -> Outliers | P35: 1
B37: PREÇO UNITÁRIO ESTIMADO ADOTADO: | L37: =IF($B$39="Mediana:",L31,L30) -> 278.23
A39: =O18 -> Outliers | B39: Mediana:
A40: =P18 -> Por critério do(a) analista

Sheet COT13 (hidden)
B2: Processo | C2: 59500.003753/2025-45
B3: Responsável | C3: Kaio Gabriel, Alessandra Brant, Alberto Nascimento
B4: Área de Origem | C4: AI/GAP/UGI
B5: Data da pesquisa
B7: ITEM: | C7: Alça preformada para islador roldana, seção conforme condutores instalados | I7: UNIDADE DE MEDIDA: | J7: Unidade | K7: QUANTIDADE: | L7: 5 | O7: Tabela auxiliar de metodologias para exclusão de preços
B8: LICITAÇÕES ANTERIORES | O8: Licitações Anteriores
B9: Órgão | C9: Edital/Ano - Nº do Lote / Item | D9: Quantidade | E9: Valor Unitário | F9: Data | G9: índice de atualização (nome) | H9: I0 | I9: If | J9: Variação acumulada do índice (%) | K9: Preço unitário atualizado | L9: Utilizar? (Sim/Não) | O9: Outliers | P9: Por critério do(a) analista
J10: =IF(ISBLANK(E10),"",IF(ISNUMBER(H10),(I10-H10)/H10,0)) ->  | K10: =IF(ISBLANK(E10),"",E10*(1+J10)) ->  | L10: =IF(ISNUMBER(K10),IF($L$32<>$P$9,O10,P10),"") ->  | O10: =IF(ISNUMBER(K10),IF(OR(K10<_xlfn.QUARTILE.INC($K$10:$K$29,1)-1.5*(_xlfn.QUARTILE.INC($K$10:K29,3)-_xlfn.QUARTILE.INC($K$10:$K$29,1)),K10>_xlfn.QUARTILE.INC($K$10:$K$29,3)+1.5*(_xlfn.QUARTILE.INC($K$10:$K$29,3)-_xlfn.QUARTILE.INC($K$10:$K$29,1))),"Não","Sim"),"") -> 
J11: =IF(ISBLANK(E11),"",IF(ISNUMBER(H11),(I11-H11)/H11,0)) ->  | K11: =IF(ISBLANK(E11),"",E11*(1+J11)) ->  | O11: =IF(ISNUMBER(K11),IF(OR(K11<_xlfn.QUARTILE.INC($K$10:$K$29,1)-1.5*(_xlfn.QUARTILE.INC($K$10:K29,3)-_xlfn.QUARTILE.INC($K$10:$K$29,1)),K11>_xlfn.QUARTILE.INC($K$10:$K$29,3)+1.5*(_xlfn.QUARTILE.INC($K$10:$K$29,3)-_xlfn.QUARTILE.INC($K$10:$K$29,1))),"Não","Sim"),"") -> 
O12: =IF(ISNUMBER(K12),IF(OR(K12<_xlfn.QUARTILE.INC($K$10:$K$29,1)-1.5*(_xlfn.QUARTILE.INC($K$10:K30,3)-_xlfn.QUARTILE.INC($K$10:$K$29,1)),K12>_xlfn.QUARTILE.INC($K$10:$K$29,3)+1.5*(_xlfn.QUARTILE.INC($K$10:$K$29,3)-_xlfn.QUARTILE.INC($K$10:$K$29,1))),"Não","Sim"),"") -> 
O13: =IF(ISNUMBER(K13),IF(OR(K13<_xlfn.QUARTILE.INC($K$10:$K$29,1)-1.5*(_xlfn.QUARTILE.INC($K$10:K31,3)-_xlfn.QUARTILE.INC($K$10:$K$29,1)),K13>_xlfn.QUARTILE.INC($K$10:$K$29,3)+1.5*(_xlfn.QUARTILE.INC($K$10:$K$29,3)-_xlfn.QUARTILE.INC($K$10:$K$29,1))),"Não","Sim"),"") -> 
O14: =IF(ISNUMBER(K14),IF(OR(K14<_xlfn.QUARTILE.INC($K$10:$K$29,1)-1.5*(_xlfn.QUARTILE.INC($K$10:K32,3)-_xlfn.QUARTILE.INC($K$10:$K$29,1)),K14>_xlfn.QUARTILE.INC($K$10:$K$29,3)+1.5*(_xlfn.QUARTILE.INC($K$10:$K$29,3)-_xlfn.QUARTILE.INC($K$10:$K$29,1))),"Não","Sim"),"") -> 
O15: =IF(ISNUMBER(K15),IF(OR(K15<_xlfn.QUARTILE.INC($K$10:$K$29,1)-1.5*(_xlfn.QUARTILE.INC($K$10:K35,3)-_xlfn.QUARTILE.INC($K$10:$K$29,1)),K15>_xlfn.QUARTILE.INC($K$10:$K$29,3)+1.5*(_xlfn.QUARTILE.INC($K$10:$K$29,3)-_xlfn.QUARTILE.INC($K$10:$K$29,1))),"Não","Sim"),"") -> 
O16: =IF(ISNUMBER(K16),IF(OR(K16<_xlfn.QUARTILE.INC($K$10:$K$29,1)-1.5*(_xlfn.QUARTILE.INC($I$10:I37,3)-_xlfn.QUARTILE.INC($K$10:$K$29,1)),K16>_xlfn.QUARTILE.INC($K$10:$K$29,3)+1.5*(_xlfn.QUARTILE.INC($K$10:$K$29,3)-_xlfn.QUARTILE.INC($K$10:$K$29,1))),"Não","Sim"),"") -> 
B17: COTAÇÕES DE MERCADO | O17: Cotações
B18: Empresa | J18: Data | K18: Preço Unitário | L18: Utilizar? (Sim/Não) | O18: Outliers | P18: Por critério do(a) analista
B19: Soluções Cabos - São Paulo (SP) - CNPJ: 00.559.915/0001-31. https://www.solucaocabos.com.br/alca-preformada-24fo-ate-72fo-amarracao-final-cabo-cce-930mm-a-1010mm/p | J19: 2025-11-10 | K19: =(6.84+(34.39/5)) -> 13.72 | L19: =IF(ISNUMBER(K19),IF($L$32=$O$18,O19,IF($L$32=$P$18,P19,"")),"") -> Não | O19: =IF(ISNUMBER(K19),IF(OR(K19<_xlfn.QUARTILE.INC($K$10:$K$29,1)-1.5*(_xlfn.QUARTILE.INC($K$10:$K$29,3)-_xlfn.QUARTILE.INC($K$10:$K$29,1)),K19>_xlfn.QUARTILE.INC($K$10:$K$29,3)+1.5*(_xlfn.QUARTILE.INC($K$10:$K$29,3)-_xlfn.QUARTILE.INC($K$10:$K$29,1))),"Não","Sim"),"") -> Não
B20: Central Elétrica - Montes Claros (MG) - CNPJ: 22.334.296/0004-62. https://www.lojacentraleletrica.com.br/produto/alca-pre-formada-10mm-para-cabo-de-aluminio?srsltid=AfmBOooOyN2TPycfZXAOfckZ4IeDv73n-xpau0xEwXX7YeQsgpfRvVUFUaA | J20: 2025-11-10 | K20: =5.36+(23.58/5) -> 10.08 | L20: Sim | O20: Sim
B21: Fritz Distribuidora - Indaial (SC) - CNPJ: 10.381.875/0001-34. https://loja.fritzdistribuidora.com.br/produto/alca-pre-formada-neutro-nu-10-16mm-apse-4250-2-helica/?srsltid=AfmBOorvtd-jjFtJ-6hRbM_o4rDAU9k5C70_qCbIC9L6fqwcL_ZcYL7p3LY | J21: 2025-11-10 | K21: =(3.79+(32.56/5)) -> 10.3 | L21: Sim | O21: Sim
B22: SV Comércio de Materiais Elétricos LTDA - Fortaleza (CE) - CNPJ 35.088.657/0001-37. https://www.sveletrica.com/alca-preformada-aluminio-pre-reunido-ca-10-16mm-asi-1008-00a000151g/p?idsku=2158&srsltid=AfmBOoovcI334lwMCpULVFwvTMZIl8ENT9dKRY3765agc5C0Gu-8OmzISl8 | J22: 2025-11-10 | K22: =(3.95+(23.54/5)) -> 8.66 | L22: Sim | O22: Sim
B30: Observações: | K30: Média: | L30: =IF($L$32="","Selecione metodologia para exclusão de preços",AVERAGE(IF($L$10:$L$29="Sim",$K$10:$K$29))) -> 9.68 | N30: Média (Cotações) | O30: =IF(COUNTIF(O19:O29,"Sim")<3,"N/D (são necessários pelo menos 3 preços)",AVERAGE(IF(O19:O29="Sim",$K19:$K29))) -> 9.68 | P30: =IF(COUNTIF(P19:P29,"Sim")<3,"N/D (são necessários pelo menos 3 preços)",AVERAGE(IF(P19:P29="Sim",$K19:$K29))) -> N/D (são necessários pelo menos 3 preços)
K31: Mediana: | L31: =IF($L$32="","Selecione metodologia para exclusão de preços",MEDIAN(IF($L$10:$L$29="Sim",$K$10:$K$29))) -> 10.08 | N31: Mediana (Cotações) | O31: =IF(COUNTIF(O19:O29,"Sim")<3,"N/D (são necessários pelo menos 3 preços)",MEDIAN(IF(O19:O29="Sim",$K19:$K29))) -> 10.08 | P31: =IF(COUNTIF(P19:P29,"Sim")<3,"N/D (são necessários pelo menos 3 preços)",MEDIAN(IF(P19:P29="Sim",$K19:$K29))) -> N/D (são necessários pelo menos 3 preços)
B32: Metodologia de exclusão de preços adotada: | L32: =IF(O35="",INDEX(O18:P18,MATCH(MIN(#REF!),#REF!,0)),O35) -> Outliers | N32: CV (Cotações) | O32: =IF(COUNTIF(O19:O29,"Sim")<3,"N/D (são necessários pelo menos 3 preços)",_xlfn.STDEV.S(IF(O19:O29="Sim",$K19:$K29))/AVERAGE(IF(O19:O29="Sim",$K19:$K29))) -> 0.092 | P32: =IF(COUNTIF(P19:P29,"Sim")<3,"N/D (são necessários pelo menos 3 preços)",_xlfn.STDEV.S(IF(P19:P29="Sim",$K19:$K29))/AVERAGE(IF(P19:P29="Sim",$K19:$K29))) -> N/D (são necessários pelo menos 3 preços)
N33: Média | O33: =IF(SUM(COUNTIF($O$10:$O$16,"Sim")) + SUM(COUNTIF(O19:O29,"Sim")) < 3, "N/D (são necessários pelo menos 3 preços)", IFERROR(AVERAGE(_xlfn._xlws.FILTER($K$10:$K$16,$O$10:$O$16="Sim"), _xlfn._xlws.FILTER($K$19:$K$29,O19:O29="Sim")),O30)) -> 9.68 | P33: =IF(SUM(COUNTIF($P$10:$P$16,"Sim")) + SUM(COUNTIF(P19:P29,"Sim")) < 3, "N/D (são necessários pelo menos 3 preços)", IFERROR(AVERAGE(_xlfn._xlws.FILTER($K$10:$K$16,$P$10:$P$16="Sim"), _xlfn._xlws.FILTER($K$19:$K$29,P19:P29="Sim")),P30)) -> N/D (são necessários pelo menos 3 preços)
N34: Mediana | O34: =IF(SUM(COUNTIF($O$10:$O$16,"Sim")) + SUM(COUNTIF(O19:O29,"Sim")) < 3, "N/D (são necessários pelo menos 3 preços)", IFERROR(MEDIAN(_xlfn._xlws.FILTER($K$10:$K$16,$O$10:$O$16="Sim"), _xlfn._xlws.FILTER($K$19:$K$29,O19:O29="Sim")),O31)) -> 10.08 | P34: =IF(SUM(COUNTIF($P10:$P$16,"Sim")) + SUM(COUNTIF(P19:P29,"Sim")) < 3, "N/D (são necessários pelo menos 3 preços)", IFERROR(MEDIAN(_xlfn._xlws.FILTER($K$10:$K$16,$P$10:$P$16="Sim"), _xlfn._xlws.FILTER($K$19:$K$29,P19:P29="Sim")),P31)) -> N/D (são necessários pelo menos 3 preços)
B35: COSOLIDAÇÃO DOS PREÇOS | N35: Metodologia a adotar: | O35: =IF(INDEX(O18:P18,P35)=0,"",INDEX(O18:P18,P35)) -> Outliers | P35: 1
B37: PREÇO UNITÁRIO ESTIMADO ADOTADO: | L37: =IF($B$39="Mediana:",L31,L30) -> 9.68
A39: =O18 -> Outliers | B39: Média:
A40: =P18 -> Por critério do(a) analista

Sheet COT14 (hidden)
B2: Processo | C2: 59500.003753/2025-45
B3: Responsável | C3: Kaio Gabriel, Alessandra Brant, Alberto Nascimento
B4: Área de Origem | C4: AI/GAP/UGI
B5: Data da pesquisa
B7: ITEM: | C7: Cabo de cobre isolado HEPR (XLPE), 10mm², 1kv / 90º C (cor conforme a aplicação) apropriado para redes aéreas | I7: UNIDADE DE MEDIDA: | J7: metro | K7: QUANTIDADE: | L7: 200 | O7: Tabela auxiliar de metodologias para exclusão de preços
B8: LICITAÇÕES ANTERIORES | O8: Licitações Anteriores
B9: Órgão | C9: Edital/Ano - Nº do Lote / Item | D9: Quantidade | E9: Valor Unitário | F9: Data | G9: índice de atualização (nome) | H9: I0 | I9: If | J9: Variação acumulada do índice (%) | K9: Preço unitário atualizado | L9: Utilizar? (Sim/Não) | O9: Outliers | P9: Por critério do(a) analista
J10: =IF(ISBLANK(E10),"",IF(ISNUMBER(H10),(I10-H10)/H10,0)) ->  | K10: =IF(ISBLANK(E10),"",E10*(1+J10)) ->  | L10: =IF(ISNUMBER(K10),IF($L$32<>$P$9,O10,P10),"") ->  | O10: =IF(ISNUMBER(K10),IF(OR(K10<_xlfn.QUARTILE.INC($K$10:$K$29,1)-1.5*(_xlfn.QUARTILE.INC($K$10:K29,3)-_xlfn.QUARTILE.INC($K$10:$K$29,1)),K10>_xlfn.QUARTILE.INC($K$10:$K$29,3)+1.5*(_xlfn.QUARTILE.INC($K$10:$K$29,3)-_xlfn.QUARTILE.INC($K$10:$K$29,1))),"Não","Sim"),"") -> 
J11: =IF(ISBLANK(E11),"",IF(ISNUMBER(H11),(I11-H11)/H11,0)) ->  | K11: =IF(ISBLANK(E11),"",E11*(1+J11)) ->  | O11: =IF(ISNUMBER(K11),IF(OR(K11<_xlfn.QUARTILE.INC($K$10:$K$29,1)-1.5*(_xlfn.QUARTILE.INC($K$10:K29,3)-_xlfn.QUARTILE.INC($K$10:$K$29,1)),K11>_xlfn.QUARTILE.INC($K$10:$K$29,3)+1.5*(_xlfn.QUARTILE.INC($K$10:$K$29,3)-_xlfn.QUARTILE.INC($K$10:$K$29,1))),"Não","Sim"),"") -> 
O12: =IF(ISNUMBER(K12),IF(OR(K12<_xlfn.QUARTILE.INC($K$10:$K$29,1)-1.5*(_xlfn.QUARTILE.INC($K$10:K30,3)-_xlfn.QUARTILE.INC($K$10:$K$29,1)),K12>_xlfn.QUARTILE.INC($K$10:$K$29,3)+1.5*(_xlfn.QUARTILE.INC($K$10:$K$29,3)-_xlfn.QUARTILE.INC($K$10:$K$29,1))),"Não","Sim"),"") -> 
O13: =IF(ISNUMBER(K13),IF(OR(K13<_xlfn.QUARTILE.INC($K$10:$K$29,1)-1.5*(_xlfn.QUARTILE.INC($K$10:K31,3)-_xlfn.QUARTILE.INC($K$10:$K$29,1)),K13>_xlfn.QUARTILE.INC($K$10:$K$29,3)+1.5*(_xlfn.QUARTILE.INC($K$10:$K$29,3)-_xlfn.QUARTILE.INC($K$10:$K$29,1))),"Não","Sim"),"") -> 
O14: =IF(ISNUMBER(K14),IF(OR(K14<_xlfn.QUARTILE.INC($K$10:$K$29,1)-1.5*(_xlfn.QUARTILE.INC($K$10:K32,3)-_xlfn.QUARTILE.INC($K$10:$K$29,1)),K14>_xlfn.QUARTILE.INC($K$10:$K$29,3)+1.5*(_xlfn.QUARTILE.INC($K$10:$K$29,3)-_xlfn.QUARTILE.INC($K$10:$K$29,1))),"Não","Sim"),"") -> 
O15: =IF(ISNUMBER(K15),IF(OR(K15<_xlfn.QUARTILE.INC($K$10:$K$29,1)-1.5*(_xlfn.QUARTILE.INC($K$10:K35,3)-_xlfn.QUARTILE.INC($K$10:$K$29,1)),K15>_xlfn.QUARTILE.INC($K$10:$K$29,3)+1.5*(_xlfn.QUARTILE.INC($K$10:$K$29,3)-_xlfn.QUARTILE.INC($K$10:$K$29,1))),"Não","Sim"),"") -> 
O16: =IF(ISNUMBER(K16),IF(OR(K16<_xlfn.QUARTILE.INC($K$10:$K$29,1)-1.5*(_xlfn.QUARTILE.INC($I$10:I37,3)-_xlfn.QUARTILE.INC($K$10:$K$29,1)),K16>_xlfn.QUARTILE.INC($K$10:$K$29,3)+1.5*(_xlfn.QUARTILE.INC($K$10:$K$29,3)-_xlfn.QUARTILE.INC($K$10:$K$29,1))),"Não","Sim"),"") -> 
B17: COTAÇÕES DE MERCADO | O17: Cotações
B18: Empresa | J18: Data | K18: Preço Unitário | L18: Utilizar? (Sim/Não) | O18: Outliers | P18: Por critério do(a) analista
B19: Dimensional Brasil Soluções Ltda - Garuva (SC) - CNPJ; 06.913.480/0026-16. https://www.dimensional.com.br/cabo-flexivel-1kv-90g-hepr-10mm2-preto1361362/p?idsku=1361362&gad_source=1&gad_campaignid=22665017757&gbraid=0AAAAADgOTvsDszz-G73NuEHuuDuNBMc54&gclid=CjwKCAjwgeLHBhBuEiwAL5gNEZZ61-O_GGy2-Lw3TvtRLJpwlZwCUMoe-P6Lm5pnD8QJAvuZzvj3vhoCKH8QAvD_BwE | J19: 2025-11-10 | K19: =(8.36+(60.02/200)) -> 8.66 | L19: =IF(ISNUMBER(K19),IF($L$32=$O$18,O19,IF($L$32=$P$18,P19,"")),"") -> Sim | O19: =IF(ISNUMBER(K19),IF(OR(K19<_xlfn.QUARTILE.INC($K$10:$K$29,1)-1.5*(_xlfn.QUARTILE.INC($K$10:$K$29,3)-_xlfn.QUARTILE.INC($K$10:$K$29,1)),K19>_xlfn.QUARTILE.INC($K$10:$K$29,3)+1.5*(_xlfn.QUARTILE.INC($K$10:$K$29,3)-_xlfn.QUARTILE.INC($K$10:$K$29,1))),"Não","Sim"),"") -> Sim
B20: EletroNunes - Planaltina (DF) - CNPJ: 07.334.648/0001-43. https://www.eletronuneshome.com.br/materiais-eletricos/cabos-eletricos/cabo-flexivel/cabo-flexivel-10mm-1kv-induscabos?variant_id=1844&gad_source=1&gad_campaignid=21883261195&gbraid=0AAAAADNmxfJ4ADVl6PbDdhLDQQse9hn8G&gclid=CjwKCAjwgeLHBhBuEiwAL5gNEQ24TTH1AipN0LmqZkFTtCRiL9Uui-2zL-Xd3JjWAofX06S8SaHWyRoCm4wQAvD_BwE | J20: 2025-11-10 | K20: =10.67+(29.41/200) -> 10.82 | L20: Sim | O20: Sim
B21: Casa do Eletricista Comércio de Materiais Elétricos EIRELI - Criciúma (SC) - CNPJ: 15.354.701/0004-49. https://www.casadoeletricistasc.com.br/cabo-flexivel-1kv-10-0mm2-hepr-preto/p/3796?c=16&t=12&gad_source=4&gad_campaignid=17190943388&gbraid=0AAAAADt31YtJ7VGA9BtQHP-59r40nQqlF&gclid=CjwKCAjwgeLHBhBuEiwAL5gNEdhdI1Ks5jbY18GVv4qYU4OM7HkGSQvzYMG1CYcDc5GB2CmJgcPkGRoC1y0QAvD_BwE | J21: 2025-11-10 | K21: =9.26+(157.4/200) -> 10.05 | L21: Sim | O21: Sim
B30: Observações: | K30: Média: | L30: =IF($L$32="","Selecione metodologia para exclusão de preços",AVERAGE(IF($L$10:$L$29="Sim",$K$10:$K$29))) -> 9.84 | N30: Média (Cotações) | O30: =IF(COUNTIF(O19:O29,"Sim")<3,"N/D (são necessários pelo menos 3 preços)",AVERAGE(IF(O19:O29="Sim",$K19:$K29))) -> 9.84 | P30: =IF(COUNTIF(P19:P29,"Sim")<3,"N/D (são necessários pelo menos 3 preços)",AVERAGE(IF(P19:P29="Sim",$K19:$K29))) -> N/D (são necessários pelo menos 3 preços)
K31: Mediana: | L31: =IF($L$32="","Selecione metodologia para exclusão de preços",MEDIAN(IF($L$10:$L$29="Sim",$K$10:$K$29))) -> 10.05 | N31: Mediana (Cotações) | O31: =IF(COUNTIF(O19:O29,"Sim")<3,"N/D (são necessários pelo menos 3 preços)",MEDIAN(IF(O19:O29="Sim",$K19:$K29))) -> 10.05 | P31: =IF(COUNTIF(P19:P29,"Sim")<3,"N/D (são necessários pelo menos 3 preços)",MEDIAN(IF(P19:P29="Sim",$K19:$K29))) -> N/D (são necessários pelo menos 3 preços)
B32: Metodologia de exclusão de preços adotada: | L32: =IF(O35="",INDEX(O18:P18,MATCH(MIN(#REF!),#REF!,0)),O35) -> Outliers | N32: CV (Cotações) | O32: =IF(COUNTIF(O19:O29,"Sim")<3,"N/D (são necessários pelo menos 3 preços)",_xlfn.STDEV.S(IF(O19:O29="Sim",$K19:$K29))/AVERAGE(IF(O19:O29="Sim",$K19:$K29))) -> 0.1112 | P32: =IF(COUNTIF(P19:P29,"Sim")<3,"N/D (são necessários pelo menos 3 preços)",_xlfn.STDEV.S(IF(P19:P29="Sim",$K19:$K29))/AVERAGE(IF(P19:P29="Sim",$K19:$K29))) -> N/D (são necessários pelo menos 3 preços)
N33: Média | O33: =IF(SUM(COUNTIF($O$10:$O$16,"Sim")) + SUM(COUNTIF(O19:O29,"Sim")) < 3, "N/D (são necessários pelo menos 3 preços)", IFERROR(AVERAGE(_xlfn._xlws.FILTER($K$10:$K$16,$O$10:$O$16="Sim"), _xlfn._xlws.FILTER($K$19:$K$29,O19:O29="Sim")),O30)) -> 9.84 | P33: =IF(SUM(COUNTIF($P$10:$P$16,"Sim")) + SUM(COUNTIF(P19:P29,"Sim")) < 3, "N/D (são necessários pelo menos 3 preços)", IFERROR(AVERAGE(_xlfn._xlws.FILTER($K$10:$K$16,$P$10:$P$16="Sim"), _xlfn._xlws.FILTER($K$19:$K$29,P19:P29="Sim")),P30)) -> N/D (são necessários pelo menos 3 preços)
N34: Mediana | O34: =IF(SUM(COUNTIF($O$10:$O$16,"Sim")) + SUM(COUNTIF(O19:O29,"Sim")) < 3, "N/D (são necessários pelo menos 3 preços)", IFERROR(MEDIAN(_xlfn._xlws.FILTER($K$10:$K$16,$O$10:$O$16="Sim"), _xlfn._xlws.FILTER($K$19:$K$29,O19:O29="Sim")),O31)) -> 10.05 | P34: =IF(SUM(COUNTIF($P10:$P$16,"Sim")) + SUM(COUNTIF(P19:P29,"Sim")) < 3, "N/D (são necessários pelo menos 3 preços)", IFERROR(MEDIAN(_xlfn._xlws.FILTER($K$10:$K$16,$P$10:$P$16="Sim"), _xlfn._xlws.FILTER($K$19:$K$29,P19:P29="Sim")),P31)) -> N/D (são necessários pelo menos 3 preços)
B35: COSOLIDAÇÃO DOS PREÇOS | N35: Metodologia a adotar: | O35: =IF(INDEX(O18:P18,P35)=0,"",INDEX(O18:P18,P35)) -> Outliers | P35: 1
B37: PREÇO UNITÁRIO ESTIMADO ADOTADO: | L37: =IF($B$39="Mediana:",L31,L30) -> 9.84
A39: =O18 -> Outliers | B39: Média:
A40: =P18 -> Por critério do(a) analista

Sheet COT15 (hidden)
B2: Processo | C2: 59500.003753/2025-45
B3: Responsável | C3: Kaio Gabriel, Alessandra Brant, Alberto Nascimento
B4: Área de Origem | C4: AI/GAP/UGI
B5: Data da pesquisa
B7: ITEM: | C7: Relé eletrônico/digital monitor de tensão monofásico, com funcionalidade de subtensão e sobretensão, ajustes através de trimpot no relé, LED indicativo de funcionamento, tensão conforme aplicação, 60 Hz, com 1 contato reversível | I7: UNIDADE DE MEDIDA: | J7: Unidade | K7: QUANTIDADE: | L7: 1 | O7: Tabela auxiliar de metodologias para exclusão de preços
B8: LICITAÇÕES ANTERIORES | O8: Licitações Anteriores
B9: Órgão | C9: Edital/Ano - Nº do Lote / Item | D9: Quantidade | E9: Valor Unitário | F9: Data | G9: índice de atualização (nome) | H9: I0 | I9: If | J9: Variação acumulada do índice (%) | K9: Preço unitário atualizado | L9: Utilizar? (Sim/Não) | O9: Outliers | P9: Por critério do(a) analista
J10: =IF(ISBLANK(E10),"",IF(ISNUMBER(H10),(I10-H10)/H10,0)) ->  | K10: =IF(ISBLANK(E10),"",E10*(1+J10)) ->  | L10: =IF(ISNUMBER(K10),IF($L$32<>$P$9,O10,P10),"") ->  | O10: =IF(ISNUMBER(K10),IF(OR(K10<_xlfn.QUARTILE.INC($K$10:$K$29,1)-1.5*(_xlfn.QUARTILE.INC($K$10:K29,3)-_xlfn.QUARTILE.INC($K$10:$K$29,1)),K10>_xlfn.QUARTILE.INC($K$10:$K$29,3)+1.5*(_xlfn.QUARTILE.INC($K$10:$K$29,3)-_xlfn.QUARTILE.INC($K$10:$K$29,1))),"Não","Sim"),"") -> 
J11: =IF(ISBLANK(E11),"",IF(ISNUMBER(H11),(I11-H11)/H11,0)) ->  | K11: =IF(ISBLANK(E11),"",E11*(1+J11)) ->  | O11: =IF(ISNUMBER(K11),IF(OR(K11<_xlfn.QUARTILE.INC($K$10:$K$29,1)-1.5*(_xlfn.QUARTILE.INC($K$10:K29,3)-_xlfn.QUARTILE.INC($K$10:$K$29,1)),K11>_xlfn.QUARTILE.INC($K$10:$K$29,3)+1.5*(_xlfn.QUARTILE.INC($K$10:$K$29,3)-_xlfn.QUARTILE.INC($K$10:$K$29,1))),"Não","Sim"),"") -> 
O12: =IF(ISNUMBER(K12),IF(OR(K12<_xlfn.QUARTILE.INC($K$10:$K$29,1)-1.5*(_xlfn.QUARTILE.INC($K$10:K30,3)-_xlfn.QUARTILE.INC($K$10:$K$29,1)),K12>_xlfn.QUARTILE.INC($K$10:$K$29,3)+1.5*(_xlfn.QUARTILE.INC($K$10:$K$29,3)-_xlfn.QUARTILE.INC($K$10:$K$29,1))),"Não","Sim"),"") -> 
O13: =IF(ISNUMBER(K13),IF(OR(K13<_xlfn.QUARTILE.INC($K$10:$K$29,1)-1.5*(_xlfn.QUARTILE.INC($K$10:K31,3)-_xlfn.QUARTILE.INC($K$10:$K$29,1)),K13>_xlfn.QUARTILE.INC($K$10:$K$29,3)+1.5*(_xlfn.QUARTILE.INC($K$10:$K$29,3)-_xlfn.QUARTILE.INC($K$10:$K$29,1))),"Não","Sim"),"") -> 
O14: =IF(ISNUMBER(K14),IF(OR(K14<_xlfn.QUARTILE.INC($K$10:$K$29,1)-1.5*(_xlfn.QUARTILE.INC($K$10:K32,3)-_xlfn.QUARTILE.INC($K$10:$K$29,1)),K14>_xlfn.QUARTILE.INC($K$10:$K$29,3)+1.5*(_xlfn.QUARTILE.INC($K$10:$K$29,3)-_xlfn.QUARTILE.INC($K$10:$K$29,1))),"Não","Sim"),"") -> 
O15: =IF(ISNUMBER(K15),IF(OR(K15<_xlfn.QUARTILE.INC($K$10:$K$29,1)-1.5*(_xlfn.QUARTILE.INC($K$10:K35,3)-_xlfn.QUARTILE.INC($K$10:$K$29,1)),K15>_xlfn.QUARTILE.INC($K$10:$K$29,3)+1.5*(_xlfn.QUARTILE.INC($K$10:$K$29,3)-_xlfn.QUARTILE.INC($K$10:$K$29,1))),"Não","Sim"),"") -> 
O16: =IF(ISNUMBER(K16),IF(OR(K16<_xlfn.QUARTILE.INC($K$10:$K$29,1)-1.5*(_xlfn.QUARTILE.INC($I$10:I37,3)-_xlfn.QUARTILE.INC($K$10:$K$29,1)),K16>_xlfn.QUARTILE.INC($K$10:$K$29,3)+1.5*(_xlfn.QUARTILE.INC($K$10:$K$29,3)-_xlfn.QUARTILE.INC($K$10:$K$29,1))),"Não","Sim"),"") -> 
B17: COTAÇÕES DE MERCADO | O17: Cotações
B18: Empresa | J18: Data | K18: Preço Unitário | L18: Utilizar? (Sim/Não) | O18: Outliers | P18: Por critério do(a) analista
B19: 47Elétrica - Rio do Sul (SC) - CNPJ; 46.519.785/0001-04. https://www.47eletrica.com.br/rele-monitor-de-tensao-80-400vca-e-corrente-63a-programavel-vanp-2p?utm_source=google&utm_medium=Shopping&utm_campaign=rele-monitor-de-tensao-80-400vca-e-corrente-63a-programavel-vanp-2p&inStock&gad_source=4&gad_campaignid=20274381808&gbraid=0AAAAAo_olJObDKmZLNYyA2yO7dzHs8-q4&gclid=CjwKCAjwgeLHBhBuEiwAL5gNEYkRzHhGtKf1HgYHbmRGEWNoQCZtnDsLgZwJ7YEWDaxB8FGGNFsHfxoCnYkQAvD_BwE#derivacao=8 | J19: 2025-11-10 | K19: =(142.53+20.96) -> 163.49 | L19: =IF(ISNUMBER(K19),IF($L$32=$O$18,O19,IF($L$32=$P$18,P19,"")),"") -> Sim | O19: =IF(ISNUMBER(K19),IF(OR(K19<_xlfn.QUARTILE.INC($K$10:$K$29,1)-1.5*(_xlfn.QUARTILE.INC($K$10:$K$29,3)-_xlfn.QUARTILE.INC($K$10:$K$29,1)),K19>_xlfn.QUARTILE.INC($K$10:$K$29,3)+1.5*(_xlfn.QUARTILE.INC($K$10:$K$29,3)-_xlfn.QUARTILE.INC($K$10:$K$29,1))),"Não","Sim"),"") -> Sim
B20: Leroy Merlin - ia. Brasileira de Bricolagem - CNPJ nº 01.438.784/0001-05. https://www.leroymerlin.com.br/rele-monitor-de-tensao-e-corrente-programavel-vanp-2p-%7C-80-400vca-63a_1571628941?gad_campaignid=23037770349&gbraid=0AAAAADkzLZ6hNEZsWOrzcuagKNS-EXd6a#caracteristicas-tecnicas | J20: 2025-11-10 | K20: 197.05 | L20: Sim | O20: Sim
B21: Mundo Elétrico - São Paulo (SP) - CNPJ: 01.457.015/0001-46. https://www.mundoeletrico.com.br/produto/656f65624e13097e999fac0d/supervisor-de-tensao-monofasico-dpsm-1-digimec?gad_source=1&gad_campaignid=22437994444&gbraid=0AAAAADxZLrNrPLNuyJG5XFKJ9BMN6xINi&gclid=CjwKCAjwgeLHBhBuEiwAL5gNEW1TvElLusP8NDdRRAYHG9P_MYIXlAbm69cyIRPjgg8bOKyAr8byBRoCD4wQAvD_BwE&primeira_variacao=380VCA&imagem=0 | J21: 2025-11-10 | K21: 220 | L21: Sim | O21: Sim
B30: Observações: | K30: Média: | L30: =IF($L$32="","Selecione metodologia para exclusão de preços",AVERAGE(IF($L$10:$L$29="Sim",$K$10:$K$29))) -> 193.51 | N30: Média (Cotações) | O30: =IF(COUNTIF(O19:O29,"Sim")<3,"N/D (são necessários pelo menos 3 preços)",AVERAGE(IF(O19:O29="Sim",$K19:$K29))) -> 193.51 | P30: =IF(COUNTIF(P19:P29,"Sim")<3,"N/D (são necessários pelo menos 3 preços)",AVERAGE(IF(P19:P29="Sim",$K19:$K29))) -> N/D (são necessários pelo menos 3 preços)
K31: Mediana: | L31: =IF($L$32="","Selecione metodologia para exclusão de preços",MEDIAN(IF($L$10:$L$29="Sim",$K$10:$K$29))) -> 197.05 | N31: Mediana (Cotações) | O31: =IF(COUNTIF(O19:O29,"Sim")<3,"N/D (são necessários pelo menos 3 preços)",MEDIAN(IF(O19:O29="Sim",$K19:$K29))) -> 197.05 | P31: =IF(COUNTIF(P19:P29,"Sim")<3,"N/D (são necessários pelo menos 3 preços)",MEDIAN(IF(P19:P29="Sim",$K19:$K29))) -> N/D (são necessários pelo menos 3 preços)
B32: Metodologia de exclusão de preços adotada: | L32: =IF(O35="",INDEX(O18:P18,MATCH(MIN(#REF!),#REF!,0)),O35) -> Outliers | N32: CV (Cotações) | O32: =IF(COUNTIF(O19:O29,"Sim")<3,"N/D (são necessários pelo menos 3 preços)",_xlfn.STDEV.S(IF(O19:O29="Sim",$K19:$K29))/AVERAGE(IF(O19:O29="Sim",$K19:$K29))) -> 0.1469 | P32: =IF(COUNTIF(P19:P29,"Sim")<3,"N/D (são necessários pelo menos 3 preços)",_xlfn.STDEV.S(IF(P19:P29="Sim",$K19:$K29))/AVERAGE(IF(P19:P29="Sim",$K19:$K29))) -> N/D (são necessários pelo menos 3 preços)
N33: Média | O33: =IF(SUM(COUNTIF($O$10:$O$16,"Sim")) + SUM(COUNTIF(O19:O29,"Sim")) < 3, "N/D (são necessários pelo menos 3 preços)", IFERROR(AVERAGE(_xlfn._xlws.FILTER($K$10:$K$16,$O$10:$O$16="Sim"), _xlfn._xlws.FILTER($K$19:$K$29,O19:O29="Sim")),O30)) -> 193.51 | P33: =IF(SUM(COUNTIF($P$10:$P$16,"Sim")) + SUM(COUNTIF(P19:P29,"Sim")) < 3, "N/D (são necessários pelo menos 3 preços)", IFERROR(AVERAGE(_xlfn._xlws.FILTER($K$10:$K$16,$P$10:$P$16="Sim"), _xlfn._xlws.FILTER($K$19:$K$29,P19:P29="Sim")),P30)) -> N/D (são necessários pelo menos 3 preços)
N34: Mediana | O34: =IF(SUM(COUNTIF($O$10:$O$16,"Sim")) + SUM(COUNTIF(O19:O29,"Sim")) < 3, "N/D (são necessários pelo menos 3 preços)", IFERROR(MEDIAN(_xlfn._xlws.FILTER($K$10:$K$16,$O$10:$O$16="Sim"), _xlfn._xlws.FILTER($K$19:$K$29,O19:O29="Sim")),O31)) -> 197.05 | P34: =IF(SUM(COUNTIF($P10:$P$16,"Sim")) + SUM(COUNTIF(P19:P29,"Sim")) < 3, "N/D (são necessários pelo menos 3 preços)", IFERROR(MEDIAN(_xlfn._xlws.FILTER($K$10:$K$16,$P$10:$P$16="Sim"), _xlfn._xlws.FILTER($K$19:$K$29,P19:P29="Sim")),P31)) -> N/D (são necessários pelo menos 3 preços)
B35: COSOLIDAÇÃO DOS PREÇOS | N35: Metodologia a adotar: | O35: =IF(INDEX(O18:P18,P35)=0,"",INDEX(O18:P18,P35)) -> Outliers | P35: 1
B37: PREÇO UNITÁRIO ESTIMADO ADOTADO: | L37: =IF($B$39="Mediana:",L31,L30) -> 193.51
A39: =O18 -> Outliers | B39: Média: | L39: AI/GAP/UGI
A40: =P18 -> Por critério do(a) analista

Sheet COT16 (hidden)
B2: Processo | C2: 59500.003753/2025-45
B3: Responsável | C3: Kaio Gabriel, Alessandra Brant, Alberto Nascimento
B4: Área de Origem | C4: AI/GAP/UGI
B5: Data da pesquisa
B7: ITEM: | C7: Placa de identificação (plaqueta de identificação) fabricada em ABS ou acrílico para painéis elétricos (30 X 15 mm), fixação por adesivo, resistente ao tempo (Escrita Personalizada) | I7: UNIDADE DE MEDIDA: | J7: Unidade | K7: QUANTIDADE: | L7: 10 | O7: Tabela auxiliar de metodologias para exclusão de preços
B8: LICITAÇÕES ANTERIORES | O8: Licitações Anteriores
B9: Órgão | C9: Edital/Ano - Nº do Lote / Item | D9: Quantidade | E9: Valor Unitário | F9: Data | G9: índice de atualização (nome) | H9: I0 | I9: If | J9: Variação acumulada do índice (%) | K9: Preço unitário atualizado | L9: Utilizar? (Sim/Não) | O9: Outliers | P9: Por critério do(a) analista
J10: =IF(ISBLANK(E10),"",IF(ISNUMBER(H10),(I10-H10)/H10,0)) ->  | K10: =IF(ISBLANK(E10),"",E10*(1+J10)) ->  | L10: =IF(ISNUMBER(K10),IF($L$32<>$P$9,O10,P10),"") ->  | O10: =IF(ISNUMBER(K10),IF(OR(K10<_xlfn.QUARTILE.INC($K$10:$K$29,1)-1.5*(_xlfn.QUARTILE.INC($K$10:K29,3)-_xlfn.QUARTILE.INC($K$10:$K$29,1)),K10>_xlfn.QUARTILE.INC($K$10:$K$29,3)+1.5*(_xlfn.QUARTILE.INC($K$10:$K$29,3)-_xlfn.QUARTILE.INC($K$10:$K$29,1))),"Não","Sim"),"") -> 
J11: =IF(ISBLANK(E11),"",IF(ISNUMBER(H11),(I11-H11)/H11,0)) ->  | K11: =IF(ISBLANK(E11),"",E11*(1+J11)) ->  | O11: =IF(ISNUMBER(K11),IF(OR(K11<_xlfn.QUARTILE.INC($K$10:$K$29,1)-1.5*(_xlfn.QUARTILE.INC($K$10:K29,3)-_xlfn.QUARTILE.INC($K$10:$K$29,1)),K11>_xlfn.QUARTILE.INC($K$10:$K$29,3)+1.5*(_xlfn.QUARTILE.INC($K$10:$K$29,3)-_xlfn.QUARTILE.INC($K$10:$K$29,1))),"Não","Sim"),"") -> 
O12: =IF(ISNUMBER(K12),IF(OR(K12<_xlfn.QUARTILE.INC($K$10:$K$29,1)-1.5*(_xlfn.QUARTILE.INC($K$10:K30,3)-_xlfn.QUARTILE.INC($K$10:$K$29,1)),K12>_xlfn.QUARTILE.INC($K$10:$K$29,3)+1.5*(_xlfn.QUARTILE.INC($K$10:$K$29,3)-_xlfn.QUARTILE.INC($K$10:$K$29,1))),"Não","Sim"),"") -> 
O13: =IF(ISNUMBER(K13),IF(OR(K13<_xlfn.QUARTILE.INC($K$10:$K$29,1)-1.5*(_xlfn.QUARTILE.INC($K$10:K31,3)-_xlfn.QUARTILE.INC($K$10:$K$29,1)),K13>_xlfn.QUARTILE.INC($K$10:$K$29,3)+1.5*(_xlfn.QUARTILE.INC($K$10:$K$29,3)-_xlfn.QUARTILE.INC($K$10:$K$29,1))),"Não","Sim"),"") -> 
O14: =IF(ISNUMBER(K14),IF(OR(K14<_xlfn.QUARTILE.INC($K$10:$K$29,1)-1.5*(_xlfn.QUARTILE.INC($K$10:K32,3)-_xlfn.QUARTILE.INC($K$10:$K$29,1)),K14>_xlfn.QUARTILE.INC($K$10:$K$29,3)+1.5*(_xlfn.QUARTILE.INC($K$10:$K$29,3)-_xlfn.QUARTILE.INC($K$10:$K$29,1))),"Não","Sim"),"") -> 
O15: =IF(ISNUMBER(K15),IF(OR(K15<_xlfn.QUARTILE.INC($K$10:$K$29,1)-1.5*(_xlfn.QUARTILE.INC($K$10:K35,3)-_xlfn.QUARTILE.INC($K$10:$K$29,1)),K15>_xlfn.QUARTILE.INC($K$10:$K$29,3)+1.5*(_xlfn.QUARTILE.INC($K$10:$K$29,3)-_xlfn.QUARTILE.INC($K$10:$K$29,1))),"Não","Sim"),"") -> 
O16: =IF(ISNUMBER(K16),IF(OR(K16<_xlfn.QUARTILE.INC($K$10:$K$29,1)-1.5*(_xlfn.QUARTILE.INC($I$10:I37,3)-_xlfn.QUARTILE.INC($K$10:$K$29,1)),K16>_xlfn.QUARTILE.INC($K$10:$K$29,3)+1.5*(_xlfn.QUARTILE.INC($K$10:$K$29,3)-_xlfn.QUARTILE.INC($K$10:$K$29,1))),"Não","Sim"),"") -> 
B17: COTAÇÕES DE MERCADO | O17: Cotações
B18: Empresa | J18: Data | K18: Preço Unitário | L18: Utilizar? (Sim/Não) | O18: Outliers | P18: Por critério do(a) analista
B19: Números de Casas - Mogi Guaçu (SP). https://www.numerosdecasas.com.br/kit-10-placas-de-acrilico-para-painel-eletrico-30x15mm-escrita-personalizada?utm_source=Site&utm_medium=GoogleMerchant&utm_campaign=GoogleMerchant&srsltid=AfmBOorVVxbyNvVijOJmUO-YuJDzv1Bj3v-TMmzWH1EQiiERT_EAX7-UWDE | J19: 2025-11-10 | K19: =((49.9+32.41)/10) -> 8.23 | L19: =IF(ISNUMBER(K19),IF($L$32=$O$18,O19,IF($L$32=$P$18,P19,"")),"") -> Sim | O19: =IF(ISNUMBER(K19),IF(OR(K19<_xlfn.QUARTILE.INC($K$10:$K$29,1)-1.5*(_xlfn.QUARTILE.INC($K$10:$K$29,3)-_xlfn.QUARTILE.INC($K$10:$K$29,1)),K19>_xlfn.QUARTILE.INC($K$10:$K$29,3)+1.5*(_xlfn.QUARTILE.INC($K$10:$K$29,3)-_xlfn.QUARTILE.INC($K$10:$K$29,1))),"Não","Sim"),"") -> Sim
B20: BR Eletrônica e Impressão 3D - CNPJ: 24.263.994/0001-05. https://www.breletronica.com.br/kit-com-10-placas-acrilico-painel-eletrico-30x15mm-personalizada?utm_source=Site&utm_medium=GoogleShopping&utm_campaign=IntegracaoGoogle&srsltid=AfmBOopj9q2A3qC8vS0e7tXcxhiSx9-GWXSeS1e2L-OC6VwJGLgT28Uufzs | J20: 2025-11-10 | K20: =((64.99+32.35)/10) -> 9.73 | L20: Sim | O20: Sim
B21: Mercado Livre - INSTPLAQ. https://produto.mercadolivre.com.br/MLB-1865368256-30-plaquetas-acrilico-p-paineis-e-quadros-eletricos-15x30mm-_JM?matt_tool=44747869&matt_internal_campaign_id=&matt_word=&matt_source=google&matt_campaign_id=22603531439&matt_ad_group_id=183641039649&matt_match_type=&matt_network=g&matt_device=c&matt_creative=758138322197&matt_keyword=&matt_ad_position=&matt_ad_type=pla&matt_merchant_id=5450712540&matt_product_id=MLB1865368256&matt_product_partition_id=2424646252682&matt_target_id=pla-2424646252682&cq_src=google_ads&cq_cmp=22603531439&cq_net=g&cq_plt=gp&cq_med=pla&gad_source=1&gad_campaignid=22603531439&gbraid=0AAAAAD93qcDXH3XDH3okbvfiF1MC6uiTb&gclid=CjwKCAjwx-zHBhBhEiwA7Kjq65vExz02LHHh4ewU1mE3KNxjeXd9XJ6UfwoknOqhhrcFYPJc3Ysq4BoC1vQQAvD_BwE | J21: 2025-11-10 | K21: =78/30 -> 2.6 | L21: Não | O21: Não
B22: mercadolivre.com.br/10x-plaqueta-acrilico-painel-eletrico-30x15mm-personalizada/up/MLBU1419083107?pdp_filters=item_id:MLB1919120901&matt_tool=48995110&matt_internal_campaign_id=&matt_word=&matt_source=google&matt_campaign_id=22603531562&matt_ad_group_id=181244933895&matt_match_type=&matt_network=g&matt_device=c&matt_creative=758138322200&matt_keyword=&matt_ad_position=&matt_ad_type=pla&matt_merchant_id=307831411&matt_product_id=MLB1919120901&matt_product_partition_id=2424443221566&matt_target_id=aud-1966917494853:pla-2424443221566&cq_src=google_ads&cq_cmp=22603531562&cq_net=g&cq_plt=gp&cq_med=pla&gad_source=4&gad_campaignid=22603531562&gbraid=0AAAAAD93qcA7OXwPt1KVQcch-Tmd1s08C&gclid=CjwKCAiAz_DIBhBJEiwAVH2XwGo_wiaMLLfDi53KbS4za39xB38DhhatsX31AFLUDekwQR_n1zFiZRoCV1kQAvD_BwE | J22: 2025-11-18 | K22: =63.99/10 -> 6.4 | L22: Sim | O22: Sim
B30: Observações: | K30: Média: | L30: =IF($L$32="","Selecione metodologia para exclusão de preços",AVERAGE(IF($L$10:$L$29="Sim",$K$10:$K$29))) -> 8.12 | N30: Média (Cotações) | O30: =IF(COUNTIF(O19:O29,"Sim")<3,"N/D (são necessários pelo menos 3 preços)",AVERAGE(IF(O19:O29="Sim",$K19:$K29))) -> 8.12 | P30: =IF(COUNTIF(P19:P29,"Sim")<3,"N/D (são necessários pelo menos 3 preços)",AVERAGE(IF(P19:P29="Sim",$K19:$K29))) -> N/D (são necessários pelo menos 3 preços)
K31: Mediana: | L31: =IF($L$32="","Selecione metodologia para exclusão de preços",MEDIAN(IF($L$10:$L$29="Sim",$K$10:$K$29))) -> 8.23 | N31: Mediana (Cotações) | O31: =IF(COUNTIF(O19:O29,"Sim")<3,"N/D (são necessários pelo menos 3 preços)",MEDIAN(IF(O19:O29="Sim",$K19:$K29))) -> 8.23 | P31: =IF(COUNTIF(P19:P29,"Sim")<3,"N/D (são necessários pelo menos 3 preços)",MEDIAN(IF(P19:P29="Sim",$K19:$K29))) -> N/D (são necessários pelo menos 3 preços)
B32: Metodologia de exclusão de preços adotada: | L32: =IF(O35="",INDEX(O18:P18,MATCH(MIN(#REF!),#REF!,0)),O35) -> Outliers | N32: CV (Cotações) | O32: =IF(COUNTIF(O19:O29,"Sim")<3,"N/D (são necessários pelo menos 3 preços)",_xlfn.STDEV.S(IF(O19:O29="Sim",$K19:$K29))/AVERAGE(IF(O19:O29="Sim",$K19:$K29))) -> 0.2054 | P32: =IF(COUNTIF(P19:P29,"Sim")<3,"N/D (são necessários pelo menos 3 preços)",_xlfn.STDEV.S(IF(P19:P29="Sim",$K19:$K29))/AVERAGE(IF(P19:P29="Sim",$K19:$K29))) -> N/D (são necessários pelo menos 3 preços)
N33: Média | O33: =IF(SUM(COUNTIF($O$10:$O$16,"Sim")) + SUM(COUNTIF(O19:O29,"Sim")) < 3, "N/D (são necessários pelo menos 3 preços)", IFERROR(AVERAGE(_xlfn._xlws.FILTER($K$10:$K$16,$O$10:$O$16="Sim"), _xlfn._xlws.FILTER($K$19:$K$29,O19:O29="Sim")),O30)) -> 8.12 | P33: =IF(SUM(COUNTIF($P$10:$P$16,"Sim")) + SUM(COUNTIF(P19:P29,"Sim")) < 3, "N/D (são necessários pelo menos 3 preços)", IFERROR(AVERAGE(_xlfn._xlws.FILTER($K$10:$K$16,$P$10:$P$16="Sim"), _xlfn._xlws.FILTER($K$19:$K$29,P19:P29="Sim")),P30)) -> N/D (são necessários pelo menos 3 preços)
N34: Mediana | O34: =IF(SUM(COUNTIF($O$10:$O$16,"Sim")) + SUM(COUNTIF(O19:O29,"Sim")) < 3, "N/D (são necessários pelo menos 3 preços)", IFERROR(MEDIAN(_xlfn._xlws.FILTER($K$10:$K$16,$O$10:$O$16="Sim"), _xlfn._xlws.FILTER($K$19:$K$29,O19:O29="Sim")),O31)) -> 8.23 | P34: =IF(SUM(COUNTIF($P10:$P$16,"Sim")) + SUM(COUNTIF(P19:P29,"Sim")) < 3, "N/D (são necessários pelo menos 3 preços)", IFERROR(MEDIAN(_xlfn._xlws.FILTER($K$10:$K$16,$P$10:$P$16="Sim"), _xlfn._xlws.FILTER($K$19:$K$29,P19:P29="Sim")),P31)) -> N/D (são necessários pelo menos 3 preços)
B35: COSOLIDAÇÃO DOS PREÇOS | N35: Metodologia a adotar: | O35: =IF(INDEX(O18:P18,P35)=0,"",INDEX(O18:P18,P35)) -> Outliers | P35: 1
B37: PREÇO UNITÁRIO ESTIMADO ADOTADO: | L37: =IF($B$39="Mediana:",L31,L30) -> 8.12
A39: =O18 -> Outliers | B39: Média:
A40: =P18 -> Por critério do(a) analista

Sheet COT17 (hidden)
B2: Processo | C2: 59500.003753/2025-45
B3: Responsável | C3: Kaio Gabriel, Alessandra Brant, Alberto Nascimento
B4: Área de Origem | C4: AI/GAP/UGI
B5: Data da pesquisa
B7: ITEM: | C7: TUBO IRRIG. PB DN75 PN40 | I7: UNIDADE DE MEDIDA: | J7: Unidade | K7: QUANTIDADE: | L7: 24 | O7: Tabela auxiliar de metodologias para exclusão de preços
B8: LICITAÇÕES ANTERIORES | O8: Licitações Anteriores
B9: Órgão | C9: Edital/Ano - Nº do Lote / Item | D9: Quantidade | E9: Valor Unitário | F9: Data | G9: índice de atualização (nome) | H9: I0 | I9: If | J9: Variação acumulada do índice (%) | K9: Preço unitário atualizado | L9: Utilizar? (Sim/Não) | O9: Outliers | P9: Por critério do(a) analista
J10: =IF(ISBLANK(E10),"",IF(ISNUMBER(H10),(I10-H10)/H10,0)) ->  | K10: =IF(ISBLANK(E10),"",E10*(1+J10)) ->  | L10: =IF(ISNUMBER(K10),IF($L$32<>$P$9,O10,P10),"") ->  | O10: =IF(ISNUMBER(K10),IF(OR(K10<_xlfn.QUARTILE.INC($K$10:$K$29,1)-1.5*(_xlfn.QUARTILE.INC($K$10:K29,3)-_xlfn.QUARTILE.INC($K$10:$K$29,1)),K10>_xlfn.QUARTILE.INC($K$10:$K$29,3)+1.5*(_xlfn.QUARTILE.INC($K$10:$K$29,3)-_xlfn.QUARTILE.INC($K$10:$K$29,1))),"Não","Sim"),"") -> 
J11: =IF(ISBLANK(E11),"",IF(ISNUMBER(H11),(I11-H11)/H11,0)) ->  | K11: =IF(ISBLANK(E11),"",E11*(1+J11)) ->  | O11: =IF(ISNUMBER(K11),IF(OR(K11<_xlfn.QUARTILE.INC($K$10:$K$29,1)-1.5*(_xlfn.QUARTILE.INC($K$10:K29,3)-_xlfn.QUARTILE.INC($K$10:$K$29,1)),K11>_xlfn.QUARTILE.INC($K$10:$K$29,3)+1.5*(_xlfn.QUARTILE.INC($K$10:$K$29,3)-_xlfn.QUARTILE.INC($K$10:$K$29,1))),"Não","Sim"),"") -> 
O12: =IF(ISNUMBER(K12),IF(OR(K12<_xlfn.QUARTILE.INC($K$10:$K$29,1)-1.5*(_xlfn.QUARTILE.INC($K$10:K30,3)-_xlfn.QUARTILE.INC($K$10:$K$29,1)),K12>_xlfn.QUARTILE.INC($K$10:$K$29,3)+1.5*(_xlfn.QUARTILE.INC($K$10:$K$29,3)-_xlfn.QUARTILE.INC($K$10:$K$29,1))),"Não","Sim"),"") -> 
O13: =IF(ISNUMBER(K13),IF(OR(K13<_xlfn.QUARTILE.INC($K$10:$K$29,1)-1.5*(_xlfn.QUARTILE.INC($K$10:K31,3)-_xlfn.QUARTILE.INC($K$10:$K$29,1)),K13>_xlfn.QUARTILE.INC($K$10:$K$29,3)+1.5*(_xlfn.QUARTILE.INC($K$10:$K$29,3)-_xlfn.QUARTILE.INC($K$10:$K$29,1))),"Não","Sim"),"") -> 
O14: =IF(ISNUMBER(K14),IF(OR(K14<_xlfn.QUARTILE.INC($K$10:$K$29,1)-1.5*(_xlfn.QUARTILE.INC($K$10:K32,3)-_xlfn.QUARTILE.INC($K$10:$K$29,1)),K14>_xlfn.QUARTILE.INC($K$10:$K$29,3)+1.5*(_xlfn.QUARTILE.INC($K$10:$K$29,3)-_xlfn.QUARTILE.INC($K$10:$K$29,1))),"Não","Sim"),"") -> 
O15: =IF(ISNUMBER(K15),IF(OR(K15<_xlfn.QUARTILE.INC($K$10:$K$29,1)-1.5*(_xlfn.QUARTILE.INC($K$10:K35,3)-_xlfn.QUARTILE.INC($K$10:$K$29,1)),K15>_xlfn.QUARTILE.INC($K$10:$K$29,3)+1.5*(_xlfn.QUARTILE.INC($K$10:$K$29,3)-_xlfn.QUARTILE.INC($K$10:$K$29,1))),"Não","Sim"),"") -> 
O16: =IF(ISNUMBER(K16),IF(OR(K16<_xlfn.QUARTILE.INC($K$10:$K$29,1)-1.5*(_xlfn.QUARTILE.INC($I$10:I37,3)-_xlfn.QUARTILE.INC($K$10:$K$29,1)),K16>_xlfn.QUARTILE.INC($K$10:$K$29,3)+1.5*(_xlfn.QUARTILE.INC($K$10:$K$29,3)-_xlfn.QUARTILE.INC($K$10:$K$29,1))),"Não","Sim"),"") -> 
B17: COTAÇÕES DE MERCADO | O17: Cotações
B18: Empresa | J18: Data | K18: Preço Unitário | L18: Utilizar? (Sim/Não) | O18: Outliers | P18: Por critério do(a) analista
B19: BRASMAQUINAS COMERCIO DE MAQUINAS E IRRIGACAO LTDA (CNPJ : 00145531000334) E-mail: MARCOS.GOMES@BRASMAQUINAS.COM.BR | J19: 2025-08-22 | K19: 62.15 | L19: =IF(ISNUMBER(K19),IF($L$32=$O$18,O19,IF($L$32=$P$18,P19,"")),"") -> Não | O19: =IF(ISNUMBER(K19),IF(OR(K19<_xlfn.QUARTILE.INC($K$10:$K$29,1)-1.5*(_xlfn.QUARTILE.INC($K$10:$K$29,3)-_xlfn.QUARTILE.INC($K$10:$K$29,1)),K19>_xlfn.QUARTILE.INC($K$10:$K$29,3)+1.5*(_xlfn.QUARTILE.INC($K$10:$K$29,3)-_xlfn.QUARTILE.INC($K$10:$K$29,1))),"Não","Sim"),"") -> Não
B20: IRRIGASOL Irrigação e energia Solar LTDA (CNPJ: 46.152.561/0001-07) E-mail:irrigasol.mgmontalvania@gmail.com | J20: 2025-09-11 | K20: 85 | L20: Não | O20: Sim
B21: VCA IRRIGAÇÃO LTDA (CNPJ: 26.466.226/0001-76) financeiro@minasbombas.com.br | J21: 2025-08-27 | K21: 89.4 | L21: Não | O21: Sim
B22: Casa da Irrigação - https://www.casadairrigacao.com.br/tubo-irriga-pn-40-dn-75mm-tigre?srsltid=AfmBOopxHyK46S7mRCO4MbGWOQCWCtDKt5ebcG_UW_JKFVA6f1ZUQKBe | J22: 2025-11-10 | K22: =(1720.32+2183.57)/24 -> 162.66 | L22: Não | O22: Não
B23: ASPERBRAS - https://www.asperbrastuboseconexoes.com.br/produto/tubo-pvc-irrigacao-soldavel-dn75-de75-5-pn40-57?srsltid=AfmBOoqnO3VFCfmbdceF1zPDGo1U-Ertf8EA6I017WJFL_7K6Lwuutr4 | J23: 2025-11-10 | K23: =1907.45/24 -> 79.48 | L23: Sim | O23: Sim
B24: FERPAM - https://www.ferpam.com.br/tubo-agro-pn40-irrigac-o-dn75-amanco.html?srsltid=AfmBOoogyH55e-sx4FfErJOvK_aUhbm-zIX-GDabkoY4SP7Tr_BrOe-x | J24: 2025-11-10 | K24: =71.82+(462.47/24) -> 91.09 | L24: Sim | O24: Sim
B25: Mercado Livre - https://www.mercadolivre.com.br/tubo-irrigaco-azul-75mm-pn-40-nbr-14312-5-pecas/p/MLB2043078102#polycard_client=search-nordic&search_layout=stack&position=1&type=product&tracking_id=83045a1a-60aa-43dc-ae36-2236e2a01b5d&wid=MLB3551588609&sid=search | J25: 2025-11-10 | K25: =457.62/5 -> 91.52 | L25: Sim | O25: Sim
B30: Observações: | K30: Média: | L30: =IF($L$32="","Selecione metodologia para exclusão de preços",AVERAGE(IF($L$10:$L$29="Sim",$K$10:$K$29))) -> 87.36 | N30: Média (Cotações) | O30: =IF(COUNTIF(O19:O29,"Sim")<3,"N/D (são necessários pelo menos 3 preços)",AVERAGE(IF(O19:O29="Sim",$K19:$K29))) -> 87.3 | P30: =IF(COUNTIF(P19:P29,"Sim")<3,"N/D (são necessários pelo menos 3 preços)",AVERAGE(IF(P19:P29="Sim",$K19:$K29))) -> N/D (são necessários pelo menos 3 preços)
K31: Mediana: | L31: =IF($L$32="","Selecione metodologia para exclusão de preços",MEDIAN(IF($L$10:$L$29="Sim",$K$10:$K$29))) -> 91.09 | N31: Mediana (Cotações) | O31: =IF(COUNTIF(O19:O29,"Sim")<3,"N/D (são necessários pelo menos 3 preços)",MEDIAN(IF(O19:O29="Sim",$K19:$K29))) -> 89.4 | P31: =IF(COUNTIF(P19:P29,"Sim")<3,"N/D (são necessários pelo menos 3 preços)",MEDIAN(IF(P19:P29="Sim",$K19:$K29))) -> N/D (são necessários pelo menos 3 preços)
B32: Metodologia de exclusão de preços adotada: | L32: =IF(O35="",INDEX(O18:P18,MATCH(MIN(#REF!),#REF!,0)),O35) -> Outliers | N32: CV (Cotações) | O32: =IF(COUNTIF(O19:O29,"Sim")<3,"N/D (são necessários pelo menos 3 preços)",_xlfn.STDEV.S(IF(O19:O29="Sim",$K19:$K29))/AVERAGE(IF(O19:O29="Sim",$K19:$K29))) -> 0.0581 | P32: =IF(COUNTIF(P19:P29,"Sim")<3,"N/D (são necessários pelo menos 3 preços)",_xlfn.STDEV.S(IF(P19:P29="Sim",$K19:$K29))/AVERAGE(IF(P19:P29="Sim",$K19:$K29))) -> N/D (são necessários pelo menos 3 preços)
N33: Média | O33: =IF(SUM(COUNTIF($O$10:$O$16,"Sim")) + SUM(COUNTIF(O19:O29,"Sim")) < 3, "N/D (são necessários pelo menos 3 preços)", IFERROR(AVERAGE(_xlfn._xlws.FILTER($K$10:$K$16,$O$10:$O$16="Sim"), _xlfn._xlws.FILTER($K$19:$K$29,O19:O29="Sim")),O30)) -> 87.3 | P33: =IF(SUM(COUNTIF($P$10:$P$16,"Sim")) + SUM(COUNTIF(P19:P29,"Sim")) < 3, "N/D (são necessários pelo menos 3 preços)", IFERROR(AVERAGE(_xlfn._xlws.FILTER($K$10:$K$16,$P$10:$P$16="Sim"), _xlfn._xlws.FILTER($K$19:$K$29,P19:P29="Sim")),P30)) -> N/D (são necessários pelo menos 3 preços)
N34: Mediana | O34: =IF(SUM(COUNTIF($O$10:$O$16,"Sim")) + SUM(COUNTIF(O19:O29,"Sim")) < 3, "N/D (são necessários pelo menos 3 preços)", IFERROR(MEDIAN(_xlfn._xlws.FILTER($K$10:$K$16,$O$10:$O$16="Sim"), _xlfn._xlws.FILTER($K$19:$K$29,O19:O29="Sim")),O31)) -> 89.4 | P34: =IF(SUM(COUNTIF($P10:$P$16,"Sim")) + SUM(COUNTIF(P19:P29,"Sim")) < 3, "N/D (são necessários pelo menos 3 preços)", IFERROR(MEDIAN(_xlfn._xlws.FILTER($K$10:$K$16,$P$10:$P$16="Sim"), _xlfn._xlws.FILTER($K$19:$K$29,P19:P29="Sim")),P31)) -> N/D (são necessários pelo menos 3 preços)
B35: COSOLIDAÇÃO DOS PREÇOS | N35: Metodologia a adotar: | O35: =IF(INDEX(O18:P18,P35)=0,"",INDEX(O18:P18,P35)) -> Outliers | P35: 1
B37: PREÇO UNITÁRIO ESTIMADO ADOTADO: | L37: =IF($B$39="Mediana:",L31,L30) -> 87.36
A39: =O18 -> Outliers | B39: Média:
A40: =P18 -> Por critério do(a) analista

Sheet COT18 (hidden)
B2: Processo | C2: 59500.003753/2025-45
B3: Responsável | C3: Kaio Gabriel, Alessandra Brant, Alberto Nascimento
B4: Área de Origem | C4: AI/GAP/UGI
B5: Data da pesquisa
B7: ITEM: | C7: VÁLVULA DE RETENÇÃO 3" | I7: UNIDADE DE MEDIDA: | J7: Unidade | K7: QUANTIDADE: | L7: 1 | O7: Tabela auxiliar de metodologias para exclusão de preços
B8: LICITAÇÕES ANTERIORES | O8: Licitações Anteriores
B9: Órgão | C9: Edital/Ano - Nº do Lote / Item | D9: Quantidade | E9: Valor Unitário | F9: Data | G9: índice de atualização (nome) | H9: I0 | I9: If | J9: Variação acumulada do índice (%) | K9: Preço unitário atualizado | L9: Utilizar? (Sim/Não) | O9: Outliers | P9: Por critério do(a) analista
J10: =IF(ISBLANK(E10),"",IF(ISNUMBER(H10),(I10-H10)/H10,0)) ->  | K10: =IF(ISBLANK(E10),"",E10*(1+J10)) ->  | L10: =IF(ISNUMBER(K10),IF($L$32<>$P$9,O10,P10),"") ->  | O10: =IF(ISNUMBER(K10),IF(OR(K10<_xlfn.QUARTILE.INC($K$10:$K$29,1)-1.5*(_xlfn.QUARTILE.INC($K$10:K29,3)-_xlfn.QUARTILE.INC($K$10:$K$29,1)),K10>_xlfn.QUARTILE.INC($K$10:$K$29,3)+1.5*(_xlfn.QUARTILE.INC($K$10:$K$29,3)-_xlfn.QUARTILE.INC($K$10:$K$29,1))),"Não","Sim"),"") -> 
J11: =IF(ISBLANK(E11),"",IF(ISNUMBER(H11),(I11-H11)/H11,0)) ->  | K11: =IF(ISBLANK(E11),"",E11*(1+J11)) ->  | O11: =IF(ISNUMBER(K11),IF(OR(K11<_xlfn.QUARTILE.INC($K$10:$K$29,1)-1.5*(_xlfn.QUARTILE.INC($K$10:K29,3)-_xlfn.QUARTILE.INC($K$10:$K$29,1)),K11>_xlfn.QUARTILE.INC($K$10:$K$29,3)+1.5*(_xlfn.QUARTILE.INC($K$10:$K$29,3)-_xlfn.QUARTILE.INC($K$10:$K$29,1))),"Não","Sim"),"") -> 
O12: =IF(ISNUMBER(K12),IF(OR(K12<_xlfn.QUARTILE.INC($K$10:$K$29,1)-1.5*(_xlfn.QUARTILE.INC($K$10:K30,3)-_xlfn.QUARTILE.INC($K$10:$K$29,1)),K12>_xlfn.QUARTILE.INC($K$10:$K$29,3)+1.5*(_xlfn.QUARTILE.INC($K$10:$K$29,3)-_xlfn.QUARTILE.INC($K$10:$K$29,1))),"Não","Sim"),"") -> 
O13: =IF(ISNUMBER(K13),IF(OR(K13<_xlfn.QUARTILE.INC($K$10:$K$29,1)-1.5*(_xlfn.QUARTILE.INC($K$10:K31,3)-_xlfn.QUARTILE.INC($K$10:$K$29,1)),K13>_xlfn.QUARTILE.INC($K$10:$K$29,3)+1.5*(_xlfn.QUARTILE.INC($K$10:$K$29,3)-_xlfn.QUARTILE.INC($K$10:$K$29,1))),"Não","Sim"),"") -> 
O14: =IF(ISNUMBER(K14),IF(OR(K14<_xlfn.QUARTILE.INC($K$10:$K$29,1)-1.5*(_xlfn.QUARTILE.INC($K$10:K32,3)-_xlfn.QUARTILE.INC($K$10:$K$29,1)),K14>_xlfn.QUARTILE.INC($K$10:$K$29,3)+1.5*(_xlfn.QUARTILE.INC($K$10:$K$29,3)-_xlfn.QUARTILE.INC($K$10:$K$29,1))),"Não","Sim"),"") -> 
O15: =IF(ISNUMBER(K15),IF(OR(K15<_xlfn.QUARTILE.INC($K$10:$K$29,1)-1.5*(_xlfn.QUARTILE.INC($K$10:K35,3)-_xlfn.QUARTILE.INC($K$10:$K$29,1)),K15>_xlfn.QUARTILE.INC($K$10:$K$29,3)+1.5*(_xlfn.QUARTILE.INC($K$10:$K$29,3)-_xlfn.QUARTILE.INC($K$10:$K$29,1))),"Não","Sim"),"") -> 
O16: =IF(ISNUMBER(K16),IF(OR(K16<_xlfn.QUARTILE.INC($K$10:$K$29,1)-1.5*(_xlfn.QUARTILE.INC($I$10:I37,3)-_xlfn.QUARTILE.INC($K$10:$K$29,1)),K16>_xlfn.QUARTILE.INC($K$10:$K$29,3)+1.5*(_xlfn.QUARTILE.INC($K$10:$K$29,3)-_xlfn.QUARTILE.INC($K$10:$K$29,1))),"Não","Sim"),"") -> 
B17: COTAÇÕES DE MERCADO | O17: Cotações
B18: Empresa | J18: Data | K18: Preço Unitário | L18: Utilizar? (Sim/Não) | O18: Outliers | P18: Por critério do(a) analista
B19: Quality Tubos - https://www.lojaqualitytubos.com.br/valvula-de-retencao-horizontal-em-latao-de-3-p999797?gad_source=1&gad_campaignid=19861480558&gbraid=0AAAAACfUbmowoIFVLxJ96-tP_JS6_2AYT&gclid=CjwKCAiA2svIBhB-EiwARWDPjlK2P6ctTNSlq7WgQ5A9uSFk_t3c8N6-liuzwjupCFi6g16CAk38pRoCIrMQAvD_BwE | J19: 2025-11-10 | K19: =475.11+69.9 -> 545.01 | L19: =IF(ISNUMBER(K19),IF($L$32=$O$18,O19,IF($L$32=$P$18,P19,"")),"") -> Sim | O19: =IF(ISNUMBER(K19),IF(OR(K19<_xlfn.QUARTILE.INC($K$10:$K$29,1)-1.5*(_xlfn.QUARTILE.INC($K$10:$K$29,3)-_xlfn.QUARTILE.INC($K$10:$K$29,1)),K19>_xlfn.QUARTILE.INC($K$10:$K$29,3)+1.5*(_xlfn.QUARTILE.INC($K$10:$K$29,3)-_xlfn.QUARTILE.INC($K$10:$K$29,1))),"Não","Sim"),"") -> Sim
B20: MultiSeg - https://www.multiseg.com.br/3196/vlvula-de-reteno-horizontal-em-lato-3-portinhola?gad_source=1&gad_campaignid=22150876241&gbraid=0AAAAAqTArcjDuLh0GQrsOC41PPjSNVdC0&gclid=CjwKCAiA2svIBhB-EiwARWDPjqpYiNLtPHS6mBxBitNihaKYNzNqgTbFdlbWPd_LLE51z7d2qGFcTxoCPjUQAvD_BwE | J20: 2025-11-10 | K20: =478.05+42.95 -> 521 | L20: Sim | O20: Sim
B21: Esquadrão Classe A - https://loja.esquadraoclassealtda.com/produtos/valvula-retencao-horizontal-3/?variant=1299567073&pf=mc&srsltid=AfmBOopDFIfutnvPjfD9REZd_zCwGjqmgJVjUt78pnYYVwr_EsG9mBRZSb4 | J21: 2025-11-10 | K21: =490.59+13.05 -> 503.64 | L21: Sim | O21: Sim
B22: LeroyMerlin - https://www.leroymerlin.com.br/valvula-de-retencao-horizontal-3-pol-com-portinhola-de-latao-forjado-ivm-italy_1572438958 | J22: 2025-11-10 | K22: =789.9+49.02 -> 838.92 | L22: Não | O22: Não
B23: FADEF - https://distribuidorafadef.com.br/produtos/valvula-retencao-horizontal-portinhola-3-pn16-segurimax?gad_source=4&gad_campaignid=22937919736&gbraid=0AAAAA-4yH-5IIG4QJ6v0hm0h8WK2qoI_o&gclid=CjwKCAiA2svIBhB-EiwARWDPjmP93nW-cBPD8XYOlZa4QeWprVwrXC4nYjEtMSwnmQ7BWhomwoSyMhoCtwAQAvD_BwE | J23: 2025-11-10 | K23: =498+40.35 -> 538.35 | L23: Sim | O23: Sim
B30: Observações: | K30: Média: | L30: =IF($L$32="","Selecione metodologia para exclusão de preços",AVERAGE(IF($L$10:$L$29="Sim",$K$10:$K$29))) -> 527 | N30: Média (Cotações) | O30: =IF(COUNTIF(O19:O29,"Sim")<3,"N/D (são necessários pelo menos 3 preços)",AVERAGE(IF(O19:O29="Sim",$K19:$K29))) -> 527 | P30: =IF(COUNTIF(P19:P29,"Sim")<3,"N/D (são necessários pelo menos 3 preços)",AVERAGE(IF(P19:P29="Sim",$K19:$K29))) -> N/D (são necessários pelo menos 3 preços)
K31: Mediana: | L31: =IF($L$32="","Selecione metodologia para exclusão de preços",MEDIAN(IF($L$10:$L$29="Sim",$K$10:$K$29))) -> 529.68 | N31: Mediana (Cotações) | O31: =IF(COUNTIF(O19:O29,"Sim")<3,"N/D (são necessários pelo menos 3 preços)",MEDIAN(IF(O19:O29="Sim",$K19:$K29))) -> 529.68 | P31: =IF(COUNTIF(P19:P29,"Sim")<3,"N/D (são necessários pelo menos 3 preços)",MEDIAN(IF(P19:P29="Sim",$K19:$K29))) -> N/D (são necessários pelo menos 3 preços)
B32: Metodologia de exclusão de preços adotada: | L32: =IF(O35="",INDEX(O18:P18,MATCH(MIN(#REF!),#REF!,0)),O35) -> Outliers | N32: CV (Cotações) | O32: =IF(COUNTIF(O19:O29,"Sim")<3,"N/D (são necessários pelo menos 3 preços)",_xlfn.STDEV.S(IF(O19:O29="Sim",$K19:$K29))/AVERAGE(IF(O19:O29="Sim",$K19:$K29))) -> 0.0352 | P32: =IF(COUNTIF(P19:P29,"Sim")<3,"N/D (são necessários pelo menos 3 preços)",_xlfn.STDEV.S(IF(P19:P29="Sim",$K19:$K29))/AVERAGE(IF(P19:P29="Sim",$K19:$K29))) -> N/D (são necessários pelo menos 3 preços)
N33: Média | O33: =IF(SUM(COUNTIF($O$10:$O$16,"Sim")) + SUM(COUNTIF(O19:O29,"Sim")) < 3, "N/D (são necessários pelo menos 3 preços)", IFERROR(AVERAGE(_xlfn._xlws.FILTER($K$10:$K$16,$O$10:$O$16="Sim"), _xlfn._xlws.FILTER($K$19:$K$29,O19:O29="Sim")),O30)) -> 527 | P33: =IF(SUM(COUNTIF($P$10:$P$16,"Sim")) + SUM(COUNTIF(P19:P29,"Sim")) < 3, "N/D (são necessários pelo menos 3 preços)", IFERROR(AVERAGE(_xlfn._xlws.FILTER($K$10:$K$16,$P$10:$P$16="Sim"), _xlfn._xlws.FILTER($K$19:$K$29,P19:P29="Sim")),P30)) -> N/D (são necessários pelo menos 3 preços)
N34: Mediana | O34: =IF(SUM(COUNTIF($O$10:$O$16,"Sim")) + SUM(COUNTIF(O19:O29,"Sim")) < 3, "N/D (são necessários pelo menos 3 preços)", IFERROR(MEDIAN(_xlfn._xlws.FILTER($K$10:$K$16,$O$10:$O$16="Sim"), _xlfn._xlws.FILTER($K$19:$K$29,O19:O29="Sim")),O31)) -> 529.68 | P34: =IF(SUM(COUNTIF($P10:$P$16,"Sim")) + SUM(COUNTIF(P19:P29,"Sim")) < 3, "N/D (são necessários pelo menos 3 preços)", IFERROR(MEDIAN(_xlfn._xlws.FILTER($K$10:$K$16,$P$10:$P$16="Sim"), _xlfn._xlws.FILTER($K$19:$K$29,P19:P29="Sim")),P31)) -> N/D (são necessários pelo menos 3 preços)
B35: COSOLIDAÇÃO DOS PREÇOS | N35: Metodologia a adotar: | O35: =IF(INDEX(O18:P18,P35)=0,"",INDEX(O18:P18,P35)) -> Outliers | P35: 1
B37: PREÇO UNITÁRIO ESTIMADO ADOTADO: | L37: =IF($B$39="Mediana:",L31,L30) -> 527
A39: =O18 -> Outliers | B39: Média:
A40: =P18 -> Por critério do(a) analista

Sheet COT19 (hidden)
B2: Processo | C2: 59500.003753/2025-45
B3: Responsável | C3: Kaio Gabriel, Alessandra Brant, Alberto Nascimento
B4: Área de Origem | C4: AI/GAP/UGI
B5: Data da pesquisa
B7: ITEM: | C7: Conector (terminal isolado) para barramento isolado, conexão reta ou lateral, até 25 mm² | I7: UNIDADE DE MEDIDA: | J7: Unidade | K7: QUANTIDADE: | L7: 2 | O7: Tabela auxiliar de metodologias para exclusão de preços
B8: LICITAÇÕES ANTERIORES | O8: Licitações Anteriores
B9: Órgão | C9: Edital/Ano - Nº do Lote / Item | D9: Quantidade | E9: Valor Unitário | F9: Data | G9: índice de atualização (nome) | H9: I0 | I9: If | J9: Variação acumulada do índice (%) | K9: Preço unitário atualizado | L9: Utilizar? (Sim/Não) | O9: Outliers | P9: Por critério do(a) analista
J10: =IF(ISBLANK(E10),"",IF(ISNUMBER(H10),(I10-H10)/H10,0)) ->  | K10: =IF(ISBLANK(E10),"",E10*(1+J10)) ->  | L10: =IF(ISNUMBER(K10),IF($L$32<>$P$9,O10,P10),"") ->  | O10: =IF(ISNUMBER(K10),IF(OR(K10<_xlfn.QUARTILE.INC($K$10:$K$29,1)-1.5*(_xlfn.QUARTILE.INC($K$10:K29,3)-_xlfn.QUARTILE.INC($K$10:$K$29,1)),K10>_xlfn.QUARTILE.INC($K$10:$K$29,3)+1.5*(_xlfn.QUARTILE.INC($K$10:$K$29,3)-_xlfn.QUARTILE.INC($K$10:$K$29,1))),"Não","Sim"),"") -> 
J11: =IF(ISBLANK(E11),"",IF(ISNUMBER(H11),(I11-H11)/H11,0)) ->  | K11: =IF(ISBLANK(E11),"",E11*(1+J11)) ->  | O11: =IF(ISNUMBER(K11),IF(OR(K11<_xlfn.QUARTILE.INC($K$10:$K$29,1)-1.5*(_xlfn.QUARTILE.INC($K$10:K29,3)-_xlfn.QUARTILE.INC($K$10:$K$29,1)),K11>_xlfn.QUARTILE.INC($K$10:$K$29,3)+1.5*(_xlfn.QUARTILE.INC($K$10:$K$29,3)-_xlfn.QUARTILE.INC($K$10:$K$29,1))),"Não","Sim"),"") -> 
O12: =IF(ISNUMBER(K12),IF(OR(K12<_xlfn.QUARTILE.INC($K$10:$K$29,1)-1.5*(_xlfn.QUARTILE.INC($K$10:K30,3)-_xlfn.QUARTILE.INC($K$10:$K$29,1)),K12>_xlfn.QUARTILE.INC($K$10:$K$29,3)+1.5*(_xlfn.QUARTILE.INC($K$10:$K$29,3)-_xlfn.QUARTILE.INC($K$10:$K$29,1))),"Não","Sim"),"") -> 
O13: =IF(ISNUMBER(K13),IF(OR(K13<_xlfn.QUARTILE.INC($K$10:$K$29,1)-1.5*(_xlfn.QUARTILE.INC($K$10:K31,3)-_xlfn.QUARTILE.INC($K$10:$K$29,1)),K13>_xlfn.QUARTILE.INC($K$10:$K$29,3)+1.5*(_xlfn.QUARTILE.INC($K$10:$K$29,3)-_xlfn.QUARTILE.INC($K$10:$K$29,1))),"Não","Sim"),"") -> 
O14: =IF(ISNUMBER(K14),IF(OR(K14<_xlfn.QUARTILE.INC($K$10:$K$29,1)-1.5*(_xlfn.QUARTILE.INC($K$10:K32,3)-_xlfn.QUARTILE.INC($K$10:$K$29,1)),K14>_xlfn.QUARTILE.INC($K$10:$K$29,3)+1.5*(_xlfn.QUARTILE.INC($K$10:$K$29,3)-_xlfn.QUARTILE.INC($K$10:$K$29,1))),"Não","Sim"),"") -> 
O15: =IF(ISNUMBER(K15),IF(OR(K15<_xlfn.QUARTILE.INC($K$10:$K$29,1)-1.5*(_xlfn.QUARTILE.INC($K$10:K35,3)-_xlfn.QUARTILE.INC($K$10:$K$29,1)),K15>_xlfn.QUARTILE.INC($K$10:$K$29,3)+1.5*(_xlfn.QUARTILE.INC($K$10:$K$29,3)-_xlfn.QUARTILE.INC($K$10:$K$29,1))),"Não","Sim"),"") -> 
O16: =IF(ISNUMBER(K16),IF(OR(K16<_xlfn.QUARTILE.INC($K$10:$K$29,1)-1.5*(_xlfn.QUARTILE.INC($I$10:I37,3)-_xlfn.QUARTILE.INC($K$10:$K$29,1)),K16>_xlfn.QUARTILE.INC($K$10:$K$29,3)+1.5*(_xlfn.QUARTILE.INC($K$10:$K$29,3)-_xlfn.QUARTILE.INC($K$10:$K$29,1))),"Não","Sim"),"") -> 
B17: COTAÇÕES DE MERCADO | O17: Cotações
B18: Empresa | J18: Data | K18: Preço Unitário | L18: Utilizar? (Sim/Não) | O18: Outliers | P18: Por critério do(a) analista
B19: Ras Materiais Elétricos | CNPJ: 11.853.083/0001-88. Rua Emilio Allet, 245, Bairro Veneza - Xanxerê/SC - CEP 89820-000. https://www.rasmateriais.com.br/conector-generico-frontal-6mm-a-25mm?utm_source=google&utm_medium=Shopping&utm_campaign=conector-generico-frontal-6mm-a-25mm&inStock=&srsltid=AfmBOoqsBkuAuwMcy35uWl15sofa4223-GU1r4j8e1RrfZdVhRrINl-uABU | J19: 2025-11-10 | K19: =(52.72+28.44)/10 -> 8.12 | L19: =IF(ISNUMBER(K19),IF($L$32=$O$18,O19,IF($L$32=$P$18,P19,"")),"") -> Sim | O19: =IF(ISNUMBER(K19),IF(OR(K19<_xlfn.QUARTILE.INC($K$10:$K$29,1)-1.5*(_xlfn.QUARTILE.INC($K$10:$K$29,3)-_xlfn.QUARTILE.INC($K$10:$K$29,1)),K19>_xlfn.QUARTILE.INC($K$10:$K$29,3)+1.5*(_xlfn.QUARTILE.INC($K$10:$K$29,3)-_xlfn.QUARTILE.INC($K$10:$K$29,1))),"Não","Sim"),"") -> Sim
B20: Amazon - Fiocamp. : https://www.amazon.com.br/Conector-El%C3%A9trico-Terminal-Gen%C3%A9rico-Barramento/dp/B0FH7DXM5W/ref=sr_1_7?dib=eyJ2IjoiMSJ9.uy69U4A4zQTxaDSEeFWi1_aISCLIA3mdVfICTNzhrpuFIIH0vNdxUJL-2TMjvDvRMbb5gYCmeq7uUmS0LJhBOnWhvz1bwFEOXGE3THxQsm0eL-1DpXdO_6WJ8-8K4ZCvsZfvAXAfofnCra5DaNkzd3GgONb3TunE6PZmYIZdP5hNArFS4WDQMXmldiGe0CgR795Ve6dHljtw8a5tgYFrgUIKpMrjYBsToSrFsuHAneuNsb9iPcc0M7s4_Q1S4mA-WAUBZDahwiIALHRsUucIc38VqQADrUVCUFc8gOPZjhk.r2MzuUq4fO4Vy6PtICYMiC_9Cy-uVZJa4GJEmPe9WtA&dib_tag=se&keywords=terminais+e+conectores+el%C3%A9tricos&qid=1762864450&sr=8-7&ufe=app_do%3Aamzn1.fos.6d798eae-cadf-45de-946a-f477d47705b9 | J20: 2025-11-10 | K20: =63.99/10 -> 6.4 | L20: Sim | O20: Sim
B21: Autack Componentes elétricos - https://autack.com.br/produtos/conector-generico-saida-frontal-6-a-25mm/?variant=1152753015&pf=mc&srsltid=AfmBOoq7e1dec8M9HDUArSpSocW0gpbu6PMmErv09uvJIfeKIpkj5Ctj2oM | J21: 2025-11-10 | K21: =(6.28+(17.27/2)) -> 14.92 | L21: Sim | O21: Sim
B22: Mercado Livre - https://www.mercadolivre.com.br/kit-10-conector-terminal-generico-frontal-para--ate-50mm2/up/MLBU1744371889?matt_tool=18956390&utm_source=google_shopping&utm_medium=organic&pdp_filters=item_id:MLB4291617654 | J22: 2025-11-10 | K22: =125.31/10 -> 12.53 | L22: Sim | O22: Sim
B23: ELÉTRICA BAHIANA COM IMP MAT ELET LTDA | CNPJ: 00.570.553/0001-80. Matriz: Rua Barão de Cotegipe, 269 A - Calçada - Salvador/BA - CEP: 40411-002. https://www.eletricabahiana.com.br/conector-generico-al-br-ligacao-em-disjuntor-63a---11156853-82196/p | J23: 2025-11-10 | K23: 8.23 | L23: Sim | O23: Sim
B30: Observações: | K30: Média: | L30: =IF($L$32="","Selecione metodologia para exclusão de preços",AVERAGE(IF($L$10:$L$29="Sim",$K$10:$K$29))) -> 10.04 | N30: Média (Cotações) | O30: =IF(COUNTIF(O19:O29,"Sim")<3,"N/D (são necessários pelo menos 3 preços)",AVERAGE(IF(O19:O29="Sim",$K19:$K29))) -> 10.04 | P30: =IF(COUNTIF(P19:P29,"Sim")<3,"N/D (são necessários pelo menos 3 preços)",AVERAGE(IF(P19:P29="Sim",$K19:$K29))) -> N/D (são necessários pelo menos 3 preços)
K31: Mediana: | L31: =IF($L$32="","Selecione metodologia para exclusão de preços",MEDIAN(IF($L$10:$L$29="Sim",$K$10:$K$29))) -> 8.23 | N31: Mediana (Cotações) | O31: =IF(COUNTIF(O19:O29,"Sim")<3,"N/D (são necessários pelo menos 3 preços)",MEDIAN(IF(O19:O29="Sim",$K19:$K29))) -> 8.23 | P31: =IF(COUNTIF(P19:P29,"Sim")<3,"N/D (são necessários pelo menos 3 preços)",MEDIAN(IF(P19:P29="Sim",$K19:$K29))) -> N/D (são necessários pelo menos 3 preços)
B32: Metodologia de exclusão de preços adotada: | L32: =IF(O35="",INDEX(O18:P18,MATCH(MIN(#REF!),#REF!,0)),O35) -> Outliers | N32: CV (Cotações) | O32: =IF(COUNTIF(O19:O29,"Sim")<3,"N/D (são necessários pelo menos 3 preços)",_xlfn.STDEV.S(IF(O19:O29="Sim",$K19:$K29))/AVERAGE(IF(O19:O29="Sim",$K19:$K29))) -> 0.3529 | P32: =IF(COUNTIF(P19:P29,"Sim")<3,"N/D (são necessários pelo menos 3 preços)",_xlfn.STDEV.S(IF(P19:P29="Sim",$K19:$K29))/AVERAGE(IF(P19:P29="Sim",$K19:$K29))) -> N/D (são necessários pelo menos 3 preços)
N33: Média | O33: =IF(SUM(COUNTIF($O$10:$O$16,"Sim")) + SUM(COUNTIF(O19:O29,"Sim")) < 3, "N/D (são necessários pelo menos 3 preços)", IFERROR(AVERAGE(_xlfn._xlws.FILTER($K$10:$K$16,$O$10:$O$16="Sim"), _xlfn._xlws.FILTER($K$19:$K$29,O19:O29="Sim")),O30)) -> 10.04 | P33: =IF(SUM(COUNTIF($P$10:$P$16,"Sim")) + SUM(COUNTIF(P19:P29,"Sim")) < 3, "N/D (são necessários pelo menos 3 preços)", IFERROR(AVERAGE(_xlfn._xlws.FILTER($K$10:$K$16,$P$10:$P$16="Sim"), _xlfn._xlws.FILTER($K$19:$K$29,P19:P29="Sim")),P30)) -> N/D (são necessários pelo menos 3 preços)
N34: Mediana | O34: =IF(SUM(COUNTIF($O$10:$O$16,"Sim")) + SUM(COUNTIF(O19:O29,"Sim")) < 3, "N/D (são necessários pelo menos 3 preços)", IFERROR(MEDIAN(_xlfn._xlws.FILTER($K$10:$K$16,$O$10:$O$16="Sim"), _xlfn._xlws.FILTER($K$19:$K$29,O19:O29="Sim")),O31)) -> 8.23 | P34: =IF(SUM(COUNTIF($P10:$P$16,"Sim")) + SUM(COUNTIF(P19:P29,"Sim")) < 3, "N/D (são necessários pelo menos 3 preços)", IFERROR(MEDIAN(_xlfn._xlws.FILTER($K$10:$K$16,$P$10:$P$16="Sim"), _xlfn._xlws.FILTER($K$19:$K$29,P19:P29="Sim")),P31)) -> N/D (são necessários pelo menos 3 preços)
B35: COSOLIDAÇÃO DOS PREÇOS | N35: Metodologia a adotar: | O35: =IF(INDEX(O18:P18,P35)=0,"",INDEX(O18:P18,P35)) -> Outliers | P35: 1
B37: PREÇO UNITÁRIO ESTIMADO ADOTADO: | L37: =IF($B$39="Mediana:",L31,L30) -> 8.23
A39: =O18 -> Outliers | B39: Mediana:
A40: =P18 -> Por critério do(a) analista

Sheet COT20 (hidden)
B2: Processo | C2: 59500.003753/2025-45
B3: Responsável | C3: Kaio Gabriel, Alessandra Brant, Alberto Nascimento
B4: Área de Origem | C4: AI/GAP/UGI
B5: Data da pesquisa
B7: ITEM: | C7: Relé temporizador, alimentação 220V, 1 saída a relé, com função de pulso na energização, ajustável de 1 segundo a 100 horas, ajuste por trimpots no relé | I7: UNIDADE DE MEDIDA: | J7: Unidade | K7: QUANTIDADE: | L7: 1 | O7: Tabela auxiliar de metodologias para exclusão de preços
B8: LICITAÇÕES ANTERIORES | O8: Licitações Anteriores
B9: Órgão | C9: Edital/Ano - Nº do Lote / Item | D9: Quantidade | E9: Valor Unitário | F9: Data | G9: índice de atualização (nome) | H9: I0 | I9: If | J9: Variação acumulada do índice (%) | K9: Preço unitário atualizado | L9: Utilizar? (Sim/Não) | O9: Outliers | P9: Por critério do(a) analista
J10: =IF(ISBLANK(E10),"",IF(ISNUMBER(H10),(I10-H10)/H10,0)) ->  | K10: =IF(ISBLANK(E10),"",E10*(1+J10)) ->  | L10: =IF(ISNUMBER(K10),IF($L$32<>$P$9,O10,P10),"") ->  | O10: =IF(ISNUMBER(K10),IF(OR(K10<_xlfn.QUARTILE.INC($K$10:$K$29,1)-1.5*(_xlfn.QUARTILE.INC($K$10:K29,3)-_xlfn.QUARTILE.INC($K$10:$K$29,1)),K10>_xlfn.QUARTILE.INC($K$10:$K$29,3)+1.5*(_xlfn.QUARTILE.INC($K$10:$K$29,3)-_xlfn.QUARTILE.INC($K$10:$K$29,1))),"Não","Sim"),"") -> 
J11: =IF(ISBLANK(E11),"",IF(ISNUMBER(H11),(I11-H11)/H11,0)) ->  | K11: =IF(ISBLANK(E11),"",E11*(1+J11)) ->  | O11: =IF(ISNUMBER(K11),IF(OR(K11<_xlfn.QUARTILE.INC($K$10:$K$29,1)-1.5*(_xlfn.QUARTILE.INC($K$10:K29,3)-_xlfn.QUARTILE.INC($K$10:$K$29,1)),K11>_xlfn.QUARTILE.INC($K$10:$K$29,3)+1.5*(_xlfn.QUARTILE.INC($K$10:$K$29,3)-_xlfn.QUARTILE.INC($K$10:$K$29,1))),"Não","Sim"),"") -> 
O12: =IF(ISNUMBER(K12),IF(OR(K12<_xlfn.QUARTILE.INC($K$10:$K$29,1)-1.5*(_xlfn.QUARTILE.INC($K$10:K30,3)-_xlfn.QUARTILE.INC($K$10:$K$29,1)),K12>_xlfn.QUARTILE.INC($K$10:$K$29,3)+1.5*(_xlfn.QUARTILE.INC($K$10:$K$29,3)-_xlfn.QUARTILE.INC($K$10:$K$29,1))),"Não","Sim"),"") -> 
O13: =IF(ISNUMBER(K13),IF(OR(K13<_xlfn.QUARTILE.INC($K$10:$K$29,1)-1.5*(_xlfn.QUARTILE.INC($K$10:K31,3)-_xlfn.QUARTILE.INC($K$10:$K$29,1)),K13>_xlfn.QUARTILE.INC($K$10:$K$29,3)+1.5*(_xlfn.QUARTILE.INC($K$10:$K$29,3)-_xlfn.QUARTILE.INC($K$10:$K$29,1))),"Não","Sim"),"") -> 
O14: =IF(ISNUMBER(K14),IF(OR(K14<_xlfn.QUARTILE.INC($K$10:$K$29,1)-1.5*(_xlfn.QUARTILE.INC($K$10:K32,3)-_xlfn.QUARTILE.INC($K$10:$K$29,1)),K14>_xlfn.QUARTILE.INC($K$10:$K$29,3)+1.5*(_xlfn.QUARTILE.INC($K$10:$K$29,3)-_xlfn.QUARTILE.INC($K$10:$K$29,1))),"Não","Sim"),"") -> 
O15: =IF(ISNUMBER(K15),IF(OR(K15<_xlfn.QUARTILE.INC($K$10:$K$29,1)-1.5*(_xlfn.QUARTILE.INC($K$10:K35,3)-_xlfn.QUARTILE.INC($K$10:$K$29,1)),K15>_xlfn.QUARTILE.INC($K$10:$K$29,3)+1.5*(_xlfn.QUARTILE.INC($K$10:$K$29,3)-_xlfn.QUARTILE.INC($K$10:$K$29,1))),"Não","Sim"),"") -> 
O16: =IF(ISNUMBER(K16),IF(OR(K16<_xlfn.QUARTILE.INC($K$10:$K$29,1)-1.5*(_xlfn.QUARTILE.INC($I$10:I37,3)-_xlfn.QUARTILE.INC($K$10:$K$29,1)),K16>_xlfn.QUARTILE.INC($K$10:$K$29,3)+1.5*(_xlfn.QUARTILE.INC($K$10:$K$29,3)-_xlfn.QUARTILE.INC($K$10:$K$29,1))),"Não","Sim"),"") -> 
B17: COTAÇÕES DE MERCADO | O17: Cotações
B18: Empresa | J18: Data | K18: Preço Unitário | L18: Utilizar? (Sim/Não) | O18: Outliers | P18: Por critério do(a) analista
B19: Coopera Soluções Elétricas - Av. 25 de Julho, 2736, Centro - Forquilhinha/SC - CEP: 88850-000 CNPJ: 27.191.748/0001-75. https://www.cooperasolucoes.com.br/partida-de-motores/reles/rele-tempo-multifuncao-2-reversivel-24vcc-110220vca-dtm-digimec?parceiro=1&srsltid=AfmBOood2P0kuth9fJRYxSb1vStUlj4qRDiZBzlGnhqH-7iSf1YQZl7Gat0 | J19: 2025-11-10 | K19: =226.21+76.22 -> 302.43 | L19: =IF(ISNUMBER(K19),IF($L$32=$O$18,O19,IF($L$32=$P$18,P19,"")),"") -> Não | O19: =IF(ISNUMBER(K19),IF(OR(K19<_xlfn.QUARTILE.INC($K$10:$K$29,1)-1.5*(_xlfn.QUARTILE.INC($K$10:$K$29,3)-_xlfn.QUARTILE.INC($K$10:$K$29,1)),K19>_xlfn.QUARTILE.INC($K$10:$K$29,3)+1.5*(_xlfn.QUARTILE.INC($K$10:$K$29,3)-_xlfn.QUARTILE.INC($K$10:$K$29,1))),"Não","Sim"),"") -> Não
B20: Dimensional Brasil Soluções Ltda. - CNPJ: 06.913.480/0026-16 - Estrada Municipal Vereador Klaus Lennertz, 3300 - Módulo 6 a 8 - Bairro Palmital, CEP: 89.248-000, Garuva/SC. https://www.dimensional.com.br/rele-tempo-retardado-energia-0-1s-100h-2rev-7pu07113bw00-siemens/p?idsku=511950&srsltid=AfmBOoqZeKaa4bbHi3U1tLKP-2ZloUJtAgCzKJdGhy7e1Ng74bD1_yv5sK8 | J20: 2025-11-10 | K20: =140.39+53.04 -> 193.43 | L20: Sim | O20: Sim
B21: Mercado Livre - PJNEBLINA https://www.mercadolivre.com.br/rele-temporizador-eletronico-01s100h-7pu07113aw00-siemens/up/MLBU2840291191 | J21: 2025-11-10 | K21: 203.91 | L21: Sim | O21: Sim
B22: Antonio L Ferreira S/A Comercial e Importadora Todos os direitos reservados. CNPJ: 60.452.034/0001-49. https://www.casaferreira.com.br/temporizador-clip-cle-2r-retardopulso-0-1s-a-100h-24-242vcavcc?parceiro=3325&gad_source=1&gad_campaignid=23077661735&gbraid=0AAAAADoZl_V-9cCNsvQblco6xAVZBk6FW&gclid=CjwKCAjwx-zHBhBhEiwA7Kjq62xGu5JgjPuqEnZosAVtXvasUn4xvgc1MWq5sd7BXLdodsIadGJeShoC8boQAvD_BwE | J22: 2025-11-10 | K22: =173.34+19.25 -> 192.59 | L22: Sim | O22: Sim
B23: letriza Materiais Elétricos - Razão social: Eletriza Materiais Elétricos. CNPJ: 02.607.022/0001-40. Endereço: R. Atílio Pioto, 150 - Uberaba, Curitiba - PR, 81590-060, Brasil. https://eletriza.com.br/produtos/temporizador-eletronico-01seg-a-100h-90-242vca-cle-econ/?variant=1231916597&pf=mc&srsltid=AfmBOorZPs9QqI-JMcdrimDj4DDTkeCsROrW1HdqEnfPl6t8fiNUR1a1n04 | J23: 2025-11-10 | K23: =135.79+42.81 -> 178.6 | L23: Sim | O23: Sim
B30: Observações: | K30: Média: | L30: =IF($L$32="","Selecione metodologia para exclusão de preços",AVERAGE(IF($L$10:$L$29="Sim",$K$10:$K$29))) -> 192.13 | N30: Média (Cotações) | O30: =IF(COUNTIF(O19:O29,"Sim")<3,"N/D (são necessários pelo menos 3 preços)",AVERAGE(IF(O19:O29="Sim",$K19:$K29))) -> 192.13 | P30: =IF(COUNTIF(P19:P29,"Sim")<3,"N/D (são necessários pelo menos 3 preços)",AVERAGE(IF(P19:P29="Sim",$K19:$K29))) -> N/D (são necessários pelo menos 3 preços)
K31: Mediana: | L31: =IF($L$32="","Selecione metodologia para exclusão de preços",MEDIAN(IF($L$10:$L$29="Sim",$K$10:$K$29))) -> 193.01 | N31: Mediana (Cotações) | O31: =IF(COUNTIF(O19:O29,"Sim")<3,"N/D (são necessários pelo menos 3 preços)",MEDIAN(IF(O19:O29="Sim",$K19:$K29))) -> 193.01 | P31: =IF(COUNTIF(P19:P29,"Sim")<3,"N/D (são necessários pelo menos 3 preços)",MEDIAN(IF(P19:P29="Sim",$K19:$K29))) -> N/D (são necessários pelo menos 3 preços)
B32: Metodologia de exclusão de preços adotada: | L32: =IF(O35="",INDEX(O18:P18,MATCH(MIN(#REF!),#REF!,0)),O35) -> Outliers | N32: CV (Cotações) | O32: =IF(COUNTIF(O19:O29,"Sim")<3,"N/D (são necessários pelo menos 3 preços)",_xlfn.STDEV.S(IF(O19:O29="Sim",$K19:$K29))/AVERAGE(IF(O19:O29="Sim",$K19:$K29))) -> 0.0541 | P32: =IF(COUNTIF(P19:P29,"Sim")<3,"N/D (são necessários pelo menos 3 preços)",_xlfn.STDEV.S(IF(P19:P29="Sim",$K19:$K29))/AVERAGE(IF(P19:P29="Sim",$K19:$K29))) -> N/D (são necessários pelo menos 3 preços)
N33: Média | O33: =IF(SUM(COUNTIF($O$10:$O$16,"Sim")) + SUM(COUNTIF(O19:O29,"Sim")) < 3, "N/D (são necessários pelo menos 3 preços)", IFERROR(AVERAGE(_xlfn._xlws.FILTER($K$10:$K$16,$O$10:$O$16="Sim"), _xlfn._xlws.FILTER($K$19:$K$29,O19:O29="Sim")),O30)) -> 192.13 | P33: =IF(SUM(COUNTIF($P$10:$P$16,"Sim")) + SUM(COUNTIF(P19:P29,"Sim")) < 3, "N/D (são necessários pelo menos 3 preços)", IFERROR(AVERAGE(_xlfn._xlws.FILTER($K$10:$K$16,$P$10:$P$16="Sim"), _xlfn._xlws.FILTER($K$19:$K$29,P19:P29="Sim")),P30)) -> N/D (são necessários pelo menos 3 preços)
N34: Mediana | O34: =IF(SUM(COUNTIF($O$10:$O$16,"Sim")) + SUM(COUNTIF(O19:O29,"Sim")) < 3, "N/D (são necessários pelo menos 3 preços)", IFERROR(MEDIAN(_xlfn._xlws.FILTER($K$10:$K$16,$O$10:$O$16="Sim"), _xlfn._xlws.FILTER($K$19:$K$29,O19:O29="Sim")),O31)) -> 193.01 | P34: =IF(SUM(COUNTIF($P10:$P$16,"Sim")) + SUM(COUNTIF(P19:P29,"Sim")) < 3, "N/D (são necessários pelo menos 3 preços)", IFERROR(MEDIAN(_xlfn._xlws.FILTER($K$10:$K$16,$P$10:$P$16="Sim"), _xlfn._xlws.FILTER($K$19:$K$29,P19:P29="Sim")),P31)) -> N/D (são necessários pelo menos 3 preços)
B35: COSOLIDAÇÃO DOS PREÇOS | N35: Metodologia a adotar: | O35: =IF(INDEX(O18:P18,P35)=0,"",INDEX(O18:P18,P35)) -> Outliers | P35: 1
B37: PREÇO UNITÁRIO ESTIMADO ADOTADO: | L37: =IF($B$39="Mediana:",L31,L30) -> 192.13
A39: =O18 -> Outliers | B39: Média:
A40: =P18 -> Por critério do(a) analista

Sheet COT21 (hidden)
B2: Processo | C2: 59500.003753/2025-45
B3: Responsável | C3: Kaio Gabriel, Alessandra Brant, Alberto Nascimento
B4: Área de Origem | C4: AI/GAP/UGI
B5: Data da pesquisa
B7: ITEM: | C7: Barramento de neutro, na cor azul, para fixação em trilho DIN, fabricado em cobre, com furos e parafusos para fixação, ao menos um furo para o alimentador (até 25 mm²), pré isolado, 10 furos. | I7: UNIDADE DE MEDIDA: | J7: Unidade | K7: QUANTIDADE: | L7: 1 | O7: Tabela auxiliar de metodologias para exclusão de preços
B8: LICITAÇÕES ANTERIORES | O8: Licitações Anteriores
B9: Órgão | C9: Edital/Ano - Nº do Lote / Item | D9: Quantidade | E9: Valor Unitário | F9: Data | G9: índice de atualização (nome) | H9: I0 | I9: If | J9: Variação acumulada do índice (%) | K9: Preço unitário atualizado | L9: Utilizar? (Sim/Não) | O9: Outliers | P9: Por critério do(a) analista
J10: =IF(ISBLANK(E10),"",IF(ISNUMBER(H10),(I10-H10)/H10,0)) ->  | K10: =IF(ISBLANK(E10),"",E10*(1+J10)) ->  | L10: =IF(ISNUMBER(K10),IF($L$32<>$P$9,O10,P10),"") ->  | O10: =IF(ISNUMBER(K10),IF(OR(K10<_xlfn.QUARTILE.INC($K$10:$K$29,1)-1.5*(_xlfn.QUARTILE.INC($K$10:K29,3)-_xlfn.QUARTILE.INC($K$10:$K$29,1)),K10>_xlfn.QUARTILE.INC($K$10:$K$29,3)+1.5*(_xlfn.QUARTILE.INC($K$10:$K$29,3)-_xlfn.QUARTILE.INC($K$10:$K$29,1))),"Não","Sim"),"") -> 
J11: =IF(ISBLANK(E11),"",IF(ISNUMBER(H11),(I11-H11)/H11,0)) ->  | K11: =IF(ISBLANK(E11),"",E11*(1+J11)) ->  | O11: =IF(ISNUMBER(K11),IF(OR(K11<_xlfn.QUARTILE.INC($K$10:$K$29,1)-1.5*(_xlfn.QUARTILE.INC($K$10:K29,3)-_xlfn.QUARTILE.INC($K$10:$K$29,1)),K11>_xlfn.QUARTILE.INC($K$10:$K$29,3)+1.5*(_xlfn.QUARTILE.INC($K$10:$K$29,3)-_xlfn.QUARTILE.INC($K$10:$K$29,1))),"Não","Sim"),"") -> 
O12: =IF(ISNUMBER(K12),IF(OR(K12<_xlfn.QUARTILE.INC($K$10:$K$29,1)-1.5*(_xlfn.QUARTILE.INC($K$10:K30,3)-_xlfn.QUARTILE.INC($K$10:$K$29,1)),K12>_xlfn.QUARTILE.INC($K$10:$K$29,3)+1.5*(_xlfn.QUARTILE.INC($K$10:$K$29,3)-_xlfn.QUARTILE.INC($K$10:$K$29,1))),"Não","Sim"),"") -> 
O13: =IF(ISNUMBER(K13),IF(OR(K13<_xlfn.QUARTILE.INC($K$10:$K$29,1)-1.5*(_xlfn.QUARTILE.INC($K$10:K31,3)-_xlfn.QUARTILE.INC($K$10:$K$29,1)),K13>_xlfn.QUARTILE.INC($K$10:$K$29,3)+1.5*(_xlfn.QUARTILE.INC($K$10:$K$29,3)-_xlfn.QUARTILE.INC($K$10:$K$29,1))),"Não","Sim"),"") -> 
O14: =IF(ISNUMBER(K14),IF(OR(K14<_xlfn.QUARTILE.INC($K$10:$K$29,1)-1.5*(_xlfn.QUARTILE.INC($K$10:K32,3)-_xlfn.QUARTILE.INC($K$10:$K$29,1)),K14>_xlfn.QUARTILE.INC($K$10:$K$29,3)+1.5*(_xlfn.QUARTILE.INC($K$10:$K$29,3)-_xlfn.QUARTILE.INC($K$10:$K$29,1))),"Não","Sim"),"") -> 
O15: =IF(ISNUMBER(K15),IF(OR(K15<_xlfn.QUARTILE.INC($K$10:$K$29,1)-1.5*(_xlfn.QUARTILE.INC($K$10:K35,3)-_xlfn.QUARTILE.INC($K$10:$K$29,1)),K15>_xlfn.QUARTILE.INC($K$10:$K$29,3)+1.5*(_xlfn.QUARTILE.INC($K$10:$K$29,3)-_xlfn.QUARTILE.INC($K$10:$K$29,1))),"Não","Sim"),"") -> 
O16: =IF(ISNUMBER(K16),IF(OR(K16<_xlfn.QUARTILE.INC($K$10:$K$29,1)-1.5*(_xlfn.QUARTILE.INC($I$10:I37,3)-_xlfn.QUARTILE.INC($K$10:$K$29,1)),K16>_xlfn.QUARTILE.INC($K$10:$K$29,3)+1.5*(_xlfn.QUARTILE.INC($K$10:$K$29,3)-_xlfn.QUARTILE.INC($K$10:$K$29,1))),"Não","Sim"),"") -> 
B17: COTAÇÕES DE MERCADO | O17: Cotações
B18: Empresa | J18: Data | K18: Preço Unitário | L18: Utilizar? (Sim/Não) | O18: Outliers | P18: Por critério do(a) analista
B19: TRAMONTINA STORE COMERCIO VAREJISTA LTDA. Avenida Mariland, 777 - 12º andar, São João, Porto Alegre/RS, CEP 90440-191. CNPJ: 07.635.498/0008-84. https://www.tramontina.com.br/barramento-neutro-din-10-ligacoes-tramontina-com-suporte-azul/56300121.html | J19: 2025-10-24 | K19: =29.69+17.58 -> 47.27 | L19: =IF(ISNUMBER(K19),IF($L$32=$O$18,O19,IF($L$32=$P$18,P19,"")),"") -> Sim | O19: =IF(ISNUMBER(K19),IF(OR(K19<_xlfn.QUARTILE.INC($K$10:$K$29,1)-1.5*(_xlfn.QUARTILE.INC($K$10:$K$29,3)-_xlfn.QUARTILE.INC($K$10:$K$29,1)),K19>_xlfn.QUARTILE.INC($K$10:$K$29,3)+1.5*(_xlfn.QUARTILE.INC($K$10:$K$29,3)-_xlfn.QUARTILE.INC($K$10:$K$29,1))),"Não","Sim"),"") -> Sim
B20: BahiaTech Materiais Elétricos, CNPJ: 12.341.222/0001-57. Lauro de Freitas (BA). | J20: 2025-10-24 | K20: =24.75+14.32 -> 39.07 | L20: Sim | O20: Sim
B21: AC Coelho Ltda - CNPJ nº 99.999/0001-33 - SIA Trecho 3 Lote, Brasília - DF, CEP: 70.760-516. https://www.accoelho.com.br/barramento-neutro-din-10-ligacoes-tramontina-com-suporte-azul/p | J21: 2025-10-24 | K21: =21.9+26.17 -> 48.07 | L21: Sim | O21: Sim
B30: Observações: | K30: Média: | L30: =IF($L$32="","Selecione metodologia para exclusão de preços",AVERAGE(IF($L$10:$L$29="Sim",$K$10:$K$29))) -> 44.8 | N30: Média (Cotações) | O30: =IF(COUNTIF(O19:O29,"Sim")<3,"N/D (são necessários pelo menos 3 preços)",AVERAGE(IF(O19:O29="Sim",$K19:$K29))) -> 44.8 | P30: =IF(COUNTIF(P19:P29,"Sim")<3,"N/D (são necessários pelo menos 3 preços)",AVERAGE(IF(P19:P29="Sim",$K19:$K29))) -> N/D (são necessários pelo menos 3 preços)
K31: Mediana: | L31: =IF($L$32="","Selecione metodologia para exclusão de preços",MEDIAN(IF($L$10:$L$29="Sim",$K$10:$K$29))) -> 47.27 | N31: Mediana (Cotações) | O31: =IF(COUNTIF(O19:O29,"Sim")<3,"N/D (são necessários pelo menos 3 preços)",MEDIAN(IF(O19:O29="Sim",$K19:$K29))) -> 47.27 | P31: =IF(COUNTIF(P19:P29,"Sim")<3,"N/D (são necessários pelo menos 3 preços)",MEDIAN(IF(P19:P29="Sim",$K19:$K29))) -> N/D (são necessários pelo menos 3 preços)
B32: Metodologia de exclusão de preços adotada: | L32: =IF(O35="",INDEX(O18:P18,MATCH(MIN(#REF!),#REF!,0)),O35) -> Outliers | N32: CV (Cotações) | O32: =IF(COUNTIF(O19:O29,"Sim")<3,"N/D (são necessários pelo menos 3 preços)",_xlfn.STDEV.S(IF(O19:O29="Sim",$K19:$K29))/AVERAGE(IF(O19:O29="Sim",$K19:$K29))) -> 0.1112 | P32: =IF(COUNTIF(P19:P29,"Sim")<3,"N/D (são necessários pelo menos 3 preços)",_xlfn.STDEV.S(IF(P19:P29="Sim",$K19:$K29))/AVERAGE(IF(P19:P29="Sim",$K19:$K29))) -> N/D (são necessários pelo menos 3 preços)
N33: Média | O33: =IF(SUM(COUNTIF($O$10:$O$16,"Sim")) + SUM(COUNTIF(O19:O29,"Sim")) < 3, "N/D (são necessários pelo menos 3 preços)", IFERROR(AVERAGE(_xlfn._xlws.FILTER($K$10:$K$16,$O$10:$O$16="Sim"), _xlfn._xlws.FILTER($K$19:$K$29,O19:O29="Sim")),O30)) -> 44.8 | P33: =IF(SUM(COUNTIF($P$10:$P$16,"Sim")) + SUM(COUNTIF(P19:P29,"Sim")) < 3, "N/D (são necessários pelo menos 3 preços)", IFERROR(AVERAGE(_xlfn._xlws.FILTER($K$10:$K$16,$P$10:$P$16="Sim"), _xlfn._xlws.FILTER($K$19:$K$29,P19:P29="Sim")),P30)) -> N/D (são necessários pelo menos 3 preços)
N34: Mediana | O34: =IF(SUM(COUNTIF($O$10:$O$16,"Sim")) + SUM(COUNTIF(O19:O29,"Sim")) < 3, "N/D (são necessários pelo menos 3 preços)", IFERROR(MEDIAN(_xlfn._xlws.FILTER($K$10:$K$16,$O$10:$O$16="Sim"), _xlfn._xlws.FILTER($K$19:$K$29,O19:O29="Sim")),O31)) -> 47.27 | P34: =IF(SUM(COUNTIF($P10:$P$16,"Sim")) + SUM(COUNTIF(P19:P29,"Sim")) < 3, "N/D (são necessários pelo menos 3 preços)", IFERROR(MEDIAN(_xlfn._xlws.FILTER($K$10:$K$16,$P$10:$P$16="Sim"), _xlfn._xlws.FILTER($K$19:$K$29,P19:P29="Sim")),P31)) -> N/D (são necessários pelo menos 3 preços)
B35: COSOLIDAÇÃO DOS PREÇOS | N35: Metodologia a adotar: | O35: =IF(INDEX(O18:P18,P35)=0,"",INDEX(O18:P18,P35)) -> Outliers | P35: 1
B37: PREÇO UNITÁRIO ESTIMADO ADOTADO: | L37: =IF($B$39="Mediana:",L31,L30) -> 44.8
A39: =O18 -> Outliers | B39: Média:
A40: =P18 -> Por critério do(a) analista

Sheet COT22 (hidden)
B2: Processo | C2: 59500.003753/2025-45
B3: Responsável | C3: Kaio Gabriel, Alessandra Brant, Alberto Nascimento
B4: Área de Origem | C4: AI/GAP/UGI
B5: Data da pesquisa
B7: ITEM: | C7: Barramento de terra, na cor verde, para fixação em trilho DIN, fabricado em cobre, com furos e parafusos para fixação, ao menos um furo para o alimentador (até 25 mm²), pré isolado, 10 furos. | I7: UNIDADE DE MEDIDA: | J7: Unidade | K7: QUANTIDADE: | L7: 1 | O7: Tabela auxiliar de metodologias para exclusão de preços
B8: LICITAÇÕES ANTERIORES | O8: Licitações Anteriores
B9: Órgão | C9: Edital/Ano - Nº do Lote / Item | D9: Quantidade | E9: Valor Unitário | F9: Data | G9: índice de atualização (nome) | H9: I0 | I9: If | J9: Variação acumulada do índice (%) | K9: Preço unitário atualizado | L9: Utilizar? (Sim/Não) | O9: Outliers | P9: Por critério do(a) analista
J10: =IF(ISBLANK(E10),"",IF(ISNUMBER(H10),(I10-H10)/H10,0)) ->  | K10: =IF(ISBLANK(E10),"",E10*(1+J10)) ->  | L10: =IF(ISNUMBER(K10),IF($L$32<>$P$9,O10,P10),"") ->  | O10: =IF(ISNUMBER(K10),IF(OR(K10<_xlfn.QUARTILE.INC($K$10:$K$29,1)-1.5*(_xlfn.QUARTILE.INC($K$10:K29,3)-_xlfn.QUARTILE.INC($K$10:$K$29,1)),K10>_xlfn.QUARTILE.INC($K$10:$K$29,3)+1.5*(_xlfn.QUARTILE.INC($K$10:$K$29,3)-_xlfn.QUARTILE.INC($K$10:$K$29,1))),"Não","Sim"),"") -> 
J11: =IF(ISBLANK(E11),"",IF(ISNUMBER(H11),(I11-H11)/H11,0)) ->  | K11: =IF(ISBLANK(E11),"",E11*(1+J11)) ->  | O11: =IF(ISNUMBER(K11),IF(OR(K11<_xlfn.QUARTILE.INC($K$10:$K$29,1)-1.5*(_xlfn.QUARTILE.INC($K$10:K29,3)-_xlfn.QUARTILE.INC($K$10:$K$29,1)),K11>_xlfn.QUARTILE.INC($K$10:$K$29,3)+1.5*(_xlfn.QUARTILE.INC($K$10:$K$29,3)-_xlfn.QUARTILE.INC($K$10:$K$29,1))),"Não","Sim"),"") -> 
O12: =IF(ISNUMBER(K12),IF(OR(K12<_xlfn.QUARTILE.INC($K$10:$K$29,1)-1.5*(_xlfn.QUARTILE.INC($K$10:K30,3)-_xlfn.QUARTILE.INC($K$10:$K$29,1)),K12>_xlfn.QUARTILE.INC($K$10:$K$29,3)+1.5*(_xlfn.QUARTILE.INC($K$10:$K$29,3)-_xlfn.QUARTILE.INC($K$10:$K$29,1))),"Não","Sim"),"") -> 
O13: =IF(ISNUMBER(K13),IF(OR(K13<_xlfn.QUARTILE.INC($K$10:$K$29,1)-1.5*(_xlfn.QUARTILE.INC($K$10:K31,3)-_xlfn.QUARTILE.INC($K$10:$K$29,1)),K13>_xlfn.QUARTILE.INC($K$10:$K$29,3)+1.5*(_xlfn.QUARTILE.INC($K$10:$K$29,3)-_xlfn.QUARTILE.INC($K$10:$K$29,1))),"Não","Sim"),"") -> 
O14: =IF(ISNUMBER(K14),IF(OR(K14<_xlfn.QUARTILE.INC($K$10:$K$29,1)-1.5*(_xlfn.QUARTILE.INC($K$10:K32,3)-_xlfn.QUARTILE.INC($K$10:$K$29,1)),K14>_xlfn.QUARTILE.INC($K$10:$K$29,3)+1.5*(_xlfn.QUARTILE.INC($K$10:$K$29,3)-_xlfn.QUARTILE.INC($K$10:$K$29,1))),"Não","Sim"),"") -> 
O15: =IF(ISNUMBER(K15),IF(OR(K15<_xlfn.QUARTILE.INC($K$10:$K$29,1)-1.5*(_xlfn.QUARTILE.INC($K$10:K35,3)-_xlfn.QUARTILE.INC($K$10:$K$29,1)),K15>_xlfn.QUARTILE.INC($K$10:$K$29,3)+1.5*(_xlfn.QUARTILE.INC($K$10:$K$29,3)-_xlfn.QUARTILE.INC($K$10:$K$29,1))),"Não","Sim"),"") -> 
O16: =IF(ISNUMBER(K16),IF(OR(K16<_xlfn.QUARTILE.INC($K$10:$K$29,1)-1.5*(_xlfn.QUARTILE.INC($I$10:I37,3)-_xlfn.QUARTILE.INC($K$10:$K$29,1)),K16>_xlfn.QUARTILE.INC($K$10:$K$29,3)+1.5*(_xlfn.QUARTILE.INC($K$10:$K$29,3)-_xlfn.QUARTILE.INC($K$10:$K$29,1))),"Não","Sim"),"") -> 
B17: COTAÇÕES DE MERCADO | O17: Cotações
B18: Empresa | J18: Data | K18: Preço Unitário | L18: Utilizar? (Sim/Não) | O18: Outliers | P18: Por critério do(a) analista
B19: TRAMONTINA STORE COMERCIO VAREJISTA LTDA. Avenida Mariland, 777 - 12º andar, São João, Porto Alegre/RS, CEP 90440-191. CNPJ: 07.635.498/0008-84. https://www.tramontina.com.br/barramento-terra-din-10-ligacoes-tramontina-com-suporte-verde/56300120.html?srsltid=AfmBOopgmUpbTQBoyHx1d7haYigS5U0GskWFGp9oG72aBFyGo-wau1MY | J19: 2025-10-24 | K19: =29.69+17.58 -> 47.27 | L19: =IF(ISNUMBER(K19),IF($L$32=$O$18,O19,IF($L$32=$P$18,P19,"")),"") -> Sim | O19: =IF(ISNUMBER(K19),IF(OR(K19<_xlfn.QUARTILE.INC($K$10:$K$29,1)-1.5*(_xlfn.QUARTILE.INC($K$10:$K$29,3)-_xlfn.QUARTILE.INC($K$10:$K$29,1)),K19>_xlfn.QUARTILE.INC($K$10:$K$29,3)+1.5*(_xlfn.QUARTILE.INC($K$10:$K$29,3)-_xlfn.QUARTILE.INC($K$10:$K$29,1))),"Não","Sim"),"") -> Sim
B20: BahiaTech Materiais Elétricos, CNPJ: 12.341.222/0001-57. Lauro de Freitas (BA). https://www.bahiatechbrasil.com.br/barramento-terra-11-terminais-verde-steck-14623. | J20: 2025-10-24 | K20: =24.75+14.32 -> 39.07 | L20: Sim | O20: Sim
B21: AC Coelho Ltda - CNPJ nº 99.999/0001-33 - SIA Trecho 3 Lote, Brasília - DF, CEP: 70.760-516. https://www.accoelho.com.br/barramento-terra-din-10-ligacoes-tramontina-com-suporte-verde/p?idsku=2115&gad_source=1&gad_campaignid=23140544044&gbraid=0AAAAABbHGdoWIvAkFaaz01POVKqJSDKTw&gclid=CjwKCAjwx-zHBhBhEiwA7Kjq64IK8tbqPKDdj6UPpCMbz7-zD8RsSbq9aS-SMc-t6pxvfTNoWHiMURoCU0sQAvD_BwE#description | J21: 2025-10-24 | K21: =21.9+22 -> 43.9 | L21: Sim | O21: Sim
B30: Observações: | K30: Média: | L30: =IF($L$32="","Selecione metodologia para exclusão de preços",AVERAGE(IF($L$10:$L$29="Sim",$K$10:$K$29))) -> 43.41 | N30: Média (Cotações) | O30: =IF(COUNTIF(O19:O29,"Sim")<3,"N/D (são necessários pelo menos 3 preços)",AVERAGE(IF(O19:O29="Sim",$K19:$K29))) -> 43.41 | P30: =IF(COUNTIF(P19:P29,"Sim")<3,"N/D (são necessários pelo menos 3 preços)",AVERAGE(IF(P19:P29="Sim",$K19:$K29))) -> N/D (são necessários pelo menos 3 preços)
K31: Mediana: | L31: =IF($L$32="","Selecione metodologia para exclusão de preços",MEDIAN(IF($L$10:$L$29="Sim",$K$10:$K$29))) -> 43.9 | N31: Mediana (Cotações) | O31: =IF(COUNTIF(O19:O29,"Sim")<3,"N/D (são necessários pelo menos 3 preços)",MEDIAN(IF(O19:O29="Sim",$K19:$K29))) -> 43.9 | P31: =IF(COUNTIF(P19:P29,"Sim")<3,"N/D (são necessários pelo menos 3 preços)",MEDIAN(IF(P19:P29="Sim",$K19:$K29))) -> N/D (são necessários pelo menos 3 preços)
B32: Metodologia de exclusão de preços adotada: | L32: =IF(O35="",INDEX(O18:P18,MATCH(MIN(#REF!),#REF!,0)),O35) -> Outliers | N32: CV (Cotações) | O32: =IF(COUNTIF(O19:O29,"Sim")<3,"N/D (são necessários pelo menos 3 preços)",_xlfn.STDEV.S(IF(O19:O29="Sim",$K19:$K29))/AVERAGE(IF(O19:O29="Sim",$K19:$K29))) -> 0.0949 | P32: =IF(COUNTIF(P19:P29,"Sim")<3,"N/D (são necessários pelo menos 3 preços)",_xlfn.STDEV.S(IF(P19:P29="Sim",$K19:$K29))/AVERAGE(IF(P19:P29="Sim",$K19:$K29))) -> N/D (são necessários pelo menos 3 preços)
N33: Média | O33: =IF(SUM(COUNTIF($O$10:$O$16,"Sim")) + SUM(COUNTIF(O19:O29,"Sim")) < 3, "N/D (são necessários pelo menos 3 preços)", IFERROR(AVERAGE(_xlfn._xlws.FILTER($K$10:$K$16,$O$10:$O$16="Sim"), _xlfn._xlws.FILTER($K$19:$K$29,O19:O29="Sim")),O30)) -> 43.41 | P33: =IF(SUM(COUNTIF($P$10:$P$16,"Sim")) + SUM(COUNTIF(P19:P29,"Sim")) < 3, "N/D (são necessários pelo menos 3 preços)", IFERROR(AVERAGE(_xlfn._xlws.FILTER($K$10:$K$16,$P$10:$P$16="Sim"), _xlfn._xlws.FILTER($K$19:$K$29,P19:P29="Sim")),P30)) -> N/D (são necessários pelo menos 3 preços)
N34: Mediana | O34: =IF(SUM(COUNTIF($O$10:$O$16,"Sim")) + SUM(COUNTIF(O19:O29,"Sim")) < 3, "N/D (são necessários pelo menos 3 preços)", IFERROR(MEDIAN(_xlfn._xlws.FILTER($K$10:$K$16,$O$10:$O$16="Sim"), _xlfn._xlws.FILTER($K$19:$K$29,O19:O29="Sim")),O31)) -> 43.9 | P34: =IF(SUM(COUNTIF($P10:$P$16,"Sim")) + SUM(COUNTIF(P19:P29,"Sim")) < 3, "N/D (são necessários pelo menos 3 preços)", IFERROR(MEDIAN(_xlfn._xlws.FILTER($K$10:$K$16,$P$10:$P$16="Sim"), _xlfn._xlws.FILTER($K$19:$K$29,P19:P29="Sim")),P31)) -> N/D (são necessários pelo menos 3 preços)
B35: COSOLIDAÇÃO DOS PREÇOS | N35: Metodologia a adotar: | O35: =IF(INDEX(O18:P18,P35)=0,"",INDEX(O18:P18,P35)) -> Outliers | P35: 1
B37: PREÇO UNITÁRIO ESTIMADO ADOTADO: | L37: =IF($B$39="Mediana:",L31,L30) -> 43.41
A39: =O18 -> Outliers | B39: Média:
A40: =P18 -> Por critério do(a) analista

Sheet COT23 (hidden)
B2: Processo | C2: 59500.003753/2025-45
B3: Responsável | C3: Kaio Gabriel, Alessandra Brant, Alberto Nascimento
B4: Área de Origem | C4: AI/GAP/UGI
B5: Data da pesquisa
B7: ITEM: | C7: REGISTRO DE GAVETA 1 1/2"" | I7: UNIDADE DE MEDIDA: | J7: Unidade | K7: QUANTIDADE: | L7: 1 | O7: Tabela auxiliar de metodologias para exclusão de preços
B8: LICITAÇÕES ANTERIORES | O8: Licitações Anteriores
B9: Órgão | C9: Edital/Ano - Nº do Lote / Item | D9: Quantidade | E9: Valor Unitário | F9: Data | G9: índice de atualização (nome) | H9: I0 | I9: If | J9: Variação acumulada do índice (%) | K9: Preço unitário atualizado | L9: Utilizar? (Sim/Não) | O9: Outliers | P9: Por critério do(a) analista
J10: =IF(ISBLANK(E10),"",IF(ISNUMBER(H10),(I10-H10)/H10,0)) ->  | K10: =IF(ISBLANK(E10),"",E10*(1+J10)) ->  | L10: =IF(ISNUMBER(K10),IF($L$32<>$P$9,O10,P10),"") ->  | O10: =IF(ISNUMBER(K10),IF(OR(K10<_xlfn.QUARTILE.INC($K$10:$K$29,1)-1.5*(_xlfn.QUARTILE.INC($K$10:K29,3)-_xlfn.QUARTILE.INC($K$10:$K$29,1)),K10>_xlfn.QUARTILE.INC($K$10:$K$29,3)+1.5*(_xlfn.QUARTILE.INC($K$10:$K$29,3)-_xlfn.QUARTILE.INC($K$10:$K$29,1))),"Não","Sim"),"") -> 
J11: =IF(ISBLANK(E11),"",IF(ISNUMBER(H11),(I11-H11)/H11,0)) ->  | K11: =IF(ISBLANK(E11),"",E11*(1+J11)) ->  | O11: =IF(ISNUMBER(K11),IF(OR(K11<_xlfn.QUARTILE.INC($K$10:$K$29,1)-1.5*(_xlfn.QUARTILE.INC($K$10:K29,3)-_xlfn.QUARTILE.INC($K$10:$K$29,1)),K11>_xlfn.QUARTILE.INC($K$10:$K$29,3)+1.5*(_xlfn.QUARTILE.INC($K$10:$K$29,3)-_xlfn.QUARTILE.INC($K$10:$K$29,1))),"Não","Sim"),"") -> 
O12: =IF(ISNUMBER(K12),IF(OR(K12<_xlfn.QUARTILE.INC($K$10:$K$29,1)-1.5*(_xlfn.QUARTILE.INC($K$10:K30,3)-_xlfn.QUARTILE.INC($K$10:$K$29,1)),K12>_xlfn.QUARTILE.INC($K$10:$K$29,3)+1.5*(_xlfn.QUARTILE.INC($K$10:$K$29,3)-_xlfn.QUARTILE.INC($K$10:$K$29,1))),"Não","Sim"),"") -> 
O13: =IF(ISNUMBER(K13),IF(OR(K13<_xlfn.QUARTILE.INC($K$10:$K$29,1)-1.5*(_xlfn.QUARTILE.INC($K$10:K31,3)-_xlfn.QUARTILE.INC($K$10:$K$29,1)),K13>_xlfn.QUARTILE.INC($K$10:$K$29,3)+1.5*(_xlfn.QUARTILE.INC($K$10:$K$29,3)-_xlfn.QUARTILE.INC($K$10:$K$29,1))),"Não","Sim"),"") -> 
O14: =IF(ISNUMBER(K14),IF(OR(K14<_xlfn.QUARTILE.INC($K$10:$K$29,1)-1.5*(_xlfn.QUARTILE.INC($K$10:K32,3)-_xlfn.QUARTILE.INC($K$10:$K$29,1)),K14>_xlfn.QUARTILE.INC($K$10:$K$29,3)+1.5*(_xlfn.QUARTILE.INC($K$10:$K$29,3)-_xlfn.QUARTILE.INC($K$10:$K$29,1))),"Não","Sim"),"") -> 
O15: =IF(ISNUMBER(K15),IF(OR(K15<_xlfn.QUARTILE.INC($K$10:$K$29,1)-1.5*(_xlfn.QUARTILE.INC($K$10:K35,3)-_xlfn.QUARTILE.INC($K$10:$K$29,1)),K15>_xlfn.QUARTILE.INC($K$10:$K$29,3)+1.5*(_xlfn.QUARTILE.INC($K$10:$K$29,3)-_xlfn.QUARTILE.INC($K$10:$K$29,1))),"Não","Sim"),"") -> 
O16: =IF(ISNUMBER(K16),IF(OR(K16<_xlfn.QUARTILE.INC($K$10:$K$29,1)-1.5*(_xlfn.QUARTILE.INC($I$10:I37,3)-_xlfn.QUARTILE.INC($K$10:$K$29,1)),K16>_xlfn.QUARTILE.INC($K$10:$K$29,3)+1.5*(_xlfn.QUARTILE.INC($K$10:$K$29,3)-_xlfn.QUARTILE.INC($K$10:$K$29,1))),"Não","Sim"),"") -> 
B17: COTAÇÕES DE MERCADO | O17: Cotações
B18: Empresa | J18: Data | K18: Preço Unitário | L18: Utilizar? (Sim/Não) | O18: Outliers | P18: Por critério do(a) analista
B19: Quality Tubos - https://www.lojaqualitytubos.com.br/registro-de-gaveta-bruto-em-latao-de-1-1-2-p999215?utm_source=google&utm_medium=upc&utm_campaign=qualitytubos&gad_source=4&gad_campaignid=17347981097&gbraid=0AAAAACfUbmqN_-p8iBF7EcXGltC9mvC78&gclid=CjwKCAiAt8bIBhBpEiwAzH1w6V9kCTBD3ncyTqBNemT4bviNEjUccSPtju5oR90hgP0ZdWzvAfCB7RoCPiEQAvD_BwE | J19: 2025-11-10 | K19: 164.79 | L19: =IF(ISNUMBER(K19),IF($L$32=$O$18,O19,IF($L$32=$P$18,P19,"")),"") -> Sim | O19: =IF(ISNUMBER(K19),IF(OR(K19<_xlfn.QUARTILE.INC($K$10:$K$29,1)-1.5*(_xlfn.QUARTILE.INC($K$10:$K$29,3)-_xlfn.QUARTILE.INC($K$10:$K$29,1)),K19>_xlfn.QUARTILE.INC($K$10:$K$29,3)+1.5*(_xlfn.QUARTILE.INC($K$10:$K$29,3)-_xlfn.QUARTILE.INC($K$10:$K$29,1))),"Não","Sim"),"") -> Sim
B20: Leroy Merlin - https://www.leroymerlin.com.br/registro-de-gaveta-volante-50mm-ou-1-1-2-deca_85394974?store_code=28&gad_source=4&gad_campaignid=18330975033&gbraid=0AAAAADkzLZ4QltXVSEJLo7Gyt_t___Mh8&gclid=CjwKCAiAt8bIBhBpEiwAzH1w6ZDmRjF2nvac2AprLRj3JfvHs2UkGewIGFfjljH04SL0SuLTlJeRoRoCVkkQAvD_BwE | J20: 2025-11-10 | K20: =89.9+12.9 -> 102.8 | L20: =IF(ISNUMBER(K20),IF($L$32=$O$18,O20,IF($L$32=$P$18,P20,"")),"") -> Sim | O20: Sim
B21: SuperPro Atacado - https://www.superproatacado.com.br/registro-gaveta-1-1-2-docol-989738/p?idsku=18769&utm_source=google&utm_medium=cpc&utm_campaign=23002644941&kwd=&matchtype=&adset_id=193341511824&device=c&gad_source=4&gad_campaignid=23002644941&gbraid=0AAAAACi7cJqfJvmvI_7RsmcmwXwpUd1Rt&gclid=CjwKCAiAt8bIBhBpEiwAzH1w6X-E432LsO9lVgEIzL2hiaIUZPa6i19JKOq3i3ahh_zwU1b7oyw5JhoCq5sQAvD_BwE | J21: 2025-11-10 | K21: =91.99+13.77 -> 105.76 | L21: Sim | O21: Sim
B22: Mercado Livre (Vendedor FELIPPE.P) - https://www.mercadolivre.com.br/base-registro-de-gaveta-1-12-bruto-deca-4509502/p/MLB26161238#polycard_client=search-nordic&search_layout=grid&position=25&type=product&tracking_id=331b4a9a-754e-4068-909a-f107497e0fab&wid=MLB5686470064&sid=search | J22: 2025-11-10 | K22: 134.9 | L22: Sim | O22: Sim
B23: Mercado Livre (Vendedor CASA E OFICINA) - https://www.mercadolivre.com.br/registro-de-gaveta-europa-bruto-112-docol/p/MLB2048913710#polycard_client=search-nordic&search_layout=grid&position=27&type=product&tracking_id=ccc70e41-ed2b-4b2f-b2fa-a19fd301690a&wid=MLB4294912334&sid=search | J23: 2025-11-10 | K23: 129.9 | L23: Sim | O23: Sim
B24: Mercado Livre (Vendedor LAR E CONSTRUÇÃO) https://www.mercadolivre.com.br/registro-de-gaveta-abnt-saneamento-112-docol-wt/p/MLB52134029#polycard_client=search-nordic&search_layout=grid&position=31&type=product&tracking_id=235d8dcb-69be-4195-9657-aeb34a10dcfc&wid=MLB5484379556&sid=search | J24: 2025-11-10 | K24: 176.74 | L24: Sim | O24: Sim
